Workbook

Sheet Sheet1
A2: * | B2: * | C2: *
A3: 2019-07-01 | B3: Monday | C3: الإثنين | F3: ='شهر 9 تفصيلي'!A1 -> 2021-09-01 | G3: 2
A4: 2019-07-02 | B4: Tuesday | C4: الثلاثاء | F4: =F3+1 -> 2021-09-02 | G4: 3
A5: 2019-07-03 | B5: Wednesday | C5: الأربعاء | F5: =F4+1 -> 2021-09-03 | G5: 4
A6: 2019-07-04 | B6: Thursday | C6: الخميس | F6: 2021-09-04 | G6: 5
A7: 2019-07-05 | B7: Friday | C7: الجمعة | F7: 2021-09-05 | G7: 6
A8: 2019-07-06 | B8: Saturday | C8: السبت | F8: 2021-09-06 | G8: 7
A9: 2019-07-07 | B9: Sunday | C9: الأحد | F9: 2021-09-07 | G9: 8
A10: 2019-07-08 | B10: Monday | C10: الإثنين | F10: 2021-09-08 | G10: 9
A11: 2019-07-09 | B11: Tuesday | C11: الثلاثاء | F11: 2021-09-09 | G11: 10
A12: 2019-07-10 | B12: Wednesday | C12: الأربعاء | F12: 2021-09-10 | G12: 11
A13: 2019-07-11 | B13: Thursday | C13: الخميس | F13: =F12 -> 2021-09-10 | G13: 12
A14: 2019-07-12 | B14: Friday | C14: الجمعة | F14: =F13+1 -> 2021-09-11 | G14: 13
A15: 2019-07-13 | B15: Saturday | C15: السبت | F15: =F14+1 -> 2021-09-12 | G15: 14
A16: 2019-07-14 | B16: Sunday | C16: الأحد | F16: 2021-09-13 | G16: 15
A17: 2019-07-15 | B17: Monday | C17: الإثنين | F17: 2021-09-14 | G17: 16
A18: 2019-07-16 | B18: Tuesday | C18: الثلاثاء | F18: 2021-09-15 | G18: 17
A19: 2019-07-17 | B19: Wednesday | C19: الأربعاء | F19: 2021-09-16 | G19: 18
A20: 2019-07-18 | B20: Thursday | C20: الخميس | F20: 2021-09-17 | G20: 19
A21: 2019-07-19 | B21: Friday | C21: الجمعة | F21: 2021-09-18 | G21: 20
A22: 2019-07-20 | B22: Saturday | C22: السبت | F22: 2021-09-19 | G22: 21
A23: 2019-07-21 | B23: Sunday | C23: الأحد | F23: 2021-09-20 | G23: 22
A24: 2019-07-22 | B24: Monday | C24: الإثنين | F24: 2021-09-21 | G24: 23
A25: 2019-07-23 | B25: Tuesday | C25: الثلاثاء | F25: 2021-09-22 | G25: 24
A26: 2019-07-24 | B26: Wednesday | C26: الأربعاء | F26: 2021-09-23 | G26: 25
A27: 2019-07-25 | B27: Thursday | C27: الخميس | F27: 2021-09-24 | G27: 26
A28: 2019-07-26 | B28: Friday | C28: الجمعة | F28: 2021-09-25 | G28: 27
A29: 2019-07-27 | B29: Saturday | C29: السبت | F29: 2021-09-26 | G29: 28
A30: 2019-07-28 | B30: Sunday | C30: الأحد | F30: 2021-09-27 | G30: 29
A31: 2019-07-29 | B31: Monday | C31: الإثنين | F31: 2021-09-28 | G31: 30
A32: 2019-07-30 | B32: Tuesday | C32: الثلاثاء | F32: 2021-09-29 | G32: 31
A33: 2019-07-31 | B33: Wednesday | C33: الأربعاء | F33: 2021-09-30 | G33: 32
A34: 2019-08-01 | B34: Thursday | C34: الخميس | F34: 2021-10-01 | G34: 33
A35: 2019-08-02 | B35: Friday | C35: الجمعة
A36: 2019-08-03 | B36: Saturday | C36: السبت
A37: 2019-08-04 | B37: Sunday | C37: الأحد
A38: 2019-08-05 | B38: Monday | C38: الإثنين
A39: 2019-08-06 | B39: Tuesday | C39: الثلاثاء
A40: 2019-08-07 | B40: Wednesday | C40: الأربعاء
A41: 2019-08-08 | B41: Thursday | C41: الخميس
A42: 2019-08-09 | B42: Friday | C42: الجمعة
A43: 2019-08-10 | B43: Saturday | C43: السبت
A44: 2019-08-11 | B44: Sunday | C44: الأحد
A45: 2019-08-12 | B45: Monday | C45: الإثنين
A46: 2019-08-13 | B46: Tuesday | C46: الثلاثاء
A47: 2019-08-14 | B47: Wednesday | C47: الأربعاء
A48: 2019-08-15 | B48: Thursday | C48: الخميس
A49: 2019-08-16 | B49: Friday | C49: الجمعة
A50: 2019-08-17 | B50: Saturday | C50: السبت
A51: 2019-08-18 | B51: Sunday | C51: الأحد
A52: 2019-08-19 | B52: Monday | C52: الإثنين
A53: 2019-08-20 | B53: Tuesday | C53: الثلاثاء
A54: 2019-08-21 | B54: Wednesday | C54: الأربعاء
A55: 2019-08-22 | B55: Thursday | C55: الخميس
A56: 2019-08-23 | B56: Friday | C56: الجمعة
A57: 2019-08-24 | B57: Saturday | C57: السبت
A58: 2019-08-25 | B58: Sunday | C58: الأحد
A59: 2019-08-26 | B59: Monday | C59: الإثنين
A60: 2019-08-27 | B60: Tuesday | C60: الثلاثاء
A61: 2019-08-28 | B61: Wednesday | C61: الأربعاء
A62: 2019-08-29 | B62: Thursday | C62: الخميس
A63: 2019-08-30 | B63: Friday | C63: الجمعة
A64: 2019-08-31 | B64: Saturday | C64: السبت
A65: 2019-09-01 | B65: Sunday | C65: الأحد
A66: 2019-09-02 | B66: Monday | C66: الإثنين
A67: 2019-09-03 | B67: Tuesday | C67: الثلاثاء
A68: 2019-09-04 | B68: Wednesday | C68: الأربعاء
A69: 2019-09-05 | B69: Thursday | C69: الخميس
A70: 2019-09-06 | B70: Friday | C70: الجمعة
A71: 2019-09-07 | B71: Saturday | C71: السبت
A72: 2019-09-08 | B72: Sunday | C72: الأحد
A73: 2019-09-09 | B73: Monday | C73: الإثنين
A74: 2019-09-10 | B74: Tuesday | C74: الثلاثاء
A75: 2019-09-11 | B75: Wednesday | C75: الأربعاء
A76: 2019-09-12 | B76: Thursday | C76: الخميس
A77: 2019-09-13 | B77: Friday | C77: الجمعة
A78: 2019-09-14 | B78: Saturday | C78: السبت
A79: 2019-09-15 | B79: Sunday | C79: الأحد
A80: 2019-09-16 | B80: Monday | C80: الإثنين
A81: 2019-09-17 | B81: Tuesday | C81: الثلاثاء
A82: 2019-09-18 | B82: Wednesday | C82: الأربعاء
A83: 2019-09-19 | B83: Thursday | C83: الخميس
A84: 2019-09-20 | B84: Friday | C84: الجمعة
A85: 2019-09-21 | B85: Saturday | C85: السبت
A86: 2019-09-22 | B86: Sunday | C86: الأحد
A87: 2019-09-23 | B87: Monday | C87: الإثنين
A88: 2019-09-24 | B88: Tuesday | C88: الثلاثاء
A89: 2019-09-25 | B89: Wednesday | C89: الأربعاء
A90: 2019-09-26 | B90: Thursday | C90: الخميس
A91: 2019-09-27 | B91: Friday | C91: الجمعة
A92: 2019-09-28 | B92: Saturday | C92: السبت
A93: 2019-09-29 | B93: Sunday | C93: الأحد
A94: 2019-09-30 | B94: Monday | C94: الإثنين
A95: 2019-10-01 | B95: Tuesday | C95: الثلاثاء
A96: 2019-10-02 | B96: Wednesday | C96: الأربعاء
A97: 2019-10-03 | B97: Thursday | C97: الخميس
A98: 2019-10-04 | B98: Friday | C98: الجمعة
A99: 2019-10-05 | B99: Saturday | C99: السبت
A100: 2019-10-06 | B100: Sunday | C100: الأحد
A101: 2019-10-07 | B101: Monday | C101: الإثنين
A102: 2019-10-08 | B102: Tuesday | C102: الثلاثاء
A103: 2019-10-09 | B103: Wednesday | C103: الأربعاء
A104: 2019-10-10 | B104: Thursday | C104: الخميس
A105: 2019-10-11 | B105: Friday | C105: الجمعة
A106: 2019-10-12 | B106: Saturday | C106: السبت
A107: 2019-10-13 | B107: Sunday | C107: الأحد
A108: 2019-10-14 | B108: Monday | C108: الإثنين
A109: 2019-10-15 | B109: Tuesday | C109: الثلاثاء
A110: 2019-10-16 | B110: Wednesday | C110: الأربعاء
A111: 2019-10-17 | B111: Thursday | C111: الخميس
A112: 2019-10-18 | B112: Friday | C112: الجمعة
A113: 2019-10-19 | B113: Saturday | C113: السبت
A114: 2019-10-20 | B114: Sunday | C114: الأحد
A115: 2019-10-21 | B115: Monday | C115: الإثنين
A116: 2019-10-22 | B116: Tuesday | C116: الثلاثاء
A117: 2019-10-23 | B117: Wednesday | C117: الأربعاء
A118: 2019-10-24 | B118: Thursday | C118: الخميس
A119: 2019-10-25 | B119: Friday | C119: الجمعة
A120: 2019-10-26 | B120: Saturday | C120: السبت
A121: 2019-10-27 | B121: Sunday | C121: الأحد
A122: 2019-10-28 | B122: Monday | C122: الإثنين
A123: 2019-10-29 | B123: Tuesday | C123: الثلاثاء
A124: 2019-10-30 | B124: Wednesday | C124: الأربعاء
A125: 2019-10-31 | B125: Thursday | C125: الخميس
A126: 2019-11-01 | B126: Friday | C126: الجمعة
A127: 2019-11-02 | B127: Saturday | C127: السبت
A128: 2019-11-03 | B128: Sunday | C128: الأحد
A129: 2019-11-04 | B129: Monday | C129: الإثنين
A130: 2019-11-05 | B130: Tuesday | C130: الثلاثاء
A131: 2019-11-06 | B131: Wednesday | C131: الأربعاء
A132: 2019-11-07 | B132: Thursday | C132: الخميس
A133: 2019-11-08 | B133: Friday | C133: الجمعة
A134: 2019-11-09 | B134: Saturday | C134: السبت
A135: 2019-11-10 | B135: Sunday | C135: الأحد
A136: 2019-11-11 | B136: Monday | C136: الإثنين
A137: 2019-11-12 | B137: Tuesday | C137: الثلاثاء
A138: 2019-11-13 | B138: Wednesday | C138: الأربعاء
A139: 2019-11-14 | B139: Thursday | C139: الخميس
A140: 2019-11-15 | B140: Friday | C140: الجمعة
A141: 2019-11-16 | B141: Saturday | C141: السبت
A142: 2019-11-17 | B142: Sunday | C142: الأحد
A143: 2019-11-18 | B143: Monday | C143: الإثنين
A144: 2019-11-19 | B144: Tuesday | C144: الثلاثاء
A145: 2019-11-20 | B145: Wednesday | C145: الأربعاء
A146: 2019-11-21 | B146: Thursday | C146: الخميس
A147: 2019-11-22 | B147: Friday | C147: الجمعة
A148: 2019-11-23 | B148: Saturday | C148: السبت
A149: 2019-11-24 | B149: Sunday | C149: الأحد
A150: 2019-11-25 | B150: Monday | C150: الإثنين
A151: 2019-11-26 | B151: Tuesday | C151: الثلاثاء
A152: 2019-11-27 | B152: Wednesday | C152: الأربعاء
A153: 2019-11-28 | B153: Thursday | C153: الخميس
A154: 2019-11-29 | B154: Friday | C154: الجمعة
A155: 2019-11-30 | B155: Saturday | C155: السبت
A156: 2019-12-01 | B156: Sunday | C156: الأحد
A157: 2019-12-02 | B157: Monday | C157: الإثنين
A158: 2019-12-03 | B158: Tuesday | C158: الثلاثاء
A159: 2019-12-04 | B159: Wednesday | C159: الأربعاء
A160: 2019-12-05 | B160: Thursday | C160: الخميس
A161: 2019-12-06 | B161: Friday | C161: الجمعة
A162: 2019-12-07 | B162: Saturday | C162: السبت
A163: 2019-12-08 | B163: Sunday | C163: الأحد
A164: 2019-12-09 | B164: Monday | C164: الإثنين
A165: 2019-12-10 | B165: Tuesday | C165: الثلاثاء
A166: 2019-12-11 | B166: Wednesday | C166: الأربعاء
A167: 2019-12-12 | B167: Thursday | C167: الخميس
A168: 2019-12-13 | B168: Friday | C168: الجمعة
A169: 2019-12-14 | B169: Saturday | C169: السبت
A170: 2019-12-15 | B170: Sunday | C170: الأحد
A171: 2019-12-16 | B171: Monday | C171: الإثنين
A172: 2019-12-17 | B172: Tuesday | C172: الثلاثاء
A173: 2019-12-18 | B173: Wednesday | C173: الأربعاء
A174: 2019-12-19 | B174: Thursday | C174: الخميس
A175: 2019-12-20 | B175: Friday | C175: الجمعة
A176: 2019-12-21 | B176: Saturday | C176: السبت
A177: 2019-12-22 | B177: Sunday | C177: الأحد
A178: 2019-12-23 | B178: Monday | C178: الإثنين
A179: 2019-12-24 | B179: Tuesday | C179: الثلاثاء
A180: 2019-12-25 | B180: Wednesday | C180: الأربعاء
A181: 2019-12-26 | B181: Thursday | C181: الخميس
A182: 2019-12-27 | B182: Friday | C182: الجمعة
A183: 2019-12-28 | B183: Saturday | C183: السبت
A184: 2019-12-29 | B184: Sunday | C184: الأحد
A185: 2019-12-30 | B185: Monday | C185: الإثنين
A186: 2019-12-31 | B186: Tuesday | C186: الثلاثاء
A187: 2020-01-01 | B187: Wednesday | C187: الأربعاء
A188: 2020-01-02 | B188: Thursday | C188: الخميس
A189: 2020-01-03 | B189: Friday | C189: الجمعة
A190: 2020-01-04 | B190: Saturday | C190: السبت
A191: 2020-01-05 | B191: Sunday | C191: الأحد
A192: 2020-01-06 | B192: Monday | C192: الإثنين
A193: 2020-01-07 | B193: Tuesday | C193: الثلاثاء
A194: 2020-01-08 | B194: Wednesday | C194: الأربعاء
A195: 2020-01-09 | B195: Thursday | C195: الخميس
A196: 2020-01-10 | B196: Friday | C196: الجمعة
A197: 2020-01-11 | B197: Saturday | C197: السبت
A198: 2020-01-12 | B198: Sunday | C198: الأحد
A199: 2020-01-13 | B199: Monday | C199: الإثنين
A200: 2020-01-14 | B200: Tuesday | C200: الثلاثاء
A201: 2020-01-15 | B201: Wednesday | C201: الأربعاء
... 1135 more rows

Sheet BUS
B2: تسلسل | C2: رقم الباص | D2: رقم اللوحه | E2: نوع الباص | F2: الموقع
B3: SN. # | C3: Bus # | D3: Plate # | E3: Bus type | F3: LOCATION
B4: DHAHRAN 128 Big + 42 Small = 170 buses
B5: 1 | C5: 1027 | D5: 1827 EJA | E5: Travego | F5: DHA
B6: 2 | C6: 1038 | D6: 1838 EJA | E6: Travego | F6: DHA
B7: 3 | C7: 1045 | D7: 1845 EJA | E7: Travego | F7: DHA
B8: 4 | C8: 1050 | D8: 1850 EJA | E8: Travego | F8: DHA
B9: 5 | C9: 1056 | D9: 1856 EJA | E9: Travego | F9: DHA
B10: 6 | C10: 1057 | D10: 1857 EJA | E10: Travego | F10: DHA
B11: 7 | C11: 1059 | D11: 1859 EJA | E11: Travego | F11: DHA
B12: 8 | C12: 1063 | D12: 1863 EJA | E12: Travego | F12: DHA
B13: 9 | C13: 1090 | D13: 5259 EJA | E13: Travego | F13: DHA
B14: 10 | C14: 1092 | D14: 5261 EJA | E14: Travego | F14: DHA
B15: 11 | C15: 1094 | D15: 5263 EJA | E15: Travego | F15: DHA
B16: 12 | C16: 1095 | D16: 5264 EJA | E16: Travego | F16: DHA
B17: 13 | C17: 1098 | D17: 5270EJA | E17: Travego | F17: MUB
B18: 14 | C18: 1110 | D18: 5305 EJA | E18: Travego | F18: DHA
B19: 15 | C19: 1114 | D19: 5274 EJA | E19: Travego | F19: DHA
B20: 16 | C20: 1120 | D20: 5291 EJA | E20: Travego | F20: DHA
B21: 17 | C21: 1121 | D21: 5292 EJA | E21: Travego | F21: DHA
B22: 18 | C22: 1124 | D22: 5300 EJA | E22: Travego | F22: DHA
B23: 19 | C23: 1130 | D23: 5308 EJA | E23: Travego | F23: DHA
B24: 20 | C24: 1132 | D24: 5311 EJA | E24: Travego | F24: DHA
B25: 21 | C25: 1141 | D25: 5282 EJA | E25: Travego | F25: DHA
B26: 22 | C26: 1146 | D26: 4389 LJA | E26: Travego | F26: DHA
B27: 23 | C27: 1151 | D27: 5316 EJA | E27: Travego | F27: DHA
B28: 24 | C28: 1152 | D28: 5630 EJA | E28: Travego | F28: DHA
B29: 25 | C29: 1155 | D29: 5636 EJA | E29: Travego | F29: DHA
B30: 26 | C30: 1156 | D30: 5650 EJA | E30: Travego | F30: DHA
B31: 27 | C31: 1166 | D31: 8573 SJA | E31: Travego | F31: DHA
B32: 28 | C32: 1171 | D32: 8584 SJA | E32: Travego | F32: DHA
B33: 29 | C33: 1174 | D33: 8572 SJA | E33: Travego | F33: DHA
B34: 30 | C34: 1176 | D34: 8928 SJA | E34: Travego | F34: DHA
B35: 31 | C35: 1200 | D35: 4375 LJA | E35: Travego | F35: DHA
B36: 32 | C36: 1201 | D36: 8923 SJA | E36: Travego | F36: DHA
B37: 33 | C37: 1202 | D37: 4400 LJA | E37: Travego | F37: DHA
B38: 34 | C38: 1203 | D38: 8585 SJA | E38: Travego | F38: DHA
B39: 35 | C39: 1206 | D39: 4377 LJA | E39: Travego | F39: DHA
B40: 36 | C40: 1210 | D40: 8931 SJA | E40: Travego | F40: DHA
B41: 37 | C41: 1211 | D41: 4382 LJA | E41: Travego | F41: DHA
B42: 38 | C42: 1212 | D42: 4510 LJA | E42: Travego | F42: DHA
B43: 39 | C43: 1214 | D43: 4365 LJA | E43: Travego | F43: DHA
B44: 40 | C44: 1217 | D44: 4369 LJA | E44: Travego | F44: DHA
B45: 41 | C45: 1218 | D45: 4137 SJA | E45: Travego | F45: DHA
B46: 42 | C46: 1220 | D46: 4517 LJA | E46: Travego | F46: DHA
B47: 43 | C47: 1221 | D47: 4520 LJA | E47: Travego | F47: DHA
B48: 44 | C48: 1222 | D48: 4522 LJA | E48: Travego | F48: DHA
B49: 45 | C49: 1223 | D49: 4524 LJA | E49: Travego | F49: DHA
B50: 46 | C50: 1225 | D50: 4390 LJA | E50: Travego | F50: DHA
B51: 47 | C51: 1227 | D51: 4518 LJA | E51: Travego | F51: DHA
B52: 48 | C52: 1228 | D52: 4387 LJA | E52: Travego | F52: DHA
B53: 49 | C53: 1229 | D53: 4351 LJA | E53: Travego | F53: DHA
B54: 50 | C54: 1231 | D54: 4395 LJA | E54: Travego | F54: DHA
B55: 51 | C55: 1234 | D55: 4356 LJA | E55: Travego | F55: DHA
B56: 52 | C56: 1235 | D56: 4508 LJA | E56: Travego | F56: DHA
B57: 53 | C57: 1238 | D57: 8927 SJA | E57: Travego | F57: DHA
B58: 54 | C58: 1239 | D58: 8583 SJA | E58: Travego | F58: DHA
B59: 55 | C59: 1240 | D59: 4388 LJA | E59: Travego | F59: DHA
B60: 56 | C60: 1241 | D60: 4515 LJA | E60: Travego | F60: DHA
B61: 57 | C61: 1242 | D61: 4354 LJA | E61: Travego | F61: DHA
B62: 58 | C62: 1245 | D62: 4394 LJA | E62: Travego | F62: DHA
B63: 59 | C63: 1246 | D63: 4360 LJA | E63: Travego | F63: DHA
B64: 60 | C64: 1247 | D64: 4393 LJA | E64: Travego | F64: DHA
B65: 61 | C65: 1248 | D65: 4352 LJA | E65: Travego | F65: DHA
B66: 62 | C66: 1249 | D66: 4397 LJA | E66: Travego | F66: DHA
B67: 63 | C67: 1250 | D67: 4514 LJA | E67: Travego | F67: DHA
B68: 64 | C68: 1251 | D68: 4258 LJA | E68: Travego | F68: DHA
B69: 65 | C69: 1252 | D69: 4386 LJA | E69: Travego | F69: DHA
B70: 66 | C70: 1254 | D70: 8924 SJA | E70: Travego | F70: DHA
B71: 67 | C71: 1255 | D71: 4357 LJA | E71: Travego | F71: DHA
B72: 68 | C72: 1256 | D72: 4396 LJA | E72: Travego | F72: DHA
B73: 69 | C73: 1257 | D73: 4355 LJA | E73: Travego | F73: DHA
B74: 70 | C74: 1258 | D74: 4511 LJA | E74: Travego | F74: DHA
B75: 71 | C75: 1259 | D75: 4523 LJA | E75: Travego | F75: DHA
B76: 72 | C76: 1260 | D76: 4107 SJA | E76: Travego | F76: DHA
B77: 73 | C77: 1261 | D77: 8926 SJA | E77: Travego | F77: DHA
B78: 74 | C78: 1263 | D78: 2290 LJA | E78: Travego | F78: DHA
B79: 75 | C79: 1264 | D79: 2281 LJA | E79: Travego | F79: DHA
B80: 76 | C80: 1265 | D80: 2283 LJA | E80: Travego | F80: DHA
B81: 77 | C81: 1266 | D81: 2291 LJA | E81: Travego | F81: DHA
B82: 78 | C82: 1267 | D82: 2289 LJA | E82: Travego | F82: DHA
B83: 79 | C83: 1269 | D83: 1630 LJA | E83: Travego | F83: DHA
B84: 80 | C84: 1270 | D84: 1632 LJA | E84: Travego | F84: DHA
B85: 81 | C85: 1274 | D85: 8603 SJA | E85: Travego | F85: DHA
B86: 82 | C86: 1275 | D86: 1631 LJA | E86: Travego | F86: DHA
B87: 83 | C87: 1279 | D87: 1633 LJA | E87: Travego | F87: DHA
B88: 84 | C88: 1280 | D88: 8617 SJA | E88: Travego | F88: DHA
B89: 85 | C89: 1281 | D89: 1636 LJA | E89: Travego | F89: DHA
B90: 86 | C90: 1282 | D90: 1649 LJA | E90: Travego | F90: DHA
B91: 87 | C91: 1283 | D91: 8604 SJA | E91: Travego | F91: DHA
B92: 88 | C92: 1284 | D92: 8601 SJA | E92: Travego | F92: DHA
B93: 89 | C93: 1286 | D93: 1949 LJA | E93: Travego | F93: DHA
B94: 90 | C94: 1287 | D94: 1634 LJA | E94: Travego | F94: DHA
B95: 91 | C95: 1288 | D95: 1635 LJA | E95: Travego | F95: DHA
B96: 92 | C96: 1289 | D96: 8840 SJA | E96: Travego | F96: DHA
B97: 93 | C97: 1295 | D97: 8841 SJA | E97: Travego | F97: DHA
B98: 94 | C98: 1297 | D98: 1712 LJA | E98: Travego | F98: DHA
B99: 95 | C99: 1298 | D99: 1713 LJA | E99: Travego | F99: DHA
B100: 96 | C100: 1299 | D100: 4381 LJA | E100: Travego | F100: MUB
B101: 97 | C101: 1303 | D101: 4727 LJA | E101: Travego | F101: DHA
B102: 98 | C102: 1305 | D102: 8835 SJA | E102: Travego | F102: DHA
B103: 99 | C103: 1306 | D103: 2292 LJA | E103: Travego | F103: DHA
B104: 100 | C104: 1308 | D104: 4509 LJA | E104: Travego | F104: DHA
B105: 101 | C105: 1309 | D105: 2005 UJA | E105: Travego | F105: DHA
B106: 102 | C106: 1310 | D106: 8923 ADA | E106: Travego | F106: DHA
B107: 103 | C107: 1311 | D107: 8921 ADA | E107: Travego | F107: DHA
B108: 104 | C108: 1312 | D108: 8929 ADA | E108: Travego | F108: DHA
B109: 105 | C109: 1314 | D109: 8930 ADA | E109: Travego | F109: DHA
B110: 106 | C110: 1315 | D110: 8927 ADA | E110: Travego | F110: DHA
B111: 107 | C111: 1316 | D111: 8922 ADA | E111: Travego | F111: DHA
B112: 108 | C112: 1319 | D112: 4078 NDA | E112: Travego | F112: DHA
B113: 109 | C113: 1320 | D113: 4079 NDA | E113: Travego | F113: DHA
B114: 110 | C114: 1321 | D114: 4080 NDA | E114: Travego | F114: DHA
B115: 111 | C115: 1322 | D115: 4081 NDA | E115: Travego | F115: DHA
B116: 112 | C116: 1323 | D116: 4082 NDA | E116: Travego | F116: DHA
B117: 113 | C117: 1324 | D117: 2562 HDA | E117: Travego | F117: DHA
B118: 114 | C118: 1325 | D118: 2595 HDA | E118: Travego | F118: DHA
B119: 115 | C119: 1326 | D119: 2561 HDA | E119: Travego | F119: DHA
B120: 116 | C120: 1328 | D120: 2484 HDA | E120: Travego | F120: DHA
B121: 117 | C121: 1329 | D121: 2583 HDA | E121: Travego | F121: DHA
B122: 118 | C122: 1331 | D122: 2594 HDA | E122: Travego | F122: DHA
B123: 119 | C123: 1333 | D123: 2560 HDA | E123: Travego | F123: MUB
B124: 120 | C124: 1334 | D124: 2496 HDA | E124: Travego | F124: DHA
B125: 121 | C125: 1335 | D125: 2596 HDA | E125: Travego | F125: DHA
B126: 122 | C126: 1336 | D126: 2597 HDA | E126: Travego | F126: DHA
B127: 123 | C127: 1337 | D127: 2490 HDA | E127: Travego | F127: DHA
B128: 124 | C128: 1338 | D128: 2492 HDA | E128: Travego | F128: DHA
B129: 125 | C129: 1339 | D129: 2487 HDA | E129: Travego | F129: DHA
B130: 126 | C130: 1400 | D130: 2228 LJA | E130: Setra | F130: DHA
B131: 127 | C131: 1401 | D131: 2227 LJA | E131: Setra | F131: DHA
B132: 128 | C132: 1402 | D132: 2228 EJA | E132: Setra | F132: DHA
B133: 129 | C133: 1502 | D133: 8591 SJA | E133: Sprinter | F133: DHA
B134: 130 | C134: 1508 | D134: 8570 SJA | E134: Sprinter | F134: DHA
B135: 131 | C135: 1510 | D135: 8569 SJA | E135: Sprinter | F135: DHA
B136: 132 | C136: 1523 | D136: 8547 SJA | E136: Sprinter | F136: DHA
B137: 133 | C137: 1524 | D137: 8536 SJA | E137: Sprinter | F137: DHA
B138: 134 | C138: 1541 | D138: 8514 SJA | E138: Sprinter | F138: DHA
B139: 135 | C139: 1542 | D139: 8691 SJA | E139: Sprinter | F139: DHA
B140: 136 | C140: 1547 | D140: 8515 SJA | E140: Sprinter | F140: DHA
B141: 137 | C141: 1559 | D141: 4251 SJA | E141: Sprinter | F141: DHA
B142: 138 | C142: 1560 | D142: 4257 SJA | E142: Sprinter | F142: DHA
B143: 139 | C143: 1567 | D143: 4261 SJA | E143: Sprinter | F143: DHA
B144: 140 | C144: 1573 | D144: 2338 LJA | E144: Sprinter | F144: DHA
B145: 141 | C145: 1585 | D145: 2834 LJA | E145: Sprinter | F145: DHA
B146: 142 | C146: 1592 | D146: 2966 LJA | E146: Sprinter | F146: DHA
B147: 143 | C147: 1595 | D147: 2256 LJA | E147: Sprinter | F147: DHA
B148: 144 | C148: 1596 | D148: 2733 LJA | E148: Sprinter | F148: DHA
B149: 145 | C149: 1609 | D149: 1972 LJA | E149: Sprinter | F149: DHA
B150: 146 | C150: 1613 | D150: 8620 SJA | E150: Sprinter | F150: DHA
B151: 147 | C151: 1614 | D151: 8632 SJA | E151: Sprinter | F151: DHA
B152: 148 | C152: 1615 | D152: 8611 SJA | E152: Sprinter | F152: DHA
B153: 149 | C153: 1620 | D153: 8618 SJA | E153: Sprinter | F153: DHA
B154: 150 | C154: 1621 | D154: 8633 SJA | E154: Sprinter | F154: DHA
B155: 151 | C155: 1622 | D155: 8624 SJA | E155: Sprinter | F155: DHA
B156: 152 | C156: 1624 | D156: 8612 SJA | E156: Sprinter | F156: DHA
B157: 153 | C157: 1625 | D157: 1971 LJA | E157: Sprinter | F157: DHA
B158: 154 | C158: 1626 | D158: 8619 SJA | E158: Sprinter | F158: DHA
B159: 155 | C159: 1628 | D159: 8839 SJA | E159: Sprinter | F159: DHA
B160: 156 | C160: 1630 | D160: 8989 SJA | E160: Sprinter | F160: DHA
B161: 157 | C161: 1632 | D161: 8848 SJA | E161: Sprinter | F161: DHA
B162: 158 | C162: 1633 | D162: 8837 SJA | E162: Sprinter | F162: DHA
B163: 159 | C163: 1635 | D163: 8996 SJA | E163: Sprinter | F163: DHA
B164: 160 | C164: 1636 | D164: 8845 SJA | E164: Sprinter | F164: DHA
B165: 161 | C165: 1637 | D165: 8995 SJA | E165: Sprinter | F165: DHA
B166: 162 | C166: 1638 | D166: 8994 SJA | E166: Sprinter | F166: DHA
B167: 163 | C167: 1639 | D167: 8829 SJA | E167: Sprinter | F167: DHA
B168: 164 | C168: 1643 | D168: 8838 SJA | E168: Sprinter | F168: DHA
B169: 165 | C169: 1644 | D169: 8988 SJA | E169: Sprinter | F169: DHA
B170: 166 | C170: 1648 | D170: 8924 ADA | E170: Sprinter | F170: DHA
B171: 167 | C171: 1649 | D171: 8926 ADA | E171: Sprinter | F171: DHA
B172: 168 | C172: 1650 | D172: 8925 ADA | E172: Sprinter | F172: DHA
B173: 169 | C173: 1653 | D173: 9540 XGJ | E173: Sprinter | F173: DHA
B174: 170 | C174: 1654 | D174: 9541 XGJ | E174: Sprinter | F174: DHA
B175: KHORAIS 7 Big + 4 Small = 11 buses
B176: 1 | C176: 1060 | D176: 1860 EJA | E176: Travego | F176: KHO
B177: 2 | C177: 1065 | D177: 1865 EJA | E177: Travego | F177: KHO
B178: 3 | C178: 1067 | D178: 1867 EJA | E178: Travego | F178: KHO
B179: 4 | C179: 1097 | D179: 5268 EJA | E179: Travego | F179: KHO
B180: 5 | C180: 1148 | D180: 5295 EJA | E180: Travego | F180: KHO
B181: 6 | C181: 1233 | D181: 4512 LJA | E181: Travego | F181: KHO
B182: 7 | C182: 1268 | D182: 1948 LJA | E182: Travego | F182: KHO
B183: 8 | C183: 1538 | D183: 8513 SJA | E183: Sprinter | F183: KHO
B184: 9 | C184: 1566 | D184: 4259 SJA | E184: Sprinter | F184: KHO
B185: 10 | C185: 1645 | D185: 8847 SJA | E185: Sprinter | F185: KHO
B186: 11 | C186: 1647 | D186: 1974 LJA | E186: Sprinter | F186: KHO
B187: RIYADH 4 Big + 7 Small = 11 buses
B188: 1 | C188: 1058 | D188: 1858 EJA | E188: Travego | F188: RIY
B189: 2 | C189: 1108 | D189: 5297 EJA | E189: Travego | F189: RIY
B190: 3 | C190: 1230 | D190: 4367 LJA | E190: Travego | F190: RIY
B191: 4 | C191: 1232 | D191: 8944 SJA | E191: Travego | F191: RIY
B192: 5 | C192: 1545 | D192: 8695 SJA | E192: Sprinter | F192: RIY
B193: 6 | C193: 1607 | D193: 8628 SJA | E193: Sprinter | F193: RIY
B194: 7 | C194: 1608 | D194: 1973 LJA | E194: Sprinter | F194: RIY
B195: 8 | C195: 1610 | D195: 8610 SJA | E195: Sprinter | F195: RIY
B196: 9 | C196: 1617 | D196: 8629 SJA | E196: Sprinter | F196: RIY
B197: 10 | C197: 1619 | D197: 8630 SJA | E197: Sprinter | F197: RIY
B198: 11 | C198: 1627 | D198: 1072 LJA | E198: Sprinter | F198: RIY
B199: MUBARRAZ 61 Big + 17 Small = 78 buses
B200: 1 | C200: 1001 | D200: 1801 EJA | E200: Travego | F200: MUB
B201: 2 | C201: 1002 | D201: 1802 EJA | E201: Travego | F201: MUB
... 542 more rows

Sheet شهر 9 تفصيلي
A1: 2021-09-01 | C1: EARADAT TRANSPORT COMPANY --------MUB-------- AREA
C2: FUEL CONSUMPTION FOR MONTH OF ---------June---------- for --------KHASHMAN-------- GAS STATION
A3: TRAVEGO ( Diesel )
A4: S/N | B4: Bus # | C4: 1 | D4: 2 | E4: 3 | F4: 4 | G4: 5 | H4: 6 | I4: 7 | J4: 8 | K4: 9 | L4: 10 | M4: 10(2) | N4: 11 | O4: 12 | P4: 13 | Q4: 14 | R4: 15 | S4: 16 | T4: 17 | U4: 18 | V4: 19 | W4: 20 | X4: 21 | Y4: 22 | Z4: 23 | AA4: 24 | AB4: 25 | AC4: 26 | AD4: 27 | AE4: 28 | AF4: 29 | AG4: 30 | AH4: 31 | AI4: Total | AJ4: Area
A5: 1 | B5: 1001 | C5: =SUM(IF('1'!$J$9:$J$875='شهر 9 تفصيلي'!$B5,'1'!$L$9:$L$875)) -> 0 | D5: =SUM(IF('2'!$J$9:$J$877='شهر 9 تفصيلي'!$B5,'2'!$L$9:$L$877)) -> 0 | E5: =SUM(IF('3'!$J$9:$J$877='شهر 9 تفصيلي'!$B5,'3'!$L$9:$L$877)) -> 0 | F5: =SUM(IF('4'!$J$9:$J$877='شهر 9 تفصيلي'!$B5,'4'!$L$9:$L$877)) -> 165 | G5: =SUM(IF('5'!$J$9:$J$877='شهر 9 تفصيلي'!$B5,'5'!$L$9:$L$877)) -> 0 | H5: =SUM(IF('6'!$J$9:$J$877='شهر 9 تفصيلي'!$B5,'6'!$L$9:$L$877)) -> 0 | I5: =SUM(IF('7'!$J$9:$J$877='شهر 9 تفصيلي'!$B5,'7'!$L$9:$L$877)) -> 0 | J5: =SUM(IF('8'!$J$9:$J$877='شهر 9 تفصيلي'!$B5,'8'!$L$9:$L$877)) -> 210 | K5: =SUM(IF('9'!$J$9:$J$877='شهر 9 تفصيلي'!$B5,'9'!$L$9:$L$877)) -> 105 | L5: =SUM(IF('10'!$J$9:$J$877='شهر 9 تفصيلي'!$B5,'10'!$L$9:$L$877)) -> 0 | M5: =SUM(IF('10 (2)'!$J$9:$J$877='شهر 9 تفصيلي'!$B5,'10 (2)'!$L$9:$L$877)) -> 0 | AI5: =SUM(C5:AH5) -> 480 | AJ5: =IFERROR(VLOOKUP(B5,BUS!$C$4:$AEB$888,4,0),"") -> MUB
A6: 2 | B6: 1002 | C6: =SUM(IF('1'!$J$9:$J$875='شهر 9 تفصيلي'!$B6,'1'!$L$9:$L$875)) -> 0 | D6: =SUM(IF('2'!$J$9:$J$877='شهر 9 تفصيلي'!$B6,'2'!$L$9:$L$877)) -> 0 | E6: =SUM(IF('3'!$J$9:$J$877='شهر 9 تفصيلي'!$B6,'3'!$L$9:$L$877)) -> 0 | F6: =SUM(IF('4'!$J$9:$J$877='شهر 9 تفصيلي'!$B6,'4'!$L$9:$L$877)) -> 0 | G6: =SUM(IF('5'!$J$9:$J$877='شهر 9 تفصيلي'!$B6,'5'!$L$9:$L$877)) -> 0 | H6: =SUM(IF('6'!$J$9:$J$877='شهر 9 تفصيلي'!$B6,'6'!$L$9:$L$877)) -> 0 | I6: =SUM(IF('7'!$J$9:$J$877='شهر 9 تفصيلي'!$B6,'7'!$L$9:$L$877)) -> 0 | J6: =SUM(IF('8'!$J$9:$J$877='شهر 9 تفصيلي'!$B6,'8'!$L$9:$L$877)) -> 0 | K6: =SUM(IF('9'!$J$9:$J$877='شهر 9 تفصيلي'!$B6,'9'!$L$9:$L$877)) -> 0 | L6: =SUM(IF('10'!$J$9:$J$877='شهر 9 تفصيلي'!$B6,'10'!$L$9:$L$877)) -> 0 | M6: =SUM(IF('10 (2)'!$J$9:$J$877='شهر 9 تفصيلي'!$B6,'10 (2)'!$L$9:$L$877)) -> 0 | AI6: 0 | AJ6: =IFERROR(VLOOKUP(B6,BUS!$C$4:$AEB$888,4,0),"") -> MUB
A7: 3 | B7: 1004 | C7: =SUM(IF('1'!$J$9:$J$875='شهر 9 تفصيلي'!$B7,'1'!$L$9:$L$875)) -> 0 | D7: =SUM(IF('2'!$J$9:$J$877='شهر 9 تفصيلي'!$B7,'2'!$L$9:$L$877)) -> 0 | E7: =SUM(IF('3'!$J$9:$J$877='شهر 9 تفصيلي'!$B7,'3'!$L$9:$L$877)) -> 0 | F7: =SUM(IF('4'!$J$9:$J$877='شهر 9 تفصيلي'!$B7,'4'!$L$9:$L$877)) -> 0 | G7: =SUM(IF('5'!$J$9:$J$877='شهر 9 تفصيلي'!$B7,'5'!$L$9:$L$877)) -> 0 | H7: =SUM(IF('6'!$J$9:$J$877='شهر 9 تفصيلي'!$B7,'6'!$L$9:$L$877)) -> 0 | I7: =SUM(IF('7'!$J$9:$J$877='شهر 9 تفصيلي'!$B7,'7'!$L$9:$L$877)) -> 0 | J7: =SUM(IF('8'!$J$9:$J$877='شهر 9 تفصيلي'!$B7,'8'!$L$9:$L$877)) -> 0 | K7: =SUM(IF('9'!$J$9:$J$877='شهر 9 تفصيلي'!$B7,'9'!$L$9:$L$877)) -> 0 | L7: =SUM(IF('10'!$J$9:$J$877='شهر 9 تفصيلي'!$B7,'10'!$L$9:$L$877)) -> 0 | M7: =SUM(IF('10 (2)'!$J$9:$J$877='شهر 9 تفصيلي'!$B7,'10 (2)'!$L$9:$L$877)) -> 0 | AI7: 0 | AJ7: =IFERROR(VLOOKUP(B7,BUS!$C$4:$AEB$888,4,0),"") -> MUB
A8: 4 | B8: 1005 | C8: =SUM(IF('1'!$J$9:$J$875='شهر 9 تفصيلي'!$B8,'1'!$L$9:$L$875)) -> 0 | D8: =SUM(IF('2'!$J$9:$J$877='شهر 9 تفصيلي'!$B8,'2'!$L$9:$L$877)) -> 0 | E8: =SUM(IF('3'!$J$9:$J$877='شهر 9 تفصيلي'!$B8,'3'!$L$9:$L$877)) -> 0 | F8: =SUM(IF('4'!$J$9:$J$877='شهر 9 تفصيلي'!$B8,'4'!$L$9:$L$877)) -> 0 | G8: =SUM(IF('5'!$J$9:$J$877='شهر 9 تفصيلي'!$B8,'5'!$L$9:$L$877)) -> 0 | H8: =SUM(IF('6'!$J$9:$J$877='شهر 9 تفصيلي'!$B8,'6'!$L$9:$L$877)) -> 0 | I8: =SUM(IF('7'!$J$9:$J$877='شهر 9 تفصيلي'!$B8,'7'!$L$9:$L$877)) -> 0 | J8: =SUM(IF('8'!$J$9:$J$877='شهر 9 تفصيلي'!$B8,'8'!$L$9:$L$877)) -> 0 | K8: =SUM(IF('9'!$J$9:$J$877='شهر 9 تفصيلي'!$B8,'9'!$L$9:$L$877)) -> 0 | L8: =SUM(IF('10'!$J$9:$J$877='شهر 9 تفصيلي'!$B8,'10'!$L$9:$L$877)) -> 0 | M8: =SUM(IF('10 (2)'!$J$9:$J$877='شهر 9 تفصيلي'!$B8,'10 (2)'!$L$9:$L$877)) -> 0 | AI8: 0 | AJ8: =IFERROR(VLOOKUP(B8,BUS!$C$4:$AEB$888,4,0),"") -> ABQ
A9: 5 | B9: 1007 | C9: =SUM(IF('1'!$J$9:$J$875='شهر 9 تفصيلي'!$B9,'1'!$L$9:$L$875)) -> 0 | D9: =SUM(IF('2'!$J$9:$J$877='شهر 9 تفصيلي'!$B9,'2'!$L$9:$L$877)) -> 0 | E9: =SUM(IF('3'!$J$9:$J$877='شهر 9 تفصيلي'!$B9,'3'!$L$9:$L$877)) -> 0 | F9: =SUM(IF('4'!$J$9:$J$877='شهر 9 تفصيلي'!$B9,'4'!$L$9:$L$877)) -> 0 | G9: =SUM(IF('5'!$J$9:$J$877='شهر 9 تفصيلي'!$B9,'5'!$L$9:$L$877)) -> 0 | H9: =SUM(IF('6'!$J$9:$J$877='شهر 9 تفصيلي'!$B9,'6'!$L$9:$L$877)) -> 0 | I9: =SUM(IF('7'!$J$9:$J$877='شهر 9 تفصيلي'!$B9,'7'!$L$9:$L$877)) -> 0 | J9: =SUM(IF('8'!$J$9:$J$877='شهر 9 تفصيلي'!$B9,'8'!$L$9:$L$877)) -> 0 | K9: =SUM(IF('9'!$J$9:$J$877='شهر 9 تفصيلي'!$B9,'9'!$L$9:$L$877)) -> 0 | L9: =SUM(IF('10'!$J$9:$J$877='شهر 9 تفصيلي'!$B9,'10'!$L$9:$L$877)) -> 0 | M9: =SUM(IF('10 (2)'!$J$9:$J$877='شهر 9 تفصيلي'!$B9,'10 (2)'!$L$9:$L$877)) -> 0 | AI9: 0 | AJ9: =IFERROR(VLOOKUP(B9,BUS!$C$4:$AEB$888,4,0),"") -> MUB
A10: 6 | B10: 1008 | C10: =SUM(IF('1'!$J$9:$J$875='شهر 9 تفصيلي'!$B10,'1'!$L$9:$L$875)) -> 0 | D10: =SUM(IF('2'!$J$9:$J$877='شهر 9 تفصيلي'!$B10,'2'!$L$9:$L$877)) -> 0 | E10: =SUM(IF('3'!$J$9:$J$877='شهر 9 تفصيلي'!$B10,'3'!$L$9:$L$877)) -> 0 | F10: =SUM(IF('4'!$J$9:$J$877='شهر 9 تفصيلي'!$B10,'4'!$L$9:$L$877)) -> 0 | G10: =SUM(IF('5'!$J$9:$J$877='شهر 9 تفصيلي'!$B10,'5'!$L$9:$L$877)) -> 0 | H10: =SUM(IF('6'!$J$9:$J$877='شهر 9 تفصيلي'!$B10,'6'!$L$9:$L$877)) -> 0 | I10: =SUM(IF('7'!$J$9:$J$877='شهر 9 تفصيلي'!$B10,'7'!$L$9:$L$877)) -> 0 | J10: =SUM(IF('8'!$J$9:$J$877='شهر 9 تفصيلي'!$B10,'8'!$L$9:$L$877)) -> 0 | K10: =SUM(IF('9'!$J$9:$J$877='شهر 9 تفصيلي'!$B10,'9'!$L$9:$L$877)) -> 0 | L10: =SUM(IF('10'!$J$9:$J$877='شهر 9 تفصيلي'!$B10,'10'!$L$9:$L$877)) -> 0 | M10: =SUM(IF('10 (2)'!$J$9:$J$877='شهر 9 تفصيلي'!$B10,'10 (2)'!$L$9:$L$877)) -> 0 | AI10: 0 | AJ10: =IFERROR(VLOOKUP(B10,BUS!$C$4:$AEB$888,4,0),"") -> MUB
A11: 7 | B11: 1009 | C11: =SUM(IF('1'!$J$9:$J$875='شهر 9 تفصيلي'!$B11,'1'!$L$9:$L$875)) -> 0 | D11: =SUM(IF('2'!$J$9:$J$877='شهر 9 تفصيلي'!$B11,'2'!$L$9:$L$877)) -> 0 | E11: =SUM(IF('3'!$J$9:$J$877='شهر 9 تفصيلي'!$B11,'3'!$L$9:$L$877)) -> 0 | F11: =SUM(IF('4'!$J$9:$J$877='شهر 9 تفصيلي'!$B11,'4'!$L$9:$L$877)) -> 0 | G11: =SUM(IF('5'!$J$9:$J$877='شهر 9 تفصيلي'!$B11,'5'!$L$9:$L$877)) -> 0 | H11: =SUM(IF('6'!$J$9:$J$877='شهر 9 تفصيلي'!$B11,'6'!$L$9:$L$877)) -> 0 | I11: =SUM(IF('7'!$J$9:$J$877='شهر 9 تفصيلي'!$B11,'7'!$L$9:$L$877)) -> 0 | J11: =SUM(IF('8'!$J$9:$J$877='شهر 9 تفصيلي'!$B11,'8'!$L$9:$L$877)) -> 0 | K11: =SUM(IF('9'!$J$9:$J$877='شهر 9 تفصيلي'!$B11,'9'!$L$9:$L$877)) -> 0 | L11: =SUM(IF('10'!$J$9:$J$877='شهر 9 تفصيلي'!$B11,'10'!$L$9:$L$877)) -> 0 | M11: =SUM(IF('10 (2)'!$J$9:$J$877='شهر 9 تفصيلي'!$B11,'10 (2)'!$L$9:$L$877)) -> 0 | AI11: 0 | AJ11: =IFERROR(VLOOKUP(B11,BUS!$C$4:$AEB$888,4,0),"") -> MUB
A12: 8 | B12: 1010 | C12: =SUM(IF('1'!$J$9:$J$875='شهر 9 تفصيلي'!$B12,'1'!$L$9:$L$875)) -> 0 | D12: =SUM(IF('2'!$J$9:$J$877='شهر 9 تفصيلي'!$B12,'2'!$L$9:$L$877)) -> 0 | E12: =SUM(IF('3'!$J$9:$J$877='شهر 9 تفصيلي'!$B12,'3'!$L$9:$L$877)) -> 0 | F12: =SUM(IF('4'!$J$9:$J$877='شهر 9 تفصيلي'!$B12,'4'!$L$9:$L$877)) -> 0 | G12: =SUM(IF('5'!$J$9:$J$877='شهر 9 تفصيلي'!$B12,'5'!$L$9:$L$877)) -> 0 | H12: =SUM(IF('6'!$J$9:$J$877='شهر 9 تفصيلي'!$B12,'6'!$L$9:$L$877)) -> 0 | I12: =SUM(IF('7'!$J$9:$J$877='شهر 9 تفصيلي'!$B12,'7'!$L$9:$L$877)) -> 0 | J12: =SUM(IF('8'!$J$9:$J$877='شهر 9 تفصيلي'!$B12,'8'!$L$9:$L$877)) -> 0 | K12: =SUM(IF('9'!$J$9:$J$877='شهر 9 تفصيلي'!$B12,'9'!$L$9:$L$877)) -> 0 | L12: =SUM(IF('10'!$J$9:$J$877='شهر 9 تفصيلي'!$B12,'10'!$L$9:$L$877)) -> 0 | M12: =SUM(IF('10 (2)'!$J$9:$J$877='شهر 9 تفصيلي'!$B12,'10 (2)'!$L$9:$L$877)) -> 0 | AI12: 0 | AJ12: =IFERROR(VLOOKUP(B12,BUS!$C$4:$AEB$888,4,0),"") -> MUB
A13: 9 | B13: 1011 | C13: =SUM(IF('1'!$J$9:$J$875='شهر 9 تفصيلي'!$B13,'1'!$L$9:$L$875)) -> 285 | D13: =SUM(IF('2'!$J$9:$J$877='شهر 9 تفصيلي'!$B13,'2'!$L$9:$L$877)) -> 0 | E13: =SUM(IF('3'!$J$9:$J$877='شهر 9 تفصيلي'!$B13,'3'!$L$9:$L$877)) -> 0 | F13: =SUM(IF('4'!$J$9:$J$877='شهر 9 تفصيلي'!$B13,'4'!$L$9:$L$877)) -> 0 | G13: =SUM(IF('5'!$J$9:$J$877='شهر 9 تفصيلي'!$B13,'5'!$L$9:$L$877)) -> 0 | H13: =SUM(IF('6'!$J$9:$J$877='شهر 9 تفصيلي'!$B13,'6'!$L$9:$L$877)) -> 290 | I13: =SUM(IF('7'!$J$9:$J$877='شهر 9 تفصيلي'!$B13,'7'!$L$9:$L$877)) -> 190 | J13: =SUM(IF('8'!$J$9:$J$877='شهر 9 تفصيلي'!$B13,'8'!$L$9:$L$877)) -> 125 | K13: =SUM(IF('9'!$J$9:$J$877='شهر 9 تفصيلي'!$B13,'9'!$L$9:$L$877)) -> 0 | L13: =SUM(IF('10'!$J$9:$J$877='شهر 9 تفصيلي'!$B13,'10'!$L$9:$L$877)) -> 0 | M13: =SUM(IF('10 (2)'!$J$9:$J$877='شهر 9 تفصيلي'!$B13,'10 (2)'!$L$9:$L$877)) -> 0 | AI13: 890 | AJ13: =IFERROR(VLOOKUP(B13,BUS!$C$4:$AEB$888,4,0),"") -> MUB
A14: 10 | B14: 1012 | C14: =SUM(IF('1'!$J$9:$J$875='شهر 9 تفصيلي'!$B14,'1'!$L$9:$L$875)) -> 0 | D14: =SUM(IF('2'!$J$9:$J$877='شهر 9 تفصيلي'!$B14,'2'!$L$9:$L$877)) -> 0 | E14: =SUM(IF('3'!$J$9:$J$877='شهر 9 تفصيلي'!$B14,'3'!$L$9:$L$877)) -> 0 | F14: =SUM(IF('4'!$J$9:$J$877='شهر 9 تفصيلي'!$B14,'4'!$L$9:$L$877)) -> 0 | G14: =SUM(IF('5'!$J$9:$J$877='شهر 9 تفصيلي'!$B14,'5'!$L$9:$L$877)) -> 0 | H14: =SUM(IF('6'!$J$9:$J$877='شهر 9 تفصيلي'!$B14,'6'!$L$9:$L$877)) -> 0 | I14: =SUM(IF('7'!$J$9:$J$877='شهر 9 تفصيلي'!$B14,'7'!$L$9:$L$877)) -> 0 | J14: =SUM(IF('8'!$J$9:$J$877='شهر 9 تفصيلي'!$B14,'8'!$L$9:$L$877)) -> 0 | K14: =SUM(IF('9'!$J$9:$J$877='شهر 9 تفصيلي'!$B14,'9'!$L$9:$L$877)) -> 0 | L14: =SUM(IF('10'!$J$9:$J$877='شهر 9 تفصيلي'!$B14,'10'!$L$9:$L$877)) -> 0 | M14: =SUM(IF('10 (2)'!$J$9:$J$877='شهر 9 تفصيلي'!$B14,'10 (2)'!$L$9:$L$877)) -> 0 | AI14: 0 | AJ14: =IFERROR(VLOOKUP(B14,BUS!$C$4:$AEB$888,4,0),"") -> MUB
A15: 11 | B15: 1013 | C15: =SUM(IF('1'!$J$9:$J$875='شهر 9 تفصيلي'!$B15,'1'!$L$9:$L$875)) -> 125 | D15: =SUM(IF('2'!$J$9:$J$877='شهر 9 تفصيلي'!$B15,'2'!$L$9:$L$877)) -> 200 | E15: =SUM(IF('3'!$J$9:$J$877='شهر 9 تفصيلي'!$B15,'3'!$L$9:$L$877)) -> 145 | F15: =SUM(IF('4'!$J$9:$J$877='شهر 9 تفصيلي'!$B15,'4'!$L$9:$L$877)) -> 200 | G15: =SUM(IF('5'!$J$9:$J$877='شهر 9 تفصيلي'!$B15,'5'!$L$9:$L$877)) -> 220 | H15: =SUM(IF('6'!$J$9:$J$877='شهر 9 تفصيلي'!$B15,'6'!$L$9:$L$877)) -> 0 | I15: =SUM(IF('7'!$J$9:$J$877='شهر 9 تفصيلي'!$B15,'7'!$L$9:$L$877)) -> 295 | J15: =SUM(IF('8'!$J$9:$J$877='شهر 9 تفصيلي'!$B15,'8'!$L$9:$L$877)) -> 205 | K15: =SUM(IF('9'!$J$9:$J$877='شهر 9 تفصيلي'!$B15,'9'!$L$9:$L$877)) -> 265 | L15: =SUM(IF('10'!$J$9:$J$877='شهر 9 تفصيلي'!$B15,'10'!$L$9:$L$877)) -> 285 | M15: =SUM(IF('10 (2)'!$J$9:$J$877='شهر 9 تفصيلي'!$B15,'10 (2)'!$L$9:$L$877)) -> 0 | AI15: 1940 | AJ15: =IFERROR(VLOOKUP(B15,BUS!$C$4:$AEB$888,4,0),"") -> MUB
A16: 12 | B16: 1014 | C16: =SUM(IF('1'!$J$9:$J$875='شهر 9 تفصيلي'!$B16,'1'!$L$9:$L$875)) -> 135 | D16: =SUM(IF('2'!$J$9:$J$877='شهر 9 تفصيلي'!$B16,'2'!$L$9:$L$877)) -> 210 | E16: =SUM(IF('3'!$J$9:$J$877='شهر 9 تفصيلي'!$B16,'3'!$L$9:$L$877)) -> 0 | F16: =SUM(IF('4'!$J$9:$J$877='شهر 9 تفصيلي'!$B16,'4'!$L$9:$L$877)) -> 0 | G16: =SUM(IF('5'!$J$9:$J$877='شهر 9 تفصيلي'!$B16,'5'!$L$9:$L$877)) -> 265 | H16: =SUM(IF('6'!$J$9:$J$877='شهر 9 تفصيلي'!$B16,'6'!$L$9:$L$877)) -> 170 | I16: =SUM(IF('7'!$J$9:$J$877='شهر 9 تفصيلي'!$B16,'7'!$L$9:$L$877)) -> 245 | J16: =SUM(IF('8'!$J$9:$J$877='شهر 9 تفصيلي'!$B16,'8'!$L$9:$L$877)) -> 200 | K16: =SUM(IF('9'!$J$9:$J$877='شهر 9 تفصيلي'!$B16,'9'!$L$9:$L$877)) -> 0 | L16: =SUM(IF('10'!$J$9:$J$877='شهر 9 تفصيلي'!$B16,'10'!$L$9:$L$877)) -> 0 | M16: =SUM(IF('10 (2)'!$J$9:$J$877='شهر 9 تفصيلي'!$B16,'10 (2)'!$L$9:$L$877)) -> 0 | AI16: 1225 | AJ16: =IFERROR(VLOOKUP(B16,BUS!$C$4:$AEB$888,4,0),"") -> MUB
A17: 13 | B17: 1015 | C17: =SUM(IF('1'!$J$9:$J$875='شهر 9 تفصيلي'!$B17,'1'!$L$9:$L$875)) -> 150 | D17: =SUM(IF('2'!$J$9:$J$877='شهر 9 تفصيلي'!$B17,'2'!$L$9:$L$877)) -> 0 | E17: =SUM(IF('3'!$J$9:$J$877='شهر 9 تفصيلي'!$B17,'3'!$L$9:$L$877)) -> 0 | F17: =SUM(IF('4'!$J$9:$J$877='شهر 9 تفصيلي'!$B17,'4'!$L$9:$L$877)) -> 265 | G17: =SUM(IF('5'!$J$9:$J$877='شهر 9 تفصيلي'!$B17,'5'!$L$9:$L$877)) -> 0 | H17: =SUM(IF('6'!$J$9:$J$877='شهر 9 تفصيلي'!$B17,'6'!$L$9:$L$877)) -> 250 | I17: =SUM(IF('7'!$J$9:$J$877='شهر 9 تفصيلي'!$B17,'7'!$L$9:$L$877)) -> 425 | J17: =SUM(IF('8'!$J$9:$J$877='شهر 9 تفصيلي'!$B17,'8'!$L$9:$L$877)) -> 245 | K17: =SUM(IF('9'!$J$9:$J$877='شهر 9 تفصيلي'!$B17,'9'!$L$9:$L$877)) -> 135 | L17: =SUM(IF('10'!$J$9:$J$877='شهر 9 تفصيلي'!$B17,'10'!$L$9:$L$877)) -> 0 | M17: =SUM(IF('10 (2)'!$J$9:$J$877='شهر 9 تفصيلي'!$B17,'10 (2)'!$L$9:$L$877)) -> 0 | AI17: 1470 | AJ17: =IFERROR(VLOOKUP(B17,BUS!$C$4:$AEB$888,4,0),"") -> MUB
A18: 14 | B18: 1016 | C18: =SUM(IF('1'!$J$9:$J$875='شهر 9 تفصيلي'!$B18,'1'!$L$9:$L$875)) -> 0 | D18: =SUM(IF('2'!$J$9:$J$877='شهر 9 تفصيلي'!$B18,'2'!$L$9:$L$877)) -> 0 | E18: =SUM(IF('3'!$J$9:$J$877='شهر 9 تفصيلي'!$B18,'3'!$L$9:$L$877)) -> 0 | F18: =SUM(IF('4'!$J$9:$J$877='شهر 9 تفصيلي'!$B18,'4'!$L$9:$L$877)) -> 0 | G18: =SUM(IF('5'!$J$9:$J$877='شهر 9 تفصيلي'!$B18,'5'!$L$9:$L$877)) -> 0 | H18: =SUM(IF('6'!$J$9:$J$877='شهر 9 تفصيلي'!$B18,'6'!$L$9:$L$877)) -> 0 | I18: =SUM(IF('7'!$J$9:$J$877='شهر 9 تفصيلي'!$B18,'7'!$L$9:$L$877)) -> 0 | J18: =SUM(IF('8'!$J$9:$J$877='شهر 9 تفصيلي'!$B18,'8'!$L$9:$L$877)) -> 0 | K18: =SUM(IF('9'!$J$9:$J$877='شهر 9 تفصيلي'!$B18,'9'!$L$9:$L$877)) -> 0 | L18: =SUM(IF('10'!$J$9:$J$877='شهر 9 تفصيلي'!$B18,'10'!$L$9:$L$877)) -> 0 | M18: =SUM(IF('10 (2)'!$J$9:$J$877='شهر 9 تفصيلي'!$B18,'10 (2)'!$L$9:$L$877)) -> 0 | AI18: 0 | AJ18: =IFERROR(VLOOKUP(B18,BUS!$C$4:$AEB$888,4,0),"") -> MUB
A19: 15 | B19: 1017 | C19: =SUM(IF('1'!$J$9:$J$875='شهر 9 تفصيلي'!$B19,'1'!$L$9:$L$875)) -> 165 | D19: =SUM(IF('2'!$J$9:$J$877='شهر 9 تفصيلي'!$B19,'2'!$L$9:$L$877)) -> 0 | E19: =SUM(IF('3'!$J$9:$J$877='شهر 9 تفصيلي'!$B19,'3'!$L$9:$L$877)) -> 0 | F19: =SUM(IF('4'!$J$9:$J$877='شهر 9 تفصيلي'!$B19,'4'!$L$9:$L$877)) -> 185 | G19: =SUM(IF('5'!$J$9:$J$877='شهر 9 تفصيلي'!$B19,'5'!$L$9:$L$877)) -> 0 | H19: =SUM(IF('6'!$J$9:$J$877='شهر 9 تفصيلي'!$B19,'6'!$L$9:$L$877)) -> 255 | I19: =SUM(IF('7'!$J$9:$J$877='شهر 9 تفصيلي'!$B19,'7'!$L$9:$L$877)) -> 309 | J19: =SUM(IF('8'!$J$9:$J$877='شهر 9 تفصيلي'!$B19,'8'!$L$9:$L$877)) -> 140 | K19: =SUM(IF('9'!$J$9:$J$877='شهر 9 تفصيلي'!$B19,'9'!$L$9:$L$877)) -> 0 | L19: =SUM(IF('10'!$J$9:$J$877='شهر 9 تفصيلي'!$B19,'10'!$L$9:$L$877)) -> 0 | M19: =SUM(IF('10 (2)'!$J$9:$J$877='شهر 9 تفصيلي'!$B19,'10 (2)'!$L$9:$L$877)) -> 0 | AI19: 1054 | AJ19: =IFERROR(VLOOKUP(B19,BUS!$C$4:$AEB$888,4,0),"") -> MUB
A20: 16 | B20: 1019 | C20: =SUM(IF('1'!$J$9:$J$875='شهر 9 تفصيلي'!$B20,'1'!$L$9:$L$875)) -> 0 | D20: =SUM(IF('2'!$J$9:$J$877='شهر 9 تفصيلي'!$B20,'2'!$L$9:$L$877)) -> 0 | E20: =SUM(IF('3'!$J$9:$J$877='شهر 9 تفصيلي'!$B20,'3'!$L$9:$L$877)) -> 0 | F20: =SUM(IF('4'!$J$9:$J$877='شهر 9 تفصيلي'!$B20,'4'!$L$9:$L$877)) -> 0 | G20: =SUM(IF('5'!$J$9:$J$877='شهر 9 تفصيلي'!$B20,'5'!$L$9:$L$877)) -> 0 | H20: =SUM(IF('6'!$J$9:$J$877='شهر 9 تفصيلي'!$B20,'6'!$L$9:$L$877)) -> 0 | I20: =SUM(IF('7'!$J$9:$J$877='شهر 9 تفصيلي'!$B20,'7'!$L$9:$L$877)) -> 0 | J20: =SUM(IF('8'!$J$9:$J$877='شهر 9 تفصيلي'!$B20,'8'!$L$9:$L$877)) -> 0 | K20: =SUM(IF('9'!$J$9:$J$877='شهر 9 تفصيلي'!$B20,'9'!$L$9:$L$877)) -> 0 | L20: =SUM(IF('10'!$J$9:$J$877='شهر 9 تفصيلي'!$B20,'10'!$L$9:$L$877)) -> 0 | M20: =SUM(IF('10 (2)'!$J$9:$J$877='شهر 9 تفصيلي'!$B20,'10 (2)'!$L$9:$L$877)) -> 0 | AI20: 0 | AJ20: =IFERROR(VLOOKUP(B20,BUS!$C$4:$AEB$888,4,0),"") -> MUB
AI21: =SUM(AI5:AI20) -> 7059
A22: Total | C22: =SUM(C5:C20) -> 860 | D22: =SUM(D5:D20) -> 410 | E22: =SUM(E5:E20) -> 145 | F22: =SUM(F5:F20) -> 815 | G22: =SUM(G5:G20) -> 485 | H22: =SUM(H5:H20) -> 965 | I22: =SUM(I5:I20) -> 1464 | J22: =SUM(J5:J20) -> 1125 | K22: =SUM(K5:K20) -> 505 | L22: =SUM(L5:L20) -> 285 | M22: =SUM(M5:M20) -> 0 | N22: =SUM(N5:N20) -> 0 | O22: =SUM(O5:O20) -> 0 | P22: =SUM(P5:P20) -> 0 | Q22: =SUM(Q5:Q20) -> 0 | R22: =SUM(R5:R20) -> 0 | S22: =SUM(S5:S20) -> 0 | T22: =SUM(T5:T20) -> 0 | U22: =SUM(U5:U20) -> 0 | V22: =SUM(V5:V20) -> 0 | W22: =SUM(W5:W20) -> 0 | X22: =SUM(X5:X20) -> 0 | Y22: =SUM(Y5:Y20) -> 0 | Z22: =SUM(Z5:Z20) -> 0 | AA22: =SUM(AA5:AA20) -> 0 | AB22: =SUM(AB5:AB20) -> 0 | AC22: =SUM(AC5:AC20) -> 0 | AD22: =SUM(AD5:AD20) -> 0 | AE22: =SUM(AE5:AE20) -> 0 | AF22: =SUM(AF5:AF20) -> 0 | AG22: =SUM(AG5:AG20) -> 0 | AH22: =SUM(AH5:AH20) -> 0 | AI22: =SUM(C22:AH22) -> 7059
A24: Care&pickup(Disel)
A25: S/N | B25: Bus # | C25: 1 | D25: 2 | E25: 3 | F25: 4 | G25: 5 | H25: 6 | I25: 7 | J25: 8 | K25: 9 | L25: 10 | M25: 10(2) | N25: 11 | O25: 12 | P25: 13 | Q25: 14 | R25: 15 | S25: 16 | T25: 17 | U25: 18 | V25: 19 | W25: 20 | X25: 21 | Y25: 22 | Z25: 23 | AA25: 24 | AB25: 25 | AC25: 26 | AD25: 27 | AE25: 28 | AF25: 29 | AG25: 30 | AH25: 31 | AI25: Total | AJ25: Area
A26: 1 | B26: 4004 | C26: =SUM(IF('1'!$J$9:$J$875='شهر 9 تفصيلي'!$B26,'1'!$L$9:$L$875)) -> 0 | D26: =SUM(IF('2'!$J$9:$J$877='شهر 9 تفصيلي'!$B26,'2'!$L$9:$L$877)) -> 0 | E26: =SUM(IF('3'!$J$9:$J$877='شهر 9 تفصيلي'!$B26,'3'!$L$9:$L$877)) -> 0 | F26: =SUM(IF('4'!$J$9:$J$877='شهر 9 تفصيلي'!$B26,'4'!$L$9:$L$877)) -> 0 | G26: =SUM(IF('5'!$J$9:$J$877='شهر 9 تفصيلي'!$B26,'5'!$L$9:$L$877)) -> 0 | H26: =SUM(IF('6'!$J$9:$J$877='شهر 9 تفصيلي'!$B26,'6'!$L$9:$L$877)) -> 0 | I26: =SUM(IF('7'!$J$9:$J$877='شهر 9 تفصيلي'!$B26,'7'!$L$9:$L$877)) -> 0 | J26: =SUM(IF('8'!$J$9:$J$877='شهر 9 تفصيلي'!$B26,'8'!$L$9:$L$877)) -> 0 | K26: =SUM(IF('9'!$J$9:$J$877='شهر 9 تفصيلي'!$B26,'9'!$L$9:$L$877)) -> 0 | L26: =SUM(IF('10'!$J$9:$J$877='شهر 9 تفصيلي'!$B26,'10'!$L$9:$L$877)) -> 0 | M26: =SUM(IF('10 (2)'!$J$9:$J$877='شهر 9 تفصيلي'!$B26,'10 (2)'!$L$9:$L$877)) -> 0 | AI26: =SUM(C26:AH26) -> 0 | AJ26: =IFERROR(VLOOKUP(B26,BUS!$C$4:$AEB$888,4,0),"") -> HAR
A27: 2 | B27: 4005 | C27: =SUM(IF('1'!$J$9:$J$875='شهر 9 تفصيلي'!$B27,'1'!$L$9:$L$875)) -> 0 | D27: =SUM(IF('2'!$J$9:$J$877='شهر 9 تفصيلي'!$B27,'2'!$L$9:$L$877)) -> 0 | E27: =SUM(IF('3'!$J$9:$J$877='شهر 9 تفصيلي'!$B27,'3'!$L$9:$L$877)) -> 0 | F27: =SUM(IF('4'!$J$9:$J$877='شهر 9 تفصيلي'!$B27,'4'!$L$9:$L$877)) -> 0 | G27: =SUM(IF('5'!$J$9:$J$877='شهر 9 تفصيلي'!$B27,'5'!$L$9:$L$877)) -> 0 | H27: =SUM(IF('6'!$J$9:$J$877='شهر 9 تفصيلي'!$B27,'6'!$L$9:$L$877)) -> 0 | I27: =SUM(IF('7'!$J$9:$J$877='شهر 9 تفصيلي'!$B27,'7'!$L$9:$L$877)) -> 0 | J27: =SUM(IF('8'!$J$9:$J$877='شهر 9 تفصيلي'!$B27,'8'!$L$9:$L$877)) -> 0 | K27: =SUM(IF('9'!$J$9:$J$877='شهر 9 تفصيلي'!$B27,'9'!$L$9:$L$877)) -> 0 | L27: =SUM(IF('10'!$J$9:$J$877='شهر 9 تفصيلي'!$B27,'10'!$L$9:$L$877)) -> 0 | M27: =SUM(IF('10 (2)'!$J$9:$J$877='شهر 9 تفصيلي'!$B27,'10 (2)'!$L$9:$L$877)) -> 0 | AI27: 0 | AJ27: =IFERROR(VLOOKUP(B27,BUS!$C$4:$AEB$888,4,0),"") -> UDH
A28: 3 | B28: 4007 | C28: =SUM(IF('1'!$J$9:$J$875='شهر 9 تفصيلي'!$B28,'1'!$L$9:$L$875)) -> 0 | D28: =SUM(IF('2'!$J$9:$J$877='شهر 9 تفصيلي'!$B28,'2'!$L$9:$L$877)) -> 0 | E28: =SUM(IF('3'!$J$9:$J$877='شهر 9 تفصيلي'!$B28,'3'!$L$9:$L$877)) -> 0 | F28: =SUM(IF('4'!$J$9:$J$877='شهر 9 تفصيلي'!$B28,'4'!$L$9:$L$877)) -> 0 | G28: =SUM(IF('5'!$J$9:$J$877='شهر 9 تفصيلي'!$B28,'5'!$L$9:$L$877)) -> 0 | H28: =SUM(IF('6'!$J$9:$J$877='شهر 9 تفصيلي'!$B28,'6'!$L$9:$L$877)) -> 0 | I28: =SUM(IF('7'!$J$9:$J$877='شهر 9 تفصيلي'!$B28,'7'!$L$9:$L$877)) -> 0 | J28: =SUM(IF('8'!$J$9:$J$877='شهر 9 تفصيلي'!$B28,'8'!$L$9:$L$877)) -> 0 | K28: =SUM(IF('9'!$J$9:$J$877='شهر 9 تفصيلي'!$B28,'9'!$L$9:$L$877)) -> 0 | L28: =SUM(IF('10'!$J$9:$J$877='شهر 9 تفصيلي'!$B28,'10'!$L$9:$L$877)) -> 0 | M28: =SUM(IF('10 (2)'!$J$9:$J$877='شهر 9 تفصيلي'!$B28,'10 (2)'!$L$9:$L$877)) -> 0 | AI28: 0 | AJ28: =IFERROR(VLOOKUP(B28,BUS!$C$4:$AEB$888,4,0),"") -> MUB
A29: 4 | B29: 4009 | C29: =SUM(IF('1'!$J$9:$J$875='شهر 9 تفصيلي'!$B29,'1'!$L$9:$L$875)) -> 0 | D29: =SUM(IF('2'!$J$9:$J$877='شهر 9 تفصيلي'!$B29,'2'!$L$9:$L$877)) -> 0 | E29: =SUM(IF('3'!$J$9:$J$877='شهر 9 تفصيلي'!$B29,'3'!$L$9:$L$877)) -> 0 | F29: =SUM(IF('4'!$J$9:$J$877='شهر 9 تفصيلي'!$B29,'4'!$L$9:$L$877)) -> 0 | G29: =SUM(IF('5'!$J$9:$J$877='شهر 9 تفصيلي'!$B29,'5'!$L$9:$L$877)) -> 0 | H29: =SUM(IF('6'!$J$9:$J$877='شهر 9 تفصيلي'!$B29,'6'!$L$9:$L$877)) -> 0 | I29: =SUM(IF('7'!$J$9:$J$877='شهر 9 تفصيلي'!$B29,'7'!$L$9:$L$877)) -> 0 | J29: =SUM(IF('8'!$J$9:$J$877='شهر 9 تفصيلي'!$B29,'8'!$L$9:$L$877)) -> 0 | K29: =SUM(IF('9'!$J$9:$J$877='شهر 9 تفصيلي'!$B29,'9'!$L$9:$L$877)) -> 0 | L29: =SUM(IF('10'!$J$9:$J$877='شهر 9 تفصيلي'!$B29,'10'!$L$9:$L$877)) -> 0 | M29: =SUM(IF('10 (2)'!$J$9:$J$877='شهر 9 تفصيلي'!$B29,'10 (2)'!$L$9:$L$877)) -> 0 | AI29: 0 | AJ29: =IFERROR(VLOOKUP(B29,BUS!$C$4:$AEB$888,4,0),"") -> MUB
A30: 5 | B30: 4010 | C30: =SUM(IF('1'!$J$9:$J$875='شهر 9 تفصيلي'!$B30,'1'!$L$9:$L$875)) -> 0 | D30: =SUM(IF('2'!$J$9:$J$877='شهر 9 تفصيلي'!$B30,'2'!$L$9:$L$877)) -> 64 | E30: =SUM(IF('3'!$J$9:$J$877='شهر 9 تفصيلي'!$B30,'3'!$L$9:$L$877)) -> 0 | F30: =SUM(IF('4'!$J$9:$J$877='شهر 9 تفصيلي'!$B30,'4'!$L$9:$L$877)) -> 0 | G30: =SUM(IF('5'!$J$9:$J$877='شهر 9 تفصيلي'!$B30,'5'!$L$9:$L$877)) -> 0 | H30: =SUM(IF('6'!$J$9:$J$877='شهر 9 تفصيلي'!$B30,'6'!$L$9:$L$877)) -> 62 | I30: =SUM(IF('7'!$J$9:$J$877='شهر 9 تفصيلي'!$B30,'7'!$L$9:$L$877)) -> 0 | J30: =SUM(IF('8'!$J$9:$J$877='شهر 9 تفصيلي'!$B30,'8'!$L$9:$L$877)) -> 36 | K30: =SUM(IF('9'!$J$9:$J$877='شهر 9 تفصيلي'!$B30,'9'!$L$9:$L$877)) -> 55 | L30: =SUM(IF('10'!$J$9:$J$877='شهر 9 تفصيلي'!$B30,'10'!$L$9:$L$877)) -> 0 | M30: =SUM(IF('10 (2)'!$J$9:$J$877='شهر 9 تفصيلي'!$B30,'10 (2)'!$L$9:$L$877)) -> 0 | AI30: 217 | AJ30: =IFERROR(VLOOKUP(B30,BUS!$C$4:$AEB$888,4,0),"") -> MUB
A31: 6 | B31: 4013 | C31: =SUM(IF('1'!$J$9:$J$875='شهر 9 تفصيلي'!$B31,'1'!$L$9:$L$875)) -> 0 | D31: =SUM(IF('2'!$J$9:$J$877='شهر 9 تفصيلي'!$B31,'2'!$L$9:$L$877)) -> 0 | E31: =SUM(IF('3'!$J$9:$J$877='شهر 9 تفصيلي'!$B31,'3'!$L$9:$L$877)) -> 0 | F31: =SUM(IF('4'!$J$9:$J$877='شهر 9 تفصيلي'!$B31,'4'!$L$9:$L$877)) -> 0 | G31: =SUM(IF('5'!$J$9:$J$877='شهر 9 تفصيلي'!$B31,'5'!$L$9:$L$877)) -> 0 | H31: =SUM(IF('6'!$J$9:$J$877='شهر 9 تفصيلي'!$B31,'6'!$L$9:$L$877)) -> 0 | I31: =SUM(IF('7'!$J$9:$J$877='شهر 9 تفصيلي'!$B31,'7'!$L$9:$L$877)) -> 0 | J31: =SUM(IF('8'!$J$9:$J$877='شهر 9 تفصيلي'!$B31,'8'!$L$9:$L$877)) -> 0 | K31: =SUM(IF('9'!$J$9:$J$877='شهر 9 تفصيلي'!$B31,'9'!$L$9:$L$877)) -> 0 | L31: =SUM(IF('10'!$J$9:$J$877='شهر 9 تفصيلي'!$B31,'10'!$L$9:$L$877)) -> 0 | M31: =SUM(IF('10 (2)'!$J$9:$J$877='شهر 9 تفصيلي'!$B31,'10 (2)'!$L$9:$L$877)) -> 0 | AI31: 0 | AJ31: =IFERROR(VLOOKUP(B31,BUS!$C$4:$AEB$888,4,0),"") -> MUB
A32: 7 | B32: 4023 | C32: =SUM(IF('1'!$J$9:$J$875='شهر 9 تفصيلي'!$B32,'1'!$L$9:$L$875)) -> 0 | D32: =SUM(IF('2'!$J$9:$J$877='شهر 9 تفصيلي'!$B32,'2'!$L$9:$L$877)) -> 0 | E32: =SUM(IF('3'!$J$9:$J$877='شهر 9 تفصيلي'!$B32,'3'!$L$9:$L$877)) -> 0 | F32: =SUM(IF('4'!$J$9:$J$877='شهر 9 تفصيلي'!$B32,'4'!$L$9:$L$877)) -> 0 | G32: =SUM(IF('5'!$J$9:$J$877='شهر 9 تفصيلي'!$B32,'5'!$L$9:$L$877)) -> 0 | H32: =SUM(IF('6'!$J$9:$J$877='شهر 9 تفصيلي'!$B32,'6'!$L$9:$L$877)) -> 0 | I32: =SUM(IF('7'!$J$9:$J$877='شهر 9 تفصيلي'!$B32,'7'!$L$9:$L$877)) -> 0 | J32: =SUM(IF('8'!$J$9:$J$877='شهر 9 تفصيلي'!$B32,'8'!$L$9:$L$877)) -> 0 | K32: =SUM(IF('9'!$J$9:$J$877='شهر 9 تفصيلي'!$B32,'9'!$L$9:$L$877)) -> 0 | L32: =SUM(IF('10'!$J$9:$J$877='شهر 9 تفصيلي'!$B32,'10'!$L$9:$L$877)) -> 0 | M32: =SUM(IF('10 (2)'!$J$9:$J$877='شهر 9 تفصيلي'!$B32,'10 (2)'!$L$9:$L$877)) -> 0 | AI32: 0 | AJ32: =IFERROR(VLOOKUP(B32,BUS!$C$4:$AEB$888,4,0),"") -> UDH
A33: 8 | B33: 4039 | C33: =SUM(IF('1'!$J$9:$J$875='شهر 9 تفصيلي'!$B33,'1'!$L$9:$L$875)) -> 0 | D33: =SUM(IF('2'!$J$9:$J$877='شهر 9 تفصيلي'!$B33,'2'!$L$9:$L$877)) -> 245 | E33: =SUM(IF('3'!$J$9:$J$877='شهر 9 تفصيلي'!$B33,'3'!$L$9:$L$877)) -> 0 | F33: =SUM(IF('4'!$J$9:$J$877='شهر 9 تفصيلي'!$B33,'4'!$L$9:$L$877)) -> 0 | G33: =SUM(IF('5'!$J$9:$J$877='شهر 9 تفصيلي'!$B33,'5'!$L$9:$L$877)) -> 0 | H33: =SUM(IF('6'!$J$9:$J$877='شهر 9 تفصيلي'!$B33,'6'!$L$9:$L$877)) -> 0 | I33: =SUM(IF('7'!$J$9:$J$877='شهر 9 تفصيلي'!$B33,'7'!$L$9:$L$877)) -> 195 | J33: =SUM(IF('8'!$J$9:$J$877='شهر 9 تفصيلي'!$B33,'8'!$L$9:$L$877)) -> 120 | K33: =SUM(IF('9'!$J$9:$J$877='شهر 9 تفصيلي'!$B33,'9'!$L$9:$L$877)) -> 95 | L33: =SUM(IF('10'!$J$9:$J$877='شهر 9 تفصيلي'!$B33,'10'!$L$9:$L$877)) -> 0 | M33: =SUM(IF('10 (2)'!$J$9:$J$877='شهر 9 تفصيلي'!$B33,'10 (2)'!$L$9:$L$877)) -> 0 | AI33: 655 | AJ33: =IFERROR(VLOOKUP(B33,BUS!$C$4:$AEB$888,4,0),"") -> MUB
A34: 9 | B34: 4067 | C34: =SUM(IF('1'!$J$9:$J$875='شهر 9 تفصيلي'!$B34,'1'!$L$9:$L$875)) -> 0 | D34: =SUM(IF('2'!$J$9:$J$877='شهر 9 تفصيلي'!$B34,'2'!$L$9:$L$877)) -> 0 | E34: =SUM(IF('3'!$J$9:$J$877='شهر 9 تفصيلي'!$B34,'3'!$L$9:$L$877)) -> 0 | F34: =SUM(IF('4'!$J$9:$J$877='شهر 9 تفصيلي'!$B34,'4'!$L$9:$L$877)) -> 0 | G34: =SUM(IF('5'!$J$9:$J$877='شهر 9 تفصيلي'!$B34,'5'!$L$9:$L$877)) -> 0 | H34: =SUM(IF('6'!$J$9:$J$877='شهر 9 تفصيلي'!$B34,'6'!$L$9:$L$877)) -> 0 | I34: =SUM(IF('7'!$J$9:$J$877='شهر 9 تفصيلي'!$B34,'7'!$L$9:$L$877)) -> 0 | J34: =SUM(IF('8'!$J$9:$J$877='شهر 9 تفصيلي'!$B34,'8'!$L$9:$L$877)) -> 0 | K34: =SUM(IF('9'!$J$9:$J$877='شهر 9 تفصيلي'!$B34,'9'!$L$9:$L$877)) -> 0 | L34: =SUM(IF('10'!$J$9:$J$877='شهر 9 تفصيلي'!$B34,'10'!$L$9:$L$877)) -> 0 | M34: =SUM(IF('10 (2)'!$J$9:$J$877='شهر 9 تفصيلي'!$B34,'10 (2)'!$L$9:$L$877)) -> 0 | AI34: 0 | AJ34: =IFERROR(VLOOKUP(B34,BUS!$C$4:$AEB$888,4,0),"") -> RAS
A35: 10 | B35: 4076 | C35: =SUM(IF('1'!$J$9:$J$875='شهر 9 تفصيلي'!$B35,'1'!$L$9:$L$875)) -> 0 | D35: =SUM(IF('2'!$J$9:$J$877='شهر 9 تفصيلي'!$B35,'2'!$L$9:$L$877)) -> 0 | E35: =SUM(IF('3'!$J$9:$J$877='شهر 9 تفصيلي'!$B35,'3'!$L$9:$L$877)) -> 0 | F35: =SUM(IF('4'!$J$9:$J$877='شهر 9 تفصيلي'!$B35,'4'!$L$9:$L$877)) -> 0 | G35: =SUM(IF('5'!$J$9:$J$877='شهر 9 تفصيلي'!$B35,'5'!$L$9:$L$877)) -> 0 | H35: =SUM(IF('6'!$J$9:$J$877='شهر 9 تفصيلي'!$B35,'6'!$L$9:$L$877)) -> 0 | I35: =SUM(IF('7'!$J$9:$J$877='شهر 9 تفصيلي'!$B35,'7'!$L$9:$L$877)) -> 0 | J35: =SUM(IF('8'!$J$9:$J$877='شهر 9 تفصيلي'!$B35,'8'!$L$9:$L$877)) -> 0 | K35: =SUM(IF('9'!$J$9:$J$877='شهر 9 تفصيلي'!$B35,'9'!$L$9:$L$877)) -> 0 | L35: =SUM(IF('10'!$J$9:$J$877='شهر 9 تفصيلي'!$B35,'10'!$L$9:$L$877)) -> 0 | M35: =SUM(IF('10 (2)'!$J$9:$J$877='شهر 9 تفصيلي'!$B35,'10 (2)'!$L$9:$L$877)) -> 0 | AI35: 0 | AJ35: =IFERROR(VLOOKUP(B35,BUS!$C$4:$AEB$888,4,0),"") -> 
A36: 11 | B36: 4083 | C36: =SUM(IF('1'!$J$9:$J$875='شهر 9 تفصيلي'!$B36,'1'!$L$9:$L$875)) -> 0 | D36: =SUM(IF('2'!$J$9:$J$877='شهر 9 تفصيلي'!$B36,'2'!$L$9:$L$877)) -> 0 | E36: =SUM(IF('3'!$J$9:$J$877='شهر 9 تفصيلي'!$B36,'3'!$L$9:$L$877)) -> 0 | F36: =SUM(IF('4'!$J$9:$J$877='شهر 9 تفصيلي'!$B36,'4'!$L$9:$L$877)) -> 0 | G36: =SUM(IF('5'!$J$9:$J$877='شهر 9 تفصيلي'!$B36,'5'!$L$9:$L$877)) -> 0 | H36: =SUM(IF('6'!$J$9:$J$877='شهر 9 تفصيلي'!$B36,'6'!$L$9:$L$877)) -> 0 | I36: =SUM(IF('7'!$J$9:$J$877='شهر 9 تفصيلي'!$B36,'7'!$L$9:$L$877)) -> 0 | J36: =SUM(IF('8'!$J$9:$J$877='شهر 9 تفصيلي'!$B36,'8'!$L$9:$L$877)) -> 0 | K36: =SUM(IF('9'!$J$9:$J$877='شهر 9 تفصيلي'!$B36,'9'!$L$9:$L$877)) -> 0 | L36: =SUM(IF('10'!$J$9:$J$877='شهر 9 تفصيلي'!$B36,'10'!$L$9:$L$877)) -> 0 | M36: =SUM(IF('10 (2)'!$J$9:$J$877='شهر 9 تفصيلي'!$B36,'10 (2)'!$L$9:$L$877)) -> 0 | AI36: 0 | AJ36: =IFERROR(VLOOKUP(B36,BUS!$C$4:$AEB$888,4,0),"") -> 
A37: 12 | B37: 4092 | C37: =SUM(IF('1'!$J$9:$J$875='شهر 9 تفصيلي'!$B37,'1'!$L$9:$L$875)) -> 0 | D37: =SUM(IF('2'!$J$9:$J$877='شهر 9 تفصيلي'!$B37,'2'!$L$9:$L$877)) -> 0 | E37: =SUM(IF('3'!$J$9:$J$877='شهر 9 تفصيلي'!$B37,'3'!$L$9:$L$877)) -> 0 | F37: =SUM(IF('4'!$J$9:$J$877='شهر 9 تفصيلي'!$B37,'4'!$L$9:$L$877)) -> 0 | G37: =SUM(IF('5'!$J$9:$J$877='شهر 9 تفصيلي'!$B37,'5'!$L$9:$L$877)) -> 0 | H37: =SUM(IF('6'!$J$9:$J$877='شهر 9 تفصيلي'!$B37,'6'!$L$9:$L$877)) -> 0 | I37: =SUM(IF('7'!$J$9:$J$877='شهر 9 تفصيلي'!$B37,'7'!$L$9:$L$877)) -> 0 | J37: =SUM(IF('8'!$J$9:$J$877='شهر 9 تفصيلي'!$B37,'8'!$L$9:$L$877)) -> 0 | K37: =SUM(IF('9'!$J$9:$J$877='شهر 9 تفصيلي'!$B37,'9'!$L$9:$L$877)) -> 0 | L37: =SUM(IF('10'!$J$9:$J$877='شهر 9 تفصيلي'!$B37,'10'!$L$9:$L$877)) -> 0 | M37: =SUM(IF('10 (2)'!$J$9:$J$877='شهر 9 تفصيلي'!$B37,'10 (2)'!$L$9:$L$877)) -> 0 | AI37: 0 | AJ37: =IFERROR(VLOOKUP(B37,BUS!$C$4:$AEB$888,4,0),"") -> DMM
AI38: =SUM(AI26:AI37) -> 872
A39: Total | C39: =SUM(C26:C37) -> 0 | D39: =SUM(D26:D37) -> 309 | E39: =SUM(E26:E37) -> 0 | F39: =SUM(F26:F37) -> 0 | G39: =SUM(G26:G37) -> 0 | H39: =SUM(H26:H37) -> 62 | I39: =SUM(I26:I37) -> 195 | J39: =SUM(J26:J37) -> 156 | K39: =SUM(K26:K37) -> 150 | L39: =SUM(L26:L37) -> 0 | M39: =SUM(M26:M37) -> 0 | N39: =SUM(N26:N37) -> 0 | O39: =SUM(O26:O37) -> 0 | P39: =SUM(P26:P37) -> 0 | Q39: =SUM(Q26:Q37) -> 0 | R39: =SUM(R26:R37) -> 0 | S39: =SUM(S26:S37) -> 0 | T39: =SUM(T26:T37) -> 0 | U39: =SUM(U26:U37) -> 0 | V39: =SUM(V26:V37) -> 0 | W39: =SUM(W26:W37) -> 0 | X39: =SUM(X26:X37) -> 0 | Y39: =SUM(Y26:Y37) -> 0 | Z39: =SUM(Z26:Z37) -> 0 | AA39: =SUM(AA26:AA37) -> 0 | AB39: =SUM(AB26:AB37) -> 0 | AC39: =SUM(AC26:AC37) -> 0 | AD39: =SUM(AD26:AD37) -> 0 | AE39: =SUM(AE26:AE37) -> 0 | AF39: =SUM(AF26:AF37) -> 0 | AG39: =SUM(AG26:AG37) -> 0 | AH39: =SUM(AH26:AH37) -> 0 | AI39: =SUM(C39:AH39) -> 872
A40: Total gross diesel | C40: =C22+C39 -> 860 | D40: =D22+D39 -> 719 | E40: =E22+E39 -> 145 | F40: =F22+F39 -> 815 | G40: =G22+G39 -> 485 | H40: =H22+H39 -> 1027 | I40: =I22+I39 -> 1659 | J40: =J22+J39 -> 1281 | K40: =K22+K39 -> 655 | L40: =L22+L39 -> 285 | M40: =M22+M39 -> 0 | N40: =N22+N39 -> 0 | O40: =O22+O39 -> 0 | P40: =P22+P39 -> 0 | Q40: =Q22+Q39 -> 0 | R40: =R22+R39 -> 0 | S40: =S22+S39 -> 0 | T40: =T22+T39 -> 0 | U40: =U22+U39 -> 0 | V40: =V22+V39 -> 0 | W40: =W22+W39 -> 0 | X40: =X22+X39 -> 0 | Y40: =Y22+Y39 -> 0 | Z40: =Z22+Z39 -> 0 | AA40: =AA22+AA39 -> 0 | AB40: =AB22+AB39 -> 0 | AC40: =AC22+AC39 -> 0 | AD40: =AD22+AD39 -> 0 | AE40: =AE22+AE39 -> 0 | AF40: =AF22+AF39 -> 0 | AG40: =AG22+AG39 -> 0 | AH40: =AH22+AH39 -> 0 | AI40: =SUM(C40:AH40) -> 7931
A42: Gasolie 95
A43: S/N | B43: Bus # | C43: 1 | D43: 2 | E43: 3 | F43: 4 | G43: 5 | H43: 6 | I43: 7 | J43: 8 | K43: 9 | L43: 10 | M43: 10(2) | N43: 11 | O43: 12 | P43: 13 | Q43: 14 | R43: 15 | S43: 16 | T43: 17 | U43: 18 | V43: 19 | W43: 20 | X43: 21 | Y43: 22 | Z43: 23 | AA43: 24 | AB43: 25 | AC43: 26 | AD43: 27 | AE43: 28 | AF43: 29 | AG43: 30 | AH43: 31 | AI43: Total | AJ43: Area
A44: 1 | B44: 1501 | C44: =SUM(IF('1'!$Q$9:$Q$875='شهر 9 تفصيلي'!$B44,'1'!$S$9:$S$875)) -> 0 | D44: =SUM(IF('2'!$Q$9:$Q$877='شهر 9 تفصيلي'!$B44,'2'!$S$9:$S$877)) -> 84 | E44: =SUM(IF('3'!$Q$9:$Q$877='شهر 9 تفصيلي'!$B44,'3'!$S$9:$S$877)) -> 0 | F44: =SUM(IF('4'!$Q$9:$Q$877='شهر 9 تفصيلي'!$B44,'4'!$S$9:$S$877)) -> 0 | G44: =SUM(IF('5'!$Q$9:$Q$877='شهر 9 تفصيلي'!$B44,'5'!$S$9:$S$877)) -> 53 | H44: =SUM(IF('6'!$Q$9:$Q$877='شهر 9 تفصيلي'!$B44,'6'!$S$9:$S$877)) -> 0 | I44: =SUM(IF('7'!$Q$9:$Q$877='شهر 9 تفصيلي'!$B44,'7'!$S$9:$S$877)) -> 0 | J44: =SUM(IF('8'!$Q$9:$Q$877='شهر 9 تفصيلي'!$B44,'8'!$S$9:$S$877)) -> 0 | K44: =SUM(IF('9'!$Q$9:$Q$877='شهر 9 تفصيلي'!$B44,'9'!$S$9:$S$877)) -> 0 | L44: =SUM(IF('10'!$Q$9:$Q$877='شهر 9 تفصيلي'!$B44,'10'!$S$9:$S$877)) -> 0 | M44: =SUM(IF('10 (2)'!$Q$9:$Q$877='شهر 9 تفصيلي'!$B44,'10 (2)'!$S$9:$S$877)) -> 0 | AI44: =SUM(C44:AH44) -> 137 | AJ44: =IFERROR(VLOOKUP(B44,BUS!$C$4:$AEB$888,4,0),"") -> MUB
A45: 2 | B45: 1502 | C45: =SUM(IF('1'!$Q$9:$Q$875='شهر 9 تفصيلي'!$B45,'1'!$S$9:$S$875)) -> 0 | D45: =SUM(IF('2'!$Q$9:$Q$877='شهر 9 تفصيلي'!$B45,'2'!$S$9:$S$877)) -> 0 | E45: =SUM(IF('3'!$Q$9:$Q$877='شهر 9 تفصيلي'!$B45,'3'!$S$9:$S$877)) -> 0 | F45: =SUM(IF('4'!$Q$9:$Q$877='شهر 9 تفصيلي'!$B45,'4'!$S$9:$S$877)) -> 0 | G45: =SUM(IF('5'!$Q$9:$Q$877='شهر 9 تفصيلي'!$B45,'5'!$S$9:$S$877)) -> 0 | H45: =SUM(IF('6'!$Q$9:$Q$877='شهر 9 تفصيلي'!$B45,'6'!$S$9:$S$877)) -> 0 | I45: =SUM(IF('7'!$Q$9:$Q$877='شهر 9 تفصيلي'!$B45,'7'!$S$9:$S$877)) -> 0 | J45: =SUM(IF('8'!$Q$9:$Q$877='شهر 9 تفصيلي'!$B45,'8'!$S$9:$S$877)) -> 0 | K45: =SUM(IF('9'!$Q$9:$Q$877='شهر 9 تفصيلي'!$B45,'9'!$S$9:$S$877)) -> 0 | L45: =SUM(IF('10'!$Q$9:$Q$877='شهر 9 تفصيلي'!$B45,'10'!$S$9:$S$877)) -> 0 | M45: =SUM(IF('10 (2)'!$Q$9:$Q$877='شهر 9 تفصيلي'!$B45,'10 (2)'!$S$9:$S$877)) -> 0 | AI45: 0 | AJ45: =IFERROR(VLOOKUP(B45,BUS!$C$4:$AEB$888,4,0),"") -> DHA
A46: 3 | B46: 1503 | C46: =SUM(IF('1'!$Q$9:$Q$875='شهر 9 تفصيلي'!$B46,'1'!$S$9:$S$875)) -> 106 | D46: =SUM(IF('2'!$Q$9:$Q$877='شهر 9 تفصيلي'!$B46,'2'!$S$9:$S$877)) -> 0 | E46: =SUM(IF('3'!$Q$9:$Q$877='شهر 9 تفصيلي'!$B46,'3'!$S$9:$S$877)) -> 0 | F46: =SUM(IF('4'!$Q$9:$Q$877='شهر 9 تفصيلي'!$B46,'4'!$S$9:$S$877)) -> 65 | G46: =SUM(IF('5'!$Q$9:$Q$877='شهر 9 تفصيلي'!$B46,'5'!$S$9:$S$877)) -> 95 | H46: =SUM(IF('6'!$Q$9:$Q$877='شهر 9 تفصيلي'!$B46,'6'!$S$9:$S$877)) -> 40 | I46: =SUM(IF('7'!$Q$9:$Q$877='شهر 9 تفصيلي'!$B46,'7'!$S$9:$S$877)) -> 97 | J46: =SUM(IF('8'!$Q$9:$Q$877='شهر 9 تفصيلي'!$B46,'8'!$S$9:$S$877)) -> 64 | K46: =SUM(IF('9'!$Q$9:$Q$877='شهر 9 تفصيلي'!$B46,'9'!$S$9:$S$877)) -> 90 | L46: =SUM(IF('10'!$Q$9:$Q$877='شهر 9 تفصيلي'!$B46,'10'!$S$9:$S$877)) -> 0 | M46: =SUM(IF('10 (2)'!$Q$9:$Q$877='شهر 9 تفصيلي'!$B46,'10 (2)'!$S$9:$S$877)) -> 0 | AI46: 557 | AJ46: =IFERROR(VLOOKUP(B46,BUS!$C$4:$AEB$888,4,0),"") -> MUB
A47: 4 | B47: 1504 | C47: =SUM(IF('1'!$Q$9:$Q$875='شهر 9 تفصيلي'!$B47,'1'!$S$9:$S$875)) -> 60 | D47: =SUM(IF('2'!$Q$9:$Q$877='شهر 9 تفصيلي'!$B47,'2'!$S$9:$S$877)) -> 72 | E47: =SUM(IF('3'!$Q$9:$Q$877='شهر 9 تفصيلي'!$B47,'3'!$S$9:$S$877)) -> 0 | F47: =SUM(IF('4'!$Q$9:$Q$877='شهر 9 تفصيلي'!$B47,'4'!$S$9:$S$877)) -> 0 | G47: =SUM(IF('5'!$Q$9:$Q$877='شهر 9 تفصيلي'!$B47,'5'!$S$9:$S$877)) -> 104 | H47: =SUM(IF('6'!$Q$9:$Q$877='شهر 9 تفصيلي'!$B47,'6'!$S$9:$S$877)) -> 62 | I47: =SUM(IF('7'!$Q$9:$Q$877='شهر 9 تفصيلي'!$B47,'7'!$S$9:$S$877)) -> 0 | J47: =SUM(IF('8'!$Q$9:$Q$877='شهر 9 تفصيلي'!$B47,'8'!$S$9:$S$877)) -> 0 | K47: =SUM(IF('9'!$Q$9:$Q$877='شهر 9 تفصيلي'!$B47,'9'!$S$9:$S$877)) -> 89 | L47: =SUM(IF('10'!$Q$9:$Q$877='شهر 9 تفصيلي'!$B47,'10'!$S$9:$S$877)) -> 0 | M47: =SUM(IF('10 (2)'!$Q$9:$Q$877='شهر 9 تفصيلي'!$B47,'10 (2)'!$S$9:$S$877)) -> 0 | AI47: 387 | AJ47: =IFERROR(VLOOKUP(B47,BUS!$C$4:$AEB$888,4,0),"") -> MUB
A48: 5 | B48: 1505 | C48: =SUM(IF('1'!$Q$9:$Q$875='شهر 9 تفصيلي'!$B48,'1'!$S$9:$S$875)) -> 0 | D48: =SUM(IF('2'!$Q$9:$Q$877='شهر 9 تفصيلي'!$B48,'2'!$S$9:$S$877)) -> 0 | E48: =SUM(IF('3'!$Q$9:$Q$877='شهر 9 تفصيلي'!$B48,'3'!$S$9:$S$877)) -> 0 | F48: =SUM(IF('4'!$Q$9:$Q$877='شهر 9 تفصيلي'!$B48,'4'!$S$9:$S$877)) -> 0 | G48: =SUM(IF('5'!$Q$9:$Q$877='شهر 9 تفصيلي'!$B48,'5'!$S$9:$S$877)) -> 0 | H48: =SUM(IF('6'!$Q$9:$Q$877='شهر 9 تفصيلي'!$B48,'6'!$S$9:$S$877)) -> 0 | I48: =SUM(IF('7'!$Q$9:$Q$877='شهر 9 تفصيلي'!$B48,'7'!$S$9:$S$877)) -> 0 | J48: =SUM(IF('8'!$Q$9:$Q$877='شهر 9 تفصيلي'!$B48,'8'!$S$9:$S$877)) -> 0 | K48: =SUM(IF('9'!$Q$9:$Q$877='شهر 9 تفصيلي'!$B48,'9'!$S$9:$S$877)) -> 0 | L48: =SUM(IF('10'!$Q$9:$Q$877='شهر 9 تفصيلي'!$B48,'10'!$S$9:$S$877)) -> 0 | M48: =SUM(IF('10 (2)'!$Q$9:$Q$877='شهر 9 تفصيلي'!$B48,'10 (2)'!$S$9:$S$877)) -> 0 | AI48: 0 | AJ48: =IFERROR(VLOOKUP(B48,BUS!$C$4:$AEB$888,4,0),"") -> ABQ
A49: 6 | B49: 1506 | C49: =SUM(IF('1'!$Q$9:$Q$875='شهر 9 تفصيلي'!$B49,'1'!$S$9:$S$875)) -> 102 | D49: =SUM(IF('2'!$Q$9:$Q$877='شهر 9 تفصيلي'!$B49,'2'!$S$9:$S$877)) -> 0 | E49: =SUM(IF('3'!$Q$9:$Q$877='شهر 9 تفصيلي'!$B49,'3'!$S$9:$S$877)) -> 0 | F49: =SUM(IF('4'!$Q$9:$Q$877='شهر 9 تفصيلي'!$B49,'4'!$S$9:$S$877)) -> 0 | G49: =SUM(IF('5'!$Q$9:$Q$877='شهر 9 تفصيلي'!$B49,'5'!$S$9:$S$877)) -> 53 | H49: =SUM(IF('6'!$Q$9:$Q$877='شهر 9 تفصيلي'!$B49,'6'!$S$9:$S$877)) -> 138 | I49: =SUM(IF('7'!$Q$9:$Q$877='شهر 9 تفصيلي'!$B49,'7'!$S$9:$S$877)) -> 57 | J49: =SUM(IF('8'!$Q$9:$Q$877='شهر 9 تفصيلي'!$B49,'8'!$S$9:$S$877)) -> 122 | K49: =SUM(IF('9'!$Q$9:$Q$877='شهر 9 تفصيلي'!$B49,'9'!$S$9:$S$877)) -> 0 | L49: =SUM(IF('10'!$Q$9:$Q$877='شهر 9 تفصيلي'!$B49,'10'!$S$9:$S$877)) -> 0 | M49: =SUM(IF('10 (2)'!$Q$9:$Q$877='شهر 9 تفصيلي'!$B49,'10 (2)'!$S$9:$S$877)) -> 0 | AI49: 472 | AJ49: =IFERROR(VLOOKUP(B49,BUS!$C$4:$AEB$888,4,0),"") -> MUB
A50: 7 | B50: 1509 | C50: =SUM(IF('1'!$Q$9:$Q$875='شهر 9 تفصيلي'!$B50,'1'!$S$9:$S$875)) -> 0 | D50: =SUM(IF('2'!$Q$9:$Q$877='شهر 9 تفصيلي'!$B50,'2'!$S$9:$S$877)) -> 0 | E50: =SUM(IF('3'!$Q$9:$Q$877='شهر 9 تفصيلي'!$B50,'3'!$S$9:$S$877)) -> 0 | F50: =SUM(IF('4'!$Q$9:$Q$877='شهر 9 تفصيلي'!$B50,'4'!$S$9:$S$877)) -> 0 | G50: =SUM(IF('5'!$Q$9:$Q$877='شهر 9 تفصيلي'!$B50,'5'!$S$9:$S$877)) -> 0 | H50: =SUM(IF('6'!$Q$9:$Q$877='شهر 9 تفصيلي'!$B50,'6'!$S$9:$S$877)) -> 0 | I50: =SUM(IF('7'!$Q$9:$Q$877='شهر 9 تفصيلي'!$B50,'7'!$S$9:$S$877)) -> 0 | J50: =SUM(IF('8'!$Q$9:$Q$877='شهر 9 تفصيلي'!$B50,'8'!$S$9:$S$877)) -> 0 | K50: =SUM(IF('9'!$Q$9:$Q$877='شهر 9 تفصيلي'!$B50,'9'!$S$9:$S$877)) -> 0 | L50: =SUM(IF('10'!$Q$9:$Q$877='شهر 9 تفصيلي'!$B50,'10'!$S$9:$S$877)) -> 0 | M50: =SUM(IF('10 (2)'!$Q$9:$Q$877='شهر 9 تفصيلي'!$B50,'10 (2)'!$S$9:$S$877)) -> 0 | AI50: 0 | AJ50: =IFERROR(VLOOKUP(B50,BUS!$C$4:$AEB$888,4,0),"") -> MUB
A51: 8 | B51: 1511 | C51: =SUM(IF('1'!$Q$9:$Q$875='شهر 9 تفصيلي'!$B51,'1'!$S$9:$S$875)) -> 40 | D51: =SUM(IF('2'!$Q$9:$Q$877='شهر 9 تفصيلي'!$B51,'2'!$S$9:$S$877)) -> 108 | E51: =SUM(IF('3'!$Q$9:$Q$877='شهر 9 تفصيلي'!$B51,'3'!$S$9:$S$877)) -> 47 | F51: =SUM(IF('4'!$Q$9:$Q$877='شهر 9 تفصيلي'!$B51,'4'!$S$9:$S$877)) -> 0 | G51: =SUM(IF('5'!$Q$9:$Q$877='شهر 9 تفصيلي'!$B51,'5'!$S$9:$S$877)) -> 117 | H51: =SUM(IF('6'!$Q$9:$Q$877='شهر 9 تفصيلي'!$B51,'6'!$S$9:$S$877)) -> 107 | I51: =SUM(IF('7'!$Q$9:$Q$877='شهر 9 تفصيلي'!$B51,'7'!$S$9:$S$877)) -> 111 | J51: =SUM(IF('8'!$Q$9:$Q$877='شهر 9 تفصيلي'!$B51,'8'!$S$9:$S$877)) -> 115 | K51: =SUM(IF('9'!$Q$9:$Q$877='شهر 9 تفصيلي'!$B51,'9'!$S$9:$S$877)) -> 0 | L51: =SUM(IF('10'!$Q$9:$Q$877='شهر 9 تفصيلي'!$B51,'10'!$S$9:$S$877)) -> 0 | M51: =SUM(IF('10 (2)'!$Q$9:$Q$877='شهر 9 تفصيلي'!$B51,'10 (2)'!$S$9:$S$877)) -> 0 | AI51: 645 | AJ51: =IFERROR(VLOOKUP(B51,BUS!$C$4:$AEB$888,4,0),"") -> MUB
A52: 9 | B52: 1512 | C52: =SUM(IF('1'!$Q$9:$Q$875='شهر 9 تفصيلي'!$B52,'1'!$S$9:$S$875)) -> 0 | D52: =SUM(IF('2'!$Q$9:$Q$877='شهر 9 تفصيلي'!$B52,'2'!$S$9:$S$877)) -> 0 | E52: =SUM(IF('3'!$Q$9:$Q$877='شهر 9 تفصيلي'!$B52,'3'!$S$9:$S$877)) -> 0 | F52: =SUM(IF('4'!$Q$9:$Q$877='شهر 9 تفصيلي'!$B52,'4'!$S$9:$S$877)) -> 0 | G52: =SUM(IF('5'!$Q$9:$Q$877='شهر 9 تفصيلي'!$B52,'5'!$S$9:$S$877)) -> 0 | H52: =SUM(IF('6'!$Q$9:$Q$877='شهر 9 تفصيلي'!$B52,'6'!$S$9:$S$877)) -> 0 | I52: =SUM(IF('7'!$Q$9:$Q$877='شهر 9 تفصيلي'!$B52,'7'!$S$9:$S$877)) -> 0 | J52: =SUM(IF('8'!$Q$9:$Q$877='شهر 9 تفصيلي'!$B52,'8'!$S$9:$S$877)) -> 0 | K52: =SUM(IF('9'!$Q$9:$Q$877='شهر 9 تفصيلي'!$B52,'9'!$S$9:$S$877)) -> 0 | L52: =SUM(IF('10'!$Q$9:$Q$877='شهر 9 تفصيلي'!$B52,'10'!$S$9:$S$877)) -> 0 | M52: =SUM(IF('10 (2)'!$Q$9:$Q$877='شهر 9 تفصيلي'!$B52,'10 (2)'!$S$9:$S$877)) -> 0 | AI52: 0 | AJ52: =IFERROR(VLOOKUP(B52,BUS!$C$4:$AEB$888,4,0),"") -> MUB
A53: 10 | B53: 1513 | C53: =SUM(IF('1'!$Q$9:$Q$875='شهر 9 تفصيلي'!$B53,'1'!$S$9:$S$875)) -> 37 | D53: =SUM(IF('2'!$Q$9:$Q$877='شهر 9 تفصيلي'!$B53,'2'!$S$9:$S$877)) -> 63 | E53: =SUM(IF('3'!$Q$9:$Q$877='شهر 9 تفصيلي'!$B53,'3'!$S$9:$S$877)) -> 0 | F53: =SUM(IF('4'!$Q$9:$Q$877='شهر 9 تفصيلي'!$B53,'4'!$S$9:$S$877)) -> 0 | G53: =SUM(IF('5'!$Q$9:$Q$877='شهر 9 تفصيلي'!$B53,'5'!$S$9:$S$877)) -> 0 | H53: =SUM(IF('6'!$Q$9:$Q$877='شهر 9 تفصيلي'!$B53,'6'!$S$9:$S$877)) -> 0 | I53: =SUM(IF('7'!$Q$9:$Q$877='شهر 9 تفصيلي'!$B53,'7'!$S$9:$S$877)) -> 40 | J53: =SUM(IF('8'!$Q$9:$Q$877='شهر 9 تفصيلي'!$B53,'8'!$S$9:$S$877)) -> 97 | K53: =SUM(IF('9'!$Q$9:$Q$877='شهر 9 تفصيلي'!$B53,'9'!$S$9:$S$877)) -> 76 | L53: =SUM(IF('10'!$Q$9:$Q$877='شهر 9 تفصيلي'!$B53,'10'!$S$9:$S$877)) -> 0 | M53: =SUM(IF('10 (2)'!$Q$9:$Q$877='شهر 9 تفصيلي'!$B53,'10 (2)'!$S$9:$S$877)) -> 0 | AI53: 313 | AJ53: =IFERROR(VLOOKUP(B53,BUS!$C$4:$AEB$888,4,0),"") -> MUB
A54: 11 | B54: 1515 | C54: =SUM(IF('1'!$Q$9:$Q$875='شهر 9 تفصيلي'!$B54,'1'!$S$9:$S$875)) -> 0 | D54: =SUM(IF('2'!$Q$9:$Q$877='شهر 9 تفصيلي'!$B54,'2'!$S$9:$S$877)) -> 0 | E54: =SUM(IF('3'!$Q$9:$Q$877='شهر 9 تفصيلي'!$B54,'3'!$S$9:$S$877)) -> 0 | F54: =SUM(IF('4'!$Q$9:$Q$877='شهر 9 تفصيلي'!$B54,'4'!$S$9:$S$877)) -> 0 | G54: =SUM(IF('5'!$Q$9:$Q$877='شهر 9 تفصيلي'!$B54,'5'!$S$9:$S$877)) -> 0 | H54: =SUM(IF('6'!$Q$9:$Q$877='شهر 9 تفصيلي'!$B54,'6'!$S$9:$S$877)) -> 0 | I54: =SUM(IF('7'!$Q$9:$Q$877='شهر 9 تفصيلي'!$B54,'7'!$S$9:$S$877)) -> 0 | J54: =SUM(IF('8'!$Q$9:$Q$877='شهر 9 تفصيلي'!$B54,'8'!$S$9:$S$877)) -> 0 | K54: =SUM(IF('9'!$Q$9:$Q$877='شهر 9 تفصيلي'!$B54,'9'!$S$9:$S$877)) -> 0 | L54: =SUM(IF('10'!$Q$9:$Q$877='شهر 9 تفصيلي'!$B54,'10'!$S$9:$S$877)) -> 0 | M54: =SUM(IF('10 (2)'!$Q$9:$Q$877='شهر 9 تفصيلي'!$B54,'10 (2)'!$S$9:$S$877)) -> 0 | AI54: 0 | AJ54: =IFERROR(VLOOKUP(B54,BUS!$C$4:$AEB$888,4,0),"") -> JED/Z
A55: 12 | B55: 1516 | C55: =SUM(IF('1'!$Q$9:$Q$875='شهر 9 تفصيلي'!$B55,'1'!$S$9:$S$875)) -> 0 | D55: =SUM(IF('2'!$Q$9:$Q$877='شهر 9 تفصيلي'!$B55,'2'!$S$9:$S$877)) -> 0 | E55: =SUM(IF('3'!$Q$9:$Q$877='شهر 9 تفصيلي'!$B55,'3'!$S$9:$S$877)) -> 0 | F55: =SUM(IF('4'!$Q$9:$Q$877='شهر 9 تفصيلي'!$B55,'4'!$S$9:$S$877)) -> 0 | G55: =SUM(IF('5'!$Q$9:$Q$877='شهر 9 تفصيلي'!$B55,'5'!$S$9:$S$877)) -> 0 | H55: =SUM(IF('6'!$Q$9:$Q$877='شهر 9 تفصيلي'!$B55,'6'!$S$9:$S$877)) -> 0 | I55: =SUM(IF('7'!$Q$9:$Q$877='شهر 9 تفصيلي'!$B55,'7'!$S$9:$S$877)) -> 0 | J55: =SUM(IF('8'!$Q$9:$Q$877='شهر 9 تفصيلي'!$B55,'8'!$S$9:$S$877)) -> 0 | K55: =SUM(IF('9'!$Q$9:$Q$877='شهر 9 تفصيلي'!$B55,'9'!$S$9:$S$877)) -> 0 | L55: =SUM(IF('10'!$Q$9:$Q$877='شهر 9 تفصيلي'!$B55,'10'!$S$9:$S$877)) -> 0 | M55: =SUM(IF('10 (2)'!$Q$9:$Q$877='شهر 9 تفصيلي'!$B55,'10 (2)'!$S$9:$S$877)) -> 0 | AI55: 0 | AJ55: =IFERROR(VLOOKUP(B55,BUS!$C$4:$AEB$888,4,0),"") -> MUB
A56: 13 | B56: 1517 | C56: =SUM(IF('1'!$Q$9:$Q$875='شهر 9 تفصيلي'!$B56,'1'!$S$9:$S$875)) -> 0 | D56: =SUM(IF('2'!$Q$9:$Q$877='شهر 9 تفصيلي'!$B56,'2'!$S$9:$S$877)) -> 0 | E56: =SUM(IF('3'!$Q$9:$Q$877='شهر 9 تفصيلي'!$B56,'3'!$S$9:$S$877)) -> 0 | F56: =SUM(IF('4'!$Q$9:$Q$877='شهر 9 تفصيلي'!$B56,'4'!$S$9:$S$877)) -> 0 | G56: =SUM(IF('5'!$Q$9:$Q$877='شهر 9 تفصيلي'!$B56,'5'!$S$9:$S$877)) -> 0 | H56: =SUM(IF('6'!$Q$9:$Q$877='شهر 9 تفصيلي'!$B56,'6'!$S$9:$S$877)) -> 0 | I56: =SUM(IF('7'!$Q$9:$Q$877='شهر 9 تفصيلي'!$B56,'7'!$S$9:$S$877)) -> 0 | J56: =SUM(IF('8'!$Q$9:$Q$877='شهر 9 تفصيلي'!$B56,'8'!$S$9:$S$877)) -> 0 | K56: =SUM(IF('9'!$Q$9:$Q$877='شهر 9 تفصيلي'!$B56,'9'!$S$9:$S$877)) -> 0 | L56: =SUM(IF('10'!$Q$9:$Q$877='شهر 9 تفصيلي'!$B56,'10'!$S$9:$S$877)) -> 0 | M56: =SUM(IF('10 (2)'!$Q$9:$Q$877='شهر 9 تفصيلي'!$B56,'10 (2)'!$S$9:$S$877)) -> 0 | AI56: 0 | AJ56: =IFERROR(VLOOKUP(B56,BUS!$C$4:$AEB$888,4,0),"") -> HAR
A57: 14 | B57: 1518 | C57: =SUM(IF('1'!$Q$9:$Q$875='شهر 9 تفصيلي'!$B57,'1'!$S$9:$S$875)) -> 0 | D57: =SUM(IF('2'!$Q$9:$Q$877='شهر 9 تفصيلي'!$B57,'2'!$S$9:$S$877)) -> 0 | E57: =SUM(IF('3'!$Q$9:$Q$877='شهر 9 تفصيلي'!$B57,'3'!$S$9:$S$877)) -> 0 | F57: =SUM(IF('4'!$Q$9:$Q$877='شهر 9 تفصيلي'!$B57,'4'!$S$9:$S$877)) -> 0 | G57: =SUM(IF('5'!$Q$9:$Q$877='شهر 9 تفصيلي'!$B57,'5'!$S$9:$S$877)) -> 0 | H57: =SUM(IF('6'!$Q$9:$Q$877='شهر 9 تفصيلي'!$B57,'6'!$S$9:$S$877)) -> 0 | I57: =SUM(IF('7'!$Q$9:$Q$877='شهر 9 تفصيلي'!$B57,'7'!$S$9:$S$877)) -> 0 | J57: =SUM(IF('8'!$Q$9:$Q$877='شهر 9 تفصيلي'!$B57,'8'!$S$9:$S$877)) -> 0 | K57: =SUM(IF('9'!$Q$9:$Q$877='شهر 9 تفصيلي'!$B57,'9'!$S$9:$S$877)) -> 0 | L57: =SUM(IF('10'!$Q$9:$Q$877='شهر 9 تفصيلي'!$B57,'10'!$S$9:$S$877)) -> 0 | M57: =SUM(IF('10 (2)'!$Q$9:$Q$877='شهر 9 تفصيلي'!$B57,'10 (2)'!$S$9:$S$877)) -> 0 | AI57: 0 | AJ57: =IFERROR(VLOOKUP(B57,BUS!$C$4:$AEB$888,4,0),"") -> HAR
A58: 15 | B58: 1519 | C58: =SUM(IF('1'!$Q$9:$Q$875='شهر 9 تفصيلي'!$B58,'1'!$S$9:$S$875)) -> 0 | D58: =SUM(IF('2'!$Q$9:$Q$877='شهر 9 تفصيلي'!$B58,'2'!$S$9:$S$877)) -> 0 | E58: =SUM(IF('3'!$Q$9:$Q$877='شهر 9 تفصيلي'!$B58,'3'!$S$9:$S$877)) -> 0 | F58: =SUM(IF('4'!$Q$9:$Q$877='شهر 9 تفصيلي'!$B58,'4'!$S$9:$S$877)) -> 0 | G58: =SUM(IF('5'!$Q$9:$Q$877='شهر 9 تفصيلي'!$B58,'5'!$S$9:$S$877)) -> 55 | H58: =SUM(IF('6'!$Q$9:$Q$877='شهر 9 تفصيلي'!$B58,'6'!$S$9:$S$877)) -> 0 | I58: =SUM(IF('7'!$Q$9:$Q$877='شهر 9 تفصيلي'!$B58,'7'!$S$9:$S$877)) -> 0 | J58: =SUM(IF('8'!$Q$9:$Q$877='شهر 9 تفصيلي'!$B58,'8'!$S$9:$S$877)) -> 0 | K58: =SUM(IF('9'!$Q$9:$Q$877='شهر 9 تفصيلي'!$B58,'9'!$S$9:$S$877)) -> 0 | L58: =SUM(IF('10'!$Q$9:$Q$877='شهر 9 تفصيلي'!$B58,'10'!$S$9:$S$877)) -> 0 | M58: =SUM(IF('10 (2)'!$Q$9:$Q$877='شهر 9 تفصيلي'!$B58,'10 (2)'!$S$9:$S$877)) -> 0 | AI58: 55 | AJ58: =IFERROR(VLOOKUP(B58,BUS!$C$4:$AEB$888,4,0),"") -> MUB
A59: 16 | B59: 1520 | C59: =SUM(IF('1'!$Q$9:$Q$875='شهر 9 تفصيلي'!$B59,'1'!$S$9:$S$875)) -> 73 | D59: =SUM(IF('2'!$Q$9:$Q$877='شهر 9 تفصيلي'!$B59,'2'!$S$9:$S$877)) -> 85 | E59: =SUM(IF('3'!$Q$9:$Q$877='شهر 9 تفصيلي'!$B59,'3'!$S$9:$S$877)) -> 0 | F59: =SUM(IF('4'!$Q$9:$Q$877='شهر 9 تفصيلي'!$B59,'4'!$S$9:$S$877)) -> 0 | G59: =SUM(IF('5'!$Q$9:$Q$877='شهر 9 تفصيلي'!$B59,'5'!$S$9:$S$877)) -> 0 | H59: =SUM(IF('6'!$Q$9:$Q$877='شهر 9 تفصيلي'!$B59,'6'!$S$9:$S$877)) -> 0 | I59: =SUM(IF('7'!$Q$9:$Q$877='شهر 9 تفصيلي'!$B59,'7'!$S$9:$S$877)) -> 0 | J59: =SUM(IF('8'!$Q$9:$Q$877='شهر 9 تفصيلي'!$B59,'8'!$S$9:$S$877)) -> 107 | K59: =SUM(IF('9'!$Q$9:$Q$877='شهر 9 تفصيلي'!$B59,'9'!$S$9:$S$877)) -> 95 | L59: =SUM(IF('10'!$Q$9:$Q$877='شهر 9 تفصيلي'!$B59,'10'!$S$9:$S$877)) -> 0 | M59: =SUM(IF('10 (2)'!$Q$9:$Q$877='شهر 9 تفصيلي'!$B59,'10 (2)'!$S$9:$S$877)) -> 0 | AI59: 360 | AJ59: =IFERROR(VLOOKUP(B59,BUS!$C$4:$AEB$888,4,0),"") -> MUB
A60: 17 | B60: 1521 | C60: =SUM(IF('1'!$Q$9:$Q$875='شهر 9 تفصيلي'!$B60,'1'!$S$9:$S$875)) -> 0 | D60: =SUM(IF('2'!$Q$9:$Q$877='شهر 9 تفصيلي'!$B60,'2'!$S$9:$S$877)) -> 0 | E60: =SUM(IF('3'!$Q$9:$Q$877='شهر 9 تفصيلي'!$B60,'3'!$S$9:$S$877)) -> 0 | F60: =SUM(IF('4'!$Q$9:$Q$877='شهر 9 تفصيلي'!$B60,'4'!$S$9:$S$877)) -> 0 | G60: =SUM(IF('5'!$Q$9:$Q$877='شهر 9 تفصيلي'!$B60,'5'!$S$9:$S$877)) -> 0 | H60: =SUM(IF('6'!$Q$9:$Q$877='شهر 9 تفصيلي'!$B60,'6'!$S$9:$S$877)) -> 0 | I60: =SUM(IF('7'!$Q$9:$Q$877='شهر 9 تفصيلي'!$B60,'7'!$S$9:$S$877)) -> 0 | J60: =SUM(IF('8'!$Q$9:$Q$877='شهر 9 تفصيلي'!$B60,'8'!$S$9:$S$877)) -> 0 | K60: =SUM(IF('9'!$Q$9:$Q$877='شهر 9 تفصيلي'!$B60,'9'!$S$9:$S$877)) -> 0 | L60: =SUM(IF('10'!$Q$9:$Q$877='شهر 9 تفصيلي'!$B60,'10'!$S$9:$S$877)) -> 0 | M60: =SUM(IF('10 (2)'!$Q$9:$Q$877='شهر 9 تفصيلي'!$B60,'10 (2)'!$S$9:$S$877)) -> 0 | AI60: 0 | AJ60: =IFERROR(VLOOKUP(B60,BUS!$C$4:$AEB$888,4,0),"") -> MUB
A61: 18 | B61: 1525 | C61: =SUM(IF('1'!$Q$9:$Q$875='شهر 9 تفصيلي'!$B61,'1'!$S$9:$S$875)) -> 114 | D61: =SUM(IF('2'!$Q$9:$Q$877='شهر 9 تفصيلي'!$B61,'2'!$S$9:$S$877)) -> 87 | E61: =SUM(IF('3'!$Q$9:$Q$877='شهر 9 تفصيلي'!$B61,'3'!$S$9:$S$877)) -> 0 | F61: =SUM(IF('4'!$Q$9:$Q$877='شهر 9 تفصيلي'!$B61,'4'!$S$9:$S$877)) -> 31 | G61: =SUM(IF('5'!$Q$9:$Q$877='شهر 9 تفصيلي'!$B61,'5'!$S$9:$S$877)) -> 118 | H61: =SUM(IF('6'!$Q$9:$Q$877='شهر 9 تفصيلي'!$B61,'6'!$S$9:$S$877)) -> 140 | I61: =SUM(IF('7'!$Q$9:$Q$877='شهر 9 تفصيلي'!$B61,'7'!$S$9:$S$877)) -> 63 | J61: =SUM(IF('8'!$Q$9:$Q$877='شهر 9 تفصيلي'!$B61,'8'!$S$9:$S$877)) -> 135 | K61: =SUM(IF('9'!$Q$9:$Q$877='شهر 9 تفصيلي'!$B61,'9'!$S$9:$S$877)) -> 69 | L61: =SUM(IF('10'!$Q$9:$Q$877='شهر 9 تفصيلي'!$B61,'10'!$S$9:$S$877)) -> 0 | M61: =SUM(IF('10 (2)'!$Q$9:$Q$877='شهر 9 تفصيلي'!$B61,'10 (2)'!$S$9:$S$877)) -> 0 | AI61: 757 | AJ61: =IFERROR(VLOOKUP(B61,BUS!$C$4:$AEB$888,4,0),"") -> MUB
AI62: =SUM(AI44:AI61) -> 3683
A63: Total | C63: =SUM(C44:C61) -> 532 | D63: =SUM(D44:D61) -> 499 | E63: =SUM(E44:E61) -> 47 | F63: =SUM(F44:F61) -> 96 | G63: =SUM(G44:G61) -> 595 | H63: =SUM(H44:H61) -> 487 | I63: =SUM(I44:I61) -> 368 | J63: =SUM(J44:J61) -> 640 | K63: =SUM(K44:K61) -> 419 | L63: =SUM(L44:L61) -> 0 | M63: =SUM(M44:M61) -> 0 | N63: =SUM(N44:N61) -> 0 | O63: =SUM(O44:O61) -> 0 | P63: =SUM(P44:P61) -> 0 | Q63: =SUM(Q44:Q61) -> 0 | R63: =SUM(R44:R61) -> 0 | S63: =SUM(S44:S61) -> 0 | T63: =SUM(T44:T61) -> 0 | U63: =SUM(U44:U61) -> 0 | V63: =SUM(V44:V61) -> 0 | W63: =SUM(W44:W61) -> 0 | X63: =SUM(X44:X61) -> 0 | Y63: =SUM(Y44:Y61) -> 0 | Z63: =SUM(Z44:Z61) -> 0 | AA63: =SUM(AA44:AA61) -> 0 | AB63: =SUM(AB44:AB61) -> 0 | AC63: =SUM(AC44:AC61) -> 0 | AD63: =SUM(AD44:AD61) -> 0 | AE63: =SUM(AE44:AE61) -> 0 | AF63: =SUM(AF44:AF61) -> 0 | AG63: =SUM(AG44:AG61) -> 0 | AH63: =SUM(AH44:AH61) -> 0 | AI63: =SUM(C63:AH63) -> 3683
A65: Gasolie 91
A66: S/N | B66: Bus # | C66: 1 | D66: 2 | E66: 3 | F66: 4 | G66: 5 | H66: 6 | I66: 7 | J66: 8 | K66: 9 | L66: 10 | M66: 10(2) | N66: 11 | O66: 12 | P66: 13 | Q66: 14 | R66: 15 | S66: 16 | T66: 17 | U66: 18 | V66: 19 | W66: 20 | X66: 21 | Y66: 22 | Z66: 23 | AA66: 24 | AB66: 25 | AC66: 26 | AD66: 27 | AE66: 28 | AF66: 29 | AG66: 30 | AH66: 31 | AI66: Total | AJ66: Area
A67: 1 | B67: 4028 | C67: =SUM(IF('1'!$X$9:$X$877='شهر 9 تفصيلي'!$B67,'1'!$Z$9:$Z$877)) -> 0 | D67: =SUM(IF('2'!$X$9:$X$877='شهر 9 تفصيلي'!$B67,'2'!$Z$9:$Z$877)) -> 0 | E67: =SUM(IF('3'!$X$9:$X$877='شهر 9 تفصيلي'!$B67,'3'!$Z$9:$Z$877)) -> 0 | F67: =SUM(IF('4'!$X$9:$X$877='شهر 9 تفصيلي'!$B67,'4'!$Z$9:$Z$877)) -> 0 | G67: =SUM(IF('5'!$X$9:$X$877='شهر 9 تفصيلي'!$B67,'5'!$Z$9:$Z$877)) -> 0 | H67: =SUM(IF('6'!$X$9:$X$877='شهر 9 تفصيلي'!$B67,'6'!$Z$9:$Z$877)) -> 0 | I67: =SUM(IF('7'!$X$9:$X$877='شهر 9 تفصيلي'!$B67,'7'!$Z$9:$Z$877)) -> 0 | J67: =SUM(IF('8'!$X$9:$X$877='شهر 9 تفصيلي'!$B67,'8'!$Z$9:$Z$877)) -> 0 | K67: =SUM(IF('9'!$X$9:$X$877='شهر 9 تفصيلي'!$B67,'9'!$Z$9:$Z$877)) -> 0 | L67: =SUM(IF('10'!$X$9:$X$877='شهر 9 تفصيلي'!$B67,'10'!$Z$9:$Z$877)) -> 0 | M67: =SUM(IF('10 (2)'!$X$9:$X$877='شهر 9 تفصيلي'!$B67,'10 (2)'!$Z$9:$Z$877)) -> 0 | AI67: =SUM(C67:AH67) -> 0 | AJ67: =IFERROR(VLOOKUP(B67,BUS!$C$4:$AEB$888,4,0),"") -> MUB
A68: 2 | B68: 4176 | C68: =SUM(IF('1'!$X$9:$X$877='شهر 9 تفصيلي'!$B68,'1'!$Z$9:$Z$877)) -> 0 | D68: =SUM(IF('2'!$X$9:$X$877='شهر 9 تفصيلي'!$B68,'2'!$Z$9:$Z$877)) -> 42 | E68: =SUM(IF('3'!$X$9:$X$877='شهر 9 تفصيلي'!$B68,'3'!$Z$9:$Z$877)) -> 0 | F68: =SUM(IF('4'!$X$9:$X$877='شهر 9 تفصيلي'!$B68,'4'!$Z$9:$Z$877)) -> 0 | G68: =SUM(IF('5'!$X$9:$X$877='شهر 9 تفصيلي'!$B68,'5'!$Z$9:$Z$877)) -> 46 | H68: =SUM(IF('6'!$X$9:$X$877='شهر 9 تفصيلي'!$B68,'6'!$Z$9:$Z$877)) -> 0 | I68: =SUM(IF('7'!$X$9:$X$877='شهر 9 تفصيلي'!$B68,'7'!$Z$9:$Z$877)) -> 0 | J68: =SUM(IF('8'!$X$9:$X$877='شهر 9 تفصيلي'!$B68,'8'!$Z$9:$Z$877)) -> 0 | K68: =SUM(IF('9'!$X$9:$X$877='شهر 9 تفصيلي'!$B68,'9'!$Z$9:$Z$877)) -> 0 | L68: =SUM(IF('10'!$X$9:$X$877='شهر 9 تفصيلي'!$B68,'10'!$Z$9:$Z$877)) -> 0 | M68: =SUM(IF('10 (2)'!$X$9:$X$877='شهر 9 تفصيلي'!$B68,'10 (2)'!$Z$9:$Z$877)) -> 0 | AI68: 88 | AJ68: =IFERROR(VLOOKUP(B68,BUS!$C$4:$AEB$888,4,0),"") -> MUB
A69: 3 | B69: 4175 | C69: =SUM(IF('1'!$X$9:$X$877='شهر 9 تفصيلي'!$B69,'1'!$Z$9:$Z$877)) -> 0 | D69: =SUM(IF('2'!$X$9:$X$877='شهر 9 تفصيلي'!$B69,'2'!$Z$9:$Z$877)) -> 25 | E69: =SUM(IF('3'!$X$9:$X$877='شهر 9 تفصيلي'!$B69,'3'!$Z$9:$Z$877)) -> 0 | F69: =SUM(IF('4'!$X$9:$X$877='شهر 9 تفصيلي'!$B69,'4'!$Z$9:$Z$877)) -> 0 | G69: =SUM(IF('5'!$X$9:$X$877='شهر 9 تفصيلي'!$B69,'5'!$Z$9:$Z$877)) -> 0 | H69: =SUM(IF('6'!$X$9:$X$877='شهر 9 تفصيلي'!$B69,'6'!$Z$9:$Z$877)) -> 41 | I69: =SUM(IF('7'!$X$9:$X$877='شهر 9 تفصيلي'!$B69,'7'!$Z$9:$Z$877)) -> 0 | J69: =SUM(IF('8'!$X$9:$X$877='شهر 9 تفصيلي'!$B69,'8'!$Z$9:$Z$877)) -> 0 | K69: =SUM(IF('9'!$X$9:$X$877='شهر 9 تفصيلي'!$B69,'9'!$Z$9:$Z$877)) -> 31 | L69: =SUM(IF('10'!$X$9:$X$877='شهر 9 تفصيلي'!$B69,'10'!$Z$9:$Z$877)) -> 0 | M69: =SUM(IF('10 (2)'!$X$9:$X$877='شهر 9 تفصيلي'!$B69,'10 (2)'!$Z$9:$Z$877)) -> 0 | AI69: 97 | AJ69: =IFERROR(VLOOKUP(B69,BUS!$C$4:$AEB$888,4,0),"") -> MUB
A70: 4 | B70: 4174 | C70: =SUM(IF('1'!$X$9:$X$877='شهر 9 تفصيلي'!$B70,'1'!$Z$9:$Z$877)) -> 0 | D70: =SUM(IF('2'!$X$9:$X$877='شهر 9 تفصيلي'!$B70,'2'!$Z$9:$Z$877)) -> 0 | E70: =SUM(IF('3'!$X$9:$X$877='شهر 9 تفصيلي'!$B70,'3'!$Z$9:$Z$877)) -> 0 | F70: =SUM(IF('4'!$X$9:$X$877='شهر 9 تفصيلي'!$B70,'4'!$Z$9:$Z$877)) -> 0 | G70: =SUM(IF('5'!$X$9:$X$877='شهر 9 تفصيلي'!$B70,'5'!$Z$9:$Z$877)) -> 0 | H70: =SUM(IF('6'!$X$9:$X$877='شهر 9 تفصيلي'!$B70,'6'!$Z$9:$Z$877)) -> 0 | I70: =SUM(IF('7'!$X$9:$X$877='شهر 9 تفصيلي'!$B70,'7'!$Z$9:$Z$877)) -> 0 | J70: =SUM(IF('8'!$X$9:$X$877='شهر 9 تفصيلي'!$B70,'8'!$Z$9:$Z$877)) -> 0 | K70: =SUM(IF('9'!$X$9:$X$877='شهر 9 تفصيلي'!$B70,'9'!$Z$9:$Z$877)) -> 0 | L70: =SUM(IF('10'!$X$9:$X$877='شهر 9 تفصيلي'!$B70,'10'!$Z$9:$Z$877)) -> 0 | M70: =SUM(IF('10 (2)'!$X$9:$X$877='شهر 9 تفصيلي'!$B70,'10 (2)'!$Z$9:$Z$877)) -> 0 | AI70: 0 | AJ70: =IFERROR(VLOOKUP(B70,BUS!$C$4:$AEB$888,4,0),"") -> MUB
A71: 5 | B71: 4048 | C71: =SUM(IF('1'!$X$9:$X$877='شهر 9 تفصيلي'!$B71,'1'!$Z$9:$Z$877)) -> 0 | D71: =SUM(IF('2'!$X$9:$X$877='شهر 9 تفصيلي'!$B71,'2'!$Z$9:$Z$877)) -> 0 | E71: =SUM(IF('3'!$X$9:$X$877='شهر 9 تفصيلي'!$B71,'3'!$Z$9:$Z$877)) -> 0 | F71: =SUM(IF('4'!$X$9:$X$877='شهر 9 تفصيلي'!$B71,'4'!$Z$9:$Z$877)) -> 0 | G71: =SUM(IF('5'!$X$9:$X$877='شهر 9 تفصيلي'!$B71,'5'!$Z$9:$Z$877)) -> 0 | H71: =SUM(IF('6'!$X$9:$X$877='شهر 9 تفصيلي'!$B71,'6'!$Z$9:$Z$877)) -> 0 | I71: =SUM(IF('7'!$X$9:$X$877='شهر 9 تفصيلي'!$B71,'7'!$Z$9:$Z$877)) -> 0 | J71: =SUM(IF('8'!$X$9:$X$877='شهر 9 تفصيلي'!$B71,'8'!$Z$9:$Z$877)) -> 0 | K71: =SUM(IF('9'!$X$9:$X$877='شهر 9 تفصيلي'!$B71,'9'!$Z$9:$Z$877)) -> 0 | L71: =SUM(IF('10'!$X$9:$X$877='شهر 9 تفصيلي'!$B71,'10'!$Z$9:$Z$877)) -> 0 | M71: =SUM(IF('10 (2)'!$X$9:$X$877='شهر 9 تفصيلي'!$B71,'10 (2)'!$Z$9:$Z$877)) -> 0 | AI71: 0 | AJ71: =IFERROR(VLOOKUP(B71,BUS!$C$4:$AEB$888,4,0),"") -> MUB
A72: 6 | B72: 4762 | C72: =SUM(IF('1'!$X$9:$X$877='شهر 9 تفصيلي'!$B72,'1'!$Z$9:$Z$877)) -> 0 | D72: =SUM(IF('2'!$X$9:$X$877='شهر 9 تفصيلي'!$B72,'2'!$Z$9:$Z$877)) -> 0 | E72: =SUM(IF('3'!$X$9:$X$877='شهر 9 تفصيلي'!$B72,'3'!$Z$9:$Z$877)) -> 0 | F72: =SUM(IF('4'!$X$9:$X$877='شهر 9 تفصيلي'!$B72,'4'!$Z$9:$Z$877)) -> 0 | G72: =SUM(IF('5'!$X$9:$X$877='شهر 9 تفصيلي'!$B72,'5'!$Z$9:$Z$877)) -> 0 | H72: =SUM(IF('6'!$X$9:$X$877='شهر 9 تفصيلي'!$B72,'6'!$Z$9:$Z$877)) -> 0 | I72: =SUM(IF('7'!$X$9:$X$877='شهر 9 تفصيلي'!$B72,'7'!$Z$9:$Z$877)) -> 0 | J72: =SUM(IF('8'!$X$9:$X$877='شهر 9 تفصيلي'!$B72,'8'!$Z$9:$Z$877)) -> 0 | K72: =SUM(IF('9'!$X$9:$X$877='شهر 9 تفصيلي'!$B72,'9'!$Z$9:$Z$877)) -> 0 | L72: =SUM(IF('10'!$X$9:$X$877='شهر 9 تفصيلي'!$B72,'10'!$Z$9:$Z$877)) -> 0 | M72: =SUM(IF('10 (2)'!$X$9:$X$877='شهر 9 تفصيلي'!$B72,'10 (2)'!$Z$9:$Z$877)) -> 0 | AI72: 0 | AJ72: =IFERROR(VLOOKUP(B72,BUS!$C$4:$AEB$888,4,0),"") -> MUB
A73: 7 | B73: 4050 | C73: =SUM(IF('1'!$X$9:$X$877='شهر 9 تفصيلي'!$B73,'1'!$Z$9:$Z$877)) -> 0 | D73: =SUM(IF('2'!$X$9:$X$877='شهر 9 تفصيلي'!$B73,'2'!$Z$9:$Z$877)) -> 0 | E73: =SUM(IF('3'!$X$9:$X$877='شهر 9 تفصيلي'!$B73,'3'!$Z$9:$Z$877)) -> 0 | F73: =SUM(IF('4'!$X$9:$X$877='شهر 9 تفصيلي'!$B73,'4'!$Z$9:$Z$877)) -> 0 | G73: =SUM(IF('5'!$X$9:$X$877='شهر 9 تفصيلي'!$B73,'5'!$Z$9:$Z$877)) -> 0 | H73: =SUM(IF('6'!$X$9:$X$877='شهر 9 تفصيلي'!$B73,'6'!$Z$9:$Z$877)) -> 0 | I73: =SUM(IF('7'!$X$9:$X$877='شهر 9 تفصيلي'!$B73,'7'!$Z$9:$Z$877)) -> 0 | J73: =SUM(IF('8'!$X$9:$X$877='شهر 9 تفصيلي'!$B73,'8'!$Z$9:$Z$877)) -> 0 | K73: =SUM(IF('9'!$X$9:$X$877='شهر 9 تفصيلي'!$B73,'9'!$Z$9:$Z$877)) -> 0 | L73: =SUM(IF('10'!$X$9:$X$877='شهر 9 تفصيلي'!$B73,'10'!$Z$9:$Z$877)) -> 0 | M73: =SUM(IF('10 (2)'!$X$9:$X$877='شهر 9 تفصيلي'!$B73,'10 (2)'!$Z$9:$Z$877)) -> 0 | AI73: 0 | AJ73: =IFERROR(VLOOKUP(B73,BUS!$C$4:$AEB$888,4,0),"") -> DMM
A74: 8 | B74: 4036 | C74: =SUM(IF('1'!$X$9:$X$877='شهر 9 تفصيلي'!$B74,'1'!$Z$9:$Z$877)) -> 0 | D74: =SUM(IF('2'!$X$9:$X$877='شهر 9 تفصيلي'!$B74,'2'!$Z$9:$Z$877)) -> 0 | E74: =SUM(IF('3'!$X$9:$X$877='شهر 9 تفصيلي'!$B74,'3'!$Z$9:$Z$877)) -> 0 | F74: =SUM(IF('4'!$X$9:$X$877='شهر 9 تفصيلي'!$B74,'4'!$Z$9:$Z$877)) -> 0 | G74: =SUM(IF('5'!$X$9:$X$877='شهر 9 تفصيلي'!$B74,'5'!$Z$9:$Z$877)) -> 0 | H74: =SUM(IF('6'!$X$9:$X$877='شهر 9 تفصيلي'!$B74,'6'!$Z$9:$Z$877)) -> 0 | I74: =SUM(IF('7'!$X$9:$X$877='شهر 9 تفصيلي'!$B74,'7'!$Z$9:$Z$877)) -> 0 | J74: =SUM(IF('8'!$X$9:$X$877='شهر 9 تفصيلي'!$B74,'8'!$Z$9:$Z$877)) -> 0 | K74: =SUM(IF('9'!$X$9:$X$877='شهر 9 تفصيلي'!$B74,'9'!$Z$9:$Z$877)) -> 0 | L74: =SUM(IF('10'!$X$9:$X$877='شهر 9 تفصيلي'!$B74,'10'!$Z$9:$Z$877)) -> 0 | M74: =SUM(IF('10 (2)'!$X$9:$X$877='شهر 9 تفصيلي'!$B74,'10 (2)'!$Z$9:$Z$877)) -> 0 | AI74: 0 | AJ74: =IFERROR(VLOOKUP(B74,BUS!$C$4:$AEB$888,4,0),"") -> MUB
A75: 9 | B75: 4034 | C75: =SUM(IF('1'!$X$9:$X$877='شهر 9 تفصيلي'!$B75,'1'!$Z$9:$Z$877)) -> 0 | D75: =SUM(IF('2'!$X$9:$X$877='شهر 9 تفصيلي'!$B75,'2'!$Z$9:$Z$877)) -> 0 | E75: =SUM(IF('3'!$X$9:$X$877='شهر 9 تفصيلي'!$B75,'3'!$Z$9:$Z$877)) -> 0 | F75: =SUM(IF('4'!$X$9:$X$877='شهر 9 تفصيلي'!$B75,'4'!$Z$9:$Z$877)) -> 0 | G75: =SUM(IF('5'!$X$9:$X$877='شهر 9 تفصيلي'!$B75,'5'!$Z$9:$Z$877)) -> 0 | H75: =SUM(IF('6'!$X$9:$X$877='شهر 9 تفصيلي'!$B75,'6'!$Z$9:$Z$877)) -> 0 | I75: =SUM(IF('7'!$X$9:$X$877='شهر 9 تفصيلي'!$B75,'7'!$Z$9:$Z$877)) -> 0 | J75: =SUM(IF('8'!$X$9:$X$877='شهر 9 تفصيلي'!$B75,'8'!$Z$9:$Z$877)) -> 0 | K75: =SUM(IF('9'!$X$9:$X$877='شهر 9 تفصيلي'!$B75,'9'!$Z$9:$Z$877)) -> 0 | L75: =SUM(IF('10'!$X$9:$X$877='شهر 9 تفصيلي'!$B75,'10'!$Z$9:$Z$877)) -> 0 | M75: =SUM(IF('10 (2)'!$X$9:$X$877='شهر 9 تفصيلي'!$B75,'10 (2)'!$Z$9:$Z$877)) -> 0 | AI75: 0 | AJ75: =IFERROR(VLOOKUP(B75,BUS!$C$4:$AEB$888,4,0),"") -> MUB
A76: 10 | B76: 4014 | C76: =SUM(IF('1'!$X$9:$X$877='شهر 9 تفصيلي'!$B76,'1'!$Z$9:$Z$877)) -> 0 | D76: =SUM(IF('2'!$X$9:$X$877='شهر 9 تفصيلي'!$B76,'2'!$Z$9:$Z$877)) -> 0 | E76: =SUM(IF('3'!$X$9:$X$877='شهر 9 تفصيلي'!$B76,'3'!$Z$9:$Z$877)) -> 0 | F76: =SUM(IF('4'!$X$9:$X$877='شهر 9 تفصيلي'!$B76,'4'!$Z$9:$Z$877)) -> 0 | G76: =SUM(IF('5'!$X$9:$X$877='شهر 9 تفصيلي'!$B76,'5'!$Z$9:$Z$877)) -> 0 | H76: =SUM(IF('6'!$X$9:$X$877='شهر 9 تفصيلي'!$B76,'6'!$Z$9:$Z$877)) -> 0 | I76: =SUM(IF('7'!$X$9:$X$877='شهر 9 تفصيلي'!$B76,'7'!$Z$9:$Z$877)) -> 0 | J76: =SUM(IF('8'!$X$9:$X$877='شهر 9 تفصيلي'!$B76,'8'!$Z$9:$Z$877)) -> 0 | K76: =SUM(IF('9'!$X$9:$X$877='شهر 9 تفصيلي'!$B76,'9'!$Z$9:$Z$877)) -> 0 | L76: =SUM(IF('10'!$X$9:$X$877='شهر 9 تفصيلي'!$B76,'10'!$Z$9:$Z$877)) -> 0 | M76: =SUM(IF('10 (2)'!$X$9:$X$877='شهر 9 تفصيلي'!$B76,'10 (2)'!$Z$9:$Z$877)) -> 0 | AI76: 0 | AJ76: =IFERROR(VLOOKUP(B76,BUS!$C$4:$AEB$888,4,0),"") -> MUB
A77: 11 | B77: 4748 | C77: =SUM(IF('1'!$X$9:$X$877='شهر 9 تفصيلي'!$B77,'1'!$Z$9:$Z$877)) -> 0 | D77: =SUM(IF('2'!$X$9:$X$877='شهر 9 تفصيلي'!$B77,'2'!$Z$9:$Z$877)) -> 0 | E77: =SUM(IF('3'!$X$9:$X$877='شهر 9 تفصيلي'!$B77,'3'!$Z$9:$Z$877)) -> 0 | F77: =SUM(IF('4'!$X$9:$X$877='شهر 9 تفصيلي'!$B77,'4'!$Z$9:$Z$877)) -> 0 | G77: =SUM(IF('5'!$X$9:$X$877='شهر 9 تفصيلي'!$B77,'5'!$Z$9:$Z$877)) -> 0 | H77: =SUM(IF('6'!$X$9:$X$877='شهر 9 تفصيلي'!$B77,'6'!$Z$9:$Z$877)) -> 0 | I77: =SUM(IF('7'!$X$9:$X$877='شهر 9 تفصيلي'!$B77,'7'!$Z$9:$Z$877)) -> 0 | J77: =SUM(IF('8'!$X$9:$X$877='شهر 9 تفصيلي'!$B77,'8'!$Z$9:$Z$877)) -> 0 | K77: =SUM(IF('9'!$X$9:$X$877='شهر 9 تفصيلي'!$B77,'9'!$Z$9:$Z$877)) -> 0 | L77: =SUM(IF('10'!$X$9:$X$877='شهر 9 تفصيلي'!$B77,'10'!$Z$9:$Z$877)) -> 0 | M77: =SUM(IF('10 (2)'!$X$9:$X$877='شهر 9 تفصيلي'!$B77,'10 (2)'!$Z$9:$Z$877)) -> 0 | AI77: 0 | AJ77: =IFERROR(VLOOKUP(B77,BUS!$C$4:$AEB$888,4,0),"") -> بديل
A78: 12 | B78: 4045 | C78: =SUM(IF('1'!$X$9:$X$877='شهر 9 تفصيلي'!$B78,'1'!$Z$9:$Z$877)) -> 0 | D78: =SUM(IF('2'!$X$9:$X$877='شهر 9 تفصيلي'!$B78,'2'!$Z$9:$Z$877)) -> 0 | E78: =SUM(IF('3'!$X$9:$X$877='شهر 9 تفصيلي'!$B78,'3'!$Z$9:$Z$877)) -> 0 | F78: =SUM(IF('4'!$X$9:$X$877='شهر 9 تفصيلي'!$B78,'4'!$Z$9:$Z$877)) -> 0 | G78: =SUM(IF('5'!$X$9:$X$877='شهر 9 تفصيلي'!$B78,'5'!$Z$9:$Z$877)) -> 0 | H78: =SUM(IF('6'!$X$9:$X$877='شهر 9 تفصيلي'!$B78,'6'!$Z$9:$Z$877)) -> 0 | I78: =SUM(IF('7'!$X$9:$X$877='شهر 9 تفصيلي'!$B78,'7'!$Z$9:$Z$877)) -> 0 | J78: =SUM(IF('8'!$X$9:$X$877='شهر 9 تفصيلي'!$B78,'8'!$Z$9:$Z$877)) -> 0 | K78: =SUM(IF('9'!$X$9:$X$877='شهر 9 تفصيلي'!$B78,'9'!$Z$9:$Z$877)) -> 0 | L78: =SUM(IF('10'!$X$9:$X$877='شهر 9 تفصيلي'!$B78,'10'!$Z$9:$Z$877)) -> 0 | M78: =SUM(IF('10 (2)'!$X$9:$X$877='شهر 9 تفصيلي'!$B78,'10 (2)'!$Z$9:$Z$877)) -> 0 | AI78: 0 | AJ78: =IFERROR(VLOOKUP(B78,BUS!$C$4:$AEB$888,4,0),"") -> UDH
A79: 13 | B79: 4043 | C79: =SUM(IF('1'!$X$9:$X$877='شهر 9 تفصيلي'!$B79,'1'!$Z$9:$Z$877)) -> 0 | D79: =SUM(IF('2'!$X$9:$X$877='شهر 9 تفصيلي'!$B79,'2'!$Z$9:$Z$877)) -> 0 | E79: =SUM(IF('3'!$X$9:$X$877='شهر 9 تفصيلي'!$B79,'3'!$Z$9:$Z$877)) -> 0 | F79: =SUM(IF('4'!$X$9:$X$877='شهر 9 تفصيلي'!$B79,'4'!$Z$9:$Z$877)) -> 0 | G79: =SUM(IF('5'!$X$9:$X$877='شهر 9 تفصيلي'!$B79,'5'!$Z$9:$Z$877)) -> 0 | H79: =SUM(IF('6'!$X$9:$X$877='شهر 9 تفصيلي'!$B79,'6'!$Z$9:$Z$877)) -> 0 | I79: =SUM(IF('7'!$X$9:$X$877='شهر 9 تفصيلي'!$B79,'7'!$Z$9:$Z$877)) -> 0 | J79: =SUM(IF('8'!$X$9:$X$877='شهر 9 تفصيلي'!$B79,'8'!$Z$9:$Z$877)) -> 0 | K79: =SUM(IF('9'!$X$9:$X$877='شهر 9 تفصيلي'!$B79,'9'!$Z$9:$Z$877)) -> 0 | L79: =SUM(IF('10'!$X$9:$X$877='شهر 9 تفصيلي'!$B79,'10'!$Z$9:$Z$877)) -> 0 | M79: =SUM(IF('10 (2)'!$X$9:$X$877='شهر 9 تفصيلي'!$B79,'10 (2)'!$Z$9:$Z$877)) -> 0 | AI79: 0 | AJ79: =IFERROR(VLOOKUP(B79,BUS!$C$4:$AEB$888,4,0),"") -> UDH
A80: 14 | B80: 5814 | C80: =SUM(IF('1'!$X$9:$X$877='شهر 9 تفصيلي'!$B80,'1'!$Z$9:$Z$877)) -> 0 | D80: =SUM(IF('2'!$X$9:$X$877='شهر 9 تفصيلي'!$B80,'2'!$Z$9:$Z$877)) -> 0 | E80: =SUM(IF('3'!$X$9:$X$877='شهر 9 تفصيلي'!$B80,'3'!$Z$9:$Z$877)) -> 0 | F80: =SUM(IF('4'!$X$9:$X$877='شهر 9 تفصيلي'!$B80,'4'!$Z$9:$Z$877)) -> 0 | G80: =SUM(IF('5'!$X$9:$X$877='شهر 9 تفصيلي'!$B80,'5'!$Z$9:$Z$877)) -> 0 | H80: =SUM(IF('6'!$X$9:$X$877='شهر 9 تفصيلي'!$B80,'6'!$Z$9:$Z$877)) -> 0 | I80: =SUM(IF('7'!$X$9:$X$877='شهر 9 تفصيلي'!$B80,'7'!$Z$9:$Z$877)) -> 0 | J80: =SUM(IF('8'!$X$9:$X$877='شهر 9 تفصيلي'!$B80,'8'!$Z$9:$Z$877)) -> 0 | K80: =SUM(IF('9'!$X$9:$X$877='شهر 9 تفصيلي'!$B80,'9'!$Z$9:$Z$877)) -> 0 | L80: =SUM(IF('10'!$X$9:$X$877='شهر 9 تفصيلي'!$B80,'10'!$Z$9:$Z$877)) -> 0 | M80: =SUM(IF('10 (2)'!$X$9:$X$877='شهر 9 تفصيلي'!$B80,'10 (2)'!$Z$9:$Z$877)) -> 0 | AI80: 0 | AJ80: =IFERROR(VLOOKUP(B80,BUS!$C$4:$AEB$888,4,0),"") -> بديل
A81: 15 | B81: 9243 | C81: =SUM(IF('1'!$X$9:$X$877='شهر 9 تفصيلي'!$B81,'1'!$Z$9:$Z$877)) -> 0 | D81: =SUM(IF('2'!$X$9:$X$877='شهر 9 تفصيلي'!$B81,'2'!$Z$9:$Z$877)) -> 0 | E81: =SUM(IF('3'!$X$9:$X$877='شهر 9 تفصيلي'!$B81,'3'!$Z$9:$Z$877)) -> 0 | F81: =SUM(IF('4'!$X$9:$X$877='شهر 9 تفصيلي'!$B81,'4'!$Z$9:$Z$877)) -> 0 | G81: =SUM(IF('5'!$X$9:$X$877='شهر 9 تفصيلي'!$B81,'5'!$Z$9:$Z$877)) -> 0 | H81: =SUM(IF('6'!$X$9:$X$877='شهر 9 تفصيلي'!$B81,'6'!$Z$9:$Z$877)) -> 0 | I81: =SUM(IF('7'!$X$9:$X$877='شهر 9 تفصيلي'!$B81,'7'!$Z$9:$Z$877)) -> 0 | J81: =SUM(IF('8'!$X$9:$X$877='شهر 9 تفصيلي'!$B81,'8'!$Z$9:$Z$877)) -> 0 | K81: =SUM(IF('9'!$X$9:$X$877='شهر 9 تفصيلي'!$B81,'9'!$Z$9:$Z$877)) -> 0 | L81: =SUM(IF('10'!$X$9:$X$877='شهر 9 تفصيلي'!$B81,'10'!$Z$9:$Z$877)) -> 0 | M81: =SUM(IF('10 (2)'!$X$9:$X$877='شهر 9 تفصيلي'!$B81,'10 (2)'!$Z$9:$Z$877)) -> 0 | AI81: 0 | AJ81: =IFERROR(VLOOKUP(B81,BUS!$C$4:$AEB$888,4,0),"") -> بديل
A82: 16 | B82: 2636 | C82: =SUM(IF('1'!$X$9:$X$877='شهر 9 تفصيلي'!$B82,'1'!$Z$9:$Z$877)) -> 0 | D82: =SUM(IF('2'!$X$9:$X$877='شهر 9 تفصيلي'!$B82,'2'!$Z$9:$Z$877)) -> 0 | E82: =SUM(IF('3'!$X$9:$X$877='شهر 9 تفصيلي'!$B82,'3'!$Z$9:$Z$877)) -> 0 | F82: =SUM(IF('4'!$X$9:$X$877='شهر 9 تفصيلي'!$B82,'4'!$Z$9:$Z$877)) -> 0 | G82: =SUM(IF('5'!$X$9:$X$877='شهر 9 تفصيلي'!$B82,'5'!$Z$9:$Z$877)) -> 0 | H82: =SUM(IF('6'!$X$9:$X$877='شهر 9 تفصيلي'!$B82,'6'!$Z$9:$Z$877)) -> 0 | I82: =SUM(IF('7'!$X$9:$X$877='شهر 9 تفصيلي'!$B82,'7'!$Z$9:$Z$877)) -> 0 | J82: =SUM(IF('8'!$X$9:$X$877='شهر 9 تفصيلي'!$B82,'8'!$Z$9:$Z$877)) -> 0 | K82: =SUM(IF('9'!$X$9:$X$877='شهر 9 تفصيلي'!$B82,'9'!$Z$9:$Z$877)) -> 0 | L82: =SUM(IF('10'!$X$9:$X$877='شهر 9 تفصيلي'!$B82,'10'!$Z$9:$Z$877)) -> 0 | M82: =SUM(IF('10 (2)'!$X$9:$X$877='شهر 9 تفصيلي'!$B82,'10 (2)'!$Z$9:$Z$877)) -> 0 | AI82: 0 | AJ82: =IFERROR(VLOOKUP(B82,BUS!$C$4:$AEB$888,4,0),"") -> بديل
A83: 17 | B83: 2538 | C83: =SUM(IF('1'!$X$9:$X$877='شهر 9 تفصيلي'!$B83,'1'!$Z$9:$Z$877)) -> 0 | D83: =SUM(IF('2'!$X$9:$X$877='شهر 9 تفصيلي'!$B83,'2'!$Z$9:$Z$877)) -> 0 | E83: =SUM(IF('3'!$X$9:$X$877='شهر 9 تفصيلي'!$B83,'3'!$Z$9:$Z$877)) -> 0 | F83: =SUM(IF('4'!$X$9:$X$877='شهر 9 تفصيلي'!$B83,'4'!$Z$9:$Z$877)) -> 0 | G83: =SUM(IF('5'!$X$9:$X$877='شهر 9 تفصيلي'!$B83,'5'!$Z$9:$Z$877)) -> 0 | H83: =SUM(IF('6'!$X$9:$X$877='شهر 9 تفصيلي'!$B83,'6'!$Z$9:$Z$877)) -> 0 | I83: =SUM(IF('7'!$X$9:$X$877='شهر 9 تفصيلي'!$B83,'7'!$Z$9:$Z$877)) -> 0 | J83: =SUM(IF('8'!$X$9:$X$877='شهر 9 تفصيلي'!$B83,'8'!$Z$9:$Z$877)) -> 0 | K83: =SUM(IF('9'!$X$9:$X$877='شهر 9 تفصيلي'!$B83,'9'!$Z$9:$Z$877)) -> 0 | L83: =SUM(IF('10'!$X$9:$X$877='شهر 9 تفصيلي'!$B83,'10'!$Z$9:$Z$877)) -> 0 | M83: =SUM(IF('10 (2)'!$X$9:$X$877='شهر 9 تفصيلي'!$B83,'10 (2)'!$Z$9:$Z$877)) -> 0 | AI83: 0 | AJ83: =IFERROR(VLOOKUP(B83,BUS!$C$4:$AEB$888,4,0),"") -> بديل
A84: 18 | B84: 5953 | C84: =SUM(IF('1'!$X$9:$X$877='شهر 9 تفصيلي'!$B84,'1'!$Z$9:$Z$877)) -> 0 | D84: =SUM(IF('2'!$X$9:$X$877='شهر 9 تفصيلي'!$B84,'2'!$Z$9:$Z$877)) -> 0 | E84: =SUM(IF('3'!$X$9:$X$877='شهر 9 تفصيلي'!$B84,'3'!$Z$9:$Z$877)) -> 0 | F84: =SUM(IF('4'!$X$9:$X$877='شهر 9 تفصيلي'!$B84,'4'!$Z$9:$Z$877)) -> 0 | G84: =SUM(IF('5'!$X$9:$X$877='شهر 9 تفصيلي'!$B84,'5'!$Z$9:$Z$877)) -> 0 | H84: =SUM(IF('6'!$X$9:$X$877='شهر 9 تفصيلي'!$B84,'6'!$Z$9:$Z$877)) -> 0 | I84: =SUM(IF('7'!$X$9:$X$877='شهر 9 تفصيلي'!$B84,'7'!$Z$9:$Z$877)) -> 0 | J84: =SUM(IF('8'!$X$9:$X$877='شهر 9 تفصيلي'!$B84,'8'!$Z$9:$Z$877)) -> 0 | K84: =SUM(IF('9'!$X$9:$X$877='شهر 9 تفصيلي'!$B84,'9'!$Z$9:$Z$877)) -> 0 | L84: =SUM(IF('10'!$X$9:$X$877='شهر 9 تفصيلي'!$B84,'10'!$Z$9:$Z$877)) -> 0 | M84: =SUM(IF('10 (2)'!$X$9:$X$877='شهر 9 تفصيلي'!$B84,'10 (2)'!$Z$9:$Z$877)) -> 0 | AI84: 0 | AJ84: =IFERROR(VLOOKUP(B84,BUS!$C$4:$AEB$888,4,0),"") -> بديل
A85: 19 | B85: 1821* | C85: =SUM(IF('1'!$X$9:$X$877='شهر 9 تفصيلي'!$B85,'1'!$Z$9:$Z$877)) -> 0 | D85: =SUM(IF('2'!$X$9:$X$877='شهر 9 تفصيلي'!$B85,'2'!$Z$9:$Z$877)) -> 0 | E85: =SUM(IF('3'!$X$9:$X$877='شهر 9 تفصيلي'!$B85,'3'!$Z$9:$Z$877)) -> 0 | F85: =SUM(IF('4'!$X$9:$X$877='شهر 9 تفصيلي'!$B85,'4'!$Z$9:$Z$877)) -> 0 | G85: =SUM(IF('5'!$X$9:$X$877='شهر 9 تفصيلي'!$B85,'5'!$Z$9:$Z$877)) -> 0 | H85: =SUM(IF('6'!$X$9:$X$877='شهر 9 تفصيلي'!$B85,'6'!$Z$9:$Z$877)) -> 0 | I85: =SUM(IF('7'!$X$9:$X$877='شهر 9 تفصيلي'!$B85,'7'!$Z$9:$Z$877)) -> 0 | J85: =SUM(IF('8'!$X$9:$X$877='شهر 9 تفصيلي'!$B85,'8'!$Z$9:$Z$877)) -> 0 | K85: =SUM(IF('9'!$X$9:$X$877='شهر 9 تفصيلي'!$B85,'9'!$Z$9:$Z$877)) -> 0 | L85: =SUM(IF('10'!$X$9:$X$877='شهر 9 تفصيلي'!$B85,'10'!$Z$9:$Z$877)) -> 0 | M85: =SUM(IF('10 (2)'!$X$9:$X$877='شهر 9 تفصيلي'!$B85,'10 (2)'!$Z$9:$Z$877)) -> 0 | AI85: 0 | AJ85: =IFERROR(VLOOKUP(B85,BUS!$C$4:$AEB$888,4,0),"") -> MUB
A86: 20 | B86: 6242 | C86: =SUM(IF('1'!$X$9:$X$877='شهر 9 تفصيلي'!$B86,'1'!$Z$9:$Z$877)) -> 0 | D86: =SUM(IF('2'!$X$9:$X$877='شهر 9 تفصيلي'!$B86,'2'!$Z$9:$Z$877)) -> 0 | E86: =SUM(IF('3'!$X$9:$X$877='شهر 9 تفصيلي'!$B86,'3'!$Z$9:$Z$877)) -> 0 | F86: =SUM(IF('4'!$X$9:$X$877='شهر 9 تفصيلي'!$B86,'4'!$Z$9:$Z$877)) -> 0 | G86: =SUM(IF('5'!$X$9:$X$877='شهر 9 تفصيلي'!$B86,'5'!$Z$9:$Z$877)) -> 0 | H86: =SUM(IF('6'!$X$9:$X$877='شهر 9 تفصيلي'!$B86,'6'!$Z$9:$Z$877)) -> 0 | I86: =SUM(IF('7'!$X$9:$X$877='شهر 9 تفصيلي'!$B86,'7'!$Z$9:$Z$877)) -> 0 | J86: =SUM(IF('8'!$X$9:$X$877='شهر 9 تفصيلي'!$B86,'8'!$Z$9:$Z$877)) -> 0 | K86: =SUM(IF('9'!$X$9:$X$877='شهر 9 تفصيلي'!$B86,'9'!$Z$9:$Z$877)) -> 0 | L86: =SUM(IF('10'!$X$9:$X$877='شهر 9 تفصيلي'!$B86,'10'!$Z$9:$Z$877)) -> 0 | M86: =SUM(IF('10 (2)'!$X$9:$X$877='شهر 9 تفصيلي'!$B86,'10 (2)'!$Z$9:$Z$877)) -> 0 | AI86: 0 | AJ86: =IFERROR(VLOOKUP(B86,BUS!$C$4:$AEB$888,4,0),"") -> بديل
A87: 21 | B87: 4745 | C87: =SUM(IF('1'!$X$9:$X$877='شهر 9 تفصيلي'!$B87,'1'!$Z$9:$Z$877)) -> 0 | D87: =SUM(IF('2'!$X$9:$X$877='شهر 9 تفصيلي'!$B87,'2'!$Z$9:$Z$877)) -> 0 | E87: =SUM(IF('3'!$X$9:$X$877='شهر 9 تفصيلي'!$B87,'3'!$Z$9:$Z$877)) -> 0 | F87: =SUM(IF('4'!$X$9:$X$877='شهر 9 تفصيلي'!$B87,'4'!$Z$9:$Z$877)) -> 0 | G87: =SUM(IF('5'!$X$9:$X$877='شهر 9 تفصيلي'!$B87,'5'!$Z$9:$Z$877)) -> 0 | H87: =SUM(IF('6'!$X$9:$X$877='شهر 9 تفصيلي'!$B87,'6'!$Z$9:$Z$877)) -> 0 | I87: =SUM(IF('7'!$X$9:$X$877='شهر 9 تفصيلي'!$B87,'7'!$Z$9:$Z$877)) -> 0 | J87: =SUM(IF('8'!$X$9:$X$877='شهر 9 تفصيلي'!$B87,'8'!$Z$9:$Z$877)) -> 0 | K87: =SUM(IF('9'!$X$9:$X$877='شهر 9 تفصيلي'!$B87,'9'!$Z$9:$Z$877)) -> 0 | L87: =SUM(IF('10'!$X$9:$X$877='شهر 9 تفصيلي'!$B87,'10'!$Z$9:$Z$877)) -> 0 | M87: =SUM(IF('10 (2)'!$X$9:$X$877='شهر 9 تفصيلي'!$B87,'10 (2)'!$Z$9:$Z$877)) -> 0 | AI87: 0 | AJ87: =IFERROR(VLOOKUP(B87,BUS!$C$4:$AEB$888,4,0),"") -> بديل
A88: 22 | B88: 1045 | C88: =SUM(IF('1'!$X$9:$X$877='شهر 9 تفصيلي'!$B88,'1'!$Z$9:$Z$877)) -> 0 | D88: =SUM(IF('2'!$X$9:$X$877='شهر 9 تفصيلي'!$B88,'2'!$Z$9:$Z$877)) -> 0 | E88: =SUM(IF('3'!$X$9:$X$877='شهر 9 تفصيلي'!$B88,'3'!$Z$9:$Z$877)) -> 0 | F88: =SUM(IF('4'!$X$9:$X$877='شهر 9 تفصيلي'!$B88,'4'!$Z$9:$Z$877)) -> 0 | G88: =SUM(IF('5'!$X$9:$X$877='شهر 9 تفصيلي'!$B88,'5'!$Z$9:$Z$877)) -> 0 | H88: =SUM(IF('6'!$X$9:$X$877='شهر 9 تفصيلي'!$B88,'6'!$Z$9:$Z$877)) -> 0 | I88: =SUM(IF('7'!$X$9:$X$877='شهر 9 تفصيلي'!$B88,'7'!$Z$9:$Z$877)) -> 0 | J88: =SUM(IF('8'!$X$9:$X$877='شهر 9 تفصيلي'!$B88,'8'!$Z$9:$Z$877)) -> 0 | K88: =SUM(IF('9'!$X$9:$X$877='شهر 9 تفصيلي'!$B88,'9'!$Z$9:$Z$877)) -> 0 | L88: =SUM(IF('10'!$X$9:$X$877='شهر 9 تفصيلي'!$B88,'10'!$Z$9:$Z$877)) -> 0 | M88: =SUM(IF('10 (2)'!$X$9:$X$877='شهر 9 تفصيلي'!$B88,'10 (2)'!$Z$9:$Z$877)) -> 0 | AI88: 0 | AJ88: =IFERROR(VLOOKUP(B88,BUS!$C$4:$AEB$888,4,0),"") -> DHA
A89: 23 | B89: 4016 | C89: =SUM(IF('1'!$X$9:$X$877='شهر 9 تفصيلي'!$B89,'1'!$Z$9:$Z$877)) -> 36 | D89: =SUM(IF('2'!$X$9:$X$877='شهر 9 تفصيلي'!$B89,'2'!$Z$9:$Z$877)) -> 0 | E89: =SUM(IF('3'!$X$9:$X$877='شهر 9 تفصيلي'!$B89,'3'!$Z$9:$Z$877)) -> 0 | F89: =SUM(IF('4'!$X$9:$X$877='شهر 9 تفصيلي'!$B89,'4'!$Z$9:$Z$877)) -> 52 | G89: =SUM(IF('5'!$X$9:$X$877='شهر 9 تفصيلي'!$B89,'5'!$Z$9:$Z$877)) -> 28 | H89: =SUM(IF('6'!$X$9:$X$877='شهر 9 تفصيلي'!$B89,'6'!$Z$9:$Z$877)) -> 0 | I89: =SUM(IF('7'!$X$9:$X$877='شهر 9 تفصيلي'!$B89,'7'!$Z$9:$Z$877)) -> 61 | J89: =SUM(IF('8'!$X$9:$X$877='شهر 9 تفصيلي'!$B89,'8'!$Z$9:$Z$877)) -> 20 | K89: =SUM(IF('9'!$X$9:$X$877='شهر 9 تفصيلي'!$B89,'9'!$Z$9:$Z$877)) -> 0 | L89: =SUM(IF('10'!$X$9:$X$877='شهر 9 تفصيلي'!$B89,'10'!$Z$9:$Z$877)) -> 50 | M89: =SUM(IF('10 (2)'!$X$9:$X$877='شهر 9 تفصيلي'!$B89,'10 (2)'!$Z$9:$Z$877)) -> 0 | AI89: 247 | AJ89: =IFERROR(VLOOKUP(B89,BUS!$C$4:$AEB$888,4,0),"") -> MUB
A90: 24 | B90: 9025 | C90: =SUM(IF('1'!$X$9:$X$877='شهر 9 تفصيلي'!$B90,'1'!$Z$9:$Z$877)) -> 0 | D90: =SUM(IF('2'!$X$9:$X$877='شهر 9 تفصيلي'!$B90,'2'!$Z$9:$Z$877)) -> 0 | E90: =SUM(IF('3'!$X$9:$X$877='شهر 9 تفصيلي'!$B90,'3'!$Z$9:$Z$877)) -> 0 | F90: =SUM(IF('4'!$X$9:$X$877='شهر 9 تفصيلي'!$B90,'4'!$Z$9:$Z$877)) -> 0 | G90: =SUM(IF('5'!$X$9:$X$877='شهر 9 تفصيلي'!$B90,'5'!$Z$9:$Z$877)) -> 0 | H90: =SUM(IF('6'!$X$9:$X$877='شهر 9 تفصيلي'!$B90,'6'!$Z$9:$Z$877)) -> 0 | I90: =SUM(IF('7'!$X$9:$X$877='شهر 9 تفصيلي'!$B90,'7'!$Z$9:$Z$877)) -> 0 | J90: =SUM(IF('8'!$X$9:$X$877='شهر 9 تفصيلي'!$B90,'8'!$Z$9:$Z$877)) -> 0 | K90: =SUM(IF('9'!$X$9:$X$877='شهر 9 تفصيلي'!$B90,'9'!$Z$9:$Z$877)) -> 0 | L90: =SUM(IF('10'!$X$9:$X$877='شهر 9 تفصيلي'!$B90,'10'!$Z$9:$Z$877)) -> 0 | M90: =SUM(IF('10 (2)'!$X$9:$X$877='شهر 9 تفصيلي'!$B90,'10 (2)'!$Z$9:$Z$877)) -> 0 | AI90: 0 | AJ90: =IFERROR(VLOOKUP(B90,BUS!$C$4:$AEB$888,4,0),"") -> بديل
AI91: =SUM(AI67:AI90) -> 432
A92: Total | C92: =SUM(C67:C90) -> 36 | D92: =SUM(D67:D90) -> 67 | E92: =SUM(E67:E90) -> 0 | F92: =SUM(F67:F90) -> 52 | G92: =SUM(G67:G90) -> 74 | H92: =SUM(H67:H90) -> 41 | I92: =SUM(I67:I90) -> 61 | J92: =SUM(J67:J90) -> 20 | K92: =SUM(K67:K90) -> 31 | L92: =SUM(L67:L90) -> 50 | M92: =SUM(M67:M90) -> 0 | N92: =SUM(N67:N90) -> 0 | O92: =SUM(O67:O90) -> 0 | P92: =SUM(P67:P90) -> 0 | Q92: =SUM(Q67:Q90) -> 0 | R92: =SUM(R67:R90) -> 0 | S92: =SUM(S67:S90) -> 0 | T92: =SUM(T67:T90) -> 0 | U92: =SUM(U67:U90) -> 0 | V92: =SUM(V67:V90) -> 0 | W92: =SUM(W67:W90) -> 0 | X92: =SUM(X67:X90) -> 0 | Y92: =SUM(Y67:Y90) -> 0 | Z92: =SUM(Z67:Z90) -> 0 | AA92: =SUM(AA67:AA90) -> 0 | AB92: =SUM(AB67:AB90) -> 0 | AC92: =SUM(AC67:AC90) -> 0 | AD92: =SUM(AD67:AD90) -> 0 | AE92: =SUM(AE67:AE90) -> 0 | AF92: =SUM(AF67:AF90) -> 0 | AG92: =SUM(AG67:AG90) -> 0 | AH92: =SUM(AH67:AH90) -> 0 | AI92: =SUM(C92:AH92) -> 432

Sheet تفاصيل فواتير المراقبين
B1: أسم المراقب | C1: مبلغ الخصم بالريال
C2: 0 | D2: ديزل
B3: 0.52 | C3: 0 | D3: بنزين 95 | E3: الديزل | P3: الديزل | AA3: الديزل | AL3: الديزل | AW3: الديزل | BH3: الديزل | BS3: الديزل | CD3: الديزل | CO3: الديزل | CZ3: الديزل | DK3: الديزل | DV3: الديزل | EG3: الديزل | ER3: الديزل
B4: 2.33 | C4: 0 | D4: بنزين 91 | E4: 2021-09-01 | P4: 2021-09-02 | AA4: 2021-09-03 | AL4: 2021-09-04 | AW4: 2021-09-05 | BH4: 2021-09-06 | BS4: 2021-09-07 | CD4: 2021-09-08 | CO4: 2021-09-09 | CZ4: 2021-09-10 | DK4: 2021-09-10 | DV4: 2021-09-11 | EG4: 2021-09-12 | ER4: 2021-09-13
B5: 2.18 | N5: 0 | Y5: 0 | AJ5: 0 | AU5: 0 | BF5: 0 | BQ5: 0 | CB5: 0 | CM5: 0 | CX5: 0 | DI5: 0 | DT5: 0 | EE5: 0 | EP5: 0 | FA5: 0
E6: رقم الفاتوره ديزل | F6: BUS | G6: الكيلو D | H6: عدد اللترات | I6: الوقت | J6: المسافة المقطوعة | K6: المعدل | L6: المتوسط الحسابي لـ 3 أشهر | M6: عدد اللاترات بحكم المتوسط الحسابي لـ 3 أشهر | N6: المبلغ | P6: رقم الفاتوره ديزل | Q6: BUS | R6: الكيلو D | S6: عدد اللترات | T6: الوقت | U6: المسافة المقطوعة | V6: المعدل | W6: المتوسط الحسابي لـ 3 أشهر | X6: عدد اللاترات بحكم المتوسط الحسابي لـ 3 أشهر | Y6: المبلغ | AA6: رقم الفاتوره ديزل | AB6: BUS | AC6: الكيلو D | AD6: عدد اللترات | AE6: الوقت | AF6: المسافة المقطوعة | AG6: المعدل | AH6: المتوسط الحسابي لـ 3 أشهر | AI6: عدد اللاترات بحكم المتوسط الحسابي لـ 3 أشهر | AJ6: المبلغ | AL6: رقم الفاتوره ديزل | AM6: BUS | AN6: الكيلو D | AO6: عدد اللترات | AP6: الوقت | AQ6: المسافة المقطوعة | AR6: المعدل | AS6: المتوسط الحسابي لـ 3 أشهر | AT6: عدد اللاترات بحكم المتوسط الحسابي لـ 3 أشهر | AU6: المبلغ | AW6: رقم الفاتوره ديزل | AX6: BUS | AY6: الكيلو D | AZ6: عدد اللترات | BA6: الوقت | BB6: المسافة المقطوعة | BC6: المعدل | BD6: المتوسط الحسابي لـ 3 أشهر | BE6: عدد اللاترات بحكم المتوسط الحسابي لـ 3 أشهر | BF6: المبلغ | BH6: رقم الفاتوره ديزل | BI6: BUS | BJ6: الكيلو D | BK6: عدد اللترات | BL6: الوقت | BM6: المسافة المقطوعة | BN6: المعدل | BO6: المتوسط الحسابي لـ 3 أشهر | BP6: عدد اللاترات بحكم المتوسط الحسابي لـ 3 أشهر | BQ6: المبلغ | BS6: رقم الفاتوره ديزل | BT6: BUS | BU6: الكيلو D | BV6: عدد اللترات | BW6: الوقت | BX6: المسافة المقطوعة | BY6: المعدل | BZ6: المتوسط الحسابي لـ 3 أشهر | CA6: عدد اللاترات بحكم المتوسط الحسابي لـ 3 أشهر | CB6: المبلغ | CD6: رقم الفاتوره ديزل | CE6: BUS | CF6: الكيلو D | CG6: عدد اللترات | CH6: الوقت | CI6: المسافة المقطوعة | CJ6: المعدل | CK6: المتوسط الحسابي لـ 3 أشهر | CL6: عدد اللاترات بحكم المتوسط الحسابي لـ 3 أشهر | CM6: المبلغ | CO6: رقم الفاتوره ديزل | CP6: BUS | CQ6: الكيلو D | CR6: عدد اللترات | CS6: الوقت | CT6: المسافة المقطوعة | CU6: المعدل | CV6: المتوسط الحسابي لـ 3 أشهر | CW6: عدد اللاترات بحكم المتوسط الحسابي لـ 3 أشهر | CX6: المبلغ | CZ6: رقم الفاتوره ديزل | DA6: BUS | DB6: الكيلو D | DC6: عدد اللترات | DD6: الوقت | DE6: المسافة المقطوعة | DF6: المعدل | DG6: المتوسط الحسابي لـ 3 أشهر | DH6: عدد اللاترات بحكم المتوسط الحسابي لـ 3 أشهر | DI6: المبلغ | DK6: رقم الفاتوره ديزل | DL6: BUS | DM6: الكيلو D | DN6: عدد اللترات | DO6: الوقت | DP6: المسافة المقطوعة | DQ6: المعدل | DR6: المتوسط الحسابي لـ 3 أشهر | DS6: عدد اللاترات بحكم المتوسط الحسابي لـ 3 أشهر | DT6: المبلغ | DV6: رقم الفاتوره ديزل | DW6: BUS | DX6: الكيلو D | DY6: عدد اللترات | DZ6: الوقت | EA6: المسافة المقطوعة | EB6: المعدل | EC6: المتوسط الحسابي لـ 3 أشهر | ED6: عدد اللاترات بحكم المتوسط الحسابي لـ 3 أشهر | EE6: المبلغ | EG6: رقم الفاتوره ديزل | EH6: BUS | EI6: الكيلو D | EJ6: عدد اللترات | EK6: الوقت | EL6: المسافة المقطوعة | EM6: المعدل | EN6: المتوسط الحسابي لـ 3 أشهر | EO6: عدد اللاترات بحكم المتوسط الحسابي لـ 3 أشهر | EP6: المبلغ | ER6: رقم الفاتوره ديزل | ES6: BUS | ET6: الكيلو D | EU6: عدد اللترات | EV6: الوقت | EW6: المسافة المقطوعة | EX6: المعدل | EY6: المتوسط الحسابي لـ 3 أشهر | EZ6: عدد اللاترات بحكم المتوسط الحسابي لـ 3 أشهر | FA6: المبلغ
D7: 1 | J7: 0 | U7: 0 | AF7: 0 | AQ7: 0 | BB7: 0 | BM7: 0 | BX7: 0 | CI7: 0 | CT7: 0 | DE7: 0 | DP7: 0 | EA7: 0 | EL7: 0 | EW7: 0
D8: 2 | J8: 0 | U8: 0 | AF8: 0 | AQ8: 0 | BB8: 0 | BM8: 0 | BX8: 0 | CI8: 0 | CT8: 0 | DE8: 0 | DP8: 0 | EA8: 0 | EL8: 0 | EW8: 0
D9: 3 | J9: 0 | U9: 0 | AF9: 0 | AQ9: 0 | BB9: 0 | BM9: 0 | BX9: 0 | CI9: 0 | CT9: 0 | DE9: 0 | DP9: 0 | EA9: 0 | EL9: 0 | EW9: 0
D10: 4 | J10: 0 | U10: 0 | AF10: 0 | AQ10: 0 | BB10: 0 | BM10: 0 | BX10: 0 | CI10: 0 | CT10: 0 | DE10: 0 | DP10: 0 | EA10: 0 | EL10: 0 | EW10: 0
D11: 5 | J11: 0 | U11: 0 | AF11: 0 | AQ11: 0 | BB11: 0 | BM11: 0 | BX11: 0 | CI11: 0 | CT11: 0 | DE11: 0 | DP11: 0 | EA11: 0 | EL11: 0 | EW11: 0
D12: 6 | J12: 0 | U12: 0 | AF12: 0 | AQ12: 0 | BB12: 0 | BM12: 0 | BX12: 0 | CI12: 0 | CT12: 0 | DE12: 0 | DP12: 0 | EA12: 0 | EL12: 0 | EW12: 0
D13: 7 | J13: 0 | U13: 0 | AF13: 0 | AQ13: 0 | BB13: 0 | BM13: 0 | BX13: 0 | CI13: 0 | CT13: 0 | DE13: 0 | DP13: 0 | EA13: 0 | EL13: 0 | EW13: 0
D14: 8 | J14: 0 | U14: 0 | AF14: 0 | AQ14: 0 | BB14: 0 | BM14: 0 | BX14: 0 | CI14: 0 | CT14: 0 | DE14: 0 | DP14: 0 | EA14: 0 | EL14: 0 | EW14: 0
D15: 9 | J15: 0 | U15: 0 | AF15: 0 | AQ15: 0 | BB15: 0 | BM15: 0 | BX15: 0 | CI15: 0 | CT15: 0 | DE15: 0 | DP15: 0 | EA15: 0 | EL15: 0 | EW15: 0
D16: 10 | J16: 0 | U16: 0 | AF16: 0 | AQ16: 0 | BB16: 0 | BM16: 0 | BX16: 0 | CI16: 0 | CT16: 0 | DE16: 0 | DP16: 0 | EA16: 0 | EL16: 0 | EW16: 0
D17: 11 | J17: 0 | U17: 0 | AF17: 0 | AQ17: 0 | BB17: 0 | BM17: 0 | BX17: 0 | CI17: 0 | CT17: 0 | DE17: 0 | DP17: 0 | EA17: 0 | EL17: 0 | EW17: 0
D18: 12 | J18: 0 | U18: 0 | AF18: 0 | AQ18: 0 | BB18: 0 | BM18: 0 | BX18: 0 | CI18: 0 | CT18: 0 | DE18: 0 | DP18: 0 | EA18: 0 | EL18: 0 | EW18: 0
D19: 13 | J19: 0 | U19: 0 | AF19: 0 | AQ19: 0 | BB19: 0 | BM19: 0 | BX19: 0 | CI19: 0 | CT19: 0 | DE19: 0 | DP19: 0 | EA19: 0 | EL19: 0 | EW19: 0
D20: 14 | J20: 0 | U20: 0 | AF20: 0 | AQ20: 0 | BB20: 0 | BM20: 0 | BX20: 0 | CI20: 0 | CT20: 0 | DE20: 0 | DP20: 0 | EA20: 0 | EL20: 0 | EW20: 0
D21: 15 | J21: 0 | U21: 0 | AF21: 0 | AQ21: 0 | BB21: 0 | BM21: 0 | BX21: 0 | CI21: 0 | CT21: 0 | DE21: 0 | DP21: 0 | EA21: 0 | EL21: 0 | EW21: 0
D22: 16 | J22: 0 | U22: 0 | AF22: 0 | AQ22: 0 | BB22: 0 | BM22: 0 | BX22: 0 | CI22: 0 | CT22: 0 | DE22: 0 | DP22: 0 | EA22: 0 | EL22: 0 | EW22: 0
D23: 17 | J23: 0 | U23: 0 | AF23: 0 | AQ23: 0 | BB23: 0 | BM23: 0 | BX23: 0 | CI23: 0 | CT23: 0 | DE23: 0 | DP23: 0 | EA23: 0 | EL23: 0 | EW23: 0
D24: 18 | J24: 0 | U24: 0 | AF24: 0 | AQ24: 0 | BB24: 0 | BM24: 0 | BX24: 0 | CI24: 0 | CT24: 0 | DE24: 0 | DP24: 0 | EA24: 0 | EL24: 0 | EW24: 0
D25: 19 | J25: 0 | U25: 0 | AF25: 0 | AQ25: 0 | BB25: 0 | BM25: 0 | BX25: 0 | CI25: 0 | CT25: 0 | DE25: 0 | DP25: 0 | EA25: 0 | EL25: 0 | EW25: 0
D26: 20 | J26: 0 | U26: 0 | AF26: 0 | AQ26: 0 | BB26: 0 | BM26: 0 | BX26: 0 | CI26: 0 | CT26: 0 | DE26: 0 | DP26: 0 | EA26: 0 | EL26: 0 | EW26: 0
D27: 21 | J27: 0 | U27: 0 | AF27: 0 | AQ27: 0 | BB27: 0 | BM27: 0 | BX27: 0 | CI27: 0 | CT27: 0 | DE27: 0 | DP27: 0 | EA27: 0 | EL27: 0 | EW27: 0
D28: 22 | J28: 0 | U28: 0 | AF28: 0 | AQ28: 0 | BB28: 0 | BM28: 0 | BX28: 0 | CI28: 0 | CT28: 0 | DE28: 0 | DP28: 0 | EA28: 0 | EL28: 0 | EW28: 0
D29: 23 | J29: 0 | U29: 0 | AF29: 0 | AQ29: 0 | BB29: 0 | BM29: 0 | BX29: 0 | CI29: 0 | CT29: 0 | DE29: 0 | DP29: 0 | EA29: 0 | EL29: 0 | EW29: 0
D30: 24 | J30: 0 | U30: 0 | AF30: 0 | AQ30: 0 | BB30: 0 | BM30: 0 | BX30: 0 | CI30: 0 | CT30: 0 | DE30: 0 | DP30: 0 | EA30: 0 | EL30: 0 | EW30: 0
D31: 25 | J31: 0 | U31: 0 | AF31: 0 | AQ31: 0 | BB31: 0 | BM31: 0 | BX31: 0 | CI31: 0 | CT31: 0 | DE31: 0 | DP31: 0 | EA31: 0 | EL31: 0 | EW31: 0
D32: 26 | J32: 0 | U32: 0 | AF32: 0 | AQ32: 0 | BB32: 0 | BM32: 0 | BX32: 0 | CI32: 0 | CT32: 0 | DE32: 0 | DP32: 0 | EA32: 0 | EL32: 0 | EW32: 0
D33: 27 | J33: 0 | U33: 0 | AF33: 0 | AQ33: 0 | BB33: 0 | BM33: 0 | BX33: 0 | CI33: 0 | CT33: 0 | DE33: 0 | DP33: 0 | EA33: 0 | EL33: 0 | EW33: 0
D34: 28 | J34: 0 | U34: 0 | AF34: 0 | AQ34: 0 | BB34: 0 | BM34: 0 | BX34: 0 | CI34: 0 | CT34: 0 | DE34: 0 | DP34: 0 | EA34: 0 | EL34: 0 | EW34: 0
D35: 29 | J35: 0 | U35: 0 | AF35: 0 | AQ35: 0 | BB35: 0 | BM35: 0 | BX35: 0 | CI35: 0 | CT35: 0 | DE35: 0 | DP35: 0 | EA35: 0 | EL35: 0 | EW35: 0
D36: 30 | J36: 0 | U36: 0 | AF36: 0 | AQ36: 0 | BB36: 0 | BM36: 0 | BX36: 0 | CI36: 0 | CT36: 0 | DE36: 0 | DP36: 0 | EA36: 0 | EL36: 0 | EW36: 0
D37: 31 | J37: 0 | U37: 0 | AF37: 0 | AQ37: 0 | BB37: 0 | BM37: 0 | BX37: 0 | CI37: 0 | CT37: 0 | DE37: 0 | DP37: 0 | EA37: 0 | EL37: 0 | EW37: 0
D38: 32 | J38: 0 | U38: 0 | AF38: 0 | AQ38: 0 | BB38: 0 | BM38: 0 | BX38: 0 | CI38: 0 | CT38: 0 | DE38: 0 | DP38: 0 | EA38: 0 | EL38: 0 | EW38: 0
D39: 33 | J39: 0 | U39: 0 | AF39: 0 | AQ39: 0 | BB39: 0 | BM39: 0 | BX39: 0 | CI39: 0 | CT39: 0 | DE39: 0 | DP39: 0 | EA39: 0 | EL39: 0 | EW39: 0
D40: 34 | J40: 0 | U40: 0 | AF40: 0 | AQ40: 0 | BB40: 0 | BM40: 0 | BX40: 0 | CI40: 0 | CT40: 0 | DE40: 0 | DP40: 0 | EA40: 0 | EL40: 0 | EW40: 0
D41: 35 | J41: 0 | U41: 0 | AF41: 0 | AQ41: 0 | BB41: 0 | BM41: 0 | BX41: 0 | CI41: 0 | CT41: 0 | DE41: 0 | DP41: 0 | EA41: 0 | EL41: 0 | EW41: 0
D42: 36 | J42: 0 | U42: 0 | AF42: 0 | AQ42: 0 | BB42: 0 | BM42: 0 | BX42: 0 | CI42: 0 | CT42: 0 | DE42: 0 | DP42: 0 | EA42: 0 | EL42: 0 | EW42: 0
D43: 37 | J43: 0 | U43: 0 | AF43: 0 | AQ43: 0 | BB43: 0 | BM43: 0 | BX43: 0 | CI43: 0 | CT43: 0 | DE43: 0 | DP43: 0 | EA43: 0 | EL43: 0 | EW43: 0
D44: 38 | J44: 0 | U44: 0 | AF44: 0 | AQ44: 0 | BB44: 0 | BM44: 0 | BX44: 0 | CI44: 0 | CT44: 0 | DE44: 0 | DP44: 0 | EA44: 0 | EL44: 0 | EW44: 0
D45: 39 | J45: 0 | U45: 0 | AF45: 0 | AQ45: 0 | BB45: 0 | BM45: 0 | BX45: 0 | CI45: 0 | CT45: 0 | DE45: 0 | DP45: 0 | EA45: 0 | EL45: 0 | EW45: 0
D46: 40 | J46: 0 | U46: 0 | AF46: 0 | AQ46: 0 | BB46: 0 | BM46: 0 | BX46: 0 | CI46: 0 | CT46: 0 | DE46: 0 | DP46: 0 | EA46: 0 | EL46: 0 | EW46: 0
D47: 41 | J47: 0 | U47: 0 | AF47: 0 | AQ47: 0 | BB47: 0 | BM47: 0 | BX47: 0 | CI47: 0 | CT47: 0 | DE47: 0 | DP47: 0 | EA47: 0 | EL47: 0 | EW47: 0
D48: 42 | J48: 0 | U48: 0 | AF48: 0 | AQ48: 0 | BB48: 0 | BM48: 0 | BX48: 0 | CI48: 0 | CT48: 0 | DE48: 0 | DP48: 0 | EA48: 0 | EL48: 0 | EW48: 0
D49: 43 | J49: 0 | U49: 0 | AF49: 0 | AQ49: 0 | BB49: 0 | BM49: 0 | BX49: 0 | CI49: 0 | CT49: 0 | DE49: 0 | DP49: 0 | EA49: 0 | EL49: 0 | EW49: 0
D50: 44 | J50: 0 | U50: 0 | AF50: 0 | AQ50: 0 | BB50: 0 | BM50: 0 | BX50: 0 | CI50: 0 | CT50: 0 | DE50: 0 | DP50: 0 | EA50: 0 | EL50: 0 | EW50: 0
D51: 45 | J51: 0 | U51: 0 | AF51: 0 | AQ51: 0 | BB51: 0 | BM51: 0 | BX51: 0 | CI51: 0 | CT51: 0 | DE51: 0 | DP51: 0 | EA51: 0 | EL51: 0 | EW51: 0
D52: 46 | J52: 0 | U52: 0 | AF52: 0 | AQ52: 0 | BB52: 0 | BM52: 0 | BX52: 0 | CI52: 0 | CT52: 0 | DE52: 0 | DP52: 0 | EA52: 0 | EL52: 0 | EW52: 0
D53: 47 | J53: 0 | U53: 0 | AF53: 0 | AQ53: 0 | BB53: 0 | BM53: 0 | BX53: 0 | CI53: 0 | CT53: 0 | DE53: 0 | DP53: 0 | EA53: 0 | EL53: 0 | EW53: 0
D54: 48 | J54: 0 | U54: 0 | AF54: 0 | AQ54: 0 | BB54: 0 | BM54: 0 | BX54: 0 | CI54: 0 | CT54: 0 | DE54: 0 | DP54: 0 | EA54: 0 | EL54: 0 | EW54: 0
D55: 49 | J55: 0 | U55: 0 | AF55: 0 | AQ55: 0 | BB55: 0 | BM55: 0 | BX55: 0 | CI55: 0 | CT55: 0 | DE55: 0 | DP55: 0 | EA55: 0 | EL55: 0 | EW55: 0
D56: 50 | J56: 0 | U56: 0 | AF56: 0 | AQ56: 0 | BB56: 0 | BM56: 0 | BX56: 0 | CI56: 0 | CT56: 0 | DE56: 0 | DP56: 0 | EA56: 0 | EL56: 0 | EW56: 0
E62: بنزين 95 | P62: بنزين 95 | AA62: بنزين 95 | AL62: بنزين 95 | AW62: بنزين 95 | BH62: بنزين 95 | BS62: بنزين 95 | CD62: بنزين 95 | CO62: بنزين 95 | CZ62: بنزين 95 | DK62: بنزين 95 | DV62: بنزين 95 | EG62: بنزين 95 | ER62: بنزين 95
E63: 2021-09-01 | P63: 2021-09-02 | AA63: 2021-09-03 | AL63: 2021-09-04 | AW63: 2021-09-05 | BH63: 2021-09-06 | BS63: 2021-09-07 | CD63: 2021-09-08 | CO63: 2021-09-09 | CZ63: 2021-09-10 | DK63: 2021-09-10 | DV63: 2021-09-11 | EG63: 2021-09-12 | ER63: 2021-09-13
N64: 0 | Y64: 0 | AJ64: 0 | AU64: 0 | BF64: 0 | BQ64: 0 | CB64: 0 | CM64: 0 | CX64: 0 | DI64: 0 | DT64: 0 | EE64: 0 | EP64: 0 | FA64: 0
E65: رقم الفاتوره بنزين 95 | F65: BUS | G65: الكيلو 95 | H65: عدد اللترات | I65: الوقت | J65: المسافة المقطوعة | K65: المعدل | L65: المتوسط الحسابي لـ 3 أشهر | M65: عدد اللاترات بحكم المتوسط الحسابي لـ 3 أشهر | N65: المبلغ | P65: رقم الفاتوره بنزين 95 | Q65: BUS | R65: الكيلو 95 | S65: عدد اللترات | T65: الوقت | U65: المسافة المقطوعة | V65: المعدل | W65: المتوسط الحسابي لـ 3 أشهر | X65: عدد اللاترات بحكم المتوسط الحسابي لـ 3 أشهر | Y65: المبلغ | AA65: رقم الفاتوره بنزين 95 | AB65: BUS | AC65: الكيلو 95 | AD65: عدد اللترات | AE65: الوقت | AF65: المسافة المقطوعة | AG65: المعدل | AH65: المتوسط الحسابي لـ 3 أشهر | AI65: عدد اللاترات بحكم المتوسط الحسابي لـ 3 أشهر | AJ65: المبلغ | AL65: رقم الفاتوره بنزين 95 | AM65: BUS | AN65: الكيلو 95 | AO65: عدد اللترات | AP65: الوقت | AQ65: المسافة المقطوعة | AR65: المعدل | AS65: المتوسط الحسابي لـ 3 أشهر | AT65: عدد اللاترات بحكم المتوسط الحسابي لـ 3 أشهر | AU65: المبلغ | AW65: رقم الفاتوره بنزين 95 | AX65: BUS | AY65: الكيلو 95 | AZ65: عدد اللترات | BA65: الوقت | BB65: المسافة المقطوعة | BC65: المعدل | BD65: المتوسط الحسابي لـ 3 أشهر | BE65: عدد اللاترات بحكم المتوسط الحسابي لـ 3 أشهر | BF65: المبلغ | BH65: رقم الفاتوره بنزين 95 | BI65: BUS | BJ65: الكيلو 95 | BK65: عدد اللترات | BL65: الوقت | BM65: المسافة المقطوعة | BN65: المعدل | BO65: المتوسط الحسابي لـ 3 أشهر | BP65: عدد اللاترات بحكم المتوسط الحسابي لـ 3 أشهر | BQ65: المبلغ | BS65: رقم الفاتوره بنزين 95 | BT65: BUS | BU65: الكيلو 95 | BV65: عدد اللترات | BW65: الوقت | BX65: المسافة المقطوعة | BY65: المعدل | BZ65: المتوسط الحسابي لـ 3 أشهر | CA65: عدد اللاترات بحكم المتوسط الحسابي لـ 3 أشهر | CB65: المبلغ | CD65: رقم الفاتوره بنزين 95 | CE65: BUS | CF65: الكيلو 95 | CG65: عدد اللترات | CH65: الوقت | CI65: المسافة المقطوعة | CJ65: المعدل | CK65: المتوسط الحسابي لـ 3 أشهر | CL65: عدد اللاترات بحكم المتوسط الحسابي لـ 3 أشهر | CM65: المبلغ | CO65: رقم الفاتوره بنزين 95 | CP65: BUS | CQ65: الكيلو 95 | CR65: عدد اللترات | CS65: الوقت | CT65: المسافة المقطوعة | CU65: المعدل | CV65: المتوسط الحسابي لـ 3 أشهر | CW65: عدد اللاترات بحكم المتوسط الحسابي لـ 3 أشهر | CX65: المبلغ | CZ65: رقم الفاتوره بنزين 95 | DA65: BUS | DB65: الكيلو 95 | DC65: عدد اللترات | DD65: الوقت | DE65: المسافة المقطوعة | DF65: المعدل | DG65: المتوسط الحسابي لـ 3 أشهر | DH65: عدد اللاترات بحكم المتوسط الحسابي لـ 3 أشهر | DI65: المبلغ | DK65: رقم الفاتوره بنزين 95 | DL65: BUS | DM65: الكيلو 95 | DN65: عدد اللترات | DO65: الوقت | DP65: المسافة المقطوعة | DQ65: المعدل | DR65: المتوسط الحسابي لـ 3 أشهر | DS65: عدد اللاترات بحكم المتوسط الحسابي لـ 3 أشهر | DT65: المبلغ | DV65: رقم الفاتوره بنزين 95 | DW65: BUS | DX65: الكيلو 95 | DY65: عدد اللترات | DZ65: الوقت | EA65: المسافة المقطوعة | EB65: المعدل | EC65: المتوسط الحسابي لـ 3 أشهر | ED65: عدد اللاترات بحكم المتوسط الحسابي لـ 3 أشهر | EE65: المبلغ | EG65: رقم الفاتوره بنزين 95 | EH65: BUS | EI65: الكيلو 95 | EJ65: عدد اللترات | EK65: الوقت | EL65: المسافة المقطوعة | EM65: المعدل | EN65: المتوسط الحسابي لـ 3 أشهر | EO65: عدد اللاترات بحكم المتوسط الحسابي لـ 3 أشهر | EP65: المبلغ | ER65: رقم الفاتوره بنزين 95 | ES65: BUS | ET65: الكيلو 95 | EU65: عدد اللترات | EV65: الوقت | EW65: المسافة المقطوعة | EX65: المعدل | EY65: المتوسط الحسابي لـ 3 أشهر | EZ65: عدد اللاترات بحكم المتوسط الحسابي لـ 3 أشهر | FA65: المبلغ
D66: 1 | J66: 0 | U66: 0 | AF66: 0 | AQ66: 0 | BB66: 0 | BM66: 0 | BX66: 0 | CI66: 0 | CT66: 0 | DE66: 0 | DP66: 0 | EA66: 0 | EL66: 0 | EW66: 0
D67: 2 | J67: 0 | U67: 0 | AF67: 0 | AQ67: 0 | BB67: 0 | BM67: 0 | BX67: 0 | CI67: 0 | CT67: 0 | DE67: 0 | DP67: 0 | EA67: 0 | EL67: 0 | EW67: 0
D68: 3 | J68: 0 | U68: 0 | AF68: 0 | AQ68: 0 | BB68: 0 | BM68: 0 | BX68: 0 | CI68: 0 | CT68: 0 | DE68: 0 | DP68: 0 | EA68: 0 | EL68: 0 | EW68: 0
D69: 4 | J69: 0 | U69: 0 | AF69: 0 | AQ69: 0 | BB69: 0 | BM69: 0 | BX69: 0 | CI69: 0 | CT69: 0 | DE69: 0 | DP69: 0 | EA69: 0 | EL69: 0 | EW69: 0
D70: 5 | J70: 0 | U70: 0 | AF70: 0 | AQ70: 0 | BB70: 0 | BM70: 0 | BX70: 0 | CI70: 0 | CT70: 0 | DE70: 0 | DP70: 0 | EA70: 0 | EL70: 0 | EW70: 0
D71: 6 | J71: 0 | U71: 0 | AF71: 0 | AQ71: 0 | BB71: 0 | BM71: 0 | BX71: 0 | CI71: 0 | CT71: 0 | DE71: 0 | DP71: 0 | EA71: 0 | EL71: 0 | EW71: 0
D72: 7 | J72: 0 | U72: 0 | AF72: 0 | AQ72: 0 | BB72: 0 | BM72: 0 | BX72: 0 | CI72: 0 | CT72: 0 | DE72: 0 | DP72: 0 | EA72: 0 | EL72: 0 | EW72: 0
D73: 8 | J73: 0 | U73: 0 | AF73: 0 | AQ73: 0 | BB73: 0 | BM73: 0 | BX73: 0 | CI73: 0 | CT73: 0 | DE73: 0 | DP73: 0 | EA73: 0 | EL73: 0 | EW73: 0
D74: 9 | J74: 0 | U74: 0 | AF74: 0 | AQ74: 0 | BB74: 0 | BM74: 0 | BX74: 0 | CI74: 0 | CT74: 0 | DE74: 0 | DP74: 0 | EA74: 0 | EL74: 0 | EW74: 0
D75: 10 | J75: 0 | U75: 0 | AF75: 0 | AQ75: 0 | BB75: 0 | BM75: 0 | BX75: 0 | CI75: 0 | CT75: 0 | DE75: 0 | DP75: 0 | EA75: 0 | EL75: 0 | EW75: 0
D76: 11 | J76: 0 | U76: 0 | AF76: 0 | AQ76: 0 | BB76: 0 | BM76: 0 | BX76: 0 | CI76: 0 | CT76: 0 | DE76: 0 | DP76: 0 | EA76: 0 | EL76: 0 | EW76: 0
D77: 12 | J77: 0 | U77: 0 | AF77: 0 | AQ77: 0 | BB77: 0 | BM77: 0 | BX77: 0 | CI77: 0 | CT77: 0 | DE77: 0 | DP77: 0 | EA77: 0 | EL77: 0 | EW77: 0
D78: 13 | J78: 0 | U78: 0 | AF78: 0 | AQ78: 0 | BB78: 0 | BM78: 0 | BX78: 0 | CI78: 0 | CT78: 0 | DE78: 0 | DP78: 0 | EA78: 0 | EL78: 0 | EW78: 0
D79: 14 | J79: 0 | U79: 0 | AF79: 0 | AQ79: 0 | BB79: 0 | BM79: 0 | BX79: 0 | CI79: 0 | CT79: 0 | DE79: 0 | DP79: 0 | EA79: 0 | EL79: 0 | EW79: 0
D80: 15 | J80: 0 | U80: 0 | AF80: 0 | AQ80: 0 | BB80: 0 | BM80: 0 | BX80: 0 | CI80: 0 | CT80: 0 | DE80: 0 | DP80: 0 | EA80: 0 | EL80: 0 | EW80: 0
D81: 16 | J81: 0 | U81: 0 | AF81: 0 | AQ81: 0 | BB81: 0 | BM81: 0 | BX81: 0 | CI81: 0 | CT81: 0 | DE81: 0 | DP81: 0 | EA81: 0 | EL81: 0 | EW81: 0
D82: 17 | J82: 0 | U82: 0 | AF82: 0 | AQ82: 0 | BB82: 0 | BM82: 0 | BX82: 0 | CI82: 0 | CT82: 0 | DE82: 0 | DP82: 0 | EA82: 0 | EL82: 0 | EW82: 0
D83: 18 | J83: 0 | U83: 0 | AF83: 0 | AQ83: 0 | BB83: 0 | BM83: 0 | BX83: 0 | CI83: 0 | CT83: 0 | DE83: 0 | DP83: 0 | EA83: 0 | EL83: 0 | EW83: 0
D84: 19 | J84: 0 | U84: 0 | AF84: 0 | AQ84: 0 | BB84: 0 | BM84: 0 | BX84: 0 | CI84: 0 | CT84: 0 | DE84: 0 | DP84: 0 | EA84: 0 | EL84: 0 | EW84: 0
D85: 20 | J85: 0 | U85: 0 | AF85: 0 | AQ85: 0 | BB85: 0 | BM85: 0 | BX85: 0 | CI85: 0 | CT85: 0 | DE85: 0 | DP85: 0 | EA85: 0 | EL85: 0 | EW85: 0
D86: 21 | J86: 0 | U86: 0 | AF86: 0 | AQ86: 0 | BB86: 0 | BM86: 0 | BX86: 0 | CI86: 0 | CT86: 0 | DE86: 0 | DP86: 0 | EA86: 0 | EL86: 0 | EW86: 0
D87: 22 | J87: 0 | U87: 0 | AF87: 0 | AQ87: 0 | BB87: 0 | BM87: 0 | BX87: 0 | CI87: 0 | CT87: 0 | DE87: 0 | DP87: 0 | EA87: 0 | EL87: 0 | EW87: 0
D88: 23 | J88: 0 | U88: 0 | AF88: 0 | AQ88: 0 | BB88: 0 | BM88: 0 | BX88: 0 | CI88: 0 | CT88: 0 | DE88: 0 | DP88: 0 | EA88: 0 | EL88: 0 | EW88: 0
D89: 24 | J89: 0 | U89: 0 | AF89: 0 | AQ89: 0 | BB89: 0 | BM89: 0 | BX89: 0 | CI89: 0 | CT89: 0 | DE89: 0 | DP89: 0 | EA89: 0 | EL89: 0 | EW89: 0
D90: 25 | J90: 0 | U90: 0 | AF90: 0 | AQ90: 0 | BB90: 0 | BM90: 0 | BX90: 0 | CI90: 0 | CT90: 0 | DE90: 0 | DP90: 0 | EA90: 0 | EL90: 0 | EW90: 0
D91: 26 | J91: 0 | U91: 0 | AF91: 0 | AQ91: 0 | BB91: 0 | BM91: 0 | BX91: 0 | CI91: 0 | CT91: 0 | DE91: 0 | DP91: 0 | EA91: 0 | EL91: 0 | EW91: 0
D92: 27 | J92: 0 | U92: 0 | AF92: 0 | AQ92: 0 | BB92: 0 | BM92: 0 | BX92: 0 | CI92: 0 | CT92: 0 | DE92: 0 | DP92: 0 | EA92: 0 | EL92: 0 | EW92: 0
D93: 28 | J93: 0 | U93: 0 | AF93: 0 | AQ93: 0 | BB93: 0 | BM93: 0 | BX93: 0 | CI93: 0 | CT93: 0 | DE93: 0 | DP93: 0 | EA93: 0 | EL93: 0 | EW93: 0
D94: 29 | J94: 0 | U94: 0 | AF94: 0 | AQ94: 0 | BB94: 0 | BM94: 0 | BX94: 0 | CI94: 0 | CT94: 0 | DE94: 0 | DP94: 0 | EA94: 0 | EL94: 0 | EW94: 0
D95: 30 | J95: 0 | U95: 0 | AF95: 0 | AQ95: 0 | BB95: 0 | BM95: 0 | BX95: 0 | CI95: 0 | CT95: 0 | DE95: 0 | DP95: 0 | EA95: 0 | EL95: 0 | EW95: 0
D96: 31 | J96: 0 | U96: 0 | AF96: 0 | AQ96: 0 | BB96: 0 | BM96: 0 | BX96: 0 | CI96: 0 | CT96: 0 | DE96: 0 | DP96: 0 | EA96: 0 | EL96: 0 | EW96: 0
D97: 32 | J97: 0 | U97: 0 | AF97: 0 | AQ97: 0 | BB97: 0 | BM97: 0 | BX97: 0 | CI97: 0 | CT97: 0 | DE97: 0 | DP97: 0 | EA97: 0 | EL97: 0 | EW97: 0
D98: 33 | J98: 0 | U98: 0 | AF98: 0 | AQ98: 0 | BB98: 0 | BM98: 0 | BX98: 0 | CI98: 0 | CT98: 0 | DE98: 0 | DP98: 0 | EA98: 0 | EL98: 0 | EW98: 0
D99: 34 | J99: 0 | U99: 0 | AF99: 0 | AQ99: 0 | BB99: 0 | BM99: 0 | BX99: 0 | CI99: 0 | CT99: 0 | DE99: 0 | DP99: 0 | EA99: 0 | EL99: 0 | EW99: 0
D100: 35 | J100: 0 | U100: 0 | AF100: 0 | AQ100: 0 | BB100: 0 | BM100: 0 | BX100: 0 | CI100: 0 | CT100: 0 | DE100: 0 | DP100: 0 | EA100: 0 | EL100: 0 | EW100: 0
D101: 36 | J101: 0 | U101: 0 | AF101: 0 | AQ101: 0 | BB101: 0 | BM101: 0 | BX101: 0 | CI101: 0 | CT101: 0 | DE101: 0 | DP101: 0 | EA101: 0 | EL101: 0 | EW101: 0
D102: 37 | J102: 0 | U102: 0 | AF102: 0 | AQ102: 0 | BB102: 0 | BM102: 0 | BX102: 0 | CI102: 0 | CT102: 0 | DE102: 0 | DP102: 0 | EA102: 0 | EL102: 0 | EW102: 0
D103: 38 | J103: 0 | U103: 0 | AF103: 0 | AQ103: 0 | BB103: 0 | BM103: 0 | BX103: 0 | CI103: 0 | CT103: 0 | DE103: 0 | DP103: 0 | EA103: 0 | EL103: 0 | EW103: 0
D104: 39 | J104: 0 | U104: 0 | AF104: 0 | AQ104: 0 | BB104: 0 | BM104: 0 | BX104: 0 | CI104: 0 | CT104: 0 | DE104: 0 | DP104: 0 | EA104: 0 | EL104: 0 | EW104: 0
D105: 40 | J105: 0 | U105: 0 | AF105: 0 | AQ105: 0 | BB105: 0 | BM105: 0 | BX105: 0 | CI105: 0 | CT105: 0 | DE105: 0 | DP105: 0 | EA105: 0 | EL105: 0 | EW105: 0
D106: 41 | J106: 0 | U106: 0 | AF106: 0 | AQ106: 0 | BB106: 0 | BM106: 0 | BX106: 0 | CI106: 0 | CT106: 0 | DE106: 0 | DP106: 0 | EA106: 0 | EL106: 0 | EW106: 0
D107: 42 | J107: 0 | U107: 0 | AF107: 0 | AQ107: 0 | BB107: 0 | BM107: 0 | BX107: 0 | CI107: 0 | CT107: 0 | DE107: 0 | DP107: 0 | EA107: 0 | EL107: 0 | EW107: 0
D108: 43 | J108: 0 | U108: 0 | AF108: 0 | AQ108: 0 | BB108: 0 | BM108: 0 | BX108: 0 | CI108: 0 | CT108: 0 | DE108: 0 | DP108: 0 | EA108: 0 | EL108: 0 | EW108: 0
D109: 44 | J109: 0 | U109: 0 | AF109: 0 | AQ109: 0 | BB109: 0 | BM109: 0 | BX109: 0 | CI109: 0 | CT109: 0 | DE109: 0 | DP109: 0 | EA109: 0 | EL109: 0 | EW109: 0
D110: 45 | J110: 0 | U110: 0 | AF110: 0 | AQ110: 0 | BB110: 0 | BM110: 0 | BX110: 0 | CI110: 0 | CT110: 0 | DE110: 0 | DP110: 0 | EA110: 0 | EL110: 0 | EW110: 0
D111: 46 | J111: 0 | U111: 0 | AF111: 0 | AQ111: 0 | BB111: 0 | BM111: 0 | BX111: 0 | CI111: 0 | CT111: 0 | DE111: 0 | DP111: 0 | EA111: 0 | EL111: 0 | EW111: 0
D112: 47 | J112: 0 | U112: 0 | AF112: 0 | AQ112: 0 | BB112: 0 | BM112: 0 | BX112: 0 | CI112: 0 | CT112: 0 | DE112: 0 | DP112: 0 | EA112: 0 | EL112: 0 | EW112: 0
D113: 48 | J113: 0 | U113: 0 | AF113: 0 | AQ113: 0 | BB113: 0 | BM113: 0 | BX113: 0 | CI113: 0 | CT113: 0 | DE113: 0 | DP113: 0 | EA113: 0 | EL113: 0 | EW113: 0
D114: 49 | J114: 0 | U114: 0 | AF114: 0 | AQ114: 0 | BB114: 0 | BM114: 0 | BX114: 0 | CI114: 0 | CT114: 0 | DE114: 0 | DP114: 0 | EA114: 0 | EL114: 0 | EW114: 0
D115: 50 | J115: 0 | U115: 0 | AF115: 0 | AQ115: 0 | BB115: 0 | BM115: 0 | BX115: 0 | CI115: 0 | CT115: 0 | DE115: 0 | DP115: 0 | EA115: 0 | EL115: 0 | EW115: 0
E121: بنزين 91 | P121: بنزين 91 | AA121: بنزين 91 | AL121: بنزين 91 | AW121: بنزين 91 | BH121: بنزين 91 | BS121: بنزين 91 | CD121: بنزين 91 | CO121: بنزين 91 | CZ121: بنزين 91 | DK121: بنزين 91 | DV121: بنزين 91 | EG121: بنزين 91 | ER121: بنزين 91
E122: 2021-09-01 | P122: 2021-09-02 | AA122: 2021-09-03 | AL122: 2021-09-04 | AW122: 2021-09-05 | BH122: 2021-09-06 | BS122: 2021-09-07 | CD122: 2021-09-08 | CO122: 2021-09-09 | CZ122: 2021-09-10 | DK122: 2021-09-10 | DV122: 2021-09-11 | EG122: 2021-09-12 | ER122: 2021-09-13
N123: 0 | Y123: 0 | AJ123: 0 | AU123: 0 | BF123: 0 | BQ123: 0 | CB123: 0 | CM123: 0 | CX123: 0 | DI123: 0 | DT123: 0 | EE123: 0 | EP123: 0 | FA123: 0
E124: رقم الفاتوره بنزين 91 | F124: BUS | G124: الكيلو 95 | H124: عدد اللترات | I124: الوقت | J124: المسافة المقطوعة | K124: المعدل | L124: المتوسط الحسابي لـ 3 أشهر | M124: عدد اللاترات بحكم المتوسط الحسابي لـ 3 أشهر | N124: المبلغ | P124: رقم الفاتوره بنزين 91 | Q124: BUS | R124: الكيلو 95 | S124: عدد اللترات | T124: الوقت | U124: المسافة المقطوعة | V124: المعدل | W124: المتوسط الحسابي لـ 3 أشهر | X124: عدد اللاترات بحكم المتوسط الحسابي لـ 3 أشهر | Y124: المبلغ | AA124: رقم الفاتوره بنزين 91 | AB124: BUS | AC124: الكيلو 95 | AD124: عدد اللترات | AE124: الوقت | AF124: المسافة المقطوعة | AG124: المعدل | AH124: المتوسط الحسابي لـ 3 أشهر | AI124: عدد اللاترات بحكم المتوسط الحسابي لـ 3 أشهر | AJ124: المبلغ | AL124: رقم الفاتوره بنزين 91 | AM124: BUS | AN124: الكيلو 95 | AO124: عدد اللترات | AP124: الوقت | AQ124: المسافة المقطوعة | AR124: المعدل | AS124: المتوسط الحسابي لـ 3 أشهر | AT124: عدد اللاترات بحكم المتوسط الحسابي لـ 3 أشهر | AU124: المبلغ | AW124: رقم الفاتوره بنزين 91 | AX124: BUS | AY124: الكيلو 95 | AZ124: عدد اللترات | BA124: الوقت | BB124: المسافة المقطوعة | BC124: المعدل | BD124: المتوسط الحسابي لـ 3 أشهر | BE124: عدد اللاترات بحكم المتوسط الحسابي لـ 3 أشهر | BF124: المبلغ | BH124: رقم الفاتوره بنزين 91 | BI124: BUS | BJ124: الكيلو 95 | BK124: عدد اللترات | BL124: الوقت | BM124: المسافة المقطوعة | BN124: المعدل | BO124: المتوسط الحسابي لـ 3 أشهر | BP124: عدد اللاترات بحكم المتوسط الحسابي لـ 3 أشهر | BQ124: المبلغ | BS124: رقم الفاتوره بنزين 91 | BT124: BUS | BU124: الكيلو 95 | BV124: عدد اللترات | BW124: الوقت | BX124: المسافة المقطوعة | BY124: المعدل | BZ124: المتوسط الحسابي لـ 3 أشهر | CA124: عدد اللاترات بحكم المتوسط الحسابي لـ 3 أشهر | CB124: المبلغ | CD124: رقم الفاتوره بنزين 91 | CE124: BUS | CF124: الكيلو 95 | CG124: عدد اللترات | CH124: الوقت | CI124: المسافة المقطوعة | CJ124: المعدل | CK124: المتوسط الحسابي لـ 3 أشهر | CL124: عدد اللاترات بحكم المتوسط الحسابي لـ 3 أشهر | CM124: المبلغ | CO124: رقم الفاتوره بنزين 91 | CP124: BUS | CQ124: الكيلو 95 | CR124: عدد اللترات | CS124: الوقت | CT124: المسافة المقطوعة | CU124: المعدل | CV124: المتوسط الحسابي لـ 3 أشهر | CW124: عدد اللاترات بحكم المتوسط الحسابي لـ 3 أشهر | CX124: المبلغ | CZ124: رقم الفاتوره بنزين 91 | DA124: BUS | DB124: الكيلو 95 | DC124: عدد اللترات | DD124: الوقت | DE124: المسافة المقطوعة | DF124: المعدل | DG124: المتوسط الحسابي لـ 3 أشهر | DH124: عدد اللاترات بحكم المتوسط الحسابي لـ 3 أشهر | DI124: المبلغ | DK124: رقم الفاتوره بنزين 91 | DL124: BUS | DM124: الكيلو 95 | DN124: عدد اللترات | DO124: الوقت | DP124: المسافة المقطوعة | DQ124: المعدل | DR124: المتوسط الحسابي لـ 3 أشهر | DS124: عدد اللاترات بحكم المتوسط الحسابي لـ 3 أشهر | DT124: المبلغ | DV124: رقم الفاتوره بنزين 91 | DW124: BUS | DX124: الكيلو 95 | DY124: عدد اللترات | DZ124: الوقت | EA124: المسافة المقطوعة | EB124: المعدل | EC124: المتوسط الحسابي لـ 3 أشهر | ED124: عدد اللاترات بحكم المتوسط الحسابي لـ 3 أشهر | EE124: المبلغ | EG124: رقم الفاتوره بنزين 91 | EH124: BUS | EI124: الكيلو 95 | EJ124: عدد اللترات | EK124: الوقت | EL124: المسافة المقطوعة | EM124: المعدل | EN124: المتوسط الحسابي لـ 3 أشهر | EO124: عدد اللاترات بحكم المتوسط الحسابي لـ 3 أشهر | EP124: المبلغ | ER124: رقم الفاتوره بنزين 91 | ES124: BUS | ET124: الكيلو 95 | EU124: عدد اللترات | EV124: الوقت | EW124: المسافة المقطوعة | EX124: المعدل | EY124: المتوسط الحسابي لـ 3 أشهر | EZ124: عدد اللاترات بحكم المتوسط الحسابي لـ 3 أشهر | FA124: المبلغ
D125: 1 | J125: 0 | U125: 0 | AF125: 0 | AQ125: 0 | BB125: 0 | BM125: 0 | BX125: 0 | CI125: 0 | CT125: 0 | DE125: 0 | DP125: 0 | EA125: 0 | EL125: 0 | EW125: 0
D126: 2 | J126: 0 | U126: 0 | AF126: 0 | AQ126: 0 | BB126: 0 | BM126: 0 | BX126: 0 | CI126: 0 | CT126: 0 | DE126: 0 | DP126: 0 | EA126: 0 | EL126: 0 | EW126: 0
D127: 3 | J127: 0 | U127: 0 | AF127: 0 | AQ127: 0 | BB127: 0 | BM127: 0 | BX127: 0 | CI127: 0 | CT127: 0 | DE127: 0 | DP127: 0 | EA127: 0 | EL127: 0 | EW127: 0
D128: 4 | J128: 0 | U128: 0 | AF128: 0 | AQ128: 0 | BB128: 0 | BM128: 0 | BX128: 0 | CI128: 0 | CT128: 0 | DE128: 0 | DP128: 0 | EA128: 0 | EL128: 0 | EW128: 0
D129: 5 | J129: 0 | U129: 0 | AF129: 0 | AQ129: 0 | BB129: 0 | BM129: 0 | BX129: 0 | CI129: 0 | CT129: 0 | DE129: 0 | DP129: 0 | EA129: 0 | EL129: 0 | EW129: 0
D130: 6 | J130: 0 | U130: 0 | AF130: 0 | AQ130: 0 | BB130: 0 | BM130: 0 | BX130: 0 | CI130: 0 | CT130: 0 | DE130: 0 | DP130: 0 | EA130: 0 | EL130: 0 | EW130: 0
D131: 7 | J131: 0 | U131: 0 | AF131: 0 | AQ131: 0 | BB131: 0 | BM131: 0 | BX131: 0 | CI131: 0 | CT131: 0 | DE131: 0 | DP131: 0 | EA131: 0 | EL131: 0 | EW131: 0
D132: 8 | J132: 0 | U132: 0 | AF132: 0 | AQ132: 0 | BB132: 0 | BM132: 0 | BX132: 0 | CI132: 0 | CT132: 0 | DE132: 0 | DP132: 0 | EA132: 0 | EL132: 0 | EW132: 0
D133: 9 | J133: 0 | U133: 0 | AF133: 0 | AQ133: 0 | BB133: 0 | BM133: 0 | BX133: 0 | CI133: 0 | CT133: 0 | DE133: 0 | DP133: 0 | EA133: 0 | EL133: 0 | EW133: 0
D134: 10 | J134: 0 | U134: 0 | AF134: 0 | AQ134: 0 | BB134: 0 | BM134: 0 | BX134: 0 | CI134: 0 | CT134: 0 | DE134: 0 | DP134: 0 | EA134: 0 | EL134: 0 | EW134: 0
D135: 11 | J135: 0 | U135: 0 | AF135: 0 | AQ135: 0 | BB135: 0 | BM135: 0 | BX135: 0 | CI135: 0 | CT135: 0 | DE135: 0 | DP135: 0 | EA135: 0 | EL135: 0 | EW135: 0
D136: 12 | J136: 0 | U136: 0 | AF136: 0 | AQ136: 0 | BB136: 0 | BM136: 0 | BX136: 0 | CI136: 0 | CT136: 0 | DE136: 0 | DP136: 0 | EA136: 0 | EL136: 0 | EW136: 0
D137: 13 | J137: 0 | U137: 0 | AF137: 0 | AQ137: 0 | BB137: 0 | BM137: 0 | BX137: 0 | CI137: 0 | CT137: 0 | DE137: 0 | DP137: 0 | EA137: 0 | EL137: 0 | EW137: 0
D138: 14 | J138: 0 | U138: 0 | AF138: 0 | AQ138: 0 | BB138: 0 | BM138: 0 | BX138: 0 | CI138: 0 | CT138: 0 | DE138: 0 | DP138: 0 | EA138: 0 | EL138: 0 | EW138: 0
D139: 15 | J139: 0 | U139: 0 | AF139: 0 | AQ139: 0 | BB139: 0 | BM139: 0 | BX139: 0 | CI139: 0 | CT139: 0 | DE139: 0 | DP139: 0 | EA139: 0 | EL139: 0 | EW139: 0
D140: 16 | J140: 0 | U140: 0 | AF140: 0 | AQ140: 0 | BB140: 0 | BM140: 0 | BX140: 0 | CI140: 0 | CT140: 0 | DE140: 0 | DP140: 0 | EA140: 0 | EL140: 0 | EW140: 0
D141: 17 | J141: 0 | U141: 0 | AF141: 0 | AQ141: 0 | BB141: 0 | BM141: 0 | BX141: 0 | CI141: 0 | CT141: 0 | DE141: 0 | DP141: 0 | EA141: 0 | EL141: 0 | EW141: 0
D142: 18 | J142: 0 | U142: 0 | AF142: 0 | AQ142: 0 | BB142: 0 | BM142: 0 | BX142: 0 | CI142: 0 | CT142: 0 | DE142: 0 | DP142: 0 | EA142: 0 | EL142: 0 | EW142: 0
D143: 19 | J143: 0 | U143: 0 | AF143: 0 | AQ143: 0 | BB143: 0 | BM143: 0 | BX143: 0 | CI143: 0 | CT143: 0 | DE143: 0 | DP143: 0 | EA143: 0 | EL143: 0 | EW143: 0
D144: 20 | J144: 0 | U144: 0 | AF144: 0 | AQ144: 0 | BB144: 0 | BM144: 0 | BX144: 0 | CI144: 0 | CT144: 0 | DE144: 0 | DP144: 0 | EA144: 0 | EL144: 0 | EW144: 0
D145: 21 | J145: 0 | U145: 0 | AF145: 0 | AQ145: 0 | BB145: 0 | BM145: 0 | BX145: 0 | CI145: 0 | CT145: 0 | DE145: 0 | DP145: 0 | EA145: 0 | EL145: 0 | EW145: 0
D146: 22 | J146: 0 | U146: 0 | AF146: 0 | AQ146: 0 | BB146: 0 | BM146: 0 | BX146: 0 | CI146: 0 | CT146: 0 | DE146: 0 | DP146: 0 | EA146: 0 | EL146: 0 | EW146: 0
D147: 23 | J147: 0 | U147: 0 | AF147: 0 | AQ147: 0 | BB147: 0 | BM147: 0 | BX147: 0 | CI147: 0 | CT147: 0 | DE147: 0 | DP147: 0 | EA147: 0 | EL147: 0 | EW147: 0
D148: 24 | J148: 0 | U148: 0 | AF148: 0 | AQ148: 0 | BB148: 0 | BM148: 0 | BX148: 0 | CI148: 0 | CT148: 0 | DE148: 0 | DP148: 0 | EA148: 0 | EL148: 0 | EW148: 0
D149: 25 | J149: 0 | U149: 0 | AF149: 0 | AQ149: 0 | BB149: 0 | BM149: 0 | BX149: 0 | CI149: 0 | CT149: 0 | DE149: 0 | DP149: 0 | EA149: 0 | EL149: 0 | EW149: 0
D150: 26 | J150: 0 | U150: 0 | AF150: 0 | AQ150: 0 | BB150: 0 | BM150: 0 | BX150: 0 | CI150: 0 | CT150: 0 | DE150: 0 | DP150: 0 | EA150: 0 | EL150: 0 | EW150: 0
D151: 27 | J151: 0 | U151: 0 | AF151: 0 | AQ151: 0 | BB151: 0 | BM151: 0 | BX151: 0 | CI151: 0 | CT151: 0 | DE151: 0 | DP151: 0 | EA151: 0 | EL151: 0 | EW151: 0
D152: 28 | J152: 0 | U152: 0 | AF152: 0 | AQ152: 0 | BB152: 0 | BM152: 0 | BX152: 0 | CI152: 0 | CT152: 0 | DE152: 0 | DP152: 0 | EA152: 0 | EL152: 0 | EW152: 0
D153: 29 | J153: 0 | U153: 0 | AF153: 0 | AQ153: 0 | BB153: 0 | BM153: 0 | BX153: 0 | CI153: 0 | CT153: 0 | DE153: 0 | DP153: 0 | EA153: 0 | EL153: 0 | EW153: 0
D154: 30 | J154: 0 | U154: 0 | AF154: 0 | AQ154: 0 | BB154: 0 | BM154: 0 | BX154: 0 | CI154: 0 | CT154: 0 | DE154: 0 | DP154: 0 | EA154: 0 | EL154: 0 | EW154: 0
D155: 31 | J155: 0 | U155: 0 | AF155: 0 | AQ155: 0 | BB155: 0 | BM155: 0 | BX155: 0 | CI155: 0 | CT155: 0 | DE155: 0 | DP155: 0 | EA155: 0 | EL155: 0 | EW155: 0
D156: 32 | J156: 0 | U156: 0 | AF156: 0 | AQ156: 0 | BB156: 0 | BM156: 0 | BX156: 0 | CI156: 0 | CT156: 0 | DE156: 0 | DP156: 0 | EA156: 0 | EL156: 0 | EW156: 0
D157: 33 | J157: 0 | U157: 0 | AF157: 0 | AQ157: 0 | BB157: 0 | BM157: 0 | BX157: 0 | CI157: 0 | CT157: 0 | DE157: 0 | DP157: 0 | EA157: 0 | EL157: 0 | EW157: 0
D158: 34 | J158: 0 | U158: 0 | AF158: 0 | AQ158: 0 | BB158: 0 | BM158: 0 | BX158: 0 | CI158: 0 | CT158: 0 | DE158: 0 | DP158: 0 | EA158: 0 | EL158: 0 | EW158: 0
D159: 35 | J159: 0 | U159: 0 | AF159: 0 | AQ159: 0 | BB159: 0 | BM159: 0 | BX159: 0 | CI159: 0 | CT159: 0 | DE159: 0 | DP159: 0 | EA159: 0 | EL159: 0 | EW159: 0
D160: 36 | J160: 0 | U160: 0 | AF160: 0 | AQ160: 0 | BB160: 0 | BM160: 0 | BX160: 0 | CI160: 0 | CT160: 0 | DE160: 0 | DP160: 0 | EA160: 0 | EL160: 0 | EW160: 0
D161: 37 | J161: 0 | U161: 0 | AF161: 0 | AQ161: 0 | BB161: 0 | BM161: 0 | BX161: 0 | CI161: 0 | CT161: 0 | DE161: 0 | DP161: 0 | EA161: 0 | EL161: 0 | EW161: 0
D162: 38 | J162: 0 | U162: 0 | AF162: 0 | AQ162: 0 | BB162: 0 | BM162: 0 | BX162: 0 | CI162: 0 | CT162: 0 | DE162: 0 | DP162: 0 | EA162: 0 | EL162: 0 | EW162: 0
D163: 39 | J163: 0 | U163: 0 | AF163: 0 | AQ163: 0 | BB163: 0 | BM163: 0 | BX163: 0 | CI163: 0 | CT163: 0 | DE163: 0 | DP163: 0 | EA163: 0 | EL163: 0 | EW163: 0
D164: 40 | J164: 0 | U164: 0 | AF164: 0 | AQ164: 0 | BB164: 0 | BM164: 0 | BX164: 0 | CI164: 0 | CT164: 0 | DE164: 0 | DP164: 0 | EA164: 0 | EL164: 0 | EW164: 0
D165: 41 | J165: 0 | U165: 0 | AF165: 0 | AQ165: 0 | BB165: 0 | BM165: 0 | BX165: 0 | CI165: 0 | CT165: 0 | DE165: 0 | DP165: 0 | EA165: 0 | EL165: 0 | EW165: 0
D166: 42 | J166: 0 | U166: 0 | AF166: 0 | AQ166: 0 | BB166: 0 | BM166: 0 | BX166: 0 | CI166: 0 | CT166: 0 | DE166: 0 | DP166: 0 | EA166: 0 | EL166: 0 | EW166: 0
D167: 43 | J167: 0 | U167: 0 | AF167: 0 | AQ167: 0 | BB167: 0 | BM167: 0 | BX167: 0 | CI167: 0 | CT167: 0 | DE167: 0 | DP167: 0 | EA167: 0 | EL167: 0 | EW167: 0
D168: 44 | J168: 0 | U168: 0 | AF168: 0 | AQ168: 0 | BB168: 0 | BM168: 0 | BX168: 0 | CI168: 0 | CT168: 0 | DE168: 0 | DP168: 0 | EA168: 0 | EL168: 0 | EW168: 0
D169: 45 | J169: 0 | U169: 0 | AF169: 0 | AQ169: 0 | BB169: 0 | BM169: 0 | BX169: 0 | CI169: 0 | CT169: 0 | DE169: 0 | DP169: 0 | EA169: 0 | EL169: 0 | EW169: 0
D170: 46 | J170: 0 | U170: 0 | AF170: 0 | AQ170: 0 | BB170: 0 | BM170: 0 | BX170: 0 | CI170: 0 | CT170: 0 | DE170: 0 | DP170: 0 | EA170: 0 | EL170: 0 | EW170: 0
D171: 47 | J171: 0 | U171: 0 | AF171: 0 | AQ171: 0 | BB171: 0 | BM171: 0 | BX171: 0 | CI171: 0 | CT171: 0 | DE171: 0 | DP171: 0 | EA171: 0 | EL171: 0 | EW171: 0
D172: 48 | J172: 0 | U172: 0 | AF172: 0 | AQ172: 0 | BB172: 0 | BM172: 0 | BX172: 0 | CI172: 0 | CT172: 0 | DE172: 0 | DP172: 0 | EA172: 0 | EL172: 0 | EW172: 0
D173: 49 | J173: 0 | U173: 0 | AF173: 0 | AQ173: 0 | BB173: 0 | BM173: 0 | BX173: 0 | CI173: 0 | CT173: 0 | DE173: 0 | DP173: 0 | EA173: 0 | EL173: 0 | EW173: 0
D174: 50 | J174: 0 | U174: 0 | AF174: 0 | AQ174: 0 | BB174: 0 | BM174: 0 | BX174: 0 | CI174: 0 | CT174: 0 | DE174: 0 | DP174: 0 | EA174: 0 | EL174: 0 | EW174: 0

Sheet الادخال
O1: رقم الصفحة
O2: 1
G3: : | N3: : | V3: مسح البيانات من الصفحه رقم 1 حتى الصفحة رقم 31 من (i9:ac145)
P5: ترحيل البياتات حسب أسم الصفحه | AB5: محطة خشمان ( الماسة 7 )
B6: Checking the station manager | AB6: كشف بأرقام الفواتير اليومية
B7: ='شهر 9 تفصيلي'!$A$1 -> 2021-09-01 | F7: التاريخ / | I7: =#REF! ->  | M7: اليـــوم / | P7: محطة خشمان ( الماسة 7 ) | W7: 1 | AB7: =B7 -> 2021-09-01 | AF7: =I7 -> 
B8: S.NO | C8: رقم الفاتوره ديزل | D8: BUS | E8: الكيلو D | F8: D | G8: الوقت | H8: المراقب | I8: To | J8: رقم الفاتوره 95 | K8: BUS | L8: الكيلو 95 | M8: 95 | N8: الوقت | O8: المراقب | P8: To | Q8: رقم الفاتوره 91 | R8: BUS | S8: الكيلو 91 | T8: 91 | U8: الوقت | V8: المراقب | W8: To | AC8: رقم الفاتوره ديزل | AE8: رقم الفاتوره ديزل | AG8: رقم الفاتوره 95 | AI8: رقم الفاتوره 91
B9: 1 | I9: =IFERROR(VLOOKUP(D9,BUS!$C$4:$AEB$888,4,0),"") ->  | P9: =IFERROR(VLOOKUP(K9,BUS!$C$4:$AEB$888,4,0),"") ->  | W9: =IFERROR(VLOOKUP(R9,BUS!$C$4:$AEB$888,4,0),"") ->  | Y9: =IFERROR(VLOOKUP(D9,'شهر 9 تفصيلي'!$B$5:$AEC$667,1,0),"") ->  | Z9: =IFERROR(VLOOKUP(K9,'شهر 9 تفصيلي'!$B$5:$AEC$667,1,0),"") ->  | AA9: =IFERROR(VLOOKUP(R9,'شهر 9 تفصيلي'!$B$5:$AEC$667,1,0),"") ->  | AB9: 1 | AC9: =IF(C9>0,C9) -> FALSE | AD9: 48 | AE9: =IF(C56>0,C56) -> FALSE | AF9: 1 | AG9: =IF(J9>0,J9) -> FALSE | AH9: 1 | AI9: =IF(Q9>0,Q9) -> FALSE
B10: 2 | I10: =IFERROR(VLOOKUP(D10,BUS!$C$4:$AEB$888,4,0),"") ->  | P10: =IFERROR(VLOOKUP(K10,BUS!$C$4:$AEB$888,4,0),"") ->  | W10: =IFERROR(VLOOKUP(R10,BUS!$C$4:$AEB$888,4,0),"") ->  | Y10: =IFERROR(VLOOKUP(D10,'شهر 9 تفصيلي'!$B$5:$AEC$667,1,0),"") ->  | Z10: =IFERROR(VLOOKUP(K10,'شهر 9 تفصيلي'!$B$5:$AEC$667,1,0),"") ->  | AA10: =IFERROR(VLOOKUP(R10,'شهر 9 تفصيلي'!$B$5:$AEC$667,1,0),"") ->  | AB10: 2 | AC10: =IF(C10>0,C10) -> FALSE | AD10: 49 | AE10: =IF(C57>0,C57) -> FALSE | AF10: 2 | AG10: =IF(J10>0,J10) -> FALSE | AH10: 2 | AI10: =IF(Q10>0,Q10) -> FALSE
B11: 3 | I11: =IFERROR(VLOOKUP(D11,BUS!$C$4:$AEB$888,4,0),"") ->  | P11: =IFERROR(VLOOKUP(K11,BUS!$C$4:$AEB$888,4,0),"") ->  | W11: =IFERROR(VLOOKUP(R11,BUS!$C$4:$AEB$888,4,0),"") ->  | Y11: =IFERROR(VLOOKUP(D11,'شهر 9 تفصيلي'!$B$5:$AEC$667,1,0),"") ->  | Z11: =IFERROR(VLOOKUP(K11,'شهر 9 تفصيلي'!$B$5:$AEC$667,1,0),"") ->  | AA11: =IFERROR(VLOOKUP(R11,'شهر 9 تفصيلي'!$B$5:$AEC$667,1,0),"") ->  | AB11: 3 | AC11: FALSE | AD11: 50 | AE11: FALSE | AF11: 3 | AG11: FALSE | AH11: 3 | AI11: FALSE
B12: 4 | I12: =IFERROR(VLOOKUP(D12,BUS!$C$4:$AEB$888,4,0),"") ->  | P12: =IFERROR(VLOOKUP(K12,BUS!$C$4:$AEB$888,4,0),"") ->  | W12: =IFERROR(VLOOKUP(R12,BUS!$C$4:$AEB$888,4,0),"") ->  | Y12: =IFERROR(VLOOKUP(D12,'شهر 9 تفصيلي'!$B$5:$AEC$667,1,0),"") ->  | Z12: =IFERROR(VLOOKUP(K12,'شهر 9 تفصيلي'!$B$5:$AEC$667,1,0),"") ->  | AA12: =IFERROR(VLOOKUP(R12,'شهر 9 تفصيلي'!$B$5:$AEC$667,1,0),"") ->  | AB12: 4 | AC12: FALSE | AD12: 51 | AE12: FALSE | AF12: 4 | AG12: FALSE | AH12: 4 | AI12: FALSE
B13: 5 | I13: =IFERROR(VLOOKUP(D13,BUS!$C$4:$AEB$888,4,0),"") ->  | P13: =IFERROR(VLOOKUP(K13,BUS!$C$4:$AEB$888,4,0),"") ->  | W13: =IFERROR(VLOOKUP(R13,BUS!$C$4:$AEB$888,4,0),"") ->  | Y13: =IFERROR(VLOOKUP(D13,'شهر 9 تفصيلي'!$B$5:$AEC$667,1,0),"") ->  | Z13: =IFERROR(VLOOKUP(K13,'شهر 9 تفصيلي'!$B$5:$AEC$667,1,0),"") ->  | AA13: =IFERROR(VLOOKUP(R13,'شهر 9 تفصيلي'!$B$5:$AEC$667,1,0),"") ->  | AB13: 5 | AC13: FALSE | AD13: 52 | AE13: FALSE | AF13: 5 | AG13: FALSE | AH13: 5 | AI13: FALSE
B14: 6 | I14: =IFERROR(VLOOKUP(D14,BUS!$C$4:$AEB$888,4,0),"") ->  | P14: =IFERROR(VLOOKUP(K14,BUS!$C$4:$AEB$888,4,0),"") ->  | W14: =IFERROR(VLOOKUP(R14,BUS!$C$4:$AEB$888,4,0),"") ->  | Y14: =IFERROR(VLOOKUP(D14,'شهر 9 تفصيلي'!$B$5:$AEC$667,1,0),"") ->  | Z14: =IFERROR(VLOOKUP(K14,'شهر 9 تفصيلي'!$B$5:$AEC$667,1,0),"") ->  | AA14: =IFERROR(VLOOKUP(R14,'شهر 9 تفصيلي'!$B$5:$AEC$667,1,0),"") ->  | AB14: 6 | AC14: FALSE | AD14: 53 | AE14: FALSE | AF14: 6 | AG14: FALSE | AH14: 6 | AI14: FALSE
B15: 7 | I15: =IFERROR(VLOOKUP(D15,BUS!$C$4:$AEB$888,4,0),"") ->  | P15: =IFERROR(VLOOKUP(K15,BUS!$C$4:$AEB$888,4,0),"") ->  | W15: =IFERROR(VLOOKUP(R15,BUS!$C$4:$AEB$888,4,0),"") ->  | Y15: =IFERROR(VLOOKUP(D15,'شهر 9 تفصيلي'!$B$5:$AEC$667,1,0),"") ->  | Z15: =IFERROR(VLOOKUP(K15,'شهر 9 تفصيلي'!$B$5:$AEC$667,1,0),"") ->  | AA15: =IFERROR(VLOOKUP(R15,'شهر 9 تفصيلي'!$B$5:$AEC$667,1,0),"") ->  | AB15: 7 | AC15: FALSE | AD15: 54 | AE15: FALSE | AF15: 7 | AG15: FALSE | AH15: 7 | AI15: FALSE
B16: 8 | I16: =IFERROR(VLOOKUP(D16,BUS!$C$4:$AEB$888,4,0),"") ->  | P16: =IFERROR(VLOOKUP(K16,BUS!$C$4:$AEB$888,4,0),"") ->  | W16: =IFERROR(VLOOKUP(R16,BUS!$C$4:$AEB$888,4,0),"") ->  | Y16: =IFERROR(VLOOKUP(D16,'شهر 9 تفصيلي'!$B$5:$AEC$667,1,0),"") ->  | Z16: =IFERROR(VLOOKUP(K16,'شهر 9 تفصيلي'!$B$5:$AEC$667,1,0),"") ->  | AA16: =IFERROR(VLOOKUP(R16,'شهر 9 تفصيلي'!$B$5:$AEC$667,1,0),"") ->  | AB16: 8 | AC16: FALSE | AD16: 55 | AE16: FALSE | AF16: 8 | AG16: FALSE | AH16: 8 | AI16: FALSE
B17: 9 | I17: =IFERROR(VLOOKUP(D17,BUS!$C$4:$AEB$888,4,0),"") ->  | P17: =IFERROR(VLOOKUP(K17,BUS!$C$4:$AEB$888,4,0),"") ->  | W17: =IFERROR(VLOOKUP(R17,BUS!$C$4:$AEB$888,4,0),"") ->  | Y17: =IFERROR(VLOOKUP(D17,'شهر 9 تفصيلي'!$B$5:$AEC$667,1,0),"") ->  | Z17: =IFERROR(VLOOKUP(K17,'شهر 9 تفصيلي'!$B$5:$AEC$667,1,0),"") ->  | AA17: =IFERROR(VLOOKUP(R17,'شهر 9 تفصيلي'!$B$5:$AEC$667,1,0),"") ->  | AB17: 9 | AC17: FALSE | AD17: 56 | AE17: FALSE | AF17: 9 | AG17: FALSE | AH17: 9 | AI17: FALSE
B18: 10 | I18: =IFERROR(VLOOKUP(D18,BUS!$C$4:$AEB$888,4,0),"") ->  | P18: =IFERROR(VLOOKUP(K18,BUS!$C$4:$AEB$888,4,0),"") ->  | W18: =IFERROR(VLOOKUP(R18,BUS!$C$4:$AEB$888,4,0),"") ->  | Y18: =IFERROR(VLOOKUP(D18,'شهر 9 تفصيلي'!$B$5:$AEC$667,1,0),"") ->  | Z18: =IFERROR(VLOOKUP(K18,'شهر 9 تفصيلي'!$B$5:$AEC$667,1,0),"") ->  | AA18: =IFERROR(VLOOKUP(R18,'شهر 9 تفصيلي'!$B$5:$AEC$667,1,0),"") ->  | AB18: 10 | AC18: FALSE | AD18: 57 | AE18: FALSE | AF18: 10 | AG18: FALSE | AH18: 10 | AI18: FALSE
B19: 11 | I19: =IFERROR(VLOOKUP(D19,BUS!$C$4:$AEB$888,4,0),"") ->  | P19: =IFERROR(VLOOKUP(K19,BUS!$C$4:$AEB$888,4,0),"") ->  | W19: =IFERROR(VLOOKUP(R19,BUS!$C$4:$AEB$888,4,0),"") ->  | Y19: =IFERROR(VLOOKUP(D19,'شهر 9 تفصيلي'!$B$5:$AEC$667,1,0),"") ->  | Z19: =IFERROR(VLOOKUP(K19,'شهر 9 تفصيلي'!$B$5:$AEC$667,1,0),"") ->  | AA19: =IFERROR(VLOOKUP(R19,'شهر 9 تفصيلي'!$B$5:$AEC$667,1,0),"") ->  | AB19: 11 | AC19: FALSE | AD19: 58 | AE19: FALSE | AF19: 11 | AG19: FALSE | AH19: 11 | AI19: FALSE
B20: 12 | I20: =IFERROR(VLOOKUP(D20,BUS!$C$4:$AEB$888,4,0),"") ->  | P20: =IFERROR(VLOOKUP(K20,BUS!$C$4:$AEB$888,4,0),"") ->  | W20: =IFERROR(VLOOKUP(R20,BUS!$C$4:$AEB$888,4,0),"") ->  | Y20: =IFERROR(VLOOKUP(D20,'شهر 9 تفصيلي'!$B$5:$AEC$667,1,0),"") ->  | Z20: =IFERROR(VLOOKUP(K20,'شهر 9 تفصيلي'!$B$5:$AEC$667,1,0),"") ->  | AA20: =IFERROR(VLOOKUP(R20,'شهر 9 تفصيلي'!$B$5:$AEC$667,1,0),"") ->  | AB20: 12 | AC20: FALSE | AD20: 59 | AE20: FALSE | AF20: 12 | AG20: FALSE | AH20: 12 | AI20: FALSE
B21: 13 | I21: =IFERROR(VLOOKUP(D21,BUS!$C$4:$AEB$888,4,0),"") ->  | P21: =IFERROR(VLOOKUP(K21,BUS!$C$4:$AEB$888,4,0),"") ->  | W21: =IFERROR(VLOOKUP(R21,BUS!$C$4:$AEB$888,4,0),"") ->  | Y21: =IFERROR(VLOOKUP(D21,'شهر 9 تفصيلي'!$B$5:$AEC$667,1,0),"") ->  | Z21: =IFERROR(VLOOKUP(K21,'شهر 9 تفصيلي'!$B$5:$AEC$667,1,0),"") ->  | AA21: =IFERROR(VLOOKUP(R21,'شهر 9 تفصيلي'!$B$5:$AEC$667,1,0),"") ->  | AB21: 13 | AC21: FALSE | AD21: 60 | AE21: FALSE | AF21: 13 | AG21: FALSE | AH21: 13 | AI21: FALSE
B22: 14 | I22: =IFERROR(VLOOKUP(D22,BUS!$C$4:$AEB$888,4,0),"") ->  | P22: =IFERROR(VLOOKUP(K22,BUS!$C$4:$AEB$888,4,0),"") ->  | W22: =IFERROR(VLOOKUP(R22,BUS!$C$4:$AEB$888,4,0),"") ->  | Y22: =IFERROR(VLOOKUP(D22,'شهر 9 تفصيلي'!$B$5:$AEC$667,1,0),"") ->  | Z22: =IFERROR(VLOOKUP(K22,'شهر 9 تفصيلي'!$B$5:$AEC$667,1,0),"") ->  | AA22: =IFERROR(VLOOKUP(R22,'شهر 9 تفصيلي'!$B$5:$AEC$667,1,0),"") ->  | AB22: 14 | AC22: FALSE | AD22: 61 | AE22: FALSE | AF22: 14 | AG22: FALSE | AH22: 14 | AI22: FALSE
B23: 15 | I23: =IFERROR(VLOOKUP(D23,BUS!$C$4:$AEB$888,4,0),"") ->  | P23: =IFERROR(VLOOKUP(K23,BUS!$C$4:$AEB$888,4,0),"") ->  | W23: =IFERROR(VLOOKUP(R23,BUS!$C$4:$AEB$888,4,0),"") ->  | Y23: =IFERROR(VLOOKUP(D23,'شهر 9 تفصيلي'!$B$5:$AEC$667,1,0),"") ->  | Z23: =IFERROR(VLOOKUP(K23,'شهر 9 تفصيلي'!$B$5:$AEC$667,1,0),"") ->  | AA23: =IFERROR(VLOOKUP(R23,'شهر 9 تفصيلي'!$B$5:$AEC$667,1,0),"") ->  | AB23: 15 | AC23: FALSE | AD23: 62 | AE23: FALSE | AF23: 15 | AG23: FALSE | AH23: 15 | AI23: FALSE
B24: 16 | I24: =IFERROR(VLOOKUP(D24,BUS!$C$4:$AEB$888,4,0),"") ->  | P24: =IFERROR(VLOOKUP(K24,BUS!$C$4:$AEB$888,4,0),"") ->  | W24: =IFERROR(VLOOKUP(R24,BUS!$C$4:$AEB$888,4,0),"") ->  | Y24: =IFERROR(VLOOKUP(D24,'شهر 9 تفصيلي'!$B$5:$AEC$667,1,0),"") ->  | Z24: =IFERROR(VLOOKUP(K24,'شهر 9 تفصيلي'!$B$5:$AEC$667,1,0),"") ->  | AA24: =IFERROR(VLOOKUP(R24,'شهر 9 تفصيلي'!$B$5:$AEC$667,1,0),"") ->  | AB24: 16 | AC24: FALSE | AD24: 63 | AE24: FALSE | AF24: 16 | AG24: FALSE | AH24: 16 | AI24: FALSE
B25: 17 | I25: =IFERROR(VLOOKUP(D25,BUS!$C$4:$AEB$888,4,0),"") ->  | P25: =IFERROR(VLOOKUP(K25,BUS!$C$4:$AEB$888,4,0),"") ->  | W25: =IFERROR(VLOOKUP(R25,BUS!$C$4:$AEB$888,4,0),"") ->  | Y25: =IFERROR(VLOOKUP(D25,'شهر 9 تفصيلي'!$B$5:$AEC$667,1,0),"") ->  | Z25: =IFERROR(VLOOKUP(K25,'شهر 9 تفصيلي'!$B$5:$AEC$667,1,0),"") ->  | AA25: =IFERROR(VLOOKUP(R25,'شهر 9 تفصيلي'!$B$5:$AEC$667,1,0),"") ->  | AB25: 17 | AC25: FALSE | AD25: 64 | AE25: FALSE | AF25: 17 | AG25: FALSE | AH25: 17 | AI25: FALSE
B26: 18 | I26: =IFERROR(VLOOKUP(D26,BUS!$C$4:$AEB$888,4,0),"") ->  | P26: =IFERROR(VLOOKUP(K26,BUS!$C$4:$AEB$888,4,0),"") ->  | W26: =IFERROR(VLOOKUP(R26,BUS!$C$4:$AEB$888,4,0),"") ->  | Y26: =IFERROR(VLOOKUP(D26,'شهر 9 تفصيلي'!$B$5:$AEC$667,1,0),"") ->  | Z26: =IFERROR(VLOOKUP(K26,'شهر 9 تفصيلي'!$B$5:$AEC$667,1,0),"") ->  | AA26: =IFERROR(VLOOKUP(R26,'شهر 9 تفصيلي'!$B$5:$AEC$667,1,0),"") ->  | AB26: 18 | AC26: FALSE | AD26: 65 | AE26: FALSE | AF26: 18 | AG26: FALSE | AH26: 18 | AI26: FALSE
B27: 19 | I27: =IFERROR(VLOOKUP(D27,BUS!$C$4:$AEB$888,4,0),"") ->  | P27: =IFERROR(VLOOKUP(K27,BUS!$C$4:$AEB$888,4,0),"") ->  | W27: =IFERROR(VLOOKUP(R27,BUS!$C$4:$AEB$888,4,0),"") ->  | Y27: =IFERROR(VLOOKUP(D27,'شهر 9 تفصيلي'!$B$5:$AEC$667,1,0),"") ->  | Z27: =IFERROR(VLOOKUP(K27,'شهر 9 تفصيلي'!$B$5:$AEC$667,1,0),"") ->  | AA27: =IFERROR(VLOOKUP(R27,'شهر 9 تفصيلي'!$B$5:$AEC$667,1,0),"") ->  | AB27: 19 | AC27: FALSE | AD27: 66 | AE27: FALSE | AF27: 19 | AG27: FALSE | AH27: 19 | AI27: FALSE
B28: 20 | I28: =IFERROR(VLOOKUP(D28,BUS!$C$4:$AEB$888,4,0),"") ->  | P28: =IFERROR(VLOOKUP(K28,BUS!$C$4:$AEB$888,4,0),"") ->  | W28: =IFERROR(VLOOKUP(R28,BUS!$C$4:$AEB$888,4,0),"") ->  | Y28: =IFERROR(VLOOKUP(D28,'شهر 9 تفصيلي'!$B$5:$AEC$667,1,0),"") ->  | Z28: =IFERROR(VLOOKUP(K28,'شهر 9 تفصيلي'!$B$5:$AEC$667,1,0),"") ->  | AA28: =IFERROR(VLOOKUP(R28,'شهر 9 تفصيلي'!$B$5:$AEC$667,1,0),"") ->  | AB28: 20 | AC28: FALSE | AD28: 67 | AE28: FALSE | AF28: 20 | AG28: FALSE | AH28: 20 | AI28: FALSE
B29: 21 | I29: =IFERROR(VLOOKUP(D29,BUS!$C$4:$AEB$888,4,0),"") ->  | P29: =IFERROR(VLOOKUP(K29,BUS!$C$4:$AEB$888,4,0),"") ->  | W29: =IFERROR(VLOOKUP(R29,BUS!$C$4:$AEB$888,4,0),"") ->  | Y29: =IFERROR(VLOOKUP(D29,'شهر 9 تفصيلي'!$B$5:$AEC$667,1,0),"") ->  | Z29: =IFERROR(VLOOKUP(K29,'شهر 9 تفصيلي'!$B$5:$AEC$667,1,0),"") ->  | AA29: =IFERROR(VLOOKUP(R29,'شهر 9 تفصيلي'!$B$5:$AEC$667,1,0),"") ->  | AB29: 21 | AC29: FALSE | AD29: 68 | AE29: FALSE | AF29: 21 | AG29: FALSE | AH29: 21 | AI29: FALSE
B30: 22 | I30: =IFERROR(VLOOKUP(D30,BUS!$C$4:$AEB$888,4,0),"") ->  | P30: =IFERROR(VLOOKUP(K30,BUS!$C$4:$AEB$888,4,0),"") ->  | W30: =IFERROR(VLOOKUP(R30,BUS!$C$4:$AEB$888,4,0),"") ->  | Y30: =IFERROR(VLOOKUP(D30,'شهر 9 تفصيلي'!$B$5:$AEC$667,1,0),"") ->  | Z30: =IFERROR(VLOOKUP(K30,'شهر 9 تفصيلي'!$B$5:$AEC$667,1,0),"") ->  | AA30: =IFERROR(VLOOKUP(R30,'شهر 9 تفصيلي'!$B$5:$AEC$667,1,0),"") ->  | AB30: 22 | AC30: FALSE | AD30: 69 | AE30: FALSE | AF30: 22 | AG30: FALSE | AH30: 22 | AI30: FALSE
B31: 23 | I31: =IFERROR(VLOOKUP(D31,BUS!$C$4:$AEB$888,4,0),"") ->  | P31: =IFERROR(VLOOKUP(K31,BUS!$C$4:$AEB$888,4,0),"") ->  | W31: =IFERROR(VLOOKUP(R31,BUS!$C$4:$AEB$888,4,0),"") ->  | Y31: =IFERROR(VLOOKUP(D31,'شهر 9 تفصيلي'!$B$5:$AEC$667,1,0),"") ->  | Z31: =IFERROR(VLOOKUP(K31,'شهر 9 تفصيلي'!$B$5:$AEC$667,1,0),"") ->  | AA31: =IFERROR(VLOOKUP(R31,'شهر 9 تفصيلي'!$B$5:$AEC$667,1,0),"") ->  | AB31: 23 | AC31: FALSE | AD31: 70 | AE31: FALSE | AF31: 23 | AG31: FALSE | AH31: 23 | AI31: FALSE
B32: 24 | I32: =IFERROR(VLOOKUP(D32,BUS!$C$4:$AEB$888,4,0),"") ->  | P32: =IFERROR(VLOOKUP(K32,BUS!$C$4:$AEB$888,4,0),"") ->  | W32: =IFERROR(VLOOKUP(R32,BUS!$C$4:$AEB$888,4,0),"") ->  | Y32: =IFERROR(VLOOKUP(D32,'شهر 9 تفصيلي'!$B$5:$AEC$667,1,0),"") ->  | Z32: =IFERROR(VLOOKUP(K32,'شهر 9 تفصيلي'!$B$5:$AEC$667,1,0),"") ->  | AA32: =IFERROR(VLOOKUP(R32,'شهر 9 تفصيلي'!$B$5:$AEC$667,1,0),"") ->  | AB32: 24 | AC32: FALSE | AD32: 71 | AE32: FALSE | AF32: 24 | AG32: FALSE | AH32: 24 | AI32: FALSE
B33: 25 | I33: =IFERROR(VLOOKUP(D33,BUS!$C$4:$AEB$888,4,0),"") ->  | P33: =IFERROR(VLOOKUP(K33,BUS!$C$4:$AEB$888,4,0),"") ->  | W33: =IFERROR(VLOOKUP(R33,BUS!$C$4:$AEB$888,4,0),"") ->  | Y33: =IFERROR(VLOOKUP(D33,'شهر 9 تفصيلي'!$B$5:$AEC$667,1,0),"") ->  | Z33: =IFERROR(VLOOKUP(K33,'شهر 9 تفصيلي'!$B$5:$AEC$667,1,0),"") ->  | AA33: =IFERROR(VLOOKUP(R33,'شهر 9 تفصيلي'!$B$5:$AEC$667,1,0),"") ->  | AB33: 25 | AC33: FALSE | AD33: 72 | AE33: FALSE | AF33: 25 | AG33: FALSE | AH33: 25 | AI33: FALSE
B34: 26 | I34: =IFERROR(VLOOKUP(D34,BUS!$C$4:$AEB$888,4,0),"") ->  | P34: =IFERROR(VLOOKUP(K34,BUS!$C$4:$AEB$888,4,0),"") ->  | W34: =IFERROR(VLOOKUP(R34,BUS!$C$4:$AEB$888,4,0),"") ->  | Y34: =IFERROR(VLOOKUP(D34,'شهر 9 تفصيلي'!$B$5:$AEC$667,1,0),"") ->  | Z34: =IFERROR(VLOOKUP(K34,'شهر 9 تفصيلي'!$B$5:$AEC$667,1,0),"") ->  | AA34: =IFERROR(VLOOKUP(R34,'شهر 9 تفصيلي'!$B$5:$AEC$667,1,0),"") ->  | AB34: 26 | AC34: FALSE | AD34: 73 | AE34: FALSE | AF34: 26 | AG34: FALSE | AH34: 26 | AI34: FALSE
B35: 27 | I35: =IFERROR(VLOOKUP(D35,BUS!$C$4:$AEB$888,4,0),"") ->  | P35: =IFERROR(VLOOKUP(K35,BUS!$C$4:$AEB$888,4,0),"") ->  | W35: =IFERROR(VLOOKUP(R35,BUS!$C$4:$AEB$888,4,0),"") ->  | Y35: =IFERROR(VLOOKUP(D35,'شهر 9 تفصيلي'!$B$5:$AEC$667,1,0),"") ->  | Z35: =IFERROR(VLOOKUP(K35,'شهر 9 تفصيلي'!$B$5:$AEC$667,1,0),"") ->  | AA35: =IFERROR(VLOOKUP(R35,'شهر 9 تفصيلي'!$B$5:$AEC$667,1,0),"") ->  | AB35: 27 | AC35: FALSE | AD35: 74 | AE35: FALSE | AF35: 27 | AG35: FALSE | AH35: 27 | AI35: FALSE
B36: 28 | I36: =IFERROR(VLOOKUP(D36,BUS!$C$4:$AEB$888,4,0),"") ->  | P36: =IFERROR(VLOOKUP(K36,BUS!$C$4:$AEB$888,4,0),"") ->  | W36: =IFERROR(VLOOKUP(R36,BUS!$C$4:$AEB$888,4,0),"") ->  | Y36: =IFERROR(VLOOKUP(D36,'شهر 9 تفصيلي'!$B$5:$AEC$667,1,0),"") ->  | Z36: =IFERROR(VLOOKUP(K36,'شهر 9 تفصيلي'!$B$5:$AEC$667,1,0),"") ->  | AA36: =IFERROR(VLOOKUP(R36,'شهر 9 تفصيلي'!$B$5:$AEC$667,1,0),"") ->  | AB36: 28 | AC36: FALSE | AD36: 75 | AE36: FALSE | AF36: 28 | AG36: FALSE | AH36: 28 | AI36: FALSE
B37: 29 | I37: =IFERROR(VLOOKUP(D37,BUS!$C$4:$AEB$888,4,0),"") ->  | P37: =IFERROR(VLOOKUP(K37,BUS!$C$4:$AEB$888,4,0),"") ->  | W37: =IFERROR(VLOOKUP(R37,BUS!$C$4:$AEB$888,4,0),"") ->  | Y37: =IFERROR(VLOOKUP(D37,'شهر 9 تفصيلي'!$B$5:$AEC$667,1,0),"") ->  | Z37: =IFERROR(VLOOKUP(K37,'شهر 9 تفصيلي'!$B$5:$AEC$667,1,0),"") ->  | AA37: =IFERROR(VLOOKUP(R37,'شهر 9 تفصيلي'!$B$5:$AEC$667,1,0),"") ->  | AB37: 29 | AC37: FALSE | AD37: 76 | AE37: FALSE | AF37: 29 | AG37: FALSE | AH37: 29 | AI37: FALSE
B38: 30 | I38: =IFERROR(VLOOKUP(D38,BUS!$C$4:$AEB$888,4,0),"") ->  | P38: =IFERROR(VLOOKUP(K38,BUS!$C$4:$AEB$888,4,0),"") ->  | W38: =IFERROR(VLOOKUP(R38,BUS!$C$4:$AEB$888,4,0),"") ->  | Y38: =IFERROR(VLOOKUP(D38,'شهر 9 تفصيلي'!$B$5:$AEC$667,1,0),"") ->  | Z38: =IFERROR(VLOOKUP(K38,'شهر 9 تفصيلي'!$B$5:$AEC$667,1,0),"") ->  | AA38: =IFERROR(VLOOKUP(R38,'شهر 9 تفصيلي'!$B$5:$AEC$667,1,0),"") ->  | AB38: 30 | AC38: FALSE | AD38: 77 | AE38: FALSE | AF38: 30 | AG38: FALSE | AH38: 30 | AI38: FALSE
B39: 31 | I39: =IFERROR(VLOOKUP(D39,BUS!$C$4:$AEB$888,4,0),"") ->  | P39: =IFERROR(VLOOKUP(K39,BUS!$C$4:$AEB$888,4,0),"") ->  | W39: =IFERROR(VLOOKUP(R39,BUS!$C$4:$AEB$888,4,0),"") ->  | Y39: =IFERROR(VLOOKUP(D39,'شهر 9 تفصيلي'!$B$5:$AEC$667,1,0),"") ->  | Z39: =IFERROR(VLOOKUP(K39,'شهر 9 تفصيلي'!$B$5:$AEC$667,1,0),"") ->  | AA39: =IFERROR(VLOOKUP(R39,'شهر 9 تفصيلي'!$B$5:$AEC$667,1,0),"") ->  | AB39: 31 | AC39: FALSE | AD39: 78 | AE39: FALSE | AF39: 31 | AG39: FALSE | AH39: 31 | AI39: FALSE
B40: 32 | I40: =IFERROR(VLOOKUP(D40,BUS!$C$4:$AEB$888,4,0),"") ->  | P40: =IFERROR(VLOOKUP(K40,BUS!$C$4:$AEB$888,4,0),"") ->  | W40: =IFERROR(VLOOKUP(R40,BUS!$C$4:$AEB$888,4,0),"") ->  | Y40: =IFERROR(VLOOKUP(D40,'شهر 9 تفصيلي'!$B$5:$AEC$667,1,0),"") ->  | Z40: =IFERROR(VLOOKUP(K40,'شهر 9 تفصيلي'!$B$5:$AEC$667,1,0),"") ->  | AA40: =IFERROR(VLOOKUP(R40,'شهر 9 تفصيلي'!$B$5:$AEC$667,1,0),"") ->  | AB40: 32 | AC40: FALSE | AD40: 79 | AE40: FALSE | AF40: 32 | AG40: FALSE | AH40: 32 | AI40: FALSE
B41: 33 | I41: =IFERROR(VLOOKUP(D41,BUS!$C$4:$AEB$888,4,0),"") ->  | P41: =IFERROR(VLOOKUP(K41,BUS!$C$4:$AEB$888,4,0),"") ->  | W41: =IFERROR(VLOOKUP(R41,BUS!$C$4:$AEB$888,4,0),"") ->  | Y41: =IFERROR(VLOOKUP(D41,'شهر 9 تفصيلي'!$B$5:$AEC$667,1,0),"") ->  | Z41: =IFERROR(VLOOKUP(K41,'شهر 9 تفصيلي'!$B$5:$AEC$667,1,0),"") ->  | AA41: =IFERROR(VLOOKUP(R41,'شهر 9 تفصيلي'!$B$5:$AEC$667,1,0),"") ->  | AB41: 33 | AC41: FALSE | AD41: 80 | AE41: FALSE | AF41: 33 | AG41: FALSE | AH41: 33 | AI41: FALSE
B42: 34 | I42: =IFERROR(VLOOKUP(D42,BUS!$C$4:$AEB$888,4,0),"") ->  | P42: =IFERROR(VLOOKUP(K42,BUS!$C$4:$AEB$888,4,0),"") ->  | W42: =IFERROR(VLOOKUP(R42,BUS!$C$4:$AEB$888,4,0),"") ->  | Y42: =IFERROR(VLOOKUP(D42,'شهر 9 تفصيلي'!$B$5:$AEC$667,1,0),"") ->  | Z42: =IFERROR(VLOOKUP(K42,'شهر 9 تفصيلي'!$B$5:$AEC$667,1,0),"") ->  | AA42: =IFERROR(VLOOKUP(R42,'شهر 9 تفصيلي'!$B$5:$AEC$667,1,0),"") ->  | AB42: 34 | AC42: FALSE | AD42: 81 | AE42: FALSE | AF42: 34 | AG42: FALSE | AH42: 34 | AI42: FALSE
B43: 35 | I43: =IFERROR(VLOOKUP(D43,BUS!$C$4:$AEB$888,4,0),"") ->  | P43: =IFERROR(VLOOKUP(K43,BUS!$C$4:$AEB$888,4,0),"") ->  | W43: =IFERROR(VLOOKUP(R43,BUS!$C$4:$AEB$888,4,0),"") ->  | Y43: =IFERROR(VLOOKUP(D43,'شهر 9 تفصيلي'!$B$5:$AEC$667,1,0),"") ->  | Z43: =IFERROR(VLOOKUP(K43,'شهر 9 تفصيلي'!$B$5:$AEC$667,1,0),"") ->  | AA43: =IFERROR(VLOOKUP(R43,'شهر 9 تفصيلي'!$B$5:$AEC$667,1,0),"") ->  | AB43: 35 | AC43: FALSE | AD43: 82 | AE43: FALSE | AF43: 35 | AG43: FALSE | AH43: 35 | AI43: FALSE
B44: 36 | I44: =IFERROR(VLOOKUP(D44,BUS!$C$4:$AEB$888,4,0),"") ->  | P44: =IFERROR(VLOOKUP(K44,BUS!$C$4:$AEB$888,4,0),"") ->  | W44: =IFERROR(VLOOKUP(R44,BUS!$C$4:$AEB$888,4,0),"") ->  | Y44: =IFERROR(VLOOKUP(D44,'شهر 9 تفصيلي'!$B$5:$AEC$667,1,0),"") ->  | Z44: =IFERROR(VLOOKUP(K44,'شهر 9 تفصيلي'!$B$5:$AEC$667,1,0),"") ->  | AA44: =IFERROR(VLOOKUP(R44,'شهر 9 تفصيلي'!$B$5:$AEC$667,1,0),"") ->  | AB44: 36 | AC44: FALSE | AD44: 83 | AE44: FALSE | AF44: 36 | AG44: FALSE | AH44: 36 | AI44: FALSE
B45: 37 | I45: =IFERROR(VLOOKUP(D45,BUS!$C$4:$AEB$888,4,0),"") ->  | P45: =IFERROR(VLOOKUP(K45,BUS!$C$4:$AEB$888,4,0),"") ->  | W45: =IFERROR(VLOOKUP(R45,BUS!$C$4:$AEB$888,4,0),"") ->  | Y45: =IFERROR(VLOOKUP(D45,'شهر 9 تفصيلي'!$B$5:$AEC$667,1,0),"") ->  | Z45: =IFERROR(VLOOKUP(K45,'شهر 9 تفصيلي'!$B$5:$AEC$667,1,0),"") ->  | AA45: =IFERROR(VLOOKUP(R45,'شهر 9 تفصيلي'!$B$5:$AEC$667,1,0),"") ->  | AB45: 37 | AC45: FALSE | AD45: 84 | AE45: FALSE | AF45: 37 | AG45: FALSE | AH45: 37 | AI45: FALSE
B46: 38 | I46: =IFERROR(VLOOKUP(D46,BUS!$C$4:$AEB$888,4,0),"") ->  | P46: =IFERROR(VLOOKUP(K46,BUS!$C$4:$AEB$888,4,0),"") ->  | W46: =IFERROR(VLOOKUP(R46,BUS!$C$4:$AEB$888,4,0),"") ->  | Y46: =IFERROR(VLOOKUP(D46,'شهر 9 تفصيلي'!$B$5:$AEC$667,1,0),"") ->  | Z46: =IFERROR(VLOOKUP(K46,'شهر 9 تفصيلي'!$B$5:$AEC$667,1,0),"") ->  | AA46: =IFERROR(VLOOKUP(R46,'شهر 9 تفصيلي'!$B$5:$AEC$667,1,0),"") ->  | AB46: 38 | AC46: FALSE | AD46: 85 | AE46: FALSE | AF46: 38 | AG46: FALSE | AH46: 38 | AI46: FALSE
B47: 39 | I47: =IFERROR(VLOOKUP(D47,BUS!$C$4:$AEB$888,4,0),"") ->  | P47: =IFERROR(VLOOKUP(K47,BUS!$C$4:$AEB$888,4,0),"") ->  | W47: =IFERROR(VLOOKUP(R47,BUS!$C$4:$AEB$888,4,0),"") ->  | Y47: =IFERROR(VLOOKUP(D47,'شهر 9 تفصيلي'!$B$5:$AEC$667,1,0),"") ->  | Z47: =IFERROR(VLOOKUP(K47,'شهر 9 تفصيلي'!$B$5:$AEC$667,1,0),"") ->  | AA47: =IFERROR(VLOOKUP(R47,'شهر 9 تفصيلي'!$B$5:$AEC$667,1,0),"") ->  | AB47: 39 | AC47: FALSE | AD47: 86 | AE47: FALSE | AF47: 39 | AG47: FALSE | AH47: 39 | AI47: FALSE
B48: 40 | I48: =IFERROR(VLOOKUP(D48,BUS!$C$4:$AEB$888,4,0),"") ->  | P48: =IFERROR(VLOOKUP(K48,BUS!$C$4:$AEB$888,4,0),"") ->  | W48: =IFERROR(VLOOKUP(R48,BUS!$C$4:$AEB$888,4,0),"") ->  | Y48: =IFERROR(VLOOKUP(D48,'شهر 9 تفصيلي'!$B$5:$AEC$667,1,0),"") ->  | Z48: =IFERROR(VLOOKUP(K48,'شهر 9 تفصيلي'!$B$5:$AEC$667,1,0),"") ->  | AA48: =IFERROR(VLOOKUP(R48,'شهر 9 تفصيلي'!$B$5:$AEC$667,1,0),"") ->  | AB48: 40 | AC48: FALSE | AD48: 87 | AE48: FALSE | AF48: 40 | AG48: FALSE | AH48: 40 | AI48: FALSE
B49: 41 | I49: =IFERROR(VLOOKUP(D49,BUS!$C$4:$AEB$888,4,0),"") ->  | P49: =IFERROR(VLOOKUP(K49,BUS!$C$4:$AEB$888,4,0),"") ->  | W49: =IFERROR(VLOOKUP(R49,BUS!$C$4:$AEB$888,4,0),"") ->  | Y49: =IFERROR(VLOOKUP(D49,'شهر 9 تفصيلي'!$B$5:$AEC$667,1,0),"") ->  | Z49: =IFERROR(VLOOKUP(K49,'شهر 9 تفصيلي'!$B$5:$AEC$667,1,0),"") ->  | AA49: =IFERROR(VLOOKUP(R49,'شهر 9 تفصيلي'!$B$5:$AEC$667,1,0),"") ->  | AB49: 41 | AC49: FALSE | AD49: 88 | AE49: FALSE | AF49: 41 | AG49: FALSE | AH49: 41 | AI49: FALSE
B50: 42 | I50: =IFERROR(VLOOKUP(D50,BUS!$C$4:$AEB$888,4,0),"") ->  | P50: =IFERROR(VLOOKUP(K50,BUS!$C$4:$AEB$888,4,0),"") ->  | W50: =IFERROR(VLOOKUP(R50,BUS!$C$4:$AEB$888,4,0),"") ->  | Y50: =IFERROR(VLOOKUP(D50,'شهر 9 تفصيلي'!$B$5:$AEC$667,1,0),"") ->  | Z50: =IFERROR(VLOOKUP(K50,'شهر 9 تفصيلي'!$B$5:$AEC$667,1,0),"") ->  | AA50: =IFERROR(VLOOKUP(R50,'شهر 9 تفصيلي'!$B$5:$AEC$667,1,0),"") ->  | AB50: 42 | AC50: FALSE | AD50: 89 | AE50: FALSE | AF50: 42 | AH50: 42 | AI50: FALSE
B51: 43 | I51: =IFERROR(VLOOKUP(D51,BUS!$C$4:$AEB$888,4,0),"") ->  | P51: =IFERROR(VLOOKUP(K51,BUS!$C$4:$AEB$888,4,0),"") ->  | W51: =IFERROR(VLOOKUP(R51,BUS!$C$4:$AEB$888,4,0),"") ->  | Y51: =IFERROR(VLOOKUP(D51,'شهر 9 تفصيلي'!$B$5:$AEC$667,1,0),"") ->  | Z51: =IFERROR(VLOOKUP(K51,'شهر 9 تفصيلي'!$B$5:$AEC$667,1,0),"") ->  | AA51: =IFERROR(VLOOKUP(R51,'شهر 9 تفصيلي'!$B$5:$AEC$667,1,0),"") ->  | AB51: 43 | AC51: FALSE | AD51: 90 | AE51: FALSE | AF51: 43 | AH51: 43 | AI51: FALSE
B52: 44 | I52: =IFERROR(VLOOKUP(D52,BUS!$C$4:$AEB$888,4,0),"") ->  | P52: =IFERROR(VLOOKUP(K52,BUS!$C$4:$AEB$888,4,0),"") ->  | W52: =IFERROR(VLOOKUP(R52,BUS!$C$4:$AEB$888,4,0),"") ->  | Y52: =IFERROR(VLOOKUP(D52,'شهر 9 تفصيلي'!$B$5:$AEC$667,1,0),"") ->  | Z52: =IFERROR(VLOOKUP(K52,'شهر 9 تفصيلي'!$B$5:$AEC$667,1,0),"") ->  | AA52: =IFERROR(VLOOKUP(R52,'شهر 9 تفصيلي'!$B$5:$AEC$667,1,0),"") ->  | AB52: 44 | AC52: FALSE | AD52: 91 | AE52: FALSE | AF52: 44 | AH52: 44 | AI52: FALSE
B53: 45 | I53: =IFERROR(VLOOKUP(D53,BUS!$C$4:$AEB$888,4,0),"") ->  | P53: =IFERROR(VLOOKUP(K53,BUS!$C$4:$AEB$888,4,0),"") ->  | W53: =IFERROR(VLOOKUP(R53,BUS!$C$4:$AEB$888,4,0),"") ->  | Y53: =IFERROR(VLOOKUP(D53,'شهر 9 تفصيلي'!$B$5:$AEC$667,1,0),"") ->  | Z53: =IFERROR(VLOOKUP(K53,'شهر 9 تفصيلي'!$B$5:$AEC$667,1,0),"") ->  | AA53: =IFERROR(VLOOKUP(R53,'شهر 9 تفصيلي'!$B$5:$AEC$667,1,0),"") ->  | AB53: 45 | AC53: FALSE | AD53: 92 | AE53: FALSE | AF53: 45 | AH53: 45 | AI53: FALSE
B54: 46 | I54: =IFERROR(VLOOKUP(D54,BUS!$C$4:$AEB$888,4,0),"") ->  | P54: =IFERROR(VLOOKUP(K54,BUS!$C$4:$AEB$888,4,0),"") ->  | W54: =IFERROR(VLOOKUP(R54,BUS!$C$4:$AEB$888,4,0),"") ->  | Y54: =IFERROR(VLOOKUP(D54,'شهر 9 تفصيلي'!$B$5:$AEC$667,1,0),"") ->  | Z54: =IFERROR(VLOOKUP(K54,'شهر 9 تفصيلي'!$B$5:$AEC$667,1,0),"") ->  | AA54: =IFERROR(VLOOKUP(R54,'شهر 9 تفصيلي'!$B$5:$AEC$667,1,0),"") ->  | AB54: 46 | AC54: FALSE | AD54: 93 | AE54: FALSE | AF54: 46 | AH54: 46 | AI54: FALSE
B55: 47 | I55: =IFERROR(VLOOKUP(D55,BUS!$C$4:$AEB$888,4,0),"") ->  | P55: =IFERROR(VLOOKUP(K55,BUS!$C$4:$AEB$888,4,0),"") ->  | W55: =IFERROR(VLOOKUP(R55,BUS!$C$4:$AEB$888,4,0),"") ->  | Y55: =IFERROR(VLOOKUP(D55,'شهر 9 تفصيلي'!$B$5:$AEC$667,1,0),"") ->  | Z55: =IFERROR(VLOOKUP(K55,'شهر 9 تفصيلي'!$B$5:$AEC$667,1,0),"") ->  | AA55: =IFERROR(VLOOKUP(R55,'شهر 9 تفصيلي'!$B$5:$AEC$667,1,0),"") ->  | AB55: 47 | AC55: FALSE | AD55: 94 | AE55: FALSE | AF55: 47 | AG55: =IF(J55>0,J55) -> FALSE | AH55: 47 | AI55: FALSE
B56: 48 | I56: =IFERROR(VLOOKUP(D56,BUS!$C$4:$AEB$888,4,0),"") ->  | P56: =IFERROR(VLOOKUP(K56,BUS!$C$4:$AEB$888,4,0),"") ->  | W56: =IFERROR(VLOOKUP(R56,BUS!$C$4:$AEB$888,4,0),"") ->  | Y56: =IFERROR(VLOOKUP(D56,'شهر 9 تفصيلي'!$B$5:$AEC$667,1,0),"") ->  | Z56: =IFERROR(VLOOKUP(K56,'شهر 9 تفصيلي'!$B$5:$AEC$667,1,0),"") ->  | AA56: =IFERROR(VLOOKUP(R56,'شهر 9 تفصيلي'!$B$5:$AEC$667,1,0),"") -> 
B57: 49 | I57: =IFERROR(VLOOKUP(D57,BUS!$C$4:$AEB$888,4,0),"") ->  | P57: =IFERROR(VLOOKUP(K57,BUS!$C$4:$AEB$888,4,0),"") ->  | W57: =IFERROR(VLOOKUP(R57,BUS!$C$4:$AEB$888,4,0),"") ->  | Y57: =IFERROR(VLOOKUP(D57,'شهر 9 تفصيلي'!$B$5:$AEC$667,1,0),"") ->  | Z57: =IFERROR(VLOOKUP(K57,'شهر 9 تفصيلي'!$B$5:$AEC$667,1,0),"") ->  | AA57: =IFERROR(VLOOKUP(R57,'شهر 9 تفصيلي'!$B$5:$AEC$667,1,0),"") -> 
B58: 50 | I58: =IFERROR(VLOOKUP(D58,BUS!$C$4:$AEB$888,4,0),"") ->  | P58: =IFERROR(VLOOKUP(K58,BUS!$C$4:$AEB$888,4,0),"") ->  | W58: =IFERROR(VLOOKUP(R58,BUS!$C$4:$AEB$888,4,0),"") ->  | Y58: =IFERROR(VLOOKUP(D58,'شهر 9 تفصيلي'!$B$5:$AEC$667,1,0),"") ->  | Z58: =IFERROR(VLOOKUP(K58,'شهر 9 تفصيلي'!$B$5:$AEC$667,1,0),"") ->  | AA58: =IFERROR(VLOOKUP(R58,'شهر 9 تفصيلي'!$B$5:$AEC$667,1,0),"") -> 
B59: 51 | I59: =IFERROR(VLOOKUP(D59,BUS!$C$4:$AEB$888,4,0),"") ->  | P59: =IFERROR(VLOOKUP(K59,BUS!$C$4:$AEB$888,4,0),"") ->  | W59: =IFERROR(VLOOKUP(R59,BUS!$C$4:$AEB$888,4,0),"") ->  | Y59: =IFERROR(VLOOKUP(D59,'شهر 9 تفصيلي'!$B$5:$AEC$667,1,0),"") ->  | Z59: =IFERROR(VLOOKUP(K59,'شهر 9 تفصيلي'!$B$5:$AEC$667,1,0),"") ->  | AA59: =IFERROR(VLOOKUP(R59,'شهر 9 تفصيلي'!$B$5:$AEC$667,1,0),"") -> 
B60: 52 | I60: =IFERROR(VLOOKUP(D60,BUS!$C$4:$AEB$888,4,0),"") ->  | P60: =IFERROR(VLOOKUP(K60,BUS!$C$4:$AEB$888,4,0),"") ->  | W60: =IFERROR(VLOOKUP(R60,BUS!$C$4:$AEB$888,4,0),"") ->  | Y60: =IFERROR(VLOOKUP(D60,'شهر 9 تفصيلي'!$B$5:$AEC$667,1,0),"") ->  | Z60: =IFERROR(VLOOKUP(K60,'شهر 9 تفصيلي'!$B$5:$AEC$667,1,0),"") ->  | AA60: =IFERROR(VLOOKUP(R60,'شهر 9 تفصيلي'!$B$5:$AEC$667,1,0),"") -> 
B61: 53 | I61: =IFERROR(VLOOKUP(D61,BUS!$C$4:$AEB$888,4,0),"") ->  | P61: =IFERROR(VLOOKUP(K61,BUS!$C$4:$AEB$888,4,0),"") ->  | W61: =IFERROR(VLOOKUP(R61,BUS!$C$4:$AEB$888,4,0),"") ->  | Y61: =IFERROR(VLOOKUP(D61,'شهر 9 تفصيلي'!$B$5:$AEC$667,1,0),"") ->  | Z61: =IFERROR(VLOOKUP(K61,'شهر 9 تفصيلي'!$B$5:$AEC$667,1,0),"") ->  | AA61: =IFERROR(VLOOKUP(R61,'شهر 9 تفصيلي'!$B$5:$AEC$667,1,0),"") -> 
B62: 54 | I62: =IFERROR(VLOOKUP(D62,BUS!$C$4:$AEB$888,4,0),"") ->  | P62: =IFERROR(VLOOKUP(K62,BUS!$C$4:$AEB$888,4,0),"") ->  | W62: =IFERROR(VLOOKUP(R62,BUS!$C$4:$AEB$888,4,0),"") ->  | Y62: =IFERROR(VLOOKUP(D62,'شهر 9 تفصيلي'!$B$5:$AEC$667,1,0),"") ->  | Z62: =IFERROR(VLOOKUP(K62,'شهر 9 تفصيلي'!$B$5:$AEC$667,1,0),"") ->  | AA62: =IFERROR(VLOOKUP(R62,'شهر 9 تفصيلي'!$B$5:$AEC$667,1,0),"") -> 
B63: 55 | I63: =IFERROR(VLOOKUP(D63,BUS!$C$4:$AEB$888,4,0),"") ->  | P63: =IFERROR(VLOOKUP(K63,BUS!$C$4:$AEB$888,4,0),"") ->  | W63: =IFERROR(VLOOKUP(R63,BUS!$C$4:$AEB$888,4,0),"") ->  | Y63: =IFERROR(VLOOKUP(D63,'شهر 9 تفصيلي'!$B$5:$AEC$667,1,0),"") ->  | Z63: =IFERROR(VLOOKUP(K63,'شهر 9 تفصيلي'!$B$5:$AEC$667,1,0),"") ->  | AA63: =IFERROR(VLOOKUP(R63,'شهر 9 تفصيلي'!$B$5:$AEC$667,1,0),"") -> 
B64: 56 | I64: =IFERROR(VLOOKUP(D64,BUS!$C$4:$AEB$888,4,0),"") ->  | P64: =IFERROR(VLOOKUP(K64,BUS!$C$4:$AEB$888,4,0),"") ->  | W64: =IFERROR(VLOOKUP(R64,BUS!$C$4:$AEB$888,4,0),"") ->  | Y64: =IFERROR(VLOOKUP(D64,'شهر 9 تفصيلي'!$B$5:$AEC$667,1,0),"") ->  | Z64: =IFERROR(VLOOKUP(K64,'شهر 9 تفصيلي'!$B$5:$AEC$667,1,0),"") ->  | AA64: =IFERROR(VLOOKUP(R64,'شهر 9 تفصيلي'!$B$5:$AEC$667,1,0),"") -> 
B65: 57 | I65: =IFERROR(VLOOKUP(D65,BUS!$C$4:$AEB$888,4,0),"") ->  | P65: =IFERROR(VLOOKUP(K65,BUS!$C$4:$AEB$888,4,0),"") ->  | W65: =IFERROR(VLOOKUP(R65,BUS!$C$4:$AEB$888,4,0),"") ->  | Y65: =IFERROR(VLOOKUP(D65,'شهر 9 تفصيلي'!$B$5:$AEC$667,1,0),"") ->  | Z65: =IFERROR(VLOOKUP(K65,'شهر 9 تفصيلي'!$B$5:$AEC$667,1,0),"") ->  | AA65: =IFERROR(VLOOKUP(R65,'شهر 9 تفصيلي'!$B$5:$AEC$667,1,0),"") -> 
B66: 58 | I66: =IFERROR(VLOOKUP(D66,BUS!$C$4:$AEB$888,4,0),"") ->  | P66: =IFERROR(VLOOKUP(K66,BUS!$C$4:$AEB$888,4,0),"") ->  | W66: =IFERROR(VLOOKUP(R66,BUS!$C$4:$AEB$888,4,0),"") ->  | Y66: =IFERROR(VLOOKUP(D66,'شهر 9 تفصيلي'!$B$5:$AEC$667,1,0),"") ->  | Z66: =IFERROR(VLOOKUP(K66,'شهر 9 تفصيلي'!$B$5:$AEC$667,1,0),"") ->  | AA66: =IFERROR(VLOOKUP(R66,'شهر 9 تفصيلي'!$B$5:$AEC$667,1,0),"") -> 
B67: 59 | I67: =IFERROR(VLOOKUP(D67,BUS!$C$4:$AEB$888,4,0),"") ->  | P67: =IFERROR(VLOOKUP(K67,BUS!$C$4:$AEB$888,4,0),"") ->  | W67: =IFERROR(VLOOKUP(R67,BUS!$C$4:$AEB$888,4,0),"") ->  | Y67: =IFERROR(VLOOKUP(D67,'شهر 9 تفصيلي'!$B$5:$AEC$667,1,0),"") ->  | Z67: =IFERROR(VLOOKUP(K67,'شهر 9 تفصيلي'!$B$5:$AEC$667,1,0),"") ->  | AA67: =IFERROR(VLOOKUP(R67,'شهر 9 تفصيلي'!$B$5:$AEC$667,1,0),"") -> 
B68: 60 | I68: =IFERROR(VLOOKUP(D68,BUS!$C$4:$AEB$888,4,0),"") ->  | P68: =IFERROR(VLOOKUP(K68,BUS!$C$4:$AEB$888,4,0),"") ->  | W68: =IFERROR(VLOOKUP(R68,BUS!$C$4:$AEB$888,4,0),"") ->  | Y68: =IFERROR(VLOOKUP(D68,'شهر 9 تفصيلي'!$B$5:$AEC$667,1,0),"") ->  | Z68: =IFERROR(VLOOKUP(K68,'شهر 9 تفصيلي'!$B$5:$AEC$667,1,0),"") ->  | AA68: =IFERROR(VLOOKUP(R68,'شهر 9 تفصيلي'!$B$5:$AEC$667,1,0),"") -> 
B69: 61 | I69: =IFERROR(VLOOKUP(D69,BUS!$C$4:$AEB$888,4,0),"") ->  | P69: =IFERROR(VLOOKUP(K69,BUS!$C$4:$AEB$888,4,0),"") ->  | W69: =IFERROR(VLOOKUP(R69,BUS!$C$4:$AEB$888,4,0),"") ->  | Y69: =IFERROR(VLOOKUP(D69,'شهر 9 تفصيلي'!$B$5:$AEC$667,1,0),"") ->  | Z69: =IFERROR(VLOOKUP(K69,'شهر 9 تفصيلي'!$B$5:$AEC$667,1,0),"") ->  | AA69: =IFERROR(VLOOKUP(R69,'شهر 9 تفصيلي'!$B$5:$AEC$667,1,0),"") -> 
B70: 62 | I70: =IFERROR(VLOOKUP(D70,BUS!$C$4:$AEB$888,4,0),"") ->  | P70: =IFERROR(VLOOKUP(K70,BUS!$C$4:$AEB$888,4,0),"") ->  | W70: =IFERROR(VLOOKUP(R70,BUS!$C$4:$AEB$888,4,0),"") ->  | Y70: =IFERROR(VLOOKUP(D70,'شهر 9 تفصيلي'!$B$5:$AEC$667,1,0),"") ->  | Z70: =IFERROR(VLOOKUP(K70,'شهر 9 تفصيلي'!$B$5:$AEC$667,1,0),"") ->  | AA70: =IFERROR(VLOOKUP(R70,'شهر 9 تفصيلي'!$B$5:$AEC$667,1,0),"") -> 
B71: 63 | I71: =IFERROR(VLOOKUP(D71,BUS!$C$4:$AEB$888,4,0),"") ->  | P71: =IFERROR(VLOOKUP(K71,BUS!$C$4:$AEB$888,4,0),"") ->  | W71: =IFERROR(VLOOKUP(R71,BUS!$C$4:$AEB$888,4,0),"") ->  | Y71: =IFERROR(VLOOKUP(D71,'شهر 9 تفصيلي'!$B$5:$AEC$667,1,0),"") ->  | Z71: =IFERROR(VLOOKUP(K71,'شهر 9 تفصيلي'!$B$5:$AEC$667,1,0),"") ->  | AA71: =IFERROR(VLOOKUP(R71,'شهر 9 تفصيلي'!$B$5:$AEC$667,1,0),"") -> 
B72: 64 | I72: =IFERROR(VLOOKUP(D72,BUS!$C$4:$AEB$888,4,0),"") ->  | P72: =IFERROR(VLOOKUP(K72,BUS!$C$4:$AEB$888,4,0),"") ->  | W72: =IFERROR(VLOOKUP(R72,BUS!$C$4:$AEB$888,4,0),"") ->  | Y72: =IFERROR(VLOOKUP(D72,'شهر 9 تفصيلي'!$B$5:$AEC$667,1,0),"") ->  | Z72: =IFERROR(VLOOKUP(K72,'شهر 9 تفصيلي'!$B$5:$AEC$667,1,0),"") ->  | AA72: =IFERROR(VLOOKUP(R72,'شهر 9 تفصيلي'!$B$5:$AEC$667,1,0),"") -> 
B73: 65 | I73: =IFERROR(VLOOKUP(D73,BUS!$C$4:$AEB$888,4,0),"") ->  | P73: =IFERROR(VLOOKUP(K73,BUS!$C$4:$AEB$888,4,0),"") ->  | W73: =IFERROR(VLOOKUP(R73,BUS!$C$4:$AEB$888,4,0),"") ->  | Y73: =IFERROR(VLOOKUP(D73,'شهر 9 تفصيلي'!$B$5:$AEC$667,1,0),"") ->  | Z73: =IFERROR(VLOOKUP(K73,'شهر 9 تفصيلي'!$B$5:$AEC$667,1,0),"") ->  | AA73: =IFERROR(VLOOKUP(R73,'شهر 9 تفصيلي'!$B$5:$AEC$667,1,0),"") -> 
B74: 66 | I74: =IFERROR(VLOOKUP(D74,BUS!$C$4:$AEB$888,4,0),"") ->  | P74: =IFERROR(VLOOKUP(K74,BUS!$C$4:$AEB$888,4,0),"") ->  | W74: =IFERROR(VLOOKUP(R74,BUS!$C$4:$AEB$888,4,0),"") ->  | Y74: =IFERROR(VLOOKUP(D74,'شهر 9 تفصيلي'!$B$5:$AEC$667,1,0),"") ->  | Z74: =IFERROR(VLOOKUP(K74,'شهر 9 تفصيلي'!$B$5:$AEC$667,1,0),"") ->  | AA74: =IFERROR(VLOOKUP(R74,'شهر 9 تفصيلي'!$B$5:$AEC$667,1,0),"") -> 
B75: 67 | I75: =IFERROR(VLOOKUP(D75,BUS!$C$4:$AEB$888,4,0),"") ->  | P75: =IFERROR(VLOOKUP(K75,BUS!$C$4:$AEB$888,4,0),"") ->  | W75: =IFERROR(VLOOKUP(R75,BUS!$C$4:$AEB$888,4,0),"") ->  | Y75: =IFERROR(VLOOKUP(D75,'شهر 9 تفصيلي'!$B$5:$AEC$667,1,0),"") ->  | Z75: =IFERROR(VLOOKUP(K75,'شهر 9 تفصيلي'!$B$5:$AEC$667,1,0),"") ->  | AA75: =IFERROR(VLOOKUP(R75,'شهر 9 تفصيلي'!$B$5:$AEC$667,1,0),"") -> 
B76: 68 | I76: =IFERROR(VLOOKUP(D76,BUS!$C$4:$AEB$888,4,0),"") ->  | P76: =IFERROR(VLOOKUP(K76,BUS!$C$4:$AEB$888,4,0),"") ->  | W76: =IFERROR(VLOOKUP(R76,BUS!$C$4:$AEB$888,4,0),"") ->  | Y76: =IFERROR(VLOOKUP(D76,'شهر 9 تفصيلي'!$B$5:$AEC$667,1,0),"") ->  | Z76: =IFERROR(VLOOKUP(K76,'شهر 9 تفصيلي'!$B$5:$AEC$667,1,0),"") ->  | AA76: =IFERROR(VLOOKUP(R76,'شهر 9 تفصيلي'!$B$5:$AEC$667,1,0),"") -> 
B77: 69 | I77: =IFERROR(VLOOKUP(D77,BUS!$C$4:$AEB$888,4,0),"") ->  | P77: =IFERROR(VLOOKUP(K77,BUS!$C$4:$AEB$888,4,0),"") ->  | W77: =IFERROR(VLOOKUP(R77,BUS!$C$4:$AEB$888,4,0),"") ->  | Y77: =IFERROR(VLOOKUP(D77,'شهر 9 تفصيلي'!$B$5:$AEC$667,1,0),"") ->  | Z77: =IFERROR(VLOOKUP(K77,'شهر 9 تفصيلي'!$B$5:$AEC$667,1,0),"") ->  | AA77: =IFERROR(VLOOKUP(R77,'شهر 9 تفصيلي'!$B$5:$AEC$667,1,0),"") -> 
B78: 70 | I78: =IFERROR(VLOOKUP(D78,BUS!$C$4:$AEB$888,4,0),"") ->  | P78: =IFERROR(VLOOKUP(K78,BUS!$C$4:$AEB$888,4,0),"") ->  | W78: =IFERROR(VLOOKUP(R78,BUS!$C$4:$AEB$888,4,0),"") ->  | Y78: =IFERROR(VLOOKUP(D78,'شهر 9 تفصيلي'!$B$5:$AEC$667,1,0),"") ->  | Z78: =IFERROR(VLOOKUP(K78,'شهر 9 تفصيلي'!$B$5:$AEC$667,1,0),"") ->  | AA78: =IFERROR(VLOOKUP(R78,'شهر 9 تفصيلي'!$B$5:$AEC$667,1,0),"") -> 
B79: 71 | I79: =IFERROR(VLOOKUP(D79,BUS!$C$4:$AEB$888,4,0),"") ->  | P79: =IFERROR(VLOOKUP(K79,BUS!$C$4:$AEB$888,4,0),"") ->  | W79: =IFERROR(VLOOKUP(R79,BUS!$C$4:$AEB$888,4,0),"") ->  | Y79: =IFERROR(VLOOKUP(D79,'شهر 9 تفصيلي'!$B$5:$AEC$667,1,0),"") ->  | Z79: =IFERROR(VLOOKUP(K79,'شهر 9 تفصيلي'!$B$5:$AEC$667,1,0),"") ->  | AA79: =IFERROR(VLOOKUP(R79,'شهر 9 تفصيلي'!$B$5:$AEC$667,1,0),"") -> 
B80: 72 | I80: =IFERROR(VLOOKUP(D80,BUS!$C$4:$AEB$888,4,0),"") ->  | P80: =IFERROR(VLOOKUP(K80,BUS!$C$4:$AEB$888,4,0),"") ->  | W80: =IFERROR(VLOOKUP(R80,BUS!$C$4:$AEB$888,4,0),"") ->  | Y80: =IFERROR(VLOOKUP(D80,'شهر 9 تفصيلي'!$B$5:$AEC$667,1,0),"") ->  | Z80: =IFERROR(VLOOKUP(K80,'شهر 9 تفصيلي'!$B$5:$AEC$667,1,0),"") ->  | AA80: =IFERROR(VLOOKUP(R80,'شهر 9 تفصيلي'!$B$5:$AEC$667,1,0),"") -> 
B81: 73 | I81: =IFERROR(VLOOKUP(D81,BUS!$C$4:$AEB$888,4,0),"") ->  | P81: =IFERROR(VLOOKUP(K81,BUS!$C$4:$AEB$888,4,0),"") ->  | W81: =IFERROR(VLOOKUP(R81,BUS!$C$4:$AEB$888,4,0),"") ->  | Y81: =IFERROR(VLOOKUP(D81,'شهر 9 تفصيلي'!$B$5:$AEC$667,1,0),"") ->  | Z81: =IFERROR(VLOOKUP(K81,'شهر 9 تفصيلي'!$B$5:$AEC$667,1,0),"") ->  | AA81: =IFERROR(VLOOKUP(R81,'شهر 9 تفصيلي'!$B$5:$AEC$667,1,0),"") -> 
B82: 74 | I82: =IFERROR(VLOOKUP(D82,BUS!$C$4:$AEB$888,4,0),"") ->  | P82: =IFERROR(VLOOKUP(K82,BUS!$C$4:$AEB$888,4,0),"") ->  | W82: =IFERROR(VLOOKUP(R82,BUS!$C$4:$AEB$888,4,0),"") ->  | Y82: =IFERROR(VLOOKUP(D82,'شهر 9 تفصيلي'!$B$5:$AEC$667,1,0),"") ->  | Z82: =IFERROR(VLOOKUP(K82,'شهر 9 تفصيلي'!$B$5:$AEC$667,1,0),"") ->  | AA82: =IFERROR(VLOOKUP(R82,'شهر 9 تفصيلي'!$B$5:$AEC$667,1,0),"") -> 
B83: 75 | I83: =IFERROR(VLOOKUP(D83,BUS!$C$4:$AEB$888,4,0),"") ->  | P83: =IFERROR(VLOOKUP(K83,BUS!$C$4:$AEB$888,4,0),"") ->  | W83: =IFERROR(VLOOKUP(R83,BUS!$C$4:$AEB$888,4,0),"") ->  | Y83: =IFERROR(VLOOKUP(D83,'شهر 9 تفصيلي'!$B$5:$AEC$667,1,0),"") ->  | Z83: =IFERROR(VLOOKUP(K83,'شهر 9 تفصيلي'!$B$5:$AEC$667,1,0),"") ->  | AA83: =IFERROR(VLOOKUP(R83,'شهر 9 تفصيلي'!$B$5:$AEC$667,1,0),"") -> 
B84: 76 | I84: =IFERROR(VLOOKUP(D84,BUS!$C$4:$AEB$888,4,0),"") ->  | P84: =IFERROR(VLOOKUP(K84,BUS!$C$4:$AEB$888,4,0),"") ->  | W84: =IFERROR(VLOOKUP(R84,BUS!$C$4:$AEB$888,4,0),"") ->  | Y84: =IFERROR(VLOOKUP(D84,'شهر 9 تفصيلي'!$B$5:$AEC$667,1,0),"") ->  | Z84: =IFERROR(VLOOKUP(K84,'شهر 9 تفصيلي'!$B$5:$AEC$667,1,0),"") ->  | AA84: =IFERROR(VLOOKUP(R84,'شهر 9 تفصيلي'!$B$5:$AEC$667,1,0),"") -> 
B85: 77 | I85: =IFERROR(VLOOKUP(D85,BUS!$C$4:$AEB$888,4,0),"") ->  | P85: =IFERROR(VLOOKUP(K85,BUS!$C$4:$AEB$888,4,0),"") ->  | W85: =IFERROR(VLOOKUP(R85,BUS!$C$4:$AEB$888,4,0),"") ->  | Y85: =IFERROR(VLOOKUP(D85,'شهر 9 تفصيلي'!$B$5:$AEC$667,1,0),"") ->  | Z85: =IFERROR(VLOOKUP(K85,'شهر 9 تفصيلي'!$B$5:$AEC$667,1,0),"") ->  | AA85: =IFERROR(VLOOKUP(R85,'شهر 9 تفصيلي'!$B$5:$AEC$667,1,0),"") -> 
B86: 78 | I86: =IFERROR(VLOOKUP(D86,BUS!$C$4:$AEB$888,4,0),"") ->  | P86: =IFERROR(VLOOKUP(K86,BUS!$C$4:$AEB$888,4,0),"") ->  | W86: =IFERROR(VLOOKUP(R86,BUS!$C$4:$AEB$888,4,0),"") ->  | Y86: =IFERROR(VLOOKUP(D86,'شهر 9 تفصيلي'!$B$5:$AEC$667,1,0),"") ->  | Z86: =IFERROR(VLOOKUP(K86,'شهر 9 تفصيلي'!$B$5:$AEC$667,1,0),"") ->  | AA86: =IFERROR(VLOOKUP(R86,'شهر 9 تفصيلي'!$B$5:$AEC$667,1,0),"") -> 
B87: 79 | I87: =IFERROR(VLOOKUP(D87,BUS!$C$4:$AEB$888,4,0),"") ->  | P87: =IFERROR(VLOOKUP(K87,BUS!$C$4:$AEB$888,4,0),"") ->  | W87: =IFERROR(VLOOKUP(R87,BUS!$C$4:$AEB$888,4,0),"") ->  | Y87: =IFERROR(VLOOKUP(D87,'شهر 9 تفصيلي'!$B$5:$AEC$667,1,0),"") ->  | Z87: =IFERROR(VLOOKUP(K87,'شهر 9 تفصيلي'!$B$5:$AEC$667,1,0),"") ->  | AA87: =IFERROR(VLOOKUP(R87,'شهر 9 تفصيلي'!$B$5:$AEC$667,1,0),"") -> 
B88: 80 | I88: =IFERROR(VLOOKUP(D88,BUS!$C$4:$AEB$888,4,0),"") ->  | P88: =IFERROR(VLOOKUP(K88,BUS!$C$4:$AEB$888,4,0),"") ->  | W88: =IFERROR(VLOOKUP(R88,BUS!$C$4:$AEB$888,4,0),"") ->  | Y88: =IFERROR(VLOOKUP(D88,'شهر 9 تفصيلي'!$B$5:$AEC$667,1,0),"") ->  | Z88: =IFERROR(VLOOKUP(K88,'شهر 9 تفصيلي'!$B$5:$AEC$667,1,0),"") ->  | AA88: =IFERROR(VLOOKUP(R88,'شهر 9 تفصيلي'!$B$5:$AEC$667,1,0),"") -> 
B89: 81 | I89: =IFERROR(VLOOKUP(D89,BUS!$C$4:$AEB$888,4,0),"") ->  | P89: =IFERROR(VLOOKUP(K89,BUS!$C$4:$AEB$888,4,0),"") ->  | W89: =IFERROR(VLOOKUP(R89,BUS!$C$4:$AEB$888,4,0),"") ->  | Y89: =IFERROR(VLOOKUP(D89,'شهر 9 تفصيلي'!$B$5:$AEC$667,1,0),"") ->  | Z89: =IFERROR(VLOOKUP(K89,'شهر 9 تفصيلي'!$B$5:$AEC$667,1,0),"") ->  | AA89: =IFERROR(VLOOKUP(R89,'شهر 9 تفصيلي'!$B$5:$AEC$667,1,0),"") -> 
B90: 82 | I90: =IFERROR(VLOOKUP(D90,BUS!$C$4:$AEB$888,4,0),"") ->  | P90: =IFERROR(VLOOKUP(K90,BUS!$C$4:$AEB$888,4,0),"") ->  | W90: =IFERROR(VLOOKUP(R90,BUS!$C$4:$AEB$888,4,0),"") ->  | Y90: =IFERROR(VLOOKUP(D90,'شهر 9 تفصيلي'!$B$5:$AEC$667,1,0),"") ->  | Z90: =IFERROR(VLOOKUP(K90,'شهر 9 تفصيلي'!$B$5:$AEC$667,1,0),"") ->  | AA90: =IFERROR(VLOOKUP(R90,'شهر 9 تفصيلي'!$B$5:$AEC$667,1,0),"") -> 
B91: 83 | I91: =IFERROR(VLOOKUP(D91,BUS!$C$4:$AEB$888,4,0),"") ->  | P91: =IFERROR(VLOOKUP(K91,BUS!$C$4:$AEB$888,4,0),"") ->  | W91: =IFERROR(VLOOKUP(R91,BUS!$C$4:$AEB$888,4,0),"") ->  | Y91: =IFERROR(VLOOKUP(D91,'شهر 9 تفصيلي'!$B$5:$AEC$667,1,0),"") ->  | Z91: =IFERROR(VLOOKUP(K91,'شهر 9 تفصيلي'!$B$5:$AEC$667,1,0),"") ->  | AA91: =IFERROR(VLOOKUP(R91,'شهر 9 تفصيلي'!$B$5:$AEC$667,1,0),"") -> 
B92: 84 | I92: =IFERROR(VLOOKUP(D92,BUS!$C$4:$AEB$888,4,0),"") ->  | P92: =IFERROR(VLOOKUP(K92,BUS!$C$4:$AEB$888,4,0),"") ->  | W92: =IFERROR(VLOOKUP(R92,BUS!$C$4:$AEB$888,4,0),"") ->  | Y92: =IFERROR(VLOOKUP(D92,'شهر 9 تفصيلي'!$B$5:$AEC$667,1,0),"") ->  | Z92: =IFERROR(VLOOKUP(K92,'شهر 9 تفصيلي'!$B$5:$AEC$667,1,0),"") ->  | AA92: =IFERROR(VLOOKUP(R92,'شهر 9 تفصيلي'!$B$5:$AEC$667,1,0),"") -> 
B93: 85 | I93: =IFERROR(VLOOKUP(D93,BUS!$C$4:$AEB$888,4,0),"") ->  | P93: =IFERROR(VLOOKUP(K93,BUS!$C$4:$AEB$888,4,0),"") ->  | W93: =IFERROR(VLOOKUP(R93,BUS!$C$4:$AEB$888,4,0),"") ->  | Y93: =IFERROR(VLOOKUP(D93,'شهر 9 تفصيلي'!$B$5:$AEC$667,1,0),"") ->  | Z93: =IFERROR(VLOOKUP(K93,'شهر 9 تفصيلي'!$B$5:$AEC$667,1,0),"") ->  | AA93: =IFERROR(VLOOKUP(R93,'شهر 9 تفصيلي'!$B$5:$AEC$667,1,0),"") -> 
B94: 86 | I94: =IFERROR(VLOOKUP(D94,BUS!$C$4:$AEB$888,4,0),"") ->  | P94: =IFERROR(VLOOKUP(K94,BUS!$C$4:$AEB$888,4,0),"") ->  | W94: =IFERROR(VLOOKUP(R94,BUS!$C$4:$AEB$888,4,0),"") ->  | Y94: =IFERROR(VLOOKUP(D94,'شهر 9 تفصيلي'!$B$5:$AEC$667,1,0),"") ->  | Z94: =IFERROR(VLOOKUP(K94,'شهر 9 تفصيلي'!$B$5:$AEC$667,1,0),"") ->  | AA94: =IFERROR(VLOOKUP(R94,'شهر 9 تفصيلي'!$B$5:$AEC$667,1,0),"") -> 
B95: 87 | I95: =IFERROR(VLOOKUP(D95,BUS!$C$4:$AEB$888,4,0),"") ->  | P95: =IFERROR(VLOOKUP(K95,BUS!$C$4:$AEB$888,4,0),"") ->  | W95: =IFERROR(VLOOKUP(R95,BUS!$C$4:$AEB$888,4,0),"") ->  | Y95: =IFERROR(VLOOKUP(D95,'شهر 9 تفصيلي'!$B$5:$AEC$667,1,0),"") ->  | Z95: =IFERROR(VLOOKUP(K95,'شهر 9 تفصيلي'!$B$5:$AEC$667,1,0),"") ->  | AA95: =IFERROR(VLOOKUP(R95,'شهر 9 تفصيلي'!$B$5:$AEC$667,1,0),"") -> 
B96: 88 | I96: =IFERROR(VLOOKUP(D96,BUS!$C$4:$AEB$888,4,0),"") ->  | P96: =IFERROR(VLOOKUP(K96,BUS!$C$4:$AEB$888,4,0),"") ->  | W96: =IFERROR(VLOOKUP(R96,BUS!$C$4:$AEB$888,4,0),"") ->  | Y96: =IFERROR(VLOOKUP(D96,'شهر 9 تفصيلي'!$B$5:$AEC$667,1,0),"") ->  | Z96: =IFERROR(VLOOKUP(K96,'شهر 9 تفصيلي'!$B$5:$AEC$667,1,0),"") ->  | AA96: =IFERROR(VLOOKUP(R96,'شهر 9 تفصيلي'!$B$5:$AEC$667,1,0),"") -> 
B97: 89 | I97: =IFERROR(VLOOKUP(D97,BUS!$C$4:$AEB$888,4,0),"") ->  | P97: =IFERROR(VLOOKUP(K97,BUS!$C$4:$AEB$888,4,0),"") ->  | W97: =IFERROR(VLOOKUP(R97,BUS!$C$4:$AEB$888,4,0),"") ->  | Y97: =IFERROR(VLOOKUP(D97,'شهر 9 تفصيلي'!$B$5:$AEC$667,1,0),"") ->  | Z97: =IFERROR(VLOOKUP(K97,'شهر 9 تفصيلي'!$B$5:$AEC$667,1,0),"") ->  | AA97: =IFERROR(VLOOKUP(R97,'شهر 9 تفصيلي'!$B$5:$AEC$667,1,0),"") -> 
B98: 90 | I98: =IFERROR(VLOOKUP(D98,BUS!$C$4:$AEB$888,4,0),"") ->  | P98: =IFERROR(VLOOKUP(K98,BUS!$C$4:$AEB$888,4,0),"") ->  | W98: =IFERROR(VLOOKUP(R98,BUS!$C$4:$AEB$888,4,0),"") ->  | Y98: =IFERROR(VLOOKUP(D98,'شهر 9 تفصيلي'!$B$5:$AEC$667,1,0),"") ->  | Z98: =IFERROR(VLOOKUP(K98,'شهر 9 تفصيلي'!$B$5:$AEC$667,1,0),"") ->  | AA98: =IFERROR(VLOOKUP(R98,'شهر 9 تفصيلي'!$B$5:$AEC$667,1,0),"") -> 
B99: 91 | I99: =IFERROR(VLOOKUP(D99,BUS!$C$4:$AEB$888,4,0),"") ->  | P99: =IFERROR(VLOOKUP(K99,BUS!$C$4:$AEB$888,4,0),"") ->  | W99: =IFERROR(VLOOKUP(R99,BUS!$C$4:$AEB$888,4,0),"") ->  | Y99: =IFERROR(VLOOKUP(D99,'شهر 9 تفصيلي'!$B$5:$AEC$667,1,0),"") ->  | Z99: =IFERROR(VLOOKUP(K99,'شهر 9 تفصيلي'!$B$5:$AEC$667,1,0),"") ->  | AA99: =IFERROR(VLOOKUP(R99,'شهر 9 تفصيلي'!$B$5:$AEC$667,1,0),"") -> 
B100: 92 | I100: =IFERROR(VLOOKUP(D100,BUS!$C$4:$AEB$888,4,0),"") ->  | P100: =IFERROR(VLOOKUP(K100,BUS!$C$4:$AEB$888,4,0),"") ->  | W100: =IFERROR(VLOOKUP(R100,BUS!$C$4:$AEB$888,4,0),"") ->  | Y100: =IFERROR(VLOOKUP(D100,'شهر 9 تفصيلي'!$B$5:$AEC$667,1,0),"") ->  | Z100: =IFERROR(VLOOKUP(K100,'شهر 9 تفصيلي'!$B$5:$AEC$667,1,0),"") ->  | AA100: =IFERROR(VLOOKUP(R100,'شهر 9 تفصيلي'!$B$5:$AEC$667,1,0),"") -> 
B101: 93 | I101: =IFERROR(VLOOKUP(D101,BUS!$C$4:$AEB$888,4,0),"") ->  | P101: =IFERROR(VLOOKUP(K101,BUS!$C$4:$AEB$888,4,0),"") ->  | W101: =IFERROR(VLOOKUP(R101,BUS!$C$4:$AEB$888,4,0),"") ->  | Y101: =IFERROR(VLOOKUP(D101,'شهر 9 تفصيلي'!$B$5:$AEC$667,1,0),"") ->  | Z101: =IFERROR(VLOOKUP(K101,'شهر 9 تفصيلي'!$B$5:$AEC$667,1,0),"") ->  | AA101: =IFERROR(VLOOKUP(R101,'شهر 9 تفصيلي'!$B$5:$AEC$667,1,0),"") ->  | AB101: 95 | AC101: =IF(C103>0,C103) -> FALSE | AF101: 48 | AG101: =IF(J56>0,J56) -> FALSE | AH101: 48 | AI101: =IF(Q56>0,Q56) -> FALSE
B102: 94 | I102: =IFERROR(VLOOKUP(D102,BUS!$C$4:$AEB$888,4,0),"") ->  | P102: =IFERROR(VLOOKUP(K102,BUS!$C$4:$AEB$888,4,0),"") ->  | W102: =IFERROR(VLOOKUP(R102,BUS!$C$4:$AEB$888,4,0),"") ->  | Y102: =IFERROR(VLOOKUP(D102,'شهر 9 تفصيلي'!$B$5:$AEC$667,1,0),"") ->  | Z102: =IFERROR(VLOOKUP(K102,'شهر 9 تفصيلي'!$B$5:$AEC$667,1,0),"") ->  | AA102: =IFERROR(VLOOKUP(R102,'شهر 9 تفصيلي'!$B$5:$AEC$667,1,0),"") ->  | AB102: 96 | AC102: =IF(C104>0,C104) -> FALSE | AF102: 49 | AG102: =IF(J57>0,J57) -> FALSE | AH102: 49 | AI102: =IF(Q57>0,Q57) -> FALSE
B103: 95 | I103: =IFERROR(VLOOKUP(D103,BUS!$C$4:$AEB$888,4,0),"") ->  | P103: =IFERROR(VLOOKUP(K103,BUS!$C$4:$AEB$888,4,0),"") ->  | W103: =IFERROR(VLOOKUP(R103,BUS!$C$4:$AEB$888,4,0),"") ->  | Y103: =IFERROR(VLOOKUP(D103,'شهر 9 تفصيلي'!$B$5:$AEC$667,1,0),"") ->  | Z103: =IFERROR(VLOOKUP(K103,'شهر 9 تفصيلي'!$B$5:$AEC$667,1,0),"") ->  | AA103: =IFERROR(VLOOKUP(R103,'شهر 9 تفصيلي'!$B$5:$AEC$667,1,0),"") ->  | AB103: 97 | AC103: FALSE | AF103: 50 | AG103: FALSE | AH103: 50 | AI103: FALSE
B104: 96 | I104: =IFERROR(VLOOKUP(D104,BUS!$C$4:$AEB$888,4,0),"") ->  | P104: =IFERROR(VLOOKUP(K104,BUS!$C$4:$AEB$888,4,0),"") ->  | W104: =IFERROR(VLOOKUP(R104,BUS!$C$4:$AEB$888,4,0),"") ->  | Y104: =IFERROR(VLOOKUP(D104,'شهر 9 تفصيلي'!$B$5:$AEC$667,1,0),"") ->  | Z104: =IFERROR(VLOOKUP(K104,'شهر 9 تفصيلي'!$B$5:$AEC$667,1,0),"") ->  | AA104: =IFERROR(VLOOKUP(R104,'شهر 9 تفصيلي'!$B$5:$AEC$667,1,0),"") ->  | AB104: 98 | AC104: FALSE | AF104: 51 | AG104: FALSE | AH104: 51 | AI104: FALSE
B105: 97 | I105: =IFERROR(VLOOKUP(D105,BUS!$C$4:$AEB$888,4,0),"") ->  | P105: =IFERROR(VLOOKUP(K105,BUS!$C$4:$AEB$888,4,0),"") ->  | W105: =IFERROR(VLOOKUP(R105,BUS!$C$4:$AEB$888,4,0),"") ->  | Y105: =IFERROR(VLOOKUP(D105,'شهر 9 تفصيلي'!$B$5:$AEC$667,1,0),"") ->  | Z105: =IFERROR(VLOOKUP(K105,'شهر 9 تفصيلي'!$B$5:$AEC$667,1,0),"") ->  | AA105: =IFERROR(VLOOKUP(R105,'شهر 9 تفصيلي'!$B$5:$AEC$667,1,0),"") ->  | AB105: 99 | AC105: FALSE | AF105: 52 | AG105: FALSE | AH105: 52 | AI105: FALSE
B106: 98 | I106: =IFERROR(VLOOKUP(D106,BUS!$C$4:$AEB$888,4,0),"") ->  | P106: =IFERROR(VLOOKUP(K106,BUS!$C$4:$AEB$888,4,0),"") ->  | W106: =IFERROR(VLOOKUP(R106,BUS!$C$4:$AEB$888,4,0),"") ->  | Y106: =IFERROR(VLOOKUP(D106,'شهر 9 تفصيلي'!$B$5:$AEC$667,1,0),"") ->  | Z106: =IFERROR(VLOOKUP(K106,'شهر 9 تفصيلي'!$B$5:$AEC$667,1,0),"") ->  | AA106: =IFERROR(VLOOKUP(R106,'شهر 9 تفصيلي'!$B$5:$AEC$667,1,0),"") ->  | AB106: 100 | AC106: FALSE | AF106: 53 | AG106: FALSE | AH106: 53 | AI106: FALSE
B107: 99 | I107: =IFERROR(VLOOKUP(D107,BUS!$C$4:$AEB$888,4,0),"") ->  | P107: =IFERROR(VLOOKUP(K107,BUS!$C$4:$AEB$888,4,0),"") ->  | W107: =IFERROR(VLOOKUP(R107,BUS!$C$4:$AEB$888,4,0),"") ->  | Y107: =IFERROR(VLOOKUP(D107,'شهر 9 تفصيلي'!$B$5:$AEC$667,1,0),"") ->  | Z107: =IFERROR(VLOOKUP(K107,'شهر 9 تفصيلي'!$B$5:$AEC$667,1,0),"") ->  | AA107: =IFERROR(VLOOKUP(R107,'شهر 9 تفصيلي'!$B$5:$AEC$667,1,0),"") ->  | AB107: 101 | AC107: FALSE | AF107: 54 | AG107: FALSE | AH107: 54 | AI107: FALSE
B108: 100 | I108: =IFERROR(VLOOKUP(D108,BUS!$C$4:$AEB$888,4,0),"") ->  | P108: =IFERROR(VLOOKUP(K108,BUS!$C$4:$AEB$888,4,0),"") ->  | W108: =IFERROR(VLOOKUP(R108,BUS!$C$4:$AEB$888,4,0),"") ->  | Y108: =IFERROR(VLOOKUP(D108,'شهر 9 تفصيلي'!$B$5:$AEC$667,1,0),"") ->  | Z108: =IFERROR(VLOOKUP(K108,'شهر 9 تفصيلي'!$B$5:$AEC$667,1,0),"") ->  | AA108: =IFERROR(VLOOKUP(R108,'شهر 9 تفصيلي'!$B$5:$AEC$667,1,0),"") ->  | AB108: 102 | AC108: FALSE | AF108: 55 | AG108: FALSE | AH108: 55 | AI108: FALSE
B109: 101 | I109: =IFERROR(VLOOKUP(D109,BUS!$C$4:$AEB$888,4,0),"") ->  | P109: =IFERROR(VLOOKUP(K109,BUS!$C$4:$AEB$888,4,0),"") ->  | W109: =IFERROR(VLOOKUP(R109,BUS!$C$4:$AEB$888,4,0),"") ->  | Y109: =IFERROR(VLOOKUP(D109,'شهر 9 تفصيلي'!$B$5:$AEC$667,1,0),"") ->  | Z109: =IFERROR(VLOOKUP(K109,'شهر 9 تفصيلي'!$B$5:$AEC$667,1,0),"") ->  | AA109: =IFERROR(VLOOKUP(R109,'شهر 9 تفصيلي'!$B$5:$AEC$667,1,0),"") ->  | AB109: 103 | AC109: FALSE | AF109: 56 | AG109: FALSE | AH109: 56 | AI109: FALSE
B110: 102 | I110: =IFERROR(VLOOKUP(D110,BUS!$C$4:$AEB$888,4,0),"") ->  | P110: =IFERROR(VLOOKUP(K110,BUS!$C$4:$AEB$888,4,0),"") ->  | W110: =IFERROR(VLOOKUP(R110,BUS!$C$4:$AEB$888,4,0),"") ->  | Y110: =IFERROR(VLOOKUP(D110,'شهر 9 تفصيلي'!$B$5:$AEC$667,1,0),"") ->  | Z110: =IFERROR(VLOOKUP(K110,'شهر 9 تفصيلي'!$B$5:$AEC$667,1,0),"") ->  | AA110: =IFERROR(VLOOKUP(R110,'شهر 9 تفصيلي'!$B$5:$AEC$667,1,0),"") ->  | AB110: 104 | AC110: FALSE | AF110: 57 | AG110: FALSE | AH110: 57 | AI110: FALSE
B111: 103 | I111: =IFERROR(VLOOKUP(D111,BUS!$C$4:$AEB$888,4,0),"") ->  | P111: =IFERROR(VLOOKUP(K111,BUS!$C$4:$AEB$888,4,0),"") ->  | W111: =IFERROR(VLOOKUP(R111,BUS!$C$4:$AEB$888,4,0),"") ->  | Y111: =IFERROR(VLOOKUP(D111,'شهر 9 تفصيلي'!$B$5:$AEC$667,1,0),"") ->  | Z111: =IFERROR(VLOOKUP(K111,'شهر 9 تفصيلي'!$B$5:$AEC$667,1,0),"") ->  | AA111: =IFERROR(VLOOKUP(R111,'شهر 9 تفصيلي'!$B$5:$AEC$667,1,0),"") ->  | AB111: 105 | AC111: FALSE | AF111: 58 | AG111: FALSE | AH111: 58 | AI111: FALSE
B112: 104 | I112: =IFERROR(VLOOKUP(D112,BUS!$C$4:$AEB$888,4,0),"") ->  | P112: =IFERROR(VLOOKUP(K112,BUS!$C$4:$AEB$888,4,0),"") ->  | W112: =IFERROR(VLOOKUP(R112,BUS!$C$4:$AEB$888,4,0),"") ->  | Y112: =IFERROR(VLOOKUP(D112,'شهر 9 تفصيلي'!$B$5:$AEC$667,1,0),"") ->  | Z112: =IFERROR(VLOOKUP(K112,'شهر 9 تفصيلي'!$B$5:$AEC$667,1,0),"") ->  | AA112: =IFERROR(VLOOKUP(R112,'شهر 9 تفصيلي'!$B$5:$AEC$667,1,0),"") ->  | AB112: 106 | AC112: FALSE | AF112: 59 | AG112: FALSE | AH112: 59 | AI112: FALSE
B113: 105 | I113: =IFERROR(VLOOKUP(D113,BUS!$C$4:$AEB$888,4,0),"") ->  | P113: =IFERROR(VLOOKUP(K113,BUS!$C$4:$AEB$888,4,0),"") ->  | W113: =IFERROR(VLOOKUP(R113,BUS!$C$4:$AEB$888,4,0),"") ->  | Y113: =IFERROR(VLOOKUP(D113,'شهر 9 تفصيلي'!$B$5:$AEC$667,1,0),"") ->  | Z113: =IFERROR(VLOOKUP(K113,'شهر 9 تفصيلي'!$B$5:$AEC$667,1,0),"") ->  | AA113: =IFERROR(VLOOKUP(R113,'شهر 9 تفصيلي'!$B$5:$AEC$667,1,0),"") ->  | AB113: 107 | AC113: FALSE | AF113: 60 | AG113: FALSE | AH113: 60 | AI113: FALSE
B114: 106 | I114: =IFERROR(VLOOKUP(D114,BUS!$C$4:$AEB$888,4,0),"") ->  | P114: =IFERROR(VLOOKUP(K114,BUS!$C$4:$AEB$888,4,0),"") ->  | W114: =IFERROR(VLOOKUP(R114,BUS!$C$4:$AEB$888,4,0),"") ->  | Y114: =IFERROR(VLOOKUP(D114,'شهر 9 تفصيلي'!$B$5:$AEC$667,1,0),"") ->  | Z114: =IFERROR(VLOOKUP(K114,'شهر 9 تفصيلي'!$B$5:$AEC$667,1,0),"") ->  | AA114: =IFERROR(VLOOKUP(R114,'شهر 9 تفصيلي'!$B$5:$AEC$667,1,0),"") ->  | AB114: 108 | AC114: FALSE | AF114: 61 | AG114: FALSE | AH114: 61 | AI114: FALSE
B115: 107 | I115: =IFERROR(VLOOKUP(D115,BUS!$C$4:$AEB$888,4,0),"") ->  | P115: =IFERROR(VLOOKUP(K115,BUS!$C$4:$AEB$888,4,0),"") ->  | W115: =IFERROR(VLOOKUP(R115,BUS!$C$4:$AEB$888,4,0),"") ->  | Y115: =IFERROR(VLOOKUP(D115,'شهر 9 تفصيلي'!$B$5:$AEC$667,1,0),"") ->  | Z115: =IFERROR(VLOOKUP(K115,'شهر 9 تفصيلي'!$B$5:$AEC$667,1,0),"") ->  | AA115: =IFERROR(VLOOKUP(R115,'شهر 9 تفصيلي'!$B$5:$AEC$667,1,0),"") ->  | AB115: 109 | AC115: FALSE | AF115: 62 | AG115: FALSE | AH115: 62 | AI115: FALSE
B116: 108 | I116: =IFERROR(VLOOKUP(D116,BUS!$C$4:$AEB$888,4,0),"") ->  | P116: =IFERROR(VLOOKUP(K116,BUS!$C$4:$AEB$888,4,0),"") ->  | W116: =IFERROR(VLOOKUP(R116,BUS!$C$4:$AEB$888,4,0),"") ->  | Y116: =IFERROR(VLOOKUP(D116,'شهر 9 تفصيلي'!$B$5:$AEC$667,1,0),"") ->  | Z116: =IFERROR(VLOOKUP(K116,'شهر 9 تفصيلي'!$B$5:$AEC$667,1,0),"") ->  | AA116: =IFERROR(VLOOKUP(R116,'شهر 9 تفصيلي'!$B$5:$AEC$667,1,0),"") ->  | AB116: 110 | AC116: FALSE | AF116: 63 | AG116: FALSE | AH116: 63 | AI116: FALSE
B117: 109 | I117: =IFERROR(VLOOKUP(D117,BUS!$C$4:$AEB$888,4,0),"") ->  | P117: =IFERROR(VLOOKUP(K117,BUS!$C$4:$AEB$888,4,0),"") ->  | W117: =IFERROR(VLOOKUP(R117,BUS!$C$4:$AEB$888,4,0),"") ->  | Y117: =IFERROR(VLOOKUP(D117,'شهر 9 تفصيلي'!$B$5:$AEC$667,1,0),"") ->  | Z117: =IFERROR(VLOOKUP(K117,'شهر 9 تفصيلي'!$B$5:$AEC$667,1,0),"") ->  | AA117: =IFERROR(VLOOKUP(R117,'شهر 9 تفصيلي'!$B$5:$AEC$667,1,0),"") ->  | AB117: 111 | AC117: FALSE | AF117: 64 | AG117: FALSE | AH117: 64 | AI117: FALSE
B118: 110 | I118: =IFERROR(VLOOKUP(D118,BUS!$C$4:$AEB$888,4,0),"") ->  | P118: =IFERROR(VLOOKUP(K118,BUS!$C$4:$AEB$888,4,0),"") ->  | W118: =IFERROR(VLOOKUP(R118,BUS!$C$4:$AEB$888,4,0),"") ->  | Y118: =IFERROR(VLOOKUP(D118,'شهر 9 تفصيلي'!$B$5:$AEC$667,1,0),"") ->  | Z118: =IFERROR(VLOOKUP(K118,'شهر 9 تفصيلي'!$B$5:$AEC$667,1,0),"") ->  | AA118: =IFERROR(VLOOKUP(R118,'شهر 9 تفصيلي'!$B$5:$AEC$667,1,0),"") ->  | AB118: 112 | AC118: FALSE | AF118: 65 | AG118: FALSE | AH118: 65 | AI118: FALSE
B119: 111 | I119: =IFERROR(VLOOKUP(D119,BUS!$C$4:$AEB$888,4,0),"") ->  | P119: =IFERROR(VLOOKUP(K119,BUS!$C$4:$AEB$888,4,0),"") ->  | W119: =IFERROR(VLOOKUP(R119,BUS!$C$4:$AEB$888,4,0),"") ->  | Y119: =IFERROR(VLOOKUP(D119,'شهر 9 تفصيلي'!$B$5:$AEC$667,1,0),"") ->  | Z119: =IFERROR(VLOOKUP(K119,'شهر 9 تفصيلي'!$B$5:$AEC$667,1,0),"") ->  | AA119: =IFERROR(VLOOKUP(R119,'شهر 9 تفصيلي'!$B$5:$AEC$667,1,0),"") ->  | AB119: 113 | AC119: FALSE | AF119: 66 | AG119: FALSE | AH119: 66 | AI119: FALSE
B120: 112 | I120: =IFERROR(VLOOKUP(D120,BUS!$C$4:$AEB$888,4,0),"") ->  | P120: =IFERROR(VLOOKUP(K120,BUS!$C$4:$AEB$888,4,0),"") ->  | W120: =IFERROR(VLOOKUP(R120,BUS!$C$4:$AEB$888,4,0),"") ->  | Y120: =IFERROR(VLOOKUP(D120,'شهر 9 تفصيلي'!$B$5:$AEC$667,1,0),"") ->  | Z120: =IFERROR(VLOOKUP(K120,'شهر 9 تفصيلي'!$B$5:$AEC$667,1,0),"") ->  | AA120: =IFERROR(VLOOKUP(R120,'شهر 9 تفصيلي'!$B$5:$AEC$667,1,0),"") ->  | AB120: 114 | AC120: FALSE | AF120: 67 | AG120: FALSE | AH120: 67 | AI120: FALSE
B121: 113 | I121: =IFERROR(VLOOKUP(D121,BUS!$C$4:$AEB$888,4,0),"") ->  | P121: =IFERROR(VLOOKUP(K121,BUS!$C$4:$AEB$888,4,0),"") ->  | W121: =IFERROR(VLOOKUP(R121,BUS!$C$4:$AEB$888,4,0),"") ->  | Y121: =IFERROR(VLOOKUP(D121,'شهر 9 تفصيلي'!$B$5:$AEC$667,1,0),"") ->  | Z121: =IFERROR(VLOOKUP(K121,'شهر 9 تفصيلي'!$B$5:$AEC$667,1,0),"") ->  | AA121: =IFERROR(VLOOKUP(R121,'شهر 9 تفصيلي'!$B$5:$AEC$667,1,0),"") ->  | AB121: 115 | AC121: FALSE | AF121: 68 | AG121: FALSE | AH121: 68 | AI121: FALSE
B122: 114 | I122: =IFERROR(VLOOKUP(D122,BUS!$C$4:$AEB$888,4,0),"") ->  | P122: =IFERROR(VLOOKUP(K122,BUS!$C$4:$AEB$888,4,0),"") ->  | W122: =IFERROR(VLOOKUP(R122,BUS!$C$4:$AEB$888,4,0),"") ->  | Y122: =IFERROR(VLOOKUP(D122,'شهر 9 تفصيلي'!$B$5:$AEC$667,1,0),"") ->  | Z122: =IFERROR(VLOOKUP(K122,'شهر 9 تفصيلي'!$B$5:$AEC$667,1,0),"") ->  | AA122: =IFERROR(VLOOKUP(R122,'شهر 9 تفصيلي'!$B$5:$AEC$667,1,0),"") ->  | AB122: 116 | AC122: FALSE | AF122: 69 | AG122: FALSE | AH122: 69 | AI122: FALSE
B123: 115 | I123: =IFERROR(VLOOKUP(D123,BUS!$C$4:$AEB$888,4,0),"") ->  | P123: =IFERROR(VLOOKUP(K123,BUS!$C$4:$AEB$888,4,0),"") ->  | W123: =IFERROR(VLOOKUP(R123,BUS!$C$4:$AEB$888,4,0),"") ->  | Y123: =IFERROR(VLOOKUP(D123,'شهر 9 تفصيلي'!$B$5:$AEC$667,1,0),"") ->  | Z123: =IFERROR(VLOOKUP(K123,'شهر 9 تفصيلي'!$B$5:$AEC$667,1,0),"") ->  | AA123: =IFERROR(VLOOKUP(R123,'شهر 9 تفصيلي'!$B$5:$AEC$667,1,0),"") ->  | AB123: 117 | AC123: FALSE | AF123: 70 | AG123: FALSE | AH123: 70 | AI123: FALSE
B124: 116 | I124: =IFERROR(VLOOKUP(D124,BUS!$C$4:$AEB$888,4,0),"") ->  | P124: =IFERROR(VLOOKUP(K124,BUS!$C$4:$AEB$888,4,0),"") ->  | W124: =IFERROR(VLOOKUP(R124,BUS!$C$4:$AEB$888,4,0),"") ->  | Y124: =IFERROR(VLOOKUP(D124,'شهر 9 تفصيلي'!$B$5:$AEC$667,1,0),"") ->  | Z124: =IFERROR(VLOOKUP(K124,'شهر 9 تفصيلي'!$B$5:$AEC$667,1,0),"") ->  | AA124: =IFERROR(VLOOKUP(R124,'شهر 9 تفصيلي'!$B$5:$AEC$667,1,0),"") ->  | AB124: 118 | AC124: FALSE | AF124: 71 | AG124: FALSE | AH124: 71 | AI124: FALSE
B125: 117 | I125: =IFERROR(VLOOKUP(D125,BUS!$C$4:$AEB$888,4,0),"") ->  | P125: =IFERROR(VLOOKUP(K125,BUS!$C$4:$AEB$888,4,0),"") ->  | W125: =IFERROR(VLOOKUP(R125,BUS!$C$4:$AEB$888,4,0),"") ->  | Y125: =IFERROR(VLOOKUP(D125,'شهر 9 تفصيلي'!$B$5:$AEC$667,1,0),"") ->  | Z125: =IFERROR(VLOOKUP(K125,'شهر 9 تفصيلي'!$B$5:$AEC$667,1,0),"") ->  | AA125: =IFERROR(VLOOKUP(R125,'شهر 9 تفصيلي'!$B$5:$AEC$667,1,0),"") ->  | AB125: 119 | AC125: FALSE | AF125: 72 | AG125: FALSE | AH125: 72 | AI125: FALSE
B126: 118 | I126: =IFERROR(VLOOKUP(D126,BUS!$C$4:$AEB$888,4,0),"") ->  | P126: =IFERROR(VLOOKUP(K126,BUS!$C$4:$AEB$888,4,0),"") ->  | W126: =IFERROR(VLOOKUP(R126,BUS!$C$4:$AEB$888,4,0),"") ->  | Y126: =IFERROR(VLOOKUP(D126,'شهر 9 تفصيلي'!$B$5:$AEC$667,1,0),"") ->  | Z126: =IFERROR(VLOOKUP(K126,'شهر 9 تفصيلي'!$B$5:$AEC$667,1,0),"") ->  | AA126: =IFERROR(VLOOKUP(R126,'شهر 9 تفصيلي'!$B$5:$AEC$667,1,0),"") ->  | AB126: 120 | AC126: FALSE | AF126: 73 | AG126: FALSE | AH126: 73 | AI126: FALSE
B127: 119 | I127: =IFERROR(VLOOKUP(D127,BUS!$C$4:$AEB$888,4,0),"") ->  | P127: =IFERROR(VLOOKUP(K127,BUS!$C$4:$AEB$888,4,0),"") ->  | W127: =IFERROR(VLOOKUP(R127,BUS!$C$4:$AEB$888,4,0),"") ->  | Y127: =IFERROR(VLOOKUP(D127,'شهر 9 تفصيلي'!$B$5:$AEC$667,1,0),"") ->  | Z127: =IFERROR(VLOOKUP(K127,'شهر 9 تفصيلي'!$B$5:$AEC$667,1,0),"") ->  | AA127: =IFERROR(VLOOKUP(R127,'شهر 9 تفصيلي'!$B$5:$AEC$667,1,0),"") ->  | AB127: 121 | AC127: FALSE | AF127: 74 | AG127: FALSE | AH127: 74 | AI127: FALSE
B128: 120 | I128: =IFERROR(VLOOKUP(D128,BUS!$C$4:$AEB$888,4,0),"") ->  | P128: =IFERROR(VLOOKUP(K128,BUS!$C$4:$AEB$888,4,0),"") ->  | W128: =IFERROR(VLOOKUP(R128,BUS!$C$4:$AEB$888,4,0),"") ->  | Y128: =IFERROR(VLOOKUP(D128,'شهر 9 تفصيلي'!$B$5:$AEC$667,1,0),"") ->  | Z128: =IFERROR(VLOOKUP(K128,'شهر 9 تفصيلي'!$B$5:$AEC$667,1,0),"") ->  | AA128: =IFERROR(VLOOKUP(R128,'شهر 9 تفصيلي'!$B$5:$AEC$667,1,0),"") ->  | AB128: 122 | AC128: FALSE | AF128: 75 | AG128: FALSE | AH128: 75 | AI128: FALSE
B129: 121 | I129: =IFERROR(VLOOKUP(D129,BUS!$C$4:$AEB$888,4,0),"") ->  | P129: =IFERROR(VLOOKUP(K129,BUS!$C$4:$AEB$888,4,0),"") ->  | W129: =IFERROR(VLOOKUP(R129,BUS!$C$4:$AEB$888,4,0),"") ->  | Y129: =IFERROR(VLOOKUP(D129,'شهر 9 تفصيلي'!$B$5:$AEC$667,1,0),"") ->  | Z129: =IFERROR(VLOOKUP(K129,'شهر 9 تفصيلي'!$B$5:$AEC$667,1,0),"") ->  | AA129: =IFERROR(VLOOKUP(R129,'شهر 9 تفصيلي'!$B$5:$AEC$667,1,0),"") ->  | AB129: 123 | AC129: FALSE | AF129: 76 | AG129: FALSE | AH129: 76 | AI129: FALSE
B130: 122 | I130: =IFERROR(VLOOKUP(D130,BUS!$C$4:$AEB$888,4,0),"") ->  | P130: =IFERROR(VLOOKUP(K130,BUS!$C$4:$AEB$888,4,0),"") ->  | W130: =IFERROR(VLOOKUP(R130,BUS!$C$4:$AEB$888,4,0),"") ->  | Y130: =IFERROR(VLOOKUP(D130,'شهر 9 تفصيلي'!$B$5:$AEC$667,1,0),"") ->  | Z130: =IFERROR(VLOOKUP(K130,'شهر 9 تفصيلي'!$B$5:$AEC$667,1,0),"") ->  | AA130: =IFERROR(VLOOKUP(R130,'شهر 9 تفصيلي'!$B$5:$AEC$667,1,0),"") ->  | AB130: 124 | AC130: FALSE | AF130: 77 | AG130: FALSE | AH130: 77 | AI130: FALSE
B131: 123 | I131: =IFERROR(VLOOKUP(D131,BUS!$C$4:$AEB$888,4,0),"") ->  | P131: =IFERROR(VLOOKUP(K131,BUS!$C$4:$AEB$888,4,0),"") ->  | W131: =IFERROR(VLOOKUP(R131,BUS!$C$4:$AEB$888,4,0),"") ->  | Y131: =IFERROR(VLOOKUP(D131,'شهر 9 تفصيلي'!$B$5:$AEC$667,1,0),"") ->  | Z131: =IFERROR(VLOOKUP(K131,'شهر 9 تفصيلي'!$B$5:$AEC$667,1,0),"") ->  | AA131: =IFERROR(VLOOKUP(R131,'شهر 9 تفصيلي'!$B$5:$AEC$667,1,0),"") ->  | AB131: 125 | AC131: FALSE | AF131: 78 | AG131: FALSE | AH131: 78 | AI131: FALSE
B132: 124 | I132: =IFERROR(VLOOKUP(D132,BUS!$C$4:$AEB$888,4,0),"") ->  | P132: =IFERROR(VLOOKUP(K132,BUS!$C$4:$AEB$888,4,0),"") ->  | W132: =IFERROR(VLOOKUP(R132,BUS!$C$4:$AEB$888,4,0),"") ->  | Y132: =IFERROR(VLOOKUP(D132,'شهر 9 تفصيلي'!$B$5:$AEC$667,1,0),"") ->  | Z132: =IFERROR(VLOOKUP(K132,'شهر 9 تفصيلي'!$B$5:$AEC$667,1,0),"") ->  | AA132: =IFERROR(VLOOKUP(R132,'شهر 9 تفصيلي'!$B$5:$AEC$667,1,0),"") ->  | AB132: 126 | AC132: FALSE | AF132: 79 | AG132: FALSE | AH132: 79 | AI132: FALSE
B133: 125 | I133: =IFERROR(VLOOKUP(D133,BUS!$C$4:$AEB$888,4,0),"") ->  | P133: =IFERROR(VLOOKUP(K133,BUS!$C$4:$AEB$888,4,0),"") ->  | W133: =IFERROR(VLOOKUP(R133,BUS!$C$4:$AEB$888,4,0),"") ->  | Y133: =IFERROR(VLOOKUP(D133,'شهر 9 تفصيلي'!$B$5:$AEC$667,1,0),"") ->  | Z133: =IFERROR(VLOOKUP(K133,'شهر 9 تفصيلي'!$B$5:$AEC$667,1,0),"") ->  | AA133: =IFERROR(VLOOKUP(R133,'شهر 9 تفصيلي'!$B$5:$AEC$667,1,0),"") ->  | AB133: 127 | AC133: FALSE | AF133: 80 | AG133: FALSE | AH133: 80 | AI133: FALSE
B134: 126 | I134: =IFERROR(VLOOKUP(D134,BUS!$C$4:$AEB$888,4,0),"") ->  | P134: =IFERROR(VLOOKUP(K134,BUS!$C$4:$AEB$888,4,0),"") ->  | W134: =IFERROR(VLOOKUP(R134,BUS!$C$4:$AEB$888,4,0),"") ->  | Y134: =IFERROR(VLOOKUP(D134,'شهر 9 تفصيلي'!$B$5:$AEC$667,1,0),"") ->  | Z134: =IFERROR(VLOOKUP(K134,'شهر 9 تفصيلي'!$B$5:$AEC$667,1,0),"") ->  | AA134: =IFERROR(VLOOKUP(R134,'شهر 9 تفصيلي'!$B$5:$AEC$667,1,0),"") ->  | AB134: 128 | AC134: FALSE | AF134: 81 | AG134: FALSE | AH134: 81 | AI134: FALSE
B135: 127 | I135: =IFERROR(VLOOKUP(D135,BUS!$C$4:$AEB$888,4,0),"") ->  | P135: =IFERROR(VLOOKUP(K135,BUS!$C$4:$AEB$888,4,0),"") ->  | W135: =IFERROR(VLOOKUP(R135,BUS!$C$4:$AEB$888,4,0),"") ->  | Y135: =IFERROR(VLOOKUP(D135,'شهر 9 تفصيلي'!$B$5:$AEC$667,1,0),"") ->  | Z135: =IFERROR(VLOOKUP(K135,'شهر 9 تفصيلي'!$B$5:$AEC$667,1,0),"") ->  | AA135: =IFERROR(VLOOKUP(R135,'شهر 9 تفصيلي'!$B$5:$AEC$667,1,0),"") ->  | AB135: 129 | AC135: FALSE | AF135: 82 | AG135: FALSE | AH135: 82 | AI135: FALSE
B136: 128 | I136: =IFERROR(VLOOKUP(D136,BUS!$C$4:$AEB$888,4,0),"") ->  | P136: =IFERROR(VLOOKUP(K136,BUS!$C$4:$AEB$888,4,0),"") ->  | W136: =IFERROR(VLOOKUP(R136,BUS!$C$4:$AEB$888,4,0),"") ->  | Y136: =IFERROR(VLOOKUP(D136,'شهر 9 تفصيلي'!$B$5:$AEC$667,1,0),"") ->  | Z136: =IFERROR(VLOOKUP(K136,'شهر 9 تفصيلي'!$B$5:$AEC$667,1,0),"") ->  | AA136: =IFERROR(VLOOKUP(R136,'شهر 9 تفصيلي'!$B$5:$AEC$667,1,0),"") ->  | AB136: 130 | AC136: FALSE | AF136: 83 | AG136: FALSE | AH136: 83 | AI136: FALSE
B137: 129 | I137: =IFERROR(VLOOKUP(D137,BUS!$C$4:$AEB$888,4,0),"") ->  | P137: =IFERROR(VLOOKUP(K137,BUS!$C$4:$AEB$888,4,0),"") ->  | W137: =IFERROR(VLOOKUP(R137,BUS!$C$4:$AEB$888,4,0),"") ->  | Y137: =IFERROR(VLOOKUP(D137,'شهر 9 تفصيلي'!$B$5:$AEC$667,1,0),"") ->  | Z137: =IFERROR(VLOOKUP(K137,'شهر 9 تفصيلي'!$B$5:$AEC$667,1,0),"") ->  | AA137: =IFERROR(VLOOKUP(R137,'شهر 9 تفصيلي'!$B$5:$AEC$667,1,0),"") ->  | AB137: 131 | AC137: FALSE | AF137: 84 | AG137: FALSE | AH137: 84 | AI137: FALSE
B138: 130 | I138: =IFERROR(VLOOKUP(D138,BUS!$C$4:$AEB$888,4,0),"") ->  | P138: =IFERROR(VLOOKUP(K138,BUS!$C$4:$AEB$888,4,0),"") ->  | W138: =IFERROR(VLOOKUP(R138,BUS!$C$4:$AEB$888,4,0),"") ->  | Y138: =IFERROR(VLOOKUP(D138,'شهر 9 تفصيلي'!$B$5:$AEC$667,1,0),"") ->  | Z138: =IFERROR(VLOOKUP(K138,'شهر 9 تفصيلي'!$B$5:$AEC$667,1,0),"") ->  | AA138: =IFERROR(VLOOKUP(R138,'شهر 9 تفصيلي'!$B$5:$AEC$667,1,0),"") ->  | AB138: 132 | AC138: FALSE | AF138: 85 | AG138: FALSE | AH138: 85 | AI138: FALSE
B139: 131 | I139: =IFERROR(VLOOKUP(D139,BUS!$C$4:$AEB$888,4,0),"") ->  | P139: =IFERROR(VLOOKUP(K139,BUS!$C$4:$AEB$888,4,0),"") ->  | W139: =IFERROR(VLOOKUP(R139,BUS!$C$4:$AEB$888,4,0),"") ->  | Y139: =IFERROR(VLOOKUP(D139,'شهر 9 تفصيلي'!$B$5:$AEC$667,1,0),"") ->  | Z139: =IFERROR(VLOOKUP(K139,'شهر 9 تفصيلي'!$B$5:$AEC$667,1,0),"") ->  | AA139: =IFERROR(VLOOKUP(R139,'شهر 9 تفصيلي'!$B$5:$AEC$667,1,0),"") ->  | AB139: 133 | AC139: FALSE | AF139: 86 | AG139: FALSE | AH139: 86 | AI139: FALSE
B140: 132 | I140: =IFERROR(VLOOKUP(D140,BUS!$C$4:$AEB$888,4,0),"") ->  | P140: =IFERROR(VLOOKUP(K140,BUS!$C$4:$AEB$888,4,0),"") ->  | W140: =IFERROR(VLOOKUP(R140,BUS!$C$4:$AEB$888,4,0),"") ->  | Y140: =IFERROR(VLOOKUP(D140,'شهر 9 تفصيلي'!$B$5:$AEC$667,1,0),"") ->  | Z140: =IFERROR(VLOOKUP(K140,'شهر 9 تفصيلي'!$B$5:$AEC$667,1,0),"") ->  | AA140: =IFERROR(VLOOKUP(R140,'شهر 9 تفصيلي'!$B$5:$AEC$667,1,0),"") ->  | AB140: 134 | AC140: FALSE | AF140: 87 | AG140: FALSE | AH140: 87 | AI140: FALSE
B141: 133 | I141: =IFERROR(VLOOKUP(D141,BUS!$C$4:$AEB$888,4,0),"") ->  | P141: =IFERROR(VLOOKUP(K141,BUS!$C$4:$AEB$888,4,0),"") ->  | W141: =IFERROR(VLOOKUP(R141,BUS!$C$4:$AEB$888,4,0),"") ->  | Y141: =IFERROR(VLOOKUP(D141,'شهر 9 تفصيلي'!$B$5:$AEC$667,1,0),"") ->  | Z141: =IFERROR(VLOOKUP(K141,'شهر 9 تفصيلي'!$B$5:$AEC$667,1,0),"") ->  | AA141: =IFERROR(VLOOKUP(R141,'شهر 9 تفصيلي'!$B$5:$AEC$667,1,0),"") ->  | AB141: 135 | AC141: FALSE | AF141: 88 | AG141: FALSE | AH141: 88 | AI141: FALSE
B142: 134 | I142: =IFERROR(VLOOKUP(D142,BUS!$C$4:$AEB$888,4,0),"") ->  | P142: =IFERROR(VLOOKUP(K142,BUS!$C$4:$AEB$888,4,0),"") ->  | W142: =IFERROR(VLOOKUP(R142,BUS!$C$4:$AEB$888,4,0),"") ->  | Y142: =IFERROR(VLOOKUP(D142,'شهر 9 تفصيلي'!$B$5:$AEC$667,1,0),"") ->  | Z142: =IFERROR(VLOOKUP(K142,'شهر 9 تفصيلي'!$B$5:$AEC$667,1,0),"") ->  | AA142: =IFERROR(VLOOKUP(R142,'شهر 9 تفصيلي'!$B$5:$AEC$667,1,0),"") ->  | AB142: 136 | AC142: FALSE | AF142: 89 | AG142: FALSE | AH142: 89 | AI142: FALSE
B143: 135 | I143: =IFERROR(VLOOKUP(D143,BUS!$C$4:$AEB$888,4,0),"") ->  | P143: =IFERROR(VLOOKUP(K143,BUS!$C$4:$AEB$888,4,0),"") ->  | W143: =IFERROR(VLOOKUP(R143,BUS!$C$4:$AEB$888,4,0),"") ->  | Y143: =IFERROR(VLOOKUP(D143,'شهر 9 تفصيلي'!$B$5:$AEC$667,1,0),"") ->  | Z143: =IFERROR(VLOOKUP(K143,'شهر 9 تفصيلي'!$B$5:$AEC$667,1,0),"") ->  | AA143: =IFERROR(VLOOKUP(R143,'شهر 9 تفصيلي'!$B$5:$AEC$667,1,0),"") ->  | AB143: 137 | AC143: FALSE | AF143: 90 | AG143: FALSE | AH143: 90 | AI143: FALSE
B144: 136 | I144: =IFERROR(VLOOKUP(D144,BUS!$C$4:$AEB$888,4,0),"") ->  | P144: =IFERROR(VLOOKUP(K144,BUS!$C$4:$AEB$888,4,0),"") ->  | W144: =IFERROR(VLOOKUP(R144,BUS!$C$4:$AEB$888,4,0),"") ->  | Y144: =IFERROR(VLOOKUP(D144,'شهر 9 تفصيلي'!$B$5:$AEC$667,1,0),"") ->  | Z144: =IFERROR(VLOOKUP(K144,'شهر 9 تفصيلي'!$B$5:$AEC$667,1,0),"") ->  | AA144: =IFERROR(VLOOKUP(R144,'شهر 9 تفصيلي'!$B$5:$AEC$667,1,0),"") -> 
B145: 137 | I145: =IFERROR(VLOOKUP(D145,BUS!$C$4:$AEB$888,4,0),"") ->  | P145: =IFERROR(VLOOKUP(K145,BUS!$C$4:$AEB$888,4,0),"") ->  | W145: =IFERROR(VLOOKUP(R145,BUS!$C$4:$AEB$888,4,0),"") ->  | Y145: =IFERROR(VLOOKUP(D145,'شهر 9 تفصيلي'!$B$5:$AEC$667,1,0),"") ->  | Z145: =IFERROR(VLOOKUP(K145,'شهر 9 تفصيلي'!$B$5:$AEC$667,1,0),"") ->  | AA145: =IFERROR(VLOOKUP(R145,'شهر 9 تفصيلي'!$B$5:$AEC$667,1,0),"") -> 
B146: TOTAL | F146: =SUM(F9:F145) -> 0 | I146: ـــــــــــــــــــــــــــــــــــ | K146: TOTAL | M146: =SUM(M9:M145) -> 0 | P146: ـــــــــــــــــــــــــــــــــــ | R146: TOTAL | T146: =SUM(T9:T145) -> 0 | W146: ـــــــــــــــــــــــــــــــــــ
B147: Area manager | D147: Operation manager ( Bus D.) | K147: General manager ( Bus D) | T147: Maher-Hassan-2018

Sheet 1
M3: : | T3: :
AH5: محطة خشمان ( الماسة 7 )
H6: Checking the station manager | AH6: كشف بأرقام الفواتير اليومية
H7: ='شهر 9 تفصيلي'!$A$1 -> 2021-09-01 | L7: التاريخ / | O7: =#REF! ->  | S7: اليـــوم / | V7: محطة خشمان ( الماسة 7 ) | AC7: 1 | AH7: =H7 -> 2021-09-01 | AL7: =O7 -> 
A8: ديزل | B8: 95 | C8: 91 | D8: ديزل | E8: 95 | F8: 91 | H8: S.NO | I8: رقم الفاتوره ديزل | J8: BUS | K8: الكيلو D | L8: D | M8: الوقت | N8: المراقب | O8: To | P8: رقم الفاتوره 95 | Q8: BUS | R8: الكيلو 95 | S8: 95 | T8: الوقت | U8: المراقب | V8: To | W8: رقم الفاتوره 91 | X8: BUS | Y8: الكيلو 91 | Z8: 91 | AA8: الوقت | AB8: المراقب | AC8: To | AI8: رقم الفاتوره ديزل | AK8: رقم الفاتوره ديزل | AM8: رقم الفاتوره 95 | AO8: رقم الفاتوره 91
A9: =J9&K9 -> 1205 | B9: =Q9&R9 -> 1588 | C9: =X9&Y9 -> 4016 | D9: =N9&$H$7&COUNTIF($N$9:N9,N9) -> 444400 | E9: =U9&$H$7&COUNTIF($U$9:U9,U9) -> 444400 | F9: =AB9&$H$7&COUNTIF($AB$9:AB9,AB9) -> 444400 | H9: 1 | I9: 20185 | J9: 1205 | L9: 100 | O9: =IFERROR(VLOOKUP(J9,BUS!$C$4:$AEB$888,4,0),"") -> MUB | P9: 1213 | Q9: 1588 | S9: 69 | V9: =IFERROR(VLOOKUP(Q9,BUS!$C$4:$AEB$888,4,0),"") -> UDH | W9: 4050 | X9: 4016 | Z9: 36 | AC9: =IFERROR(VLOOKUP(X9,BUS!$C$4:$AEB$888,4,0),"") -> MUB | AE9: =IFERROR(VLOOKUP(J9,'شهر 9 تفصيلي'!$B$5:$AEC$667,1,0),"") ->  | AF9: =IFERROR(VLOOKUP(Q9,'شهر 9 تفصيلي'!$B$5:$AEC$667,1,0),"") ->  | AG9: =IFERROR(VLOOKUP(X9,'شهر 9 تفصيلي'!$B$5:$AEC$667,1,0),"") -> 4016 | AH9: 1 | AI9: =IF(I9>0,I9) -> 20185 | AJ9: 48 | AK9: =IF(I56>0,I56) -> 20233 | AL9: 1 | AM9: =IF(P9>0,P9) -> 1213 | AN9: 1 | AO9: =IF(W9>0,W9) -> 4050
A10: =J10&K10 -> 1040 | B10: =Q10&R10 -> 1589 | C10: =X10&Y10 -> 6027 | D10: =N10&$H$7&COUNTIF($N$9:N10,N10) -> 444400 | E10: =U10&$H$7&COUNTIF($U$9:U10,U10) -> 444400 | F10: =AB10&$H$7&COUNTIF($AB$9:AB10,AB10) -> 444400 | H10: 2 | I10: 20186 | J10: 1040 | L10: 133 | O10: =IFERROR(VLOOKUP(J10,BUS!$C$4:$AEB$888,4,0),"") -> MUB | P10: 1214 | Q10: 1589 | S10: 88 | V10: =IFERROR(VLOOKUP(Q10,BUS!$C$4:$AEB$888,4,0),"") -> UDH | W10: 4049 | X10: 6027 | Z10: 40 | AC10: =IFERROR(VLOOKUP(X10,BUS!$C$4:$AEB$888,4,0),"") -> MUB | AE10: =IFERROR(VLOOKUP(J10,'شهر 9 تفصيلي'!$B$5:$AEC$667,1,0),"") ->  | AF10: =IFERROR(VLOOKUP(Q10,'شهر 9 تفصيلي'!$B$5:$AEC$667,1,0),"") ->  | AG10: =IFERROR(VLOOKUP(X10,'شهر 9 تفصيلي'!$B$5:$AEC$667,1,0),"") ->  | AH10: 2 | AI10: =IF(I10>0,I10) -> 20186 | AJ10: 49 | AK10: =IF(I57>0,I57) -> 20234 | AL10: 2 | AM10: =IF(P10>0,P10) -> 1214 | AN10: 2 | AO10: =IF(W10>0,W10) -> 4049
A11: 1261 | B11: 1611 | C11: se81 | D11: =N11&$H$7&COUNTIF($N$9:N11,N11) -> 444400 | E11: =U11&$H$7&COUNTIF($U$9:U11,U11) -> 444400 | F11: =AB11&$H$7&COUNTIF($AB$9:AB11,AB11) -> 444400 | H11: 3 | I11: 20187 | J11: 1261 | L11: 90 | O11: =IFERROR(VLOOKUP(J11,BUS!$C$4:$AEB$888,4,0),"") -> DHA | P11: 1215 | Q11: 1611 | S11: 79 | V11: =IFERROR(VLOOKUP(Q11,BUS!$C$4:$AEB$888,4,0),"") -> UDH | W11: 4040 | X11: se81 | Z11: 24 | AC11: =IFERROR(VLOOKUP(X11,BUS!$C$4:$AEB$888,4,0),"") -> MUB | AE11: =IFERROR(VLOOKUP(J11,'شهر 9 تفصيلي'!$B$5:$AEC$667,1,0),"") ->  | AF11: =IFERROR(VLOOKUP(Q11,'شهر 9 تفصيلي'!$B$5:$AEC$667,1,0),"") ->  | AG11: =IFERROR(VLOOKUP(X11,'شهر 9 تفصيلي'!$B$5:$AEC$667,1,0),"") ->  | AH11: 3 | AI11: 20187 | AJ11: 50 | AK11: 20237 | AL11: 3 | AM11: 1215 | AN11: 3 | AO11: 4040
A12: 1659 | B12: 1565 | C12: 6027 | D12: =N12&$H$7&COUNTIF($N$9:N12,N12) -> 444400 | E12: =U12&$H$7&COUNTIF($U$9:U12,U12) -> 444400 | F12: =AB12&$H$7&COUNTIF($AB$9:AB12,AB12) -> 444400 | H12: 4 | I12: 20188 | J12: 1659 | L12: 44 | O12: =IFERROR(VLOOKUP(J12,BUS!$C$4:$AEB$888,4,0),"") -> MUB | P12: 1216 | Q12: 1565 | S12: 49 | V12: =IFERROR(VLOOKUP(Q12,BUS!$C$4:$AEB$888,4,0),"") -> UDH | W12: 4041 | X12: 6027 | Z12: 57 | AC12: =IFERROR(VLOOKUP(X12,BUS!$C$4:$AEB$888,4,0),"") -> MUB | AE12: =IFERROR(VLOOKUP(J12,'شهر 9 تفصيلي'!$B$5:$AEC$667,1,0),"") ->  | AF12: =IFERROR(VLOOKUP(Q12,'شهر 9 تفصيلي'!$B$5:$AEC$667,1,0),"") ->  | AG12: =IFERROR(VLOOKUP(X12,'شهر 9 تفصيلي'!$B$5:$AEC$667,1,0),"") ->  | AH12: 4 | AI12: 20188 | AJ12: 51 | AK12: 20257 | AL12: 4 | AM12: 1216 | AN12: 4 | AO12: 4041
A13: 1114 | B13: 1503 | C13: 6005 | D13: =N13&$H$7&COUNTIF($N$9:N13,N13) -> 444400 | E13: =U13&$H$7&COUNTIF($U$9:U13,U13) -> 444400 | F13: =AB13&$H$7&COUNTIF($AB$9:AB13,AB13) -> 444400 | H13: 5 | I13: 20189 | J13: 1114 | L13: 142 | O13: =IFERROR(VLOOKUP(J13,BUS!$C$4:$AEB$888,4,0),"") -> DHA | P13: 1217 | Q13: 1503 | S13: 50 | V13: =IFERROR(VLOOKUP(Q13,BUS!$C$4:$AEB$888,4,0),"") -> MUB | W13: 4042 | X13: 6005 | Z13: 45 | AC13: =IFERROR(VLOOKUP(X13,BUS!$C$4:$AEB$888,4,0),"") -> MUB | AE13: =IFERROR(VLOOKUP(J13,'شهر 9 تفصيلي'!$B$5:$AEC$667,1,0),"") ->  | AF13: =IFERROR(VLOOKUP(Q13,'شهر 9 تفصيلي'!$B$5:$AEC$667,1,0),"") -> 1503 | AG13: =IFERROR(VLOOKUP(X13,'شهر 9 تفصيلي'!$B$5:$AEC$667,1,0),"") ->  | AH13: 5 | AI13: 20189 | AJ13: 52 | AK13: 20251 | AL13: 5 | AM13: 1217 | AN13: 5 | AO13: 4042
A14: 1255 | B14: 1525 | C14: 4157 | D14: =N14&$H$7&COUNTIF($N$9:N14,N14) -> 444400 | E14: =U14&$H$7&COUNTIF($U$9:U14,U14) -> 444400 | F14: =AB14&$H$7&COUNTIF($AB$9:AB14,AB14) -> 444400 | H14: 6 | I14: 20190 | J14: 1255 | L14: 131 | O14: =IFERROR(VLOOKUP(J14,BUS!$C$4:$AEB$888,4,0),"") -> DHA | P14: 1219 | Q14: 1525 | S14: 55 | V14: =IFERROR(VLOOKUP(Q14,BUS!$C$4:$AEB$888,4,0),"") -> MUB | W14: 4043 | X14: 4157 | Z14: 20 | AC14: =IFERROR(VLOOKUP(X14,BUS!$C$4:$AEB$888,4,0),"") -> MUB | AE14: =IFERROR(VLOOKUP(J14,'شهر 9 تفصيلي'!$B$5:$AEC$667,1,0),"") ->  | AF14: =IFERROR(VLOOKUP(Q14,'شهر 9 تفصيلي'!$B$5:$AEC$667,1,0),"") -> 1525 | AG14: =IFERROR(VLOOKUP(X14,'شهر 9 تفصيلي'!$B$5:$AEC$667,1,0),"") ->  | AH14: 6 | AI14: 20190 | AJ14: 53 | AK14: 20252 | AL14: 6 | AM14: 1219 | AN14: 6 | AO14: 4043
A15: 1050 | B15: 1506 | C15: 4013 | D15: =N15&$H$7&COUNTIF($N$9:N15,N15) -> 444400 | E15: =U15&$H$7&COUNTIF($U$9:U15,U15) -> 444400 | F15: =AB15&$H$7&COUNTIF($AB$9:AB15,AB15) -> 444400 | H15: 7 | I15: 20191 | J15: 1050 | L15: 136 | O15: =IFERROR(VLOOKUP(J15,BUS!$C$4:$AEB$888,4,0),"") -> DHA | P15: 1218 | Q15: 1506 | S15: 102 | V15: =IFERROR(VLOOKUP(Q15,BUS!$C$4:$AEB$888,4,0),"") -> MUB | W15: 4044 | X15: 4013 | Z15: 23 | AC15: =IFERROR(VLOOKUP(X15,BUS!$C$4:$AEB$888,4,0),"") -> MUB | AE15: =IFERROR(VLOOKUP(J15,'شهر 9 تفصيلي'!$B$5:$AEC$667,1,0),"") ->  | AF15: =IFERROR(VLOOKUP(Q15,'شهر 9 تفصيلي'!$B$5:$AEC$667,1,0),"") -> 1506 | AG15: =IFERROR(VLOOKUP(X15,'شهر 9 تفصيلي'!$B$5:$AEC$667,1,0),"") -> 4013 | AH15: 7 | AI15: 20191 | AJ15: 54 | AK15: 20253 | AL15: 7 | AM15: 1218 | AN15: 7 | AO15: 4044
A16: 1204 | B16: 1565 | C16: 4091 | D16: =N16&$H$7&COUNTIF($N$9:N16,N16) -> 444400 | E16: =U16&$H$7&COUNTIF($U$9:U16,U16) -> 444400 | F16: =AB16&$H$7&COUNTIF($AB$9:AB16,AB16) -> 444400 | H16: 8 | I16: 20192 | J16: 1204 | L16: 60 | O16: =IFERROR(VLOOKUP(J16,BUS!$C$4:$AEB$888,4,0),"") -> MUB | P16: 1202 | Q16: 1565 | S16: 68 | V16: =IFERROR(VLOOKUP(Q16,BUS!$C$4:$AEB$888,4,0),"") -> UDH | W16: 4046 | X16: 4091 | Z16: 25 | AC16: =IFERROR(VLOOKUP(X16,BUS!$C$4:$AEB$888,4,0),"") -> MUB | AE16: =IFERROR(VLOOKUP(J16,'شهر 9 تفصيلي'!$B$5:$AEC$667,1,0),"") ->  | AF16: =IFERROR(VLOOKUP(Q16,'شهر 9 تفصيلي'!$B$5:$AEC$667,1,0),"") ->  | AG16: =IFERROR(VLOOKUP(X16,'شهر 9 تفصيلي'!$B$5:$AEC$667,1,0),"") ->  | AH16: 8 | AI16: 20192 | AJ16: 55 | AK16: 20254 | AL16: 8 | AM16: 1202 | AN16: 8 | AO16: 4046
A17: 1808 | B17: 1511 | C17: se82 | D17: =N17&$H$7&COUNTIF($N$9:N17,N17) -> 444400 | E17: =U17&$H$7&COUNTIF($U$9:U17,U17) -> 444400 | F17: =AB17&$H$7&COUNTIF($AB$9:AB17,AB17) -> 444400 | H17: 9 | I17: 20193 | J17: 1808 | L17: 60 | O17: =IFERROR(VLOOKUP(J17,BUS!$C$4:$AEB$888,4,0),"") -> MUB | P17: 1203 | Q17: 1511 | S17: 40 | V17: =IFERROR(VLOOKUP(Q17,BUS!$C$4:$AEB$888,4,0),"") -> MUB | W17: 4048 | X17: se82 | Z17: 19 | AC17: =IFERROR(VLOOKUP(X17,BUS!$C$4:$AEB$888,4,0),"") -> MUB | AE17: =IFERROR(VLOOKUP(J17,'شهر 9 تفصيلي'!$B$5:$AEC$667,1,0),"") ->  | AF17: =IFERROR(VLOOKUP(Q17,'شهر 9 تفصيلي'!$B$5:$AEC$667,1,0),"") -> 1511 | AG17: =IFERROR(VLOOKUP(X17,'شهر 9 تفصيلي'!$B$5:$AEC$667,1,0),"") ->  | AH17: 9 | AI17: 20193 | AJ17: 56 | AK17: 20255 | AL17: 9 | AM17: 1203 | AN17: 9 | AO17: 4048
A18: 1237 | B18: 1552 | D18: =N18&$H$7&COUNTIF($N$9:N18,N18) -> 444400 | E18: =U18&$H$7&COUNTIF($U$9:U18,U18) -> 444400 | F18: =AB18&$H$7&COUNTIF($AB$9:AB18,AB18) -> 444400 | H18: 10 | I18: 20194 | J18: 1237 | L18: 50 | O18: =IFERROR(VLOOKUP(J18,BUS!$C$4:$AEB$888,4,0),"") -> MUB | P18: 1204 | Q18: 1552 | S18: 81 | V18: =IFERROR(VLOOKUP(Q18,BUS!$C$4:$AEB$888,4,0),"") -> MUB | AC18: =IFERROR(VLOOKUP(X18,BUS!$C$4:$AEB$888,4,0),"") ->  | AE18: =IFERROR(VLOOKUP(J18,'شهر 9 تفصيلي'!$B$5:$AEC$667,1,0),"") ->  | AF18: =IFERROR(VLOOKUP(Q18,'شهر 9 تفصيلي'!$B$5:$AEC$667,1,0),"") ->  | AG18: =IFERROR(VLOOKUP(X18,'شهر 9 تفصيلي'!$B$5:$AEC$667,1,0),"") ->  | AH18: 10 | AI18: 20194 | AJ18: 57 | AK18: 20256 | AL18: 10 | AM18: 1204 | AN18: 10 | AO18: FALSE
A19: 1013 | B19: 1503 | D19: =N19&$H$7&COUNTIF($N$9:N19,N19) -> 444400 | E19: =U19&$H$7&COUNTIF($U$9:U19,U19) -> 444400 | F19: =AB19&$H$7&COUNTIF($AB$9:AB19,AB19) -> 444400 | H19: 11 | I19: 20195 | J19: 1013 | L19: 125 | O19: =IFERROR(VLOOKUP(J19,BUS!$C$4:$AEB$888,4,0),"") -> MUB | P19: 1205 | Q19: 1503 | S19: 56 | V19: =IFERROR(VLOOKUP(Q19,BUS!$C$4:$AEB$888,4,0),"") -> MUB | AC19: =IFERROR(VLOOKUP(X19,BUS!$C$4:$AEB$888,4,0),"") ->  | AE19: =IFERROR(VLOOKUP(J19,'شهر 9 تفصيلي'!$B$5:$AEC$667,1,0),"") -> 1013 | AF19: =IFERROR(VLOOKUP(Q19,'شهر 9 تفصيلي'!$B$5:$AEC$667,1,0),"") -> 1503 | AG19: =IFERROR(VLOOKUP(X19,'شهر 9 تفصيلي'!$B$5:$AEC$667,1,0),"") ->  | AH19: 11 | AI19: 20195 | AJ19: 58 | AK19: 20240 | AL19: 11 | AM19: 1205 | AN19: 11 | AO19: FALSE
A20: 1358 | B20: 1504 | D20: =N20&$H$7&COUNTIF($N$9:N20,N20) -> 444400 | E20: =U20&$H$7&COUNTIF($U$9:U20,U20) -> 444400 | F20: =AB20&$H$7&COUNTIF($AB$9:AB20,AB20) -> 444400 | H20: 12 | I20: 20195 | J20: 1358 | L20: 137 | O20: =IFERROR(VLOOKUP(J20,BUS!$C$4:$AEB$888,4,0),"") -> MUB | P20: 1206 | Q20: 1504 | S20: 60 | V20: =IFERROR(VLOOKUP(Q20,BUS!$C$4:$AEB$888,4,0),"") -> MUB | AC20: =IFERROR(VLOOKUP(X20,BUS!$C$4:$AEB$888,4,0),"") ->  | AE20: =IFERROR(VLOOKUP(J20,'شهر 9 تفصيلي'!$B$5:$AEC$667,1,0),"") ->  | AF20: =IFERROR(VLOOKUP(Q20,'شهر 9 تفصيلي'!$B$5:$AEC$667,1,0),"") -> 1504 | AG20: =IFERROR(VLOOKUP(X20,'شهر 9 تفصيلي'!$B$5:$AEC$667,1,0),"") ->  | AH20: 12 | AI20: 20195 | AJ20: 59 | AK20: 20241 | AL20: 12 | AM20: 1206 | AN20: 12 | AO20: FALSE
A21: 1014 | B21: 1513 | D21: =N21&$H$7&COUNTIF($N$9:N21,N21) -> 444400 | E21: =U21&$H$7&COUNTIF($U$9:U21,U21) -> 444400 | F21: =AB21&$H$7&COUNTIF($AB$9:AB21,AB21) -> 444400 | H21: 13 | I21: 20197 | J21: 1014 | L21: 135 | O21: =IFERROR(VLOOKUP(J21,BUS!$C$4:$AEB$888,4,0),"") -> MUB | P21: 1207 | Q21: 1513 | S21: 37 | V21: =IFERROR(VLOOKUP(Q21,BUS!$C$4:$AEB$888,4,0),"") -> MUB | AC21: =IFERROR(VLOOKUP(X21,BUS!$C$4:$AEB$888,4,0),"") ->  | AE21: =IFERROR(VLOOKUP(J21,'شهر 9 تفصيلي'!$B$5:$AEC$667,1,0),"") -> 1014 | AF21: =IFERROR(VLOOKUP(Q21,'شهر 9 تفصيلي'!$B$5:$AEC$667,1,0),"") -> 1513 | AG21: =IFERROR(VLOOKUP(X21,'شهر 9 تفصيلي'!$B$5:$AEC$667,1,0),"") ->  | AH21: 13 | AI21: 20197 | AJ21: 60 | AK21: 20242 | AL21: 13 | AM21: 1207 | AN21: 13 | AO21: FALSE
A22: 1051 | B22: 1520 | D22: =N22&$H$7&COUNTIF($N$9:N22,N22) -> 444400 | E22: =U22&$H$7&COUNTIF($U$9:U22,U22) -> 444400 | F22: =AB22&$H$7&COUNTIF($AB$9:AB22,AB22) -> 444400 | H22: 14 | I22: 20198 | J22: 1051 | L22: 101 | O22: =IFERROR(VLOOKUP(J22,BUS!$C$4:$AEB$888,4,0),"") -> MUB | P22: 1208 | Q22: 1520 | S22: 73 | V22: =IFERROR(VLOOKUP(Q22,BUS!$C$4:$AEB$888,4,0),"") -> MUB | AC22: =IFERROR(VLOOKUP(X22,BUS!$C$4:$AEB$888,4,0),"") ->  | AE22: =IFERROR(VLOOKUP(J22,'شهر 9 تفصيلي'!$B$5:$AEC$667,1,0),"") ->  | AF22: =IFERROR(VLOOKUP(Q22,'شهر 9 تفصيلي'!$B$5:$AEC$667,1,0),"") -> 1520 | AG22: =IFERROR(VLOOKUP(X22,'شهر 9 تفصيلي'!$B$5:$AEC$667,1,0),"") ->  | AH22: 14 | AI22: 20198 | AJ22: 61 | AK22: 20239 | AL22: 14 | AM22: 1208 | AN22: 14 | AO22: FALSE
A23: 1059 | B23: 1525 | D23: =N23&$H$7&COUNTIF($N$9:N23,N23) -> 444400 | E23: =U23&$H$7&COUNTIF($U$9:U23,U23) -> 444400 | F23: =AB23&$H$7&COUNTIF($AB$9:AB23,AB23) -> 444400 | H23: 15 | I23: 20199 | J23: 1059 | L23: 75 | O23: =IFERROR(VLOOKUP(J23,BUS!$C$4:$AEB$888,4,0),"") -> DHA | P23: 1209 | Q23: 1525 | S23: 59 | V23: =IFERROR(VLOOKUP(Q23,BUS!$C$4:$AEB$888,4,0),"") -> MUB | AC23: =IFERROR(VLOOKUP(X23,BUS!$C$4:$AEB$888,4,0),"") ->  | AE23: =IFERROR(VLOOKUP(J23,'شهر 9 تفصيلي'!$B$5:$AEC$667,1,0),"") ->  | AF23: =IFERROR(VLOOKUP(Q23,'شهر 9 تفصيلي'!$B$5:$AEC$667,1,0),"") -> 1525 | AG23: =IFERROR(VLOOKUP(X23,'شهر 9 تفصيلي'!$B$5:$AEC$667,1,0),"") ->  | AH23: 15 | AI23: 20199 | AJ23: 62 | AK23: 20238 | AL23: 15 | AM23: 1209 | AN23: 15 | AO23: FALSE
A24: 1298 | B24: 1655 | D24: =N24&$H$7&COUNTIF($N$9:N24,N24) -> 444400 | E24: =U24&$H$7&COUNTIF($U$9:U24,U24) -> 444400 | F24: =AB24&$H$7&COUNTIF($AB$9:AB24,AB24) -> 444400 | H24: 16 | I24: 20200 | J24: 1298 | L24: 170 | O24: =IFERROR(VLOOKUP(J24,BUS!$C$4:$AEB$888,4,0),"") -> DHA | P24: 1211 | Q24: 1655 | S24: 124 | V24: =IFERROR(VLOOKUP(Q24,BUS!$C$4:$AEB$888,4,0),"") -> MUB | AC24: =IFERROR(VLOOKUP(X24,BUS!$C$4:$AEB$888,4,0),"") ->  | AE24: =IFERROR(VLOOKUP(J24,'شهر 9 تفصيلي'!$B$5:$AEC$667,1,0),"") ->  | AF24: =IFERROR(VLOOKUP(Q24,'شهر 9 تفصيلي'!$B$5:$AEC$667,1,0),"") ->  | AG24: =IFERROR(VLOOKUP(X24,'شهر 9 تفصيلي'!$B$5:$AEC$667,1,0),"") ->  | AH24: 16 | AI24: 20200 | AJ24: 63 | AK24: 20243 | AL24: 16 | AM24: 1211 | AN24: 16 | AO24: FALSE
A25: 1804 | B25: 1557 | D25: =N25&$H$7&COUNTIF($N$9:N25,N25) -> 444400 | E25: =U25&$H$7&COUNTIF($U$9:U25,U25) -> 444400 | F25: =AB25&$H$7&COUNTIF($AB$9:AB25,AB25) -> 444400 | H25: 17 | I25: 20201 | J25: 1804 | L25: 170 | O25: =IFERROR(VLOOKUP(J25,BUS!$C$4:$AEB$888,4,0),"") -> MUB | P25: 1212 | Q25: 1557 | S25: 95 | V25: =IFERROR(VLOOKUP(Q25,BUS!$C$4:$AEB$888,4,0),"") -> MUB | AC25: =IFERROR(VLOOKUP(X25,BUS!$C$4:$AEB$888,4,0),"") ->  | AE25: =IFERROR(VLOOKUP(J25,'شهر 9 تفصيلي'!$B$5:$AEC$667,1,0),"") ->  | AF25: =IFERROR(VLOOKUP(Q25,'شهر 9 تفصيلي'!$B$5:$AEC$667,1,0),"") ->  | AG25: =IFERROR(VLOOKUP(X25,'شهر 9 تفصيلي'!$B$5:$AEC$667,1,0),"") ->  | AH25: 17 | AI25: 20201 | AJ25: 64 | AK25: 20244 | AL25: 17 | AM25: 1212 | AN25: 17 | AO25: FALSE
A26: 1208 | D26: =N26&$H$7&COUNTIF($N$9:N26,N26) -> 444400 | E26: =U26&$H$7&COUNTIF($U$9:U26,U26) -> 444400 | F26: =AB26&$H$7&COUNTIF($AB$9:AB26,AB26) -> 444400 | H26: 18 | I26: 20202 | J26: 1208 | L26: 157 | O26: =IFERROR(VLOOKUP(J26,BUS!$C$4:$AEB$888,4,0),"") -> MUB | V26: =IFERROR(VLOOKUP(Q26,BUS!$C$4:$AEB$888,4,0),"") ->  | AC26: =IFERROR(VLOOKUP(X26,BUS!$C$4:$AEB$888,4,0),"") ->  | AE26: =IFERROR(VLOOKUP(J26,'شهر 9 تفصيلي'!$B$5:$AEC$667,1,0),"") ->  | AF26: =IFERROR(VLOOKUP(Q26,'شهر 9 تفصيلي'!$B$5:$AEC$667,1,0),"") ->  | AG26: =IFERROR(VLOOKUP(X26,'شهر 9 تفصيلي'!$B$5:$AEC$667,1,0),"") ->  | AH26: 18 | AI26: 20202 | AJ26: 65 | AK26: 20245 | AL26: 18 | AM26: FALSE | AN26: 18 | AO26: FALSE
A27: 1824 | D27: =N27&$H$7&COUNTIF($N$9:N27,N27) -> 444400 | E27: =U27&$H$7&COUNTIF($U$9:U27,U27) -> 444400 | F27: =AB27&$H$7&COUNTIF($AB$9:AB27,AB27) -> 444400 | H27: 19 | I27: 20203 | J27: 1824 | L27: 150 | O27: =IFERROR(VLOOKUP(J27,BUS!$C$4:$AEB$888,4,0),"") -> MUB | V27: =IFERROR(VLOOKUP(Q27,BUS!$C$4:$AEB$888,4,0),"") ->  | AC27: =IFERROR(VLOOKUP(X27,BUS!$C$4:$AEB$888,4,0),"") ->  | AE27: =IFERROR(VLOOKUP(J27,'شهر 9 تفصيلي'!$B$5:$AEC$667,1,0),"") ->  | AF27: =IFERROR(VLOOKUP(Q27,'شهر 9 تفصيلي'!$B$5:$AEC$667,1,0),"") ->  | AG27: =IFERROR(VLOOKUP(X27,'شهر 9 تفصيلي'!$B$5:$AEC$667,1,0),"") ->  | AH27: 19 | AI27: 20203 | AJ27: 66 | AK27: 20246 | AL27: 19 | AM27: FALSE | AN27: 19 | AO27: FALSE
A28: 1225 | D28: =N28&$H$7&COUNTIF($N$9:N28,N28) -> 444400 | E28: =U28&$H$7&COUNTIF($U$9:U28,U28) -> 444400 | F28: =AB28&$H$7&COUNTIF($AB$9:AB28,AB28) -> 444400 | H28: 20 | I28: 20204 | J28: 1225 | L28: 260 | O28: =IFERROR(VLOOKUP(J28,BUS!$C$4:$AEB$888,4,0),"") -> DHA | V28: =IFERROR(VLOOKUP(Q28,BUS!$C$4:$AEB$888,4,0),"") ->  | AC28: =IFERROR(VLOOKUP(X28,BUS!$C$4:$AEB$888,4,0),"") ->  | AE28: =IFERROR(VLOOKUP(J28,'شهر 9 تفصيلي'!$B$5:$AEC$667,1,0),"") ->  | AF28: =IFERROR(VLOOKUP(Q28,'شهر 9 تفصيلي'!$B$5:$AEC$667,1,0),"") ->  | AG28: =IFERROR(VLOOKUP(X28,'شهر 9 تفصيلي'!$B$5:$AEC$667,1,0),"") ->  | AH28: 20 | AI28: 20204 | AJ28: 67 | AK28: 20247 | AL28: 20 | AM28: FALSE | AN28: 20 | AO28: FALSE
A29: 1253 | D29: =N29&$H$7&COUNTIF($N$9:N29,N29) -> 444400 | E29: =U29&$H$7&COUNTIF($U$9:U29,U29) -> 444400 | F29: =AB29&$H$7&COUNTIF($AB$9:AB29,AB29) -> 444400 | H29: 21 | I29: 20205 | J29: 1253 | L29: 190 | O29: =IFERROR(VLOOKUP(J29,BUS!$C$4:$AEB$888,4,0),"") -> MUB | V29: =IFERROR(VLOOKUP(Q29,BUS!$C$4:$AEB$888,4,0),"") ->  | AC29: =IFERROR(VLOOKUP(X29,BUS!$C$4:$AEB$888,4,0),"") ->  | AE29: =IFERROR(VLOOKUP(J29,'شهر 9 تفصيلي'!$B$5:$AEC$667,1,0),"") ->  | AF29: =IFERROR(VLOOKUP(Q29,'شهر 9 تفصيلي'!$B$5:$AEC$667,1,0),"") ->  | AG29: =IFERROR(VLOOKUP(X29,'شهر 9 تفصيلي'!$B$5:$AEC$667,1,0),"") ->  | AH29: 21 | AI29: 20205 | AJ29: 68 | AK29: 20248 | AL29: 21 | AM29: FALSE | AN29: 21 | AO29: FALSE
A30: 1011 | D30: =N30&$H$7&COUNTIF($N$9:N30,N30) -> 444400 | E30: =U30&$H$7&COUNTIF($U$9:U30,U30) -> 444400 | F30: =AB30&$H$7&COUNTIF($AB$9:AB30,AB30) -> 444400 | H30: 22 | I30: 20206 | J30: 1011 | L30: 285 | O30: =IFERROR(VLOOKUP(J30,BUS!$C$4:$AEB$888,4,0),"") -> MUB | V30: =IFERROR(VLOOKUP(Q30,BUS!$C$4:$AEB$888,4,0),"") ->  | AC30: =IFERROR(VLOOKUP(X30,BUS!$C$4:$AEB$888,4,0),"") ->  | AE30: =IFERROR(VLOOKUP(J30,'شهر 9 تفصيلي'!$B$5:$AEC$667,1,0),"") -> 1011 | AF30: =IFERROR(VLOOKUP(Q30,'شهر 9 تفصيلي'!$B$5:$AEC$667,1,0),"") ->  | AG30: =IFERROR(VLOOKUP(X30,'شهر 9 تفصيلي'!$B$5:$AEC$667,1,0),"") ->  | AH30: 22 | AI30: 20206 | AJ30: 69 | AK30: 20249 | AL30: 22 | AM30: FALSE | AN30: 22 | AO30: FALSE
A31: 1086 | D31: =N31&$H$7&COUNTIF($N$9:N31,N31) -> 444400 | E31: =U31&$H$7&COUNTIF($U$9:U31,U31) -> 444400 | F31: =AB31&$H$7&COUNTIF($AB$9:AB31,AB31) -> 444400 | H31: 23 | I31: 20207 | J31: 1086 | L31: 250 | O31: =IFERROR(VLOOKUP(J31,BUS!$C$4:$AEB$888,4,0),"") -> MUB | V31: =IFERROR(VLOOKUP(Q31,BUS!$C$4:$AEB$888,4,0),"") ->  | AC31: =IFERROR(VLOOKUP(X31,BUS!$C$4:$AEB$888,4,0),"") ->  | AE31: =IFERROR(VLOOKUP(J31,'شهر 9 تفصيلي'!$B$5:$AEC$667,1,0),"") ->  | AF31: =IFERROR(VLOOKUP(Q31,'شهر 9 تفصيلي'!$B$5:$AEC$667,1,0),"") ->  | AG31: =IFERROR(VLOOKUP(X31,'شهر 9 تفصيلي'!$B$5:$AEC$667,1,0),"") ->  | AH31: 23 | AI31: 20207 | AJ31: 70 | AK31: 20250 | AL31: 23 | AM31: FALSE | AN31: 23 | AO31: FALSE
A32: 1815 | D32: =N32&$H$7&COUNTIF($N$9:N32,N32) -> 444400 | E32: =U32&$H$7&COUNTIF($U$9:U32,U32) -> 444400 | F32: =AB32&$H$7&COUNTIF($AB$9:AB32,AB32) -> 444400 | H32: 24 | I32: 20208 | J32: 1815 | L32: 175 | O32: =IFERROR(VLOOKUP(J32,BUS!$C$4:$AEB$888,4,0),"") -> MUB | V32: =IFERROR(VLOOKUP(Q32,BUS!$C$4:$AEB$888,4,0),"") ->  | AC32: =IFERROR(VLOOKUP(X32,BUS!$C$4:$AEB$888,4,0),"") ->  | AE32: =IFERROR(VLOOKUP(J32,'شهر 9 تفصيلي'!$B$5:$AEC$667,1,0),"") ->  | AF32: =IFERROR(VLOOKUP(Q32,'شهر 9 تفصيلي'!$B$5:$AEC$667,1,0),"") ->  | AG32: =IFERROR(VLOOKUP(X32,'شهر 9 تفصيلي'!$B$5:$AEC$667,1,0),"") ->  | AH32: 24 | AI32: 20208 | AJ32: 71 | AK32: FALSE | AL32: 24 | AM32: FALSE | AN32: 24 | AO32: FALSE
A33: 1819 | D33: =N33&$H$7&COUNTIF($N$9:N33,N33) -> 444400 | E33: =U33&$H$7&COUNTIF($U$9:U33,U33) -> 444400 | F33: =AB33&$H$7&COUNTIF($AB$9:AB33,AB33) -> 444400 | H33: 25 | I33: 20209 | J33: 1819 | L33: 91 | O33: =IFERROR(VLOOKUP(J33,BUS!$C$4:$AEB$888,4,0),"") -> MUB | V33: =IFERROR(VLOOKUP(Q33,BUS!$C$4:$AEB$888,4,0),"") ->  | AC33: =IFERROR(VLOOKUP(X33,BUS!$C$4:$AEB$888,4,0),"") ->  | AE33: =IFERROR(VLOOKUP(J33,'شهر 9 تفصيلي'!$B$5:$AEC$667,1,0),"") ->  | AF33: =IFERROR(VLOOKUP(Q33,'شهر 9 تفصيلي'!$B$5:$AEC$667,1,0),"") ->  | AG33: =IFERROR(VLOOKUP(X33,'شهر 9 تفصيلي'!$B$5:$AEC$667,1,0),"") ->  | AH33: 25 | AI33: 20209 | AJ33: 72 | AK33: FALSE | AL33: 25 | AM33: FALSE | AN33: 25 | AO33: FALSE
A34: 1276 | D34: =N34&$H$7&COUNTIF($N$9:N34,N34) -> 444400 | E34: =U34&$H$7&COUNTIF($U$9:U34,U34) -> 444400 | F34: =AB34&$H$7&COUNTIF($AB$9:AB34,AB34) -> 444400 | H34: 26 | I34: 20210 | J34: 1276 | L34: 165 | O34: =IFERROR(VLOOKUP(J34,BUS!$C$4:$AEB$888,4,0),"") -> MUB | V34: =IFERROR(VLOOKUP(Q34,BUS!$C$4:$AEB$888,4,0),"") ->  | AC34: =IFERROR(VLOOKUP(X34,BUS!$C$4:$AEB$888,4,0),"") ->  | AE34: =IFERROR(VLOOKUP(J34,'شهر 9 تفصيلي'!$B$5:$AEC$667,1,0),"") ->  | AF34: =IFERROR(VLOOKUP(Q34,'شهر 9 تفصيلي'!$B$5:$AEC$667,1,0),"") ->  | AG34: =IFERROR(VLOOKUP(X34,'شهر 9 تفصيلي'!$B$5:$AEC$667,1,0),"") ->  | AH34: 26 | AI34: 20210 | AJ34: 73 | AK34: FALSE | AL34: 26 | AM34: FALSE | AN34: 26 | AO34: FALSE
A35: 1821 | D35: =N35&$H$7&COUNTIF($N$9:N35,N35) -> 444400 | E35: =U35&$H$7&COUNTIF($U$9:U35,U35) -> 444400 | F35: =AB35&$H$7&COUNTIF($AB$9:AB35,AB35) -> 444400 | H35: 27 | I35: 20211 | J35: 1821 | L35: 230 | O35: =IFERROR(VLOOKUP(J35,BUS!$C$4:$AEB$888,4,0),"") -> MUB | V35: =IFERROR(VLOOKUP(Q35,BUS!$C$4:$AEB$888,4,0),"") ->  | AC35: =IFERROR(VLOOKUP(X35,BUS!$C$4:$AEB$888,4,0),"") ->  | AE35: =IFERROR(VLOOKUP(J35,'شهر 9 تفصيلي'!$B$5:$AEC$667,1,0),"") ->  | AF35: =IFERROR(VLOOKUP(Q35,'شهر 9 تفصيلي'!$B$5:$AEC$667,1,0),"") ->  | AG35: =IFERROR(VLOOKUP(X35,'شهر 9 تفصيلي'!$B$5:$AEC$667,1,0),"") ->  | AH35: 27 | AI35: 20211 | AJ35: 74 | AK35: FALSE | AL35: 27 | AM35: FALSE | AN35: 27 | AO35: FALSE
A36: 1142 | D36: =N36&$H$7&COUNTIF($N$9:N36,N36) -> 444400 | E36: =U36&$H$7&COUNTIF($U$9:U36,U36) -> 444400 | F36: =AB36&$H$7&COUNTIF($AB$9:AB36,AB36) -> 444400 | H36: 28 | I36: 20212 | J36: 1142 | L36: 155 | O36: =IFERROR(VLOOKUP(J36,BUS!$C$4:$AEB$888,4,0),"") -> MUB | V36: =IFERROR(VLOOKUP(Q36,BUS!$C$4:$AEB$888,4,0),"") ->  | AC36: =IFERROR(VLOOKUP(X36,BUS!$C$4:$AEB$888,4,0),"") ->  | AE36: =IFERROR(VLOOKUP(J36,'شهر 9 تفصيلي'!$B$5:$AEC$667,1,0),"") ->  | AF36: =IFERROR(VLOOKUP(Q36,'شهر 9 تفصيلي'!$B$5:$AEC$667,1,0),"") ->  | AG36: =IFERROR(VLOOKUP(X36,'شهر 9 تفصيلي'!$B$5:$AEC$667,1,0),"") ->  | AH36: 28 | AI36: 20212 | AJ36: 75 | AK36: FALSE | AL36: 28 | AM36: FALSE | AN36: 28 | AO36: FALSE
A37: 1811 | D37: =N37&$H$7&COUNTIF($N$9:N37,N37) -> 444400 | E37: =U37&$H$7&COUNTIF($U$9:U37,U37) -> 444400 | F37: =AB37&$H$7&COUNTIF($AB$9:AB37,AB37) -> 444400 | H37: 29 | I37: 20213 | J37: 1811 | L37: 125 | O37: =IFERROR(VLOOKUP(J37,BUS!$C$4:$AEB$888,4,0),"") -> MUB | V37: =IFERROR(VLOOKUP(Q37,BUS!$C$4:$AEB$888,4,0),"") ->  | AC37: =IFERROR(VLOOKUP(X37,BUS!$C$4:$AEB$888,4,0),"") ->  | AE37: =IFERROR(VLOOKUP(J37,'شهر 9 تفصيلي'!$B$5:$AEC$667,1,0),"") ->  | AF37: =IFERROR(VLOOKUP(Q37,'شهر 9 تفصيلي'!$B$5:$AEC$667,1,0),"") ->  | AG37: =IFERROR(VLOOKUP(X37,'شهر 9 تفصيلي'!$B$5:$AEC$667,1,0),"") ->  | AH37: 29 | AI37: 20213 | AJ37: 76 | AK37: FALSE | AL37: 29 | AM37: FALSE | AN37: 29 | AO37: FALSE
A38: 1040 | D38: =N38&$H$7&COUNTIF($N$9:N38,N38) -> 444400 | E38: =U38&$H$7&COUNTIF($U$9:U38,U38) -> 444400 | F38: =AB38&$H$7&COUNTIF($AB$9:AB38,AB38) -> 444400 | H38: 30 | I38: 20214 | J38: 1040 | L38: 80 | O38: =IFERROR(VLOOKUP(J38,BUS!$C$4:$AEB$888,4,0),"") -> MUB | V38: =IFERROR(VLOOKUP(Q38,BUS!$C$4:$AEB$888,4,0),"") ->  | AC38: =IFERROR(VLOOKUP(X38,BUS!$C$4:$AEB$888,4,0),"") ->  | AE38: =IFERROR(VLOOKUP(J38,'شهر 9 تفصيلي'!$B$5:$AEC$667,1,0),"") ->  | AF38: =IFERROR(VLOOKUP(Q38,'شهر 9 تفصيلي'!$B$5:$AEC$667,1,0),"") ->  | AG38: =IFERROR(VLOOKUP(X38,'شهر 9 تفصيلي'!$B$5:$AEC$667,1,0),"") ->  | AH38: 30 | AI38: 20214 | AJ38: 77 | AK38: FALSE | AL38: 30 | AM38: FALSE | AN38: 30 | AO38: FALSE
A39: 1094 | D39: =N39&$H$7&COUNTIF($N$9:N39,N39) -> 444400 | E39: =U39&$H$7&COUNTIF($U$9:U39,U39) -> 444400 | F39: =AB39&$H$7&COUNTIF($AB$9:AB39,AB39) -> 444400 | H39: 31 | I39: 20215 | J39: 1094 | L39: 170 | O39: =IFERROR(VLOOKUP(J39,BUS!$C$4:$AEB$888,4,0),"") -> DHA | V39: =IFERROR(VLOOKUP(Q39,BUS!$C$4:$AEB$888,4,0),"") ->  | AC39: =IFERROR(VLOOKUP(X39,BUS!$C$4:$AEB$888,4,0),"") ->  | AE39: =IFERROR(VLOOKUP(J39,'شهر 9 تفصيلي'!$B$5:$AEC$667,1,0),"") ->  | AF39: =IFERROR(VLOOKUP(Q39,'شهر 9 تفصيلي'!$B$5:$AEC$667,1,0),"") ->  | AG39: =IFERROR(VLOOKUP(X39,'شهر 9 تفصيلي'!$B$5:$AEC$667,1,0),"") ->  | AH39: 31 | AI39: 20215 | AJ39: 78 | AK39: FALSE | AL39: 31 | AM39: FALSE | AN39: 31 | AO39: FALSE
A40: 1074 | D40: =N40&$H$7&COUNTIF($N$9:N40,N40) -> 444400 | E40: =U40&$H$7&COUNTIF($U$9:U40,U40) -> 444400 | F40: =AB40&$H$7&COUNTIF($AB$9:AB40,AB40) -> 444400 | H40: 32 | I40: 20216 | J40: 1074 | L40: 135 | O40: =IFERROR(VLOOKUP(J40,BUS!$C$4:$AEB$888,4,0),"") -> MUB | V40: =IFERROR(VLOOKUP(Q40,BUS!$C$4:$AEB$888,4,0),"") ->  | AC40: =IFERROR(VLOOKUP(X40,BUS!$C$4:$AEB$888,4,0),"") ->  | AE40: =IFERROR(VLOOKUP(J40,'شهر 9 تفصيلي'!$B$5:$AEC$667,1,0),"") ->  | AF40: =IFERROR(VLOOKUP(Q40,'شهر 9 تفصيلي'!$B$5:$AEC$667,1,0),"") ->  | AG40: =IFERROR(VLOOKUP(X40,'شهر 9 تفصيلي'!$B$5:$AEC$667,1,0),"") ->  | AH40: 32 | AI40: 20216 | AJ40: 79 | AK40: FALSE | AL40: 32 | AM40: FALSE | AN40: 32 | AO40: FALSE
A41: 1260 | D41: =N41&$H$7&COUNTIF($N$9:N41,N41) -> 444400 | E41: =U41&$H$7&COUNTIF($U$9:U41,U41) -> 444400 | F41: =AB41&$H$7&COUNTIF($AB$9:AB41,AB41) -> 444400 | H41: 33 | I41: 20217 | J41: 1260 | L41: 260 | O41: =IFERROR(VLOOKUP(J41,BUS!$C$4:$AEB$888,4,0),"") -> DHA | V41: =IFERROR(VLOOKUP(Q41,BUS!$C$4:$AEB$888,4,0),"") ->  | AC41: =IFERROR(VLOOKUP(X41,BUS!$C$4:$AEB$888,4,0),"") ->  | AE41: =IFERROR(VLOOKUP(J41,'شهر 9 تفصيلي'!$B$5:$AEC$667,1,0),"") ->  | AF41: =IFERROR(VLOOKUP(Q41,'شهر 9 تفصيلي'!$B$5:$AEC$667,1,0),"") ->  | AG41: =IFERROR(VLOOKUP(X41,'شهر 9 تفصيلي'!$B$5:$AEC$667,1,0),"") ->  | AH41: 33 | AI41: 20217 | AJ41: 80 | AK41: FALSE | AL41: 33 | AM41: FALSE | AN41: 33 | AO41: FALSE
A42: 1327 | D42: =N42&$H$7&COUNTIF($N$9:N42,N42) -> 444400 | E42: =U42&$H$7&COUNTIF($U$9:U42,U42) -> 444400 | F42: =AB42&$H$7&COUNTIF($AB$9:AB42,AB42) -> 444400 | H42: 34 | I42: 20218 | J42: 1327 | L42: 175 | O42: =IFERROR(VLOOKUP(J42,BUS!$C$4:$AEB$888,4,0),"") -> MUB | V42: =IFERROR(VLOOKUP(Q42,BUS!$C$4:$AEB$888,4,0),"") ->  | AC42: =IFERROR(VLOOKUP(X42,BUS!$C$4:$AEB$888,4,0),"") ->  | AE42: =IFERROR(VLOOKUP(J42,'شهر 9 تفصيلي'!$B$5:$AEC$667,1,0),"") ->  | AF42: =IFERROR(VLOOKUP(Q42,'شهر 9 تفصيلي'!$B$5:$AEC$667,1,0),"") ->  | AG42: =IFERROR(VLOOKUP(X42,'شهر 9 تفصيلي'!$B$5:$AEC$667,1,0),"") ->  | AH42: 34 | AI42: 20218 | AJ42: 81 | AK42: FALSE | AL42: 34 | AM42: FALSE | AN42: 34 | AO42: FALSE
A43: 1820 | D43: =N43&$H$7&COUNTIF($N$9:N43,N43) -> 444400 | E43: =U43&$H$7&COUNTIF($U$9:U43,U43) -> 444400 | F43: =AB43&$H$7&COUNTIF($AB$9:AB43,AB43) -> 444400 | H43: 35 | I43: 20219 | J43: 1820 | L43: 165 | O43: =IFERROR(VLOOKUP(J43,BUS!$C$4:$AEB$888,4,0),"") -> MUB | V43: =IFERROR(VLOOKUP(Q43,BUS!$C$4:$AEB$888,4,0),"") ->  | AC43: =IFERROR(VLOOKUP(X43,BUS!$C$4:$AEB$888,4,0),"") ->  | AE43: =IFERROR(VLOOKUP(J43,'شهر 9 تفصيلي'!$B$5:$AEC$667,1,0),"") ->  | AF43: =IFERROR(VLOOKUP(Q43,'شهر 9 تفصيلي'!$B$5:$AEC$667,1,0),"") ->  | AG43: =IFERROR(VLOOKUP(X43,'شهر 9 تفصيلي'!$B$5:$AEC$667,1,0),"") ->  | AH43: 35 | AI43: 20219 | AJ43: 82 | AK43: FALSE | AL43: 35 | AM43: FALSE | AN43: 35 | AO43: FALSE
A44: 1266 | D44: =N44&$H$7&COUNTIF($N$9:N44,N44) -> 444400 | E44: =U44&$H$7&COUNTIF($U$9:U44,U44) -> 444400 | F44: =AB44&$H$7&COUNTIF($AB$9:AB44,AB44) -> 444400 | H44: 36 | I44: 20220 | J44: 1266 | L44: 200 | O44: =IFERROR(VLOOKUP(J44,BUS!$C$4:$AEB$888,4,0),"") -> DHA | V44: =IFERROR(VLOOKUP(Q44,BUS!$C$4:$AEB$888,4,0),"") ->  | AC44: =IFERROR(VLOOKUP(X44,BUS!$C$4:$AEB$888,4,0),"") ->  | AE44: =IFERROR(VLOOKUP(J44,'شهر 9 تفصيلي'!$B$5:$AEC$667,1,0),"") ->  | AF44: =IFERROR(VLOOKUP(Q44,'شهر 9 تفصيلي'!$B$5:$AEC$667,1,0),"") ->  | AG44: =IFERROR(VLOOKUP(X44,'شهر 9 تفصيلي'!$B$5:$AEC$667,1,0),"") ->  | AH44: 36 | AI44: 20220 | AJ44: 83 | AK44: FALSE | AL44: 36 | AM44: FALSE | AN44: 36 | AO44: FALSE
A45: 1208 | D45: =N45&$H$7&COUNTIF($N$9:N45,N45) -> 444400 | E45: =U45&$H$7&COUNTIF($U$9:U45,U45) -> 444400 | F45: =AB45&$H$7&COUNTIF($AB$9:AB45,AB45) -> 444400 | H45: 37 | I45: 20221 | J45: 1208 | L45: 100 | O45: =IFERROR(VLOOKUP(J45,BUS!$C$4:$AEB$888,4,0),"") -> MUB | V45: =IFERROR(VLOOKUP(Q45,BUS!$C$4:$AEB$888,4,0),"") ->  | AC45: =IFERROR(VLOOKUP(X45,BUS!$C$4:$AEB$888,4,0),"") ->  | AE45: =IFERROR(VLOOKUP(J45,'شهر 9 تفصيلي'!$B$5:$AEC$667,1,0),"") ->  | AF45: =IFERROR(VLOOKUP(Q45,'شهر 9 تفصيلي'!$B$5:$AEC$667,1,0),"") ->  | AG45: =IFERROR(VLOOKUP(X45,'شهر 9 تفصيلي'!$B$5:$AEC$667,1,0),"") ->  | AH45: 37 | AI45: 20221 | AJ45: 84 | AK45: FALSE | AL45: 37 | AM45: FALSE | AN45: 37 | AO45: FALSE
A46: 1811 | D46: =N46&$H$7&COUNTIF($N$9:N46,N46) -> 444400 | E46: =U46&$H$7&COUNTIF($U$9:U46,U46) -> 444400 | F46: =AB46&$H$7&COUNTIF($AB$9:AB46,AB46) -> 444400 | H46: 38 | I46: 20222 | J46: 1811 | L46: 55 | O46: =IFERROR(VLOOKUP(J46,BUS!$C$4:$AEB$888,4,0),"") -> MUB | V46: =IFERROR(VLOOKUP(Q46,BUS!$C$4:$AEB$888,4,0),"") ->  | AC46: =IFERROR(VLOOKUP(X46,BUS!$C$4:$AEB$888,4,0),"") ->  | AE46: =IFERROR(VLOOKUP(J46,'شهر 9 تفصيلي'!$B$5:$AEC$667,1,0),"") ->  | AF46: =IFERROR(VLOOKUP(Q46,'شهر 9 تفصيلي'!$B$5:$AEC$667,1,0),"") ->  | AG46: =IFERROR(VLOOKUP(X46,'شهر 9 تفصيلي'!$B$5:$AEC$667,1,0),"") ->  | AH46: 38 | AI46: 20222 | AJ46: 85 | AK46: FALSE | AL46: 38 | AM46: FALSE | AN46: 38 | AO46: FALSE
A47: 1059 | D47: =N47&$H$7&COUNTIF($N$9:N47,N47) -> 444400 | E47: =U47&$H$7&COUNTIF($U$9:U47,U47) -> 444400 | F47: =AB47&$H$7&COUNTIF($AB$9:AB47,AB47) -> 444400 | H47: 39 | I47: 20223 | J47: 1059 | L47: 135 | O47: =IFERROR(VLOOKUP(J47,BUS!$C$4:$AEB$888,4,0),"") -> DHA | V47: =IFERROR(VLOOKUP(Q47,BUS!$C$4:$AEB$888,4,0),"") ->  | AC47: =IFERROR(VLOOKUP(X47,BUS!$C$4:$AEB$888,4,0),"") ->  | AE47: =IFERROR(VLOOKUP(J47,'شهر 9 تفصيلي'!$B$5:$AEC$667,1,0),"") ->  | AF47: =IFERROR(VLOOKUP(Q47,'شهر 9 تفصيلي'!$B$5:$AEC$667,1,0),"") ->  | AG47: =IFERROR(VLOOKUP(X47,'شهر 9 تفصيلي'!$B$5:$AEC$667,1,0),"") ->  | AH47: 39 | AI47: 20223 | AJ47: 86 | AK47: FALSE | AL47: 39 | AM47: FALSE | AN47: 39 | AO47: FALSE
A48: 1074 | D48: =N48&$H$7&COUNTIF($N$9:N48,N48) -> 444400 | E48: =U48&$H$7&COUNTIF($U$9:U48,U48) -> 444400 | F48: =AB48&$H$7&COUNTIF($AB$9:AB48,AB48) -> 444400 | H48: 40 | I48: 20224 | J48: 1074 | L48: 82 | O48: =IFERROR(VLOOKUP(J48,BUS!$C$4:$AEB$888,4,0),"") -> MUB | V48: =IFERROR(VLOOKUP(Q48,BUS!$C$4:$AEB$888,4,0),"") ->  | AC48: =IFERROR(VLOOKUP(X48,BUS!$C$4:$AEB$888,4,0),"") ->  | AE48: =IFERROR(VLOOKUP(J48,'شهر 9 تفصيلي'!$B$5:$AEC$667,1,0),"") ->  | AF48: =IFERROR(VLOOKUP(Q48,'شهر 9 تفصيلي'!$B$5:$AEC$667,1,0),"") ->  | AG48: =IFERROR(VLOOKUP(X48,'شهر 9 تفصيلي'!$B$5:$AEC$667,1,0),"") ->  | AH48: 40 | AI48: 20224 | AJ48: 87 | AK48: FALSE | AL48: 40 | AM48: FALSE | AN48: 40 | AO48: FALSE
A49: 1332 | D49: =N49&$H$7&COUNTIF($N$9:N49,N49) -> 444400 | E49: =U49&$H$7&COUNTIF($U$9:U49,U49) -> 444400 | F49: =AB49&$H$7&COUNTIF($AB$9:AB49,AB49) -> 444400 | H49: 41 | I49: 20225 | J49: 1332 | L49: 220 | O49: =IFERROR(VLOOKUP(J49,BUS!$C$4:$AEB$888,4,0),"") -> MUB | V49: =IFERROR(VLOOKUP(Q49,BUS!$C$4:$AEB$888,4,0),"") ->  | AC49: =IFERROR(VLOOKUP(X49,BUS!$C$4:$AEB$888,4,0),"") ->  | AE49: =IFERROR(VLOOKUP(J49,'شهر 9 تفصيلي'!$B$5:$AEC$667,1,0),"") ->  | AF49: =IFERROR(VLOOKUP(Q49,'شهر 9 تفصيلي'!$B$5:$AEC$667,1,0),"") ->  | AG49: =IFERROR(VLOOKUP(X49,'شهر 9 تفصيلي'!$B$5:$AEC$667,1,0),"") ->  | AH49: 41 | AI49: 20225 | AJ49: 88 | AK49: FALSE | AL49: 41 | AM49: FALSE | AN49: 41 | AO49: FALSE
A50: 1114 | D50: =N50&$H$7&COUNTIF($N$9:N50,N50) -> 444400 | E50: =U50&$H$7&COUNTIF($U$9:U50,U50) -> 444400 | F50: =AB50&$H$7&COUNTIF($AB$9:AB50,AB50) -> 444400 | H50: 42 | I50: 20226 | J50: 1114 | L50: 120 | O50: =IFERROR(VLOOKUP(J50,BUS!$C$4:$AEB$888,4,0),"") -> DHA | V50: =IFERROR(VLOOKUP(Q50,BUS!$C$4:$AEB$888,4,0),"") ->  | AC50: =IFERROR(VLOOKUP(X50,BUS!$C$4:$AEB$888,4,0),"") ->  | AE50: =IFERROR(VLOOKUP(J50,'شهر 9 تفصيلي'!$B$5:$AEC$667,1,0),"") ->  | AF50: =IFERROR(VLOOKUP(Q50,'شهر 9 تفصيلي'!$B$5:$AEC$667,1,0),"") ->  | AG50: =IFERROR(VLOOKUP(X50,'شهر 9 تفصيلي'!$B$5:$AEC$667,1,0),"") ->  | AH50: 42 | AI50: 20226 | AJ50: 89 | AK50: FALSE | AL50: 42 | AN50: 42 | AO50: FALSE
A51: 1041 | D51: =N51&$H$7&COUNTIF($N$9:N51,N51) -> 444400 | E51: =U51&$H$7&COUNTIF($U$9:U51,U51) -> 444400 | F51: =AB51&$H$7&COUNTIF($AB$9:AB51,AB51) -> 444400 | H51: 43 | I51: 20227 | J51: 1041 | L51: 135 | O51: =IFERROR(VLOOKUP(J51,BUS!$C$4:$AEB$888,4,0),"") -> ABQ | V51: =IFERROR(VLOOKUP(Q51,BUS!$C$4:$AEB$888,4,0),"") ->  | AC51: =IFERROR(VLOOKUP(X51,BUS!$C$4:$AEB$888,4,0),"") ->  | AE51: =IFERROR(VLOOKUP(J51,'شهر 9 تفصيلي'!$B$5:$AEC$667,1,0),"") ->  | AF51: =IFERROR(VLOOKUP(Q51,'شهر 9 تفصيلي'!$B$5:$AEC$667,1,0),"") ->  | AG51: =IFERROR(VLOOKUP(X51,'شهر 9 تفصيلي'!$B$5:$AEC$667,1,0),"") ->  | AH51: 43 | AI51: 20227 | AJ51: 90 | AK51: FALSE | AL51: 43 | AN51: 43 | AO51: FALSE
A52: 1804 | D52: =N52&$H$7&COUNTIF($N$9:N52,N52) -> 444400 | E52: =U52&$H$7&COUNTIF($U$9:U52,U52) -> 444400 | F52: =AB52&$H$7&COUNTIF($AB$9:AB52,AB52) -> 444400 | H52: 44 | I52: 20228 | J52: 1804 | L52: 55 | O52: =IFERROR(VLOOKUP(J52,BUS!$C$4:$AEB$888,4,0),"") -> MUB | V52: =IFERROR(VLOOKUP(Q52,BUS!$C$4:$AEB$888,4,0),"") ->  | AC52: =IFERROR(VLOOKUP(X52,BUS!$C$4:$AEB$888,4,0),"") ->  | AE52: =IFERROR(VLOOKUP(J52,'شهر 9 تفصيلي'!$B$5:$AEC$667,1,0),"") ->  | AF52: =IFERROR(VLOOKUP(Q52,'شهر 9 تفصيلي'!$B$5:$AEC$667,1,0),"") ->  | AG52: =IFERROR(VLOOKUP(X52,'شهر 9 تفصيلي'!$B$5:$AEC$667,1,0),"") ->  | AH52: 44 | AI52: 20228 | AJ52: 91 | AK52: FALSE | AL52: 44 | AN52: 44 | AO52: FALSE
A53: 1261 | D53: =N53&$H$7&COUNTIF($N$9:N53,N53) -> 444400 | E53: =U53&$H$7&COUNTIF($U$9:U53,U53) -> 444400 | F53: =AB53&$H$7&COUNTIF($AB$9:AB53,AB53) -> 444400 | H53: 45 | I53: 20230 | J53: 1261 | L53: 80 | O53: =IFERROR(VLOOKUP(J53,BUS!$C$4:$AEB$888,4,0),"") -> DHA | V53: =IFERROR(VLOOKUP(Q53,BUS!$C$4:$AEB$888,4,0),"") ->  | AC53: =IFERROR(VLOOKUP(X53,BUS!$C$4:$AEB$888,4,0),"") ->  | AE53: =IFERROR(VLOOKUP(J53,'شهر 9 تفصيلي'!$B$5:$AEC$667,1,0),"") ->  | AF53: =IFERROR(VLOOKUP(Q53,'شهر 9 تفصيلي'!$B$5:$AEC$667,1,0),"") ->  | AG53: =IFERROR(VLOOKUP(X53,'شهر 9 تفصيلي'!$B$5:$AEC$667,1,0),"") ->  | AH53: 45 | AI53: 20230 | AJ53: 92 | AK53: FALSE | AL53: 45 | AN53: 45 | AO53: FALSE
A54: 1659 | D54: =N54&$H$7&COUNTIF($N$9:N54,N54) -> 444400 | E54: =U54&$H$7&COUNTIF($U$9:U54,U54) -> 444400 | F54: =AB54&$H$7&COUNTIF($AB$9:AB54,AB54) -> 444400 | H54: 46 | I54: 20231 | J54: 1659 | L54: 50 | O54: =IFERROR(VLOOKUP(J54,BUS!$C$4:$AEB$888,4,0),"") -> MUB | V54: =IFERROR(VLOOKUP(Q54,BUS!$C$4:$AEB$888,4,0),"") ->  | AC54: =IFERROR(VLOOKUP(X54,BUS!$C$4:$AEB$888,4,0),"") ->  | AE54: =IFERROR(VLOOKUP(J54,'شهر 9 تفصيلي'!$B$5:$AEC$667,1,0),"") ->  | AF54: =IFERROR(VLOOKUP(Q54,'شهر 9 تفصيلي'!$B$5:$AEC$667,1,0),"") ->  | AG54: =IFERROR(VLOOKUP(X54,'شهر 9 تفصيلي'!$B$5:$AEC$667,1,0),"") ->  | AH54: 46 | AI54: 20231 | AJ54: 93 | AK54: FALSE | AL54: 46 | AN54: 46 | AO54: FALSE
A55: 1050 | D55: =N55&$H$7&COUNTIF($N$9:N55,N55) -> 444400 | E55: =U55&$H$7&COUNTIF($U$9:U55,U55) -> 444400 | F55: =AB55&$H$7&COUNTIF($AB$9:AB55,AB55) -> 444400 | H55: 47 | I55: 20232 | J55: 1050 | L55: 115 | O55: =IFERROR(VLOOKUP(J55,BUS!$C$4:$AEB$888,4,0),"") -> DHA | V55: =IFERROR(VLOOKUP(Q55,BUS!$C$4:$AEB$888,4,0),"") ->  | AC55: =IFERROR(VLOOKUP(X55,BUS!$C$4:$AEB$888,4,0),"") ->  | AE55: =IFERROR(VLOOKUP(J55,'شهر 9 تفصيلي'!$B$5:$AEC$667,1,0),"") ->  | AF55: =IFERROR(VLOOKUP(Q55,'شهر 9 تفصيلي'!$B$5:$AEC$667,1,0),"") ->  | AG55: =IFERROR(VLOOKUP(X55,'شهر 9 تفصيلي'!$B$5:$AEC$667,1,0),"") ->  | AH55: 47 | AI55: 20232 | AJ55: 94 | AK55: FALSE | AL55: 47 | AM55: =IF(P55>0,P55) -> FALSE | AN55: 47 | AO55: FALSE
A56: 1297 | D56: =N56&$H$7&COUNTIF($N$9:N56,N56) -> 444400 | E56: =U56&$H$7&COUNTIF($U$9:U56,U56) -> 444400 | F56: =AB56&$H$7&COUNTIF($AB$9:AB56,AB56) -> 444400 | H56: 48 | I56: 20233 | J56: 1297 | L56: 130 | O56: =IFERROR(VLOOKUP(J56,BUS!$C$4:$AEB$888,4,0),"") -> DHA | V56: =IFERROR(VLOOKUP(Q56,BUS!$C$4:$AEB$888,4,0),"") ->  | AC56: =IFERROR(VLOOKUP(X56,BUS!$C$4:$AEB$888,4,0),"") ->  | AE56: =IFERROR(VLOOKUP(J56,'شهر 9 تفصيلي'!$B$5:$AEC$667,1,0),"") ->  | AF56: =IFERROR(VLOOKUP(Q56,'شهر 9 تفصيلي'!$B$5:$AEC$667,1,0),"") ->  | AG56: =IFERROR(VLOOKUP(X56,'شهر 9 تفصيلي'!$B$5:$AEC$667,1,0),"") -> 
A57: 1356 | D57: =N57&$H$7&COUNTIF($N$9:N57,N57) -> 444400 | E57: =U57&$H$7&COUNTIF($U$9:U57,U57) -> 444400 | F57: =AB57&$H$7&COUNTIF($AB$9:AB57,AB57) -> 444400 | H57: 49 | I57: 20234 | J57: 1356 | L57: 130 | O57: =IFERROR(VLOOKUP(J57,BUS!$C$4:$AEB$888,4,0),"") -> MUB | V57: =IFERROR(VLOOKUP(Q57,BUS!$C$4:$AEB$888,4,0),"") ->  | AC57: =IFERROR(VLOOKUP(X57,BUS!$C$4:$AEB$888,4,0),"") ->  | AE57: =IFERROR(VLOOKUP(J57,'شهر 9 تفصيلي'!$B$5:$AEC$667,1,0),"") ->  | AF57: =IFERROR(VLOOKUP(Q57,'شهر 9 تفصيلي'!$B$5:$AEC$667,1,0),"") ->  | AG57: =IFERROR(VLOOKUP(X57,'شهر 9 تفصيلي'!$B$5:$AEC$667,1,0),"") -> 
A58: 1808 | D58: =N58&$H$7&COUNTIF($N$9:N58,N58) -> 444400 | E58: =U58&$H$7&COUNTIF($U$9:U58,U58) -> 444400 | F58: =AB58&$H$7&COUNTIF($AB$9:AB58,AB58) -> 444400 | H58: 50 | I58: 20237 | J58: 1808 | L58: 95 | O58: =IFERROR(VLOOKUP(J58,BUS!$C$4:$AEB$888,4,0),"") -> MUB | V58: =IFERROR(VLOOKUP(Q58,BUS!$C$4:$AEB$888,4,0),"") ->  | AC58: =IFERROR(VLOOKUP(X58,BUS!$C$4:$AEB$888,4,0),"") ->  | AE58: =IFERROR(VLOOKUP(J58,'شهر 9 تفصيلي'!$B$5:$AEC$667,1,0),"") ->  | AF58: =IFERROR(VLOOKUP(Q58,'شهر 9 تفصيلي'!$B$5:$AEC$667,1,0),"") ->  | AG58: =IFERROR(VLOOKUP(X58,'شهر 9 تفصيلي'!$B$5:$AEC$667,1,0),"") -> 
A59: 1086 | D59: =N59&$H$7&COUNTIF($N$9:N59,N59) -> 444400 | E59: =U59&$H$7&COUNTIF($U$9:U59,U59) -> 444400 | F59: =AB59&$H$7&COUNTIF($AB$9:AB59,AB59) -> 444400 | H59: 51 | I59: 20257 | J59: 1086 | L59: 75 | O59: =IFERROR(VLOOKUP(J59,BUS!$C$4:$AEB$888,4,0),"") -> MUB | V59: =IFERROR(VLOOKUP(Q59,BUS!$C$4:$AEB$888,4,0),"") ->  | AC59: =IFERROR(VLOOKUP(X59,BUS!$C$4:$AEB$888,4,0),"") ->  | AE59: =IFERROR(VLOOKUP(J59,'شهر 9 تفصيلي'!$B$5:$AEC$667,1,0),"") ->  | AF59: =IFERROR(VLOOKUP(Q59,'شهر 9 تفصيلي'!$B$5:$AEC$667,1,0),"") ->  | AG59: =IFERROR(VLOOKUP(X59,'شهر 9 تفصيلي'!$B$5:$AEC$667,1,0),"") -> 
A60: 1204 | D60: =N60&$H$7&COUNTIF($N$9:N60,N60) -> 444400 | E60: =U60&$H$7&COUNTIF($U$9:U60,U60) -> 444400 | F60: =AB60&$H$7&COUNTIF($AB$9:AB60,AB60) -> 444400 | H60: 52 | I60: 20251 | J60: 1204 | L60: 150 | O60: =IFERROR(VLOOKUP(J60,BUS!$C$4:$AEB$888,4,0),"") -> MUB | V60: =IFERROR(VLOOKUP(Q60,BUS!$C$4:$AEB$888,4,0),"") ->  | AC60: =IFERROR(VLOOKUP(X60,BUS!$C$4:$AEB$888,4,0),"") ->  | AE60: =IFERROR(VLOOKUP(J60,'شهر 9 تفصيلي'!$B$5:$AEC$667,1,0),"") ->  | AF60: =IFERROR(VLOOKUP(Q60,'شهر 9 تفصيلي'!$B$5:$AEC$667,1,0),"") ->  | AG60: =IFERROR(VLOOKUP(X60,'شهر 9 تفصيلي'!$B$5:$AEC$667,1,0),"") -> 
A61: 1271 | D61: =N61&$H$7&COUNTIF($N$9:N61,N61) -> 444400 | E61: =U61&$H$7&COUNTIF($U$9:U61,U61) -> 444400 | F61: =AB61&$H$7&COUNTIF($AB$9:AB61,AB61) -> 444400 | H61: 53 | I61: 20252 | J61: 1271 | L61: 135 | O61: =IFERROR(VLOOKUP(J61,BUS!$C$4:$AEB$888,4,0),"") -> MUB | V61: =IFERROR(VLOOKUP(Q61,BUS!$C$4:$AEB$888,4,0),"") ->  | AC61: =IFERROR(VLOOKUP(X61,BUS!$C$4:$AEB$888,4,0),"") ->  | AE61: =IFERROR(VLOOKUP(J61,'شهر 9 تفصيلي'!$B$5:$AEC$667,1,0),"") ->  | AF61: =IFERROR(VLOOKUP(Q61,'شهر 9 تفصيلي'!$B$5:$AEC$667,1,0),"") ->  | AG61: =IFERROR(VLOOKUP(X61,'شهر 9 تفصيلي'!$B$5:$AEC$667,1,0),"") -> 
A62: 1819 | D62: =N62&$H$7&COUNTIF($N$9:N62,N62) -> 444400 | E62: =U62&$H$7&COUNTIF($U$9:U62,U62) -> 444400 | F62: =AB62&$H$7&COUNTIF($AB$9:AB62,AB62) -> 444400 | H62: 54 | I62: 20253 | J62: 1819 | L62: 135 | O62: =IFERROR(VLOOKUP(J62,BUS!$C$4:$AEB$888,4,0),"") -> MUB | V62: =IFERROR(VLOOKUP(Q62,BUS!$C$4:$AEB$888,4,0),"") ->  | AC62: =IFERROR(VLOOKUP(X62,BUS!$C$4:$AEB$888,4,0),"") ->  | AE62: =IFERROR(VLOOKUP(J62,'شهر 9 تفصيلي'!$B$5:$AEC$667,1,0),"") ->  | AF62: =IFERROR(VLOOKUP(Q62,'شهر 9 تفصيلي'!$B$5:$AEC$667,1,0),"") ->  | AG62: =IFERROR(VLOOKUP(X62,'شهر 9 تفصيلي'!$B$5:$AEC$667,1,0),"") -> 
A63: =J63&K63 -> 1094 | B63: =Q63&R63 ->  | C63: =X63&Y63 ->  | D63: =N63&$H$7&COUNTIF($N$9:N63,N63) -> 444400 | E63: =U63&$H$7&COUNTIF($U$9:U63,U63) -> 444400 | F63: =AB63&$H$7&COUNTIF($AB$9:AB63,AB63) -> 444400 | H63: 55 | I63: 20254 | J63: 1094 | L63: 50 | O63: =IFERROR(VLOOKUP(J63,BUS!$C$4:$AEB$888,4,0),"") -> DHA | V63: =IFERROR(VLOOKUP(Q63,BUS!$C$4:$AEB$888,4,0),"") ->  | AC63: =IFERROR(VLOOKUP(X63,BUS!$C$4:$AEB$888,4,0),"") ->  | AE63: =IFERROR(VLOOKUP(J63,'شهر 9 تفصيلي'!$B$5:$AEC$667,1,0),"") ->  | AF63: =IFERROR(VLOOKUP(Q63,'شهر 9 تفصيلي'!$B$5:$AEC$667,1,0),"") ->  | AG63: =IFERROR(VLOOKUP(X63,'شهر 9 تفصيلي'!$B$5:$AEC$667,1,0),"") -> 
A64: 1017 | D64: =N64&$H$7&COUNTIF($N$9:N64,N64) -> 444400 | E64: =U64&$H$7&COUNTIF($U$9:U64,U64) -> 444400 | F64: =AB64&$H$7&COUNTIF($AB$9:AB64,AB64) -> 444400 | H64: 56 | I64: 20255 | J64: 1017 | L64: 165 | O64: =IFERROR(VLOOKUP(J64,BUS!$C$4:$AEB$888,4,0),"") -> MUB | V64: =IFERROR(VLOOKUP(Q64,BUS!$C$4:$AEB$888,4,0),"") ->  | AC64: =IFERROR(VLOOKUP(X64,BUS!$C$4:$AEB$888,4,0),"") ->  | AE64: =IFERROR(VLOOKUP(J64,'شهر 9 تفصيلي'!$B$5:$AEC$667,1,0),"") -> 1017 | AF64: =IFERROR(VLOOKUP(Q64,'شهر 9 تفصيلي'!$B$5:$AEC$667,1,0),"") ->  | AG64: =IFERROR(VLOOKUP(X64,'شهر 9 تفصيلي'!$B$5:$AEC$667,1,0),"") -> 
A65: 1043 | D65: =N65&$H$7&COUNTIF($N$9:N65,N65) -> 444400 | E65: =U65&$H$7&COUNTIF($U$9:U65,U65) -> 444400 | F65: =AB65&$H$7&COUNTIF($AB$9:AB65,AB65) -> 444400 | H65: 57 | I65: 20256 | J65: 1043 | L65: 130 | O65: =IFERROR(VLOOKUP(J65,BUS!$C$4:$AEB$888,4,0),"") -> MUB | V65: =IFERROR(VLOOKUP(Q65,BUS!$C$4:$AEB$888,4,0),"") ->  | AC65: =IFERROR(VLOOKUP(X65,BUS!$C$4:$AEB$888,4,0),"") ->  | AE65: =IFERROR(VLOOKUP(J65,'شهر 9 تفصيلي'!$B$5:$AEC$667,1,0),"") ->  | AF65: =IFERROR(VLOOKUP(Q65,'شهر 9 تفصيلي'!$B$5:$AEC$667,1,0),"") ->  | AG65: =IFERROR(VLOOKUP(X65,'شهر 9 تفصيلي'!$B$5:$AEC$667,1,0),"") -> 
A66: 1820 | D66: =N66&$H$7&COUNTIF($N$9:N66,N66) -> 444400 | E66: =U66&$H$7&COUNTIF($U$9:U66,U66) -> 444400 | F66: =AB66&$H$7&COUNTIF($AB$9:AB66,AB66) -> 444400 | H66: 58 | I66: 20240 | J66: 1820 | L66: 90 | O66: =IFERROR(VLOOKUP(J66,BUS!$C$4:$AEB$888,4,0),"") -> MUB | V66: =IFERROR(VLOOKUP(Q66,BUS!$C$4:$AEB$888,4,0),"") ->  | AC66: =IFERROR(VLOOKUP(X66,BUS!$C$4:$AEB$888,4,0),"") ->  | AE66: =IFERROR(VLOOKUP(J66,'شهر 9 تفصيلي'!$B$5:$AEC$667,1,0),"") ->  | AF66: =IFERROR(VLOOKUP(Q66,'شهر 9 تفصيلي'!$B$5:$AEC$667,1,0),"") ->  | AG66: =IFERROR(VLOOKUP(X66,'شهر 9 تفصيلي'!$B$5:$AEC$667,1,0),"") -> 
A67: 1291 | D67: =N67&$H$7&COUNTIF($N$9:N67,N67) -> 444400 | E67: =U67&$H$7&COUNTIF($U$9:U67,U67) -> 444400 | F67: =AB67&$H$7&COUNTIF($AB$9:AB67,AB67) -> 444400 | H67: 59 | I67: 20241 | J67: 1291 | L67: 155 | O67: =IFERROR(VLOOKUP(J67,BUS!$C$4:$AEB$888,4,0),"") -> MUB | V67: =IFERROR(VLOOKUP(Q67,BUS!$C$4:$AEB$888,4,0),"") ->  | AC67: =IFERROR(VLOOKUP(X67,BUS!$C$4:$AEB$888,4,0),"") ->  | AE67: =IFERROR(VLOOKUP(J67,'شهر 9 تفصيلي'!$B$5:$AEC$667,1,0),"") ->  | AF67: =IFERROR(VLOOKUP(Q67,'شهر 9 تفصيلي'!$B$5:$AEC$667,1,0),"") ->  | AG67: =IFERROR(VLOOKUP(X67,'شهر 9 تفصيلي'!$B$5:$AEC$667,1,0),"") -> 
A68: 1276 | D68: =N68&$H$7&COUNTIF($N$9:N68,N68) -> 444400 | E68: =U68&$H$7&COUNTIF($U$9:U68,U68) -> 444400 | F68: =AB68&$H$7&COUNTIF($AB$9:AB68,AB68) -> 444400 | H68: 60 | I68: 20242 | J68: 1276 | L68: 75 | O68: =IFERROR(VLOOKUP(J68,BUS!$C$4:$AEB$888,4,0),"") -> MUB | V68: =IFERROR(VLOOKUP(Q68,BUS!$C$4:$AEB$888,4,0),"") ->  | AC68: =IFERROR(VLOOKUP(X68,BUS!$C$4:$AEB$888,4,0),"") ->  | AE68: =IFERROR(VLOOKUP(J68,'شهر 9 تفصيلي'!$B$5:$AEC$667,1,0),"") ->  | AF68: =IFERROR(VLOOKUP(Q68,'شهر 9 تفصيلي'!$B$5:$AEC$667,1,0),"") ->  | AG68: =IFERROR(VLOOKUP(X68,'شهر 9 تفصيلي'!$B$5:$AEC$667,1,0),"") -> 
A69: 1815 | D69: =N69&$H$7&COUNTIF($N$9:N69,N69) -> 444400 | E69: =U69&$H$7&COUNTIF($U$9:U69,U69) -> 444400 | F69: =AB69&$H$7&COUNTIF($AB$9:AB69,AB69) -> 444400 | H69: 61 | I69: 20239 | J69: 1815 | L69: 155 | O69: =IFERROR(VLOOKUP(J69,BUS!$C$4:$AEB$888,4,0),"") -> MUB | V69: =IFERROR(VLOOKUP(Q69,BUS!$C$4:$AEB$888,4,0),"") ->  | AC69: =IFERROR(VLOOKUP(X69,BUS!$C$4:$AEB$888,4,0),"") ->  | AE69: =IFERROR(VLOOKUP(J69,'شهر 9 تفصيلي'!$B$5:$AEC$667,1,0),"") ->  | AF69: =IFERROR(VLOOKUP(Q69,'شهر 9 تفصيلي'!$B$5:$AEC$667,1,0),"") ->  | AG69: =IFERROR(VLOOKUP(X69,'شهر 9 تفصيلي'!$B$5:$AEC$667,1,0),"") -> 
A70: 1824 | D70: =N70&$H$7&COUNTIF($N$9:N70,N70) -> 444400 | E70: =U70&$H$7&COUNTIF($U$9:U70,U70) -> 444400 | F70: =AB70&$H$7&COUNTIF($AB$9:AB70,AB70) -> 444400 | H70: 62 | I70: 20238 | J70: 1824 | L70: 65 | O70: =IFERROR(VLOOKUP(J70,BUS!$C$4:$AEB$888,4,0),"") -> MUB | V70: =IFERROR(VLOOKUP(Q70,BUS!$C$4:$AEB$888,4,0),"") ->  | AC70: =IFERROR(VLOOKUP(X70,BUS!$C$4:$AEB$888,4,0),"") ->  | AE70: =IFERROR(VLOOKUP(J70,'شهر 9 تفصيلي'!$B$5:$AEC$667,1,0),"") ->  | AF70: =IFERROR(VLOOKUP(Q70,'شهر 9 تفصيلي'!$B$5:$AEC$667,1,0),"") ->  | AG70: =IFERROR(VLOOKUP(X70,'شهر 9 تفصيلي'!$B$5:$AEC$667,1,0),"") -> 
A71: 1298 | D71: =N71&$H$7&COUNTIF($N$9:N71,N71) -> 444400 | E71: =U71&$H$7&COUNTIF($U$9:U71,U71) -> 444400 | F71: =AB71&$H$7&COUNTIF($AB$9:AB71,AB71) -> 444400 | H71: 63 | I71: 20243 | J71: 1298 | L71: 75 | O71: =IFERROR(VLOOKUP(J71,BUS!$C$4:$AEB$888,4,0),"") -> DHA | V71: =IFERROR(VLOOKUP(Q71,BUS!$C$4:$AEB$888,4,0),"") ->  | AC71: =IFERROR(VLOOKUP(X71,BUS!$C$4:$AEB$888,4,0),"") ->  | AE71: =IFERROR(VLOOKUP(J71,'شهر 9 تفصيلي'!$B$5:$AEC$667,1,0),"") ->  | AF71: =IFERROR(VLOOKUP(Q71,'شهر 9 تفصيلي'!$B$5:$AEC$667,1,0),"") ->  | AG71: =IFERROR(VLOOKUP(X71,'شهر 9 تفصيلي'!$B$5:$AEC$667,1,0),"") -> 
A72: 1059 | D72: =N72&$H$7&COUNTIF($N$9:N72,N72) -> 444400 | E72: =U72&$H$7&COUNTIF($U$9:U72,U72) -> 444400 | F72: =AB72&$H$7&COUNTIF($AB$9:AB72,AB72) -> 444400 | H72: 64 | I72: 20244 | J72: 1059 | L72: 115 | O72: =IFERROR(VLOOKUP(J72,BUS!$C$4:$AEB$888,4,0),"") -> DHA | V72: =IFERROR(VLOOKUP(Q72,BUS!$C$4:$AEB$888,4,0),"") ->  | AC72: =IFERROR(VLOOKUP(X72,BUS!$C$4:$AEB$888,4,0),"") ->  | AE72: =IFERROR(VLOOKUP(J72,'شهر 9 تفصيلي'!$B$5:$AEC$667,1,0),"") ->  | AF72: =IFERROR(VLOOKUP(Q72,'شهر 9 تفصيلي'!$B$5:$AEC$667,1,0),"") ->  | AG72: =IFERROR(VLOOKUP(X72,'شهر 9 تفصيلي'!$B$5:$AEC$667,1,0),"") -> 
A73: 1821 | D73: =N73&$H$7&COUNTIF($N$9:N73,N73) -> 444400 | E73: =U73&$H$7&COUNTIF($U$9:U73,U73) -> 444400 | F73: =AB73&$H$7&COUNTIF($AB$9:AB73,AB73) -> 444400 | H73: 65 | I73: 20245 | J73: 1821 | L73: 140 | O73: =IFERROR(VLOOKUP(J73,BUS!$C$4:$AEB$888,4,0),"") -> MUB | V73: =IFERROR(VLOOKUP(Q73,BUS!$C$4:$AEB$888,4,0),"") ->  | AC73: =IFERROR(VLOOKUP(X73,BUS!$C$4:$AEB$888,4,0),"") ->  | AE73: =IFERROR(VLOOKUP(J73,'شهر 9 تفصيلي'!$B$5:$AEC$667,1,0),"") ->  | AF73: =IFERROR(VLOOKUP(Q73,'شهر 9 تفصيلي'!$B$5:$AEC$667,1,0),"") ->  | AG73: =IFERROR(VLOOKUP(X73,'شهر 9 تفصيلي'!$B$5:$AEC$667,1,0),"") -> 
A74: 1294 | D74: =N74&$H$7&COUNTIF($N$9:N74,N74) -> 444400 | E74: =U74&$H$7&COUNTIF($U$9:U74,U74) -> 444400 | F74: =AB74&$H$7&COUNTIF($AB$9:AB74,AB74) -> 444400 | H74: 66 | I74: 20246 | J74: 1294 | L74: 90 | O74: =IFERROR(VLOOKUP(J74,BUS!$C$4:$AEB$888,4,0),"") -> MUB | V74: =IFERROR(VLOOKUP(Q74,BUS!$C$4:$AEB$888,4,0),"") ->  | AC74: =IFERROR(VLOOKUP(X74,BUS!$C$4:$AEB$888,4,0),"") ->  | AE74: =IFERROR(VLOOKUP(J74,'شهر 9 تفصيلي'!$B$5:$AEC$667,1,0),"") ->  | AF74: =IFERROR(VLOOKUP(Q74,'شهر 9 تفصيلي'!$B$5:$AEC$667,1,0),"") ->  | AG74: =IFERROR(VLOOKUP(X74,'شهر 9 تفصيلي'!$B$5:$AEC$667,1,0),"") -> 
A75: 1808 | D75: =N75&$H$7&COUNTIF($N$9:N75,N75) -> 444400 | E75: =U75&$H$7&COUNTIF($U$9:U75,U75) -> 444400 | F75: =AB75&$H$7&COUNTIF($AB$9:AB75,AB75) -> 444400 | H75: 67 | I75: 20247 | J75: 1808 | L75: 65 | O75: =IFERROR(VLOOKUP(J75,BUS!$C$4:$AEB$888,4,0),"") -> MUB | V75: =IFERROR(VLOOKUP(Q75,BUS!$C$4:$AEB$888,4,0),"") ->  | AC75: =IFERROR(VLOOKUP(X75,BUS!$C$4:$AEB$888,4,0),"") ->  | AE75: =IFERROR(VLOOKUP(J75,'شهر 9 تفصيلي'!$B$5:$AEC$667,1,0),"") ->  | AF75: =IFERROR(VLOOKUP(Q75,'شهر 9 تفصيلي'!$B$5:$AEC$667,1,0),"") ->  | AG75: =IFERROR(VLOOKUP(X75,'شهر 9 تفصيلي'!$B$5:$AEC$667,1,0),"") -> 
A76: 1811 | D76: =N76&$H$7&COUNTIF($N$9:N76,N76) -> 444400 | E76: =U76&$H$7&COUNTIF($U$9:U76,U76) -> 444400 | F76: =AB76&$H$7&COUNTIF($AB$9:AB76,AB76) -> 444400 | H76: 68 | I76: 20248 | J76: 1811 | L76: 75 | O76: =IFERROR(VLOOKUP(J76,BUS!$C$4:$AEB$888,4,0),"") -> MUB | V76: =IFERROR(VLOOKUP(Q76,BUS!$C$4:$AEB$888,4,0),"") ->  | AC76: =IFERROR(VLOOKUP(X76,BUS!$C$4:$AEB$888,4,0),"") ->  | AE76: =IFERROR(VLOOKUP(J76,'شهر 9 تفصيلي'!$B$5:$AEC$667,1,0),"") ->  | AF76: =IFERROR(VLOOKUP(Q76,'شهر 9 تفصيلي'!$B$5:$AEC$667,1,0),"") ->  | AG76: =IFERROR(VLOOKUP(X76,'شهر 9 تفصيلي'!$B$5:$AEC$667,1,0),"") -> 
A77: 1253 | D77: =N77&$H$7&COUNTIF($N$9:N77,N77) -> 444400 | E77: =U77&$H$7&COUNTIF($U$9:U77,U77) -> 444400 | F77: =AB77&$H$7&COUNTIF($AB$9:AB77,AB77) -> 444400 | H77: 69 | I77: 20249 | J77: 1253 | L77: 55 | O77: =IFERROR(VLOOKUP(J77,BUS!$C$4:$AEB$888,4,0),"") -> MUB | V77: =IFERROR(VLOOKUP(Q77,BUS!$C$4:$AEB$888,4,0),"") ->  | AC77: =IFERROR(VLOOKUP(X77,BUS!$C$4:$AEB$888,4,0),"") ->  | AE77: =IFERROR(VLOOKUP(J77,'شهر 9 تفصيلي'!$B$5:$AEC$667,1,0),"") ->  | AF77: =IFERROR(VLOOKUP(Q77,'شهر 9 تفصيلي'!$B$5:$AEC$667,1,0),"") ->  | AG77: =IFERROR(VLOOKUP(X77,'شهر 9 تفصيلي'!$B$5:$AEC$667,1,0),"") -> 
A78: 1015 | D78: =N78&$H$7&COUNTIF($N$9:N78,N78) -> 444400 | E78: =U78&$H$7&COUNTIF($U$9:U78,U78) -> 444400 | F78: =AB78&$H$7&COUNTIF($AB$9:AB78,AB78) -> 444400 | H78: 70 | I78: 20250 | J78: 1015 | L78: 150 | O78: =IFERROR(VLOOKUP(J78,BUS!$C$4:$AEB$888,4,0),"") -> MUB | V78: =IFERROR(VLOOKUP(Q78,BUS!$C$4:$AEB$888,4,0),"") ->  | AC78: =IFERROR(VLOOKUP(X78,BUS!$C$4:$AEB$888,4,0),"") ->  | AE78: =IFERROR(VLOOKUP(J78,'شهر 9 تفصيلي'!$B$5:$AEC$667,1,0),"") -> 1015 | AF78: =IFERROR(VLOOKUP(Q78,'شهر 9 تفصيلي'!$B$5:$AEC$667,1,0),"") ->  | AG78: =IFERROR(VLOOKUP(X78,'شهر 9 تفصيلي'!$B$5:$AEC$667,1,0),"") -> 
D79: =N79&$H$7&COUNTIF($N$9:N79,N79) -> 444400 | E79: =U79&$H$7&COUNTIF($U$9:U79,U79) -> 444400 | F79: =AB79&$H$7&COUNTIF($AB$9:AB79,AB79) -> 444400 | H79: 71 | O79: =IFERROR(VLOOKUP(J79,BUS!$C$4:$AEB$888,4,0),"") ->  | V79: =IFERROR(VLOOKUP(Q79,BUS!$C$4:$AEB$888,4,0),"") ->  | AC79: =IFERROR(VLOOKUP(X79,BUS!$C$4:$AEB$888,4,0),"") ->  | AE79: =IFERROR(VLOOKUP(J79,'شهر 9 تفصيلي'!$B$5:$AEC$667,1,0),"") ->  | AF79: =IFERROR(VLOOKUP(Q79,'شهر 9 تفصيلي'!$B$5:$AEC$667,1,0),"") ->  | AG79: =IFERROR(VLOOKUP(X79,'شهر 9 تفصيلي'!$B$5:$AEC$667,1,0),"") -> 
D80: =N80&$H$7&COUNTIF($N$9:N80,N80) -> 444400 | E80: =U80&$H$7&COUNTIF($U$9:U80,U80) -> 444400 | F80: =AB80&$H$7&COUNTIF($AB$9:AB80,AB80) -> 444400 | H80: 72 | O80: =IFERROR(VLOOKUP(J80,BUS!$C$4:$AEB$888,4,0),"") ->  | V80: =IFERROR(VLOOKUP(Q80,BUS!$C$4:$AEB$888,4,0),"") ->  | AC80: =IFERROR(VLOOKUP(X80,BUS!$C$4:$AEB$888,4,0),"") ->  | AE80: =IFERROR(VLOOKUP(J80,'شهر 9 تفصيلي'!$B$5:$AEC$667,1,0),"") ->  | AF80: =IFERROR(VLOOKUP(Q80,'شهر 9 تفصيلي'!$B$5:$AEC$667,1,0),"") ->  | AG80: =IFERROR(VLOOKUP(X80,'شهر 9 تفصيلي'!$B$5:$AEC$667,1,0),"") -> 
D81: =N81&$H$7&COUNTIF($N$9:N81,N81) -> 444400 | E81: =U81&$H$7&COUNTIF($U$9:U81,U81) -> 444400 | F81: =AB81&$H$7&COUNTIF($AB$9:AB81,AB81) -> 444400 | H81: 73 | O81: =IFERROR(VLOOKUP(J81,BUS!$C$4:$AEB$888,4,0),"") ->  | V81: =IFERROR(VLOOKUP(Q81,BUS!$C$4:$AEB$888,4,0),"") ->  | AC81: =IFERROR(VLOOKUP(X81,BUS!$C$4:$AEB$888,4,0),"") ->  | AE81: =IFERROR(VLOOKUP(J81,'شهر 9 تفصيلي'!$B$5:$AEC$667,1,0),"") ->  | AF81: =IFERROR(VLOOKUP(Q81,'شهر 9 تفصيلي'!$B$5:$AEC$667,1,0),"") ->  | AG81: =IFERROR(VLOOKUP(X81,'شهر 9 تفصيلي'!$B$5:$AEC$667,1,0),"") -> 
D82: =N82&$H$7&COUNTIF($N$9:N82,N82) -> 444400 | E82: =U82&$H$7&COUNTIF($U$9:U82,U82) -> 444400 | F82: =AB82&$H$7&COUNTIF($AB$9:AB82,AB82) -> 444400 | H82: 74 | O82: =IFERROR(VLOOKUP(J82,BUS!$C$4:$AEB$888,4,0),"") ->  | V82: =IFERROR(VLOOKUP(Q82,BUS!$C$4:$AEB$888,4,0),"") ->  | AC82: =IFERROR(VLOOKUP(X82,BUS!$C$4:$AEB$888,4,0),"") ->  | AE82: =IFERROR(VLOOKUP(J82,'شهر 9 تفصيلي'!$B$5:$AEC$667,1,0),"") ->  | AF82: =IFERROR(VLOOKUP(Q82,'شهر 9 تفصيلي'!$B$5:$AEC$667,1,0),"") ->  | AG82: =IFERROR(VLOOKUP(X82,'شهر 9 تفصيلي'!$B$5:$AEC$667,1,0),"") -> 
D83: =N83&$H$7&COUNTIF($N$9:N83,N83) -> 444400 | E83: =U83&$H$7&COUNTIF($U$9:U83,U83) -> 444400 | F83: =AB83&$H$7&COUNTIF($AB$9:AB83,AB83) -> 444400 | H83: 75 | O83: =IFERROR(VLOOKUP(J83,BUS!$C$4:$AEB$888,4,0),"") ->  | V83: =IFERROR(VLOOKUP(Q83,BUS!$C$4:$AEB$888,4,0),"") ->  | AC83: =IFERROR(VLOOKUP(X83,BUS!$C$4:$AEB$888,4,0),"") ->  | AE83: =IFERROR(VLOOKUP(J83,'شهر 9 تفصيلي'!$B$5:$AEC$667,1,0),"") ->  | AF83: =IFERROR(VLOOKUP(Q83,'شهر 9 تفصيلي'!$B$5:$AEC$667,1,0),"") ->  | AG83: =IFERROR(VLOOKUP(X83,'شهر 9 تفصيلي'!$B$5:$AEC$667,1,0),"") -> 
D84: =N84&$H$7&COUNTIF($N$9:N84,N84) -> 444400 | E84: =U84&$H$7&COUNTIF($U$9:U84,U84) -> 444400 | F84: =AB84&$H$7&COUNTIF($AB$9:AB84,AB84) -> 444400 | H84: 76 | O84: =IFERROR(VLOOKUP(J84,BUS!$C$4:$AEB$888,4,0),"") ->  | V84: =IFERROR(VLOOKUP(Q84,BUS!$C$4:$AEB$888,4,0),"") ->  | AC84: =IFERROR(VLOOKUP(X84,BUS!$C$4:$AEB$888,4,0),"") ->  | AE84: =IFERROR(VLOOKUP(J84,'شهر 9 تفصيلي'!$B$5:$AEC$667,1,0),"") ->  | AF84: =IFERROR(VLOOKUP(Q84,'شهر 9 تفصيلي'!$B$5:$AEC$667,1,0),"") ->  | AG84: =IFERROR(VLOOKUP(X84,'شهر 9 تفصيلي'!$B$5:$AEC$667,1,0),"") -> 
D85: =N85&$H$7&COUNTIF($N$9:N85,N85) -> 444400 | E85: =U85&$H$7&COUNTIF($U$9:U85,U85) -> 444400 | F85: =AB85&$H$7&COUNTIF($AB$9:AB85,AB85) -> 444400 | H85: 77 | O85: =IFERROR(VLOOKUP(J85,BUS!$C$4:$AEB$888,4,0),"") ->  | V85: =IFERROR(VLOOKUP(Q85,BUS!$C$4:$AEB$888,4,0),"") ->  | AC85: =IFERROR(VLOOKUP(X85,BUS!$C$4:$AEB$888,4,0),"") ->  | AE85: =IFERROR(VLOOKUP(J85,'شهر 9 تفصيلي'!$B$5:$AEC$667,1,0),"") ->  | AF85: =IFERROR(VLOOKUP(Q85,'شهر 9 تفصيلي'!$B$5:$AEC$667,1,0),"") ->  | AG85: =IFERROR(VLOOKUP(X85,'شهر 9 تفصيلي'!$B$5:$AEC$667,1,0),"") -> 
D86: =N86&$H$7&COUNTIF($N$9:N86,N86) -> 444400 | E86: =U86&$H$7&COUNTIF($U$9:U86,U86) -> 444400 | F86: =AB86&$H$7&COUNTIF($AB$9:AB86,AB86) -> 444400 | H86: 78 | O86: =IFERROR(VLOOKUP(J86,BUS!$C$4:$AEB$888,4,0),"") ->  | V86: =IFERROR(VLOOKUP(Q86,BUS!$C$4:$AEB$888,4,0),"") ->  | AC86: =IFERROR(VLOOKUP(X86,BUS!$C$4:$AEB$888,4,0),"") ->  | AE86: =IFERROR(VLOOKUP(J86,'شهر 9 تفصيلي'!$B$5:$AEC$667,1,0),"") ->  | AF86: =IFERROR(VLOOKUP(Q86,'شهر 9 تفصيلي'!$B$5:$AEC$667,1,0),"") ->  | AG86: =IFERROR(VLOOKUP(X86,'شهر 9 تفصيلي'!$B$5:$AEC$667,1,0),"") -> 
D87: =N87&$H$7&COUNTIF($N$9:N87,N87) -> 444400 | E87: =U87&$H$7&COUNTIF($U$9:U87,U87) -> 444400 | F87: =AB87&$H$7&COUNTIF($AB$9:AB87,AB87) -> 444400 | H87: 79 | O87: =IFERROR(VLOOKUP(J87,BUS!$C$4:$AEB$888,4,0),"") ->  | V87: =IFERROR(VLOOKUP(Q87,BUS!$C$4:$AEB$888,4,0),"") ->  | AC87: =IFERROR(VLOOKUP(X87,BUS!$C$4:$AEB$888,4,0),"") ->  | AE87: =IFERROR(VLOOKUP(J87,'شهر 9 تفصيلي'!$B$5:$AEC$667,1,0),"") ->  | AF87: =IFERROR(VLOOKUP(Q87,'شهر 9 تفصيلي'!$B$5:$AEC$667,1,0),"") ->  | AG87: =IFERROR(VLOOKUP(X87,'شهر 9 تفصيلي'!$B$5:$AEC$667,1,0),"") -> 
D88: =N88&$H$7&COUNTIF($N$9:N88,N88) -> 444400 | E88: =U88&$H$7&COUNTIF($U$9:U88,U88) -> 444400 | F88: =AB88&$H$7&COUNTIF($AB$9:AB88,AB88) -> 444400 | H88: 80 | O88: =IFERROR(VLOOKUP(J88,BUS!$C$4:$AEB$888,4,0),"") ->  | V88: =IFERROR(VLOOKUP(Q88,BUS!$C$4:$AEB$888,4,0),"") ->  | AC88: =IFERROR(VLOOKUP(X88,BUS!$C$4:$AEB$888,4,0),"") ->  | AE88: =IFERROR(VLOOKUP(J88,'شهر 9 تفصيلي'!$B$5:$AEC$667,1,0),"") ->  | AF88: =IFERROR(VLOOKUP(Q88,'شهر 9 تفصيلي'!$B$5:$AEC$667,1,0),"") ->  | AG88: =IFERROR(VLOOKUP(X88,'شهر 9 تفصيلي'!$B$5:$AEC$667,1,0),"") -> 
D89: =N89&$H$7&COUNTIF($N$9:N89,N89) -> 444400 | E89: =U89&$H$7&COUNTIF($U$9:U89,U89) -> 444400 | F89: =AB89&$H$7&COUNTIF($AB$9:AB89,AB89) -> 444400 | H89: 81 | O89: =IFERROR(VLOOKUP(J89,BUS!$C$4:$AEB$888,4,0),"") ->  | V89: =IFERROR(VLOOKUP(Q89,BUS!$C$4:$AEB$888,4,0),"") ->  | AC89: =IFERROR(VLOOKUP(X89,BUS!$C$4:$AEB$888,4,0),"") ->  | AE89: =IFERROR(VLOOKUP(J89,'شهر 9 تفصيلي'!$B$5:$AEC$667,1,0),"") ->  | AF89: =IFERROR(VLOOKUP(Q89,'شهر 9 تفصيلي'!$B$5:$AEC$667,1,0),"") ->  | AG89: =IFERROR(VLOOKUP(X89,'شهر 9 تفصيلي'!$B$5:$AEC$667,1,0),"") -> 
D90: =N90&$H$7&COUNTIF($N$9:N90,N90) -> 444400 | E90: =U90&$H$7&COUNTIF($U$9:U90,U90) -> 444400 | F90: =AB90&$H$7&COUNTIF($AB$9:AB90,AB90) -> 444400 | H90: 82 | O90: =IFERROR(VLOOKUP(J90,BUS!$C$4:$AEB$888,4,0),"") ->  | V90: =IFERROR(VLOOKUP(Q90,BUS!$C$4:$AEB$888,4,0),"") ->  | AC90: =IFERROR(VLOOKUP(X90,BUS!$C$4:$AEB$888,4,0),"") ->  | AE90: =IFERROR(VLOOKUP(J90,'شهر 9 تفصيلي'!$B$5:$AEC$667,1,0),"") ->  | AF90: =IFERROR(VLOOKUP(Q90,'شهر 9 تفصيلي'!$B$5:$AEC$667,1,0),"") ->  | AG90: =IFERROR(VLOOKUP(X90,'شهر 9 تفصيلي'!$B$5:$AEC$667,1,0),"") -> 
D91: =N91&$H$7&COUNTIF($N$9:N91,N91) -> 444400 | E91: =U91&$H$7&COUNTIF($U$9:U91,U91) -> 444400 | F91: =AB91&$H$7&COUNTIF($AB$9:AB91,AB91) -> 444400 | H91: 83 | O91: =IFERROR(VLOOKUP(J91,BUS!$C$4:$AEB$888,4,0),"") ->  | V91: =IFERROR(VLOOKUP(Q91,BUS!$C$4:$AEB$888,4,0),"") ->  | AC91: =IFERROR(VLOOKUP(X91,BUS!$C$4:$AEB$888,4,0),"") ->  | AE91: =IFERROR(VLOOKUP(J91,'شهر 9 تفصيلي'!$B$5:$AEC$667,1,0),"") ->  | AF91: =IFERROR(VLOOKUP(Q91,'شهر 9 تفصيلي'!$B$5:$AEC$667,1,0),"") ->  | AG91: =IFERROR(VLOOKUP(X91,'شهر 9 تفصيلي'!$B$5:$AEC$667,1,0),"") -> 
D92: =N92&$H$7&COUNTIF($N$9:N92,N92) -> 444400 | E92: =U92&$H$7&COUNTIF($U$9:U92,U92) -> 444400 | F92: =AB92&$H$7&COUNTIF($AB$9:AB92,AB92) -> 444400 | H92: 84 | O92: =IFERROR(VLOOKUP(J92,BUS!$C$4:$AEB$888,4,0),"") ->  | V92: =IFERROR(VLOOKUP(Q92,BUS!$C$4:$AEB$888,4,0),"") ->  | AC92: =IFERROR(VLOOKUP(X92,BUS!$C$4:$AEB$888,4,0),"") ->  | AE92: =IFERROR(VLOOKUP(J92,'شهر 9 تفصيلي'!$B$5:$AEC$667,1,0),"") ->  | AF92: =IFERROR(VLOOKUP(Q92,'شهر 9 تفصيلي'!$B$5:$AEC$667,1,0),"") ->  | AG92: =IFERROR(VLOOKUP(X92,'شهر 9 تفصيلي'!$B$5:$AEC$667,1,0),"") -> 
D93: =N93&$H$7&COUNTIF($N$9:N93,N93) -> 444400 | E93: =U93&$H$7&COUNTIF($U$9:U93,U93) -> 444400 | F93: =AB93&$H$7&COUNTIF($AB$9:AB93,AB93) -> 444400 | H93: 85 | O93: =IFERROR(VLOOKUP(J93,BUS!$C$4:$AEB$888,4,0),"") ->  | V93: =IFERROR(VLOOKUP(Q93,BUS!$C$4:$AEB$888,4,0),"") ->  | AC93: =IFERROR(VLOOKUP(X93,BUS!$C$4:$AEB$888,4,0),"") ->  | AE93: =IFERROR(VLOOKUP(J93,'شهر 9 تفصيلي'!$B$5:$AEC$667,1,0),"") ->  | AF93: =IFERROR(VLOOKUP(Q93,'شهر 9 تفصيلي'!$B$5:$AEC$667,1,0),"") ->  | AG93: =IFERROR(VLOOKUP(X93,'شهر 9 تفصيلي'!$B$5:$AEC$667,1,0),"") -> 
D94: =N94&$H$7&COUNTIF($N$9:N94,N94) -> 444400 | E94: =U94&$H$7&COUNTIF($U$9:U94,U94) -> 444400 | F94: =AB94&$H$7&COUNTIF($AB$9:AB94,AB94) -> 444400 | H94: 86 | O94: =IFERROR(VLOOKUP(J94,BUS!$C$4:$AEB$888,4,0),"") ->  | V94: =IFERROR(VLOOKUP(Q94,BUS!$C$4:$AEB$888,4,0),"") ->  | AC94: =IFERROR(VLOOKUP(X94,BUS!$C$4:$AEB$888,4,0),"") ->  | AE94: =IFERROR(VLOOKUP(J94,'شهر 9 تفصيلي'!$B$5:$AEC$667,1,0),"") ->  | AF94: =IFERROR(VLOOKUP(Q94,'شهر 9 تفصيلي'!$B$5:$AEC$667,1,0),"") ->  | AG94: =IFERROR(VLOOKUP(X94,'شهر 9 تفصيلي'!$B$5:$AEC$667,1,0),"") -> 
D95: =N95&$H$7&COUNTIF($N$9:N95,N95) -> 444400 | E95: =U95&$H$7&COUNTIF($U$9:U95,U95) -> 444400 | F95: =AB95&$H$7&COUNTIF($AB$9:AB95,AB95) -> 444400 | H95: 87 | O95: =IFERROR(VLOOKUP(J95,BUS!$C$4:$AEB$888,4,0),"") ->  | V95: =IFERROR(VLOOKUP(Q95,BUS!$C$4:$AEB$888,4,0),"") ->  | AC95: =IFERROR(VLOOKUP(X95,BUS!$C$4:$AEB$888,4,0),"") ->  | AE95: =IFERROR(VLOOKUP(J95,'شهر 9 تفصيلي'!$B$5:$AEC$667,1,0),"") ->  | AF95: =IFERROR(VLOOKUP(Q95,'شهر 9 تفصيلي'!$B$5:$AEC$667,1,0),"") ->  | AG95: =IFERROR(VLOOKUP(X95,'شهر 9 تفصيلي'!$B$5:$AEC$667,1,0),"") -> 
D96: =N96&$H$7&COUNTIF($N$9:N96,N96) -> 444400 | E96: =U96&$H$7&COUNTIF($U$9:U96,U96) -> 444400 | F96: =AB96&$H$7&COUNTIF($AB$9:AB96,AB96) -> 444400 | H96: 88 | O96: =IFERROR(VLOOKUP(J96,BUS!$C$4:$AEB$888,4,0),"") ->  | V96: =IFERROR(VLOOKUP(Q96,BUS!$C$4:$AEB$888,4,0),"") ->  | AC96: =IFERROR(VLOOKUP(X96,BUS!$C$4:$AEB$888,4,0),"") ->  | AE96: =IFERROR(VLOOKUP(J96,'شهر 9 تفصيلي'!$B$5:$AEC$667,1,0),"") ->  | AF96: =IFERROR(VLOOKUP(Q96,'شهر 9 تفصيلي'!$B$5:$AEC$667,1,0),"") ->  | AG96: =IFERROR(VLOOKUP(X96,'شهر 9 تفصيلي'!$B$5:$AEC$667,1,0),"") -> 
D97: =N97&$H$7&COUNTIF($N$9:N97,N97) -> 444400 | E97: =U97&$H$7&COUNTIF($U$9:U97,U97) -> 444400 | F97: =AB97&$H$7&COUNTIF($AB$9:AB97,AB97) -> 444400 | H97: 89 | O97: =IFERROR(VLOOKUP(J97,BUS!$C$4:$AEB$888,4,0),"") ->  | V97: =IFERROR(VLOOKUP(Q97,BUS!$C$4:$AEB$888,4,0),"") ->  | AC97: =IFERROR(VLOOKUP(X97,BUS!$C$4:$AEB$888,4,0),"") ->  | AE97: =IFERROR(VLOOKUP(J97,'شهر 9 تفصيلي'!$B$5:$AEC$667,1,0),"") ->  | AF97: =IFERROR(VLOOKUP(Q97,'شهر 9 تفصيلي'!$B$5:$AEC$667,1,0),"") ->  | AG97: =IFERROR(VLOOKUP(X97,'شهر 9 تفصيلي'!$B$5:$AEC$667,1,0),"") -> 
D98: =N98&$H$7&COUNTIF($N$9:N98,N98) -> 444400 | E98: =U98&$H$7&COUNTIF($U$9:U98,U98) -> 444400 | F98: =AB98&$H$7&COUNTIF($AB$9:AB98,AB98) -> 444400 | H98: 90 | O98: =IFERROR(VLOOKUP(J98,BUS!$C$4:$AEB$888,4,0),"") ->  | V98: =IFERROR(VLOOKUP(Q98,BUS!$C$4:$AEB$888,4,0),"") ->  | AC98: =IFERROR(VLOOKUP(X98,BUS!$C$4:$AEB$888,4,0),"") ->  | AE98: =IFERROR(VLOOKUP(J98,'شهر 9 تفصيلي'!$B$5:$AEC$667,1,0),"") ->  | AF98: =IFERROR(VLOOKUP(Q98,'شهر 9 تفصيلي'!$B$5:$AEC$667,1,0),"") ->  | AG98: =IFERROR(VLOOKUP(X98,'شهر 9 تفصيلي'!$B$5:$AEC$667,1,0),"") -> 
D99: =N99&$H$7&COUNTIF($N$9:N99,N99) -> 444400 | E99: =U99&$H$7&COUNTIF($U$9:U99,U99) -> 444400 | F99: =AB99&$H$7&COUNTIF($AB$9:AB99,AB99) -> 444400 | H99: 91 | O99: =IFERROR(VLOOKUP(J99,BUS!$C$4:$AEB$888,4,0),"") ->  | V99: =IFERROR(VLOOKUP(Q99,BUS!$C$4:$AEB$888,4,0),"") ->  | AC99: =IFERROR(VLOOKUP(X99,BUS!$C$4:$AEB$888,4,0),"") ->  | AE99: =IFERROR(VLOOKUP(J99,'شهر 9 تفصيلي'!$B$5:$AEC$667,1,0),"") ->  | AF99: =IFERROR(VLOOKUP(Q99,'شهر 9 تفصيلي'!$B$5:$AEC$667,1,0),"") ->  | AG99: =IFERROR(VLOOKUP(X99,'شهر 9 تفصيلي'!$B$5:$AEC$667,1,0),"") -> 
D100: =N100&$H$7&COUNTIF($N$9:N100,N100) -> 444400 | E100: =U100&$H$7&COUNTIF($U$9:U100,U100) -> 444400 | F100: =AB100&$H$7&COUNTIF($AB$9:AB100,AB100) -> 444400 | H100: 92 | O100: =IFERROR(VLOOKUP(J100,BUS!$C$4:$AEB$888,4,0),"") ->  | V100: =IFERROR(VLOOKUP(Q100,BUS!$C$4:$AEB$888,4,0),"") ->  | AC100: =IFERROR(VLOOKUP(X100,BUS!$C$4:$AEB$888,4,0),"") ->  | AE100: =IFERROR(VLOOKUP(J100,'شهر 9 تفصيلي'!$B$5:$AEC$667,1,0),"") ->  | AF100: =IFERROR(VLOOKUP(Q100,'شهر 9 تفصيلي'!$B$5:$AEC$667,1,0),"") ->  | AG100: =IFERROR(VLOOKUP(X100,'شهر 9 تفصيلي'!$B$5:$AEC$667,1,0),"") -> 
D101: =N101&$H$7&COUNTIF($N$9:N101,N101) -> 444400 | E101: =U101&$H$7&COUNTIF($U$9:U101,U101) -> 444400 | F101: =AB101&$H$7&COUNTIF($AB$9:AB101,AB101) -> 444400 | H101: 93 | O101: =IFERROR(VLOOKUP(J101,BUS!$C$4:$AEB$888,4,0),"") ->  | V101: =IFERROR(VLOOKUP(Q101,BUS!$C$4:$AEB$888,4,0),"") ->  | AC101: =IFERROR(VLOOKUP(X101,BUS!$C$4:$AEB$888,4,0),"") ->  | AE101: =IFERROR(VLOOKUP(J101,'شهر 9 تفصيلي'!$B$5:$AEC$667,1,0),"") ->  | AF101: =IFERROR(VLOOKUP(Q101,'شهر 9 تفصيلي'!$B$5:$AEC$667,1,0),"") ->  | AG101: =IFERROR(VLOOKUP(X101,'شهر 9 تفصيلي'!$B$5:$AEC$667,1,0),"") ->  | AH101: 95 | AI101: =IF(I103>0,I103) -> FALSE | AL101: 48 | AM101: =IF(P56>0,P56) -> FALSE | AN101: 48 | AO101: =IF(W56>0,W56) -> FALSE
D102: =N102&$H$7&COUNTIF($N$9:N102,N102) -> 444400 | E102: =U102&$H$7&COUNTIF($U$9:U102,U102) -> 444400 | F102: =AB102&$H$7&COUNTIF($AB$9:AB102,AB102) -> 444400 | H102: 94 | O102: =IFERROR(VLOOKUP(J102,BUS!$C$4:$AEB$888,4,0),"") ->  | V102: =IFERROR(VLOOKUP(Q102,BUS!$C$4:$AEB$888,4,0),"") ->  | AC102: =IFERROR(VLOOKUP(X102,BUS!$C$4:$AEB$888,4,0),"") ->  | AE102: =IFERROR(VLOOKUP(J102,'شهر 9 تفصيلي'!$B$5:$AEC$667,1,0),"") ->  | AF102: =IFERROR(VLOOKUP(Q102,'شهر 9 تفصيلي'!$B$5:$AEC$667,1,0),"") ->  | AG102: =IFERROR(VLOOKUP(X102,'شهر 9 تفصيلي'!$B$5:$AEC$667,1,0),"") ->  | AH102: 96 | AI102: =IF(I104>0,I104) -> FALSE | AL102: 49 | AM102: =IF(P57>0,P57) -> FALSE | AN102: 49 | AO102: =IF(W57>0,W57) -> FALSE
D103: =N103&$H$7&COUNTIF($N$9:N103,N103) -> 444400 | E103: =U103&$H$7&COUNTIF($U$9:U103,U103) -> 444400 | F103: =AB103&$H$7&COUNTIF($AB$9:AB103,AB103) -> 444400 | H103: 95 | O103: =IFERROR(VLOOKUP(J103,BUS!$C$4:$AEB$888,4,0),"") ->  | V103: =IFERROR(VLOOKUP(Q103,BUS!$C$4:$AEB$888,4,0),"") ->  | AC103: =IFERROR(VLOOKUP(X103,BUS!$C$4:$AEB$888,4,0),"") ->  | AE103: =IFERROR(VLOOKUP(J103,'شهر 9 تفصيلي'!$B$5:$AEC$667,1,0),"") ->  | AF103: =IFERROR(VLOOKUP(Q103,'شهر 9 تفصيلي'!$B$5:$AEC$667,1,0),"") ->  | AG103: =IFERROR(VLOOKUP(X103,'شهر 9 تفصيلي'!$B$5:$AEC$667,1,0),"") ->  | AH103: 97 | AI103: FALSE | AL103: 50 | AM103: FALSE | AN103: 50 | AO103: FALSE
D104: =N104&$H$7&COUNTIF($N$9:N104,N104) -> 444400 | E104: =U104&$H$7&COUNTIF($U$9:U104,U104) -> 444400 | F104: =AB104&$H$7&COUNTIF($AB$9:AB104,AB104) -> 444400 | H104: 96 | O104: =IFERROR(VLOOKUP(J104,BUS!$C$4:$AEB$888,4,0),"") ->  | V104: =IFERROR(VLOOKUP(Q104,BUS!$C$4:$AEB$888,4,0),"") ->  | AC104: =IFERROR(VLOOKUP(X104,BUS!$C$4:$AEB$888,4,0),"") ->  | AE104: =IFERROR(VLOOKUP(J104,'شهر 9 تفصيلي'!$B$5:$AEC$667,1,0),"") ->  | AF104: =IFERROR(VLOOKUP(Q104,'شهر 9 تفصيلي'!$B$5:$AEC$667,1,0),"") ->  | AG104: =IFERROR(VLOOKUP(X104,'شهر 9 تفصيلي'!$B$5:$AEC$667,1,0),"") ->  | AH104: 98 | AI104: FALSE | AL104: 51 | AM104: FALSE | AN104: 51 | AO104: FALSE
D105: =N105&$H$7&COUNTIF($N$9:N105,N105) -> 444400 | E105: =U105&$H$7&COUNTIF($U$9:U105,U105) -> 444400 | F105: =AB105&$H$7&COUNTIF($AB$9:AB105,AB105) -> 444400 | H105: 97 | O105: =IFERROR(VLOOKUP(J105,BUS!$C$4:$AEB$888,4,0),"") ->  | V105: =IFERROR(VLOOKUP(Q105,BUS!$C$4:$AEB$888,4,0),"") ->  | AC105: =IFERROR(VLOOKUP(X105,BUS!$C$4:$AEB$888,4,0),"") ->  | AE105: =IFERROR(VLOOKUP(J105,'شهر 9 تفصيلي'!$B$5:$AEC$667,1,0),"") ->  | AF105: =IFERROR(VLOOKUP(Q105,'شهر 9 تفصيلي'!$B$5:$AEC$667,1,0),"") ->  | AG105: =IFERROR(VLOOKUP(X105,'شهر 9 تفصيلي'!$B$5:$AEC$667,1,0),"") ->  | AH105: 99 | AI105: FALSE | AL105: 52 | AM105: FALSE | AN105: 52 | AO105: FALSE
D106: =N106&$H$7&COUNTIF($N$9:N106,N106) -> 444400 | E106: =U106&$H$7&COUNTIF($U$9:U106,U106) -> 444400 | F106: =AB106&$H$7&COUNTIF($AB$9:AB106,AB106) -> 444400 | H106: 98 | O106: =IFERROR(VLOOKUP(J106,BUS!$C$4:$AEB$888,4,0),"") ->  | V106: =IFERROR(VLOOKUP(Q106,BUS!$C$4:$AEB$888,4,0),"") ->  | AC106: =IFERROR(VLOOKUP(X106,BUS!$C$4:$AEB$888,4,0),"") ->  | AE106: =IFERROR(VLOOKUP(J106,'شهر 9 تفصيلي'!$B$5:$AEC$667,1,0),"") ->  | AF106: =IFERROR(VLOOKUP(Q106,'شهر 9 تفصيلي'!$B$5:$AEC$667,1,0),"") ->  | AG106: =IFERROR(VLOOKUP(X106,'شهر 9 تفصيلي'!$B$5:$AEC$667,1,0),"") ->  | AH106: 100 | AI106: FALSE | AL106: 53 | AM106: FALSE | AN106: 53 | AO106: FALSE
D107: =N107&$H$7&COUNTIF($N$9:N107,N107) -> 444400 | E107: =U107&$H$7&COUNTIF($U$9:U107,U107) -> 444400 | F107: =AB107&$H$7&COUNTIF($AB$9:AB107,AB107) -> 444400 | H107: 99 | O107: =IFERROR(VLOOKUP(J107,BUS!$C$4:$AEB$888,4,0),"") ->  | V107: =IFERROR(VLOOKUP(Q107,BUS!$C$4:$AEB$888,4,0),"") ->  | AC107: =IFERROR(VLOOKUP(X107,BUS!$C$4:$AEB$888,4,0),"") ->  | AE107: =IFERROR(VLOOKUP(J107,'شهر 9 تفصيلي'!$B$5:$AEC$667,1,0),"") ->  | AF107: =IFERROR(VLOOKUP(Q107,'شهر 9 تفصيلي'!$B$5:$AEC$667,1,0),"") ->  | AG107: =IFERROR(VLOOKUP(X107,'شهر 9 تفصيلي'!$B$5:$AEC$667,1,0),"") ->  | AH107: 101 | AI107: FALSE | AL107: 54 | AM107: FALSE | AN107: 54 | AO107: FALSE
D108: =N108&$H$7&COUNTIF($N$9:N108,N108) -> 444400 | E108: =U108&$H$7&COUNTIF($U$9:U108,U108) -> 444400 | F108: =AB108&$H$7&COUNTIF($AB$9:AB108,AB108) -> 444400 | H108: 100 | O108: =IFERROR(VLOOKUP(J108,BUS!$C$4:$AEB$888,4,0),"") ->  | V108: =IFERROR(VLOOKUP(Q108,BUS!$C$4:$AEB$888,4,0),"") ->  | AC108: =IFERROR(VLOOKUP(X108,BUS!$C$4:$AEB$888,4,0),"") ->  | AE108: =IFERROR(VLOOKUP(J108,'شهر 9 تفصيلي'!$B$5:$AEC$667,1,0),"") ->  | AF108: =IFERROR(VLOOKUP(Q108,'شهر 9 تفصيلي'!$B$5:$AEC$667,1,0),"") ->  | AG108: =IFERROR(VLOOKUP(X108,'شهر 9 تفصيلي'!$B$5:$AEC$667,1,0),"") ->  | AH108: 102 | AI108: FALSE | AL108: 55 | AM108: FALSE | AN108: 55 | AO108: FALSE
D109: =N109&$H$7&COUNTIF($N$9:N109,N109) -> 444400 | E109: =U109&$H$7&COUNTIF($U$9:U109,U109) -> 444400 | F109: =AB109&$H$7&COUNTIF($AB$9:AB109,AB109) -> 444400 | H109: 101 | O109: =IFERROR(VLOOKUP(J109,BUS!$C$4:$AEB$888,4,0),"") ->  | V109: =IFERROR(VLOOKUP(Q109,BUS!$C$4:$AEB$888,4,0),"") ->  | AC109: =IFERROR(VLOOKUP(X109,BUS!$C$4:$AEB$888,4,0),"") ->  | AE109: =IFERROR(VLOOKUP(J109,'شهر 9 تفصيلي'!$B$5:$AEC$667,1,0),"") ->  | AF109: =IFERROR(VLOOKUP(Q109,'شهر 9 تفصيلي'!$B$5:$AEC$667,1,0),"") ->  | AG109: =IFERROR(VLOOKUP(X109,'شهر 9 تفصيلي'!$B$5:$AEC$667,1,0),"") ->  | AH109: 103 | AI109: FALSE | AL109: 56 | AM109: FALSE | AN109: 56 | AO109: FALSE
D110: =N110&$H$7&COUNTIF($N$9:N110,N110) -> 444400 | E110: =U110&$H$7&COUNTIF($U$9:U110,U110) -> 444400 | F110: =AB110&$H$7&COUNTIF($AB$9:AB110,AB110) -> 444400 | H110: 102 | O110: =IFERROR(VLOOKUP(J110,BUS!$C$4:$AEB$888,4,0),"") ->  | V110: =IFERROR(VLOOKUP(Q110,BUS!$C$4:$AEB$888,4,0),"") ->  | AC110: =IFERROR(VLOOKUP(X110,BUS!$C$4:$AEB$888,4,0),"") ->  | AE110: =IFERROR(VLOOKUP(J110,'شهر 9 تفصيلي'!$B$5:$AEC$667,1,0),"") ->  | AF110: =IFERROR(VLOOKUP(Q110,'شهر 9 تفصيلي'!$B$5:$AEC$667,1,0),"") ->  | AG110: =IFERROR(VLOOKUP(X110,'شهر 9 تفصيلي'!$B$5:$AEC$667,1,0),"") ->  | AH110: 104 | AI110: FALSE | AL110: 57 | AM110: FALSE | AN110: 57 | AO110: FALSE
D111: =N111&$H$7&COUNTIF($N$9:N111,N111) -> 444400 | E111: =U111&$H$7&COUNTIF($U$9:U111,U111) -> 444400 | F111: =AB111&$H$7&COUNTIF($AB$9:AB111,AB111) -> 444400 | H111: 103 | O111: =IFERROR(VLOOKUP(J111,BUS!$C$4:$AEB$888,4,0),"") ->  | V111: =IFERROR(VLOOKUP(Q111,BUS!$C$4:$AEB$888,4,0),"") ->  | AC111: =IFERROR(VLOOKUP(X111,BUS!$C$4:$AEB$888,4,0),"") ->  | AE111: =IFERROR(VLOOKUP(J111,'شهر 9 تفصيلي'!$B$5:$AEC$667,1,0),"") ->  | AF111: =IFERROR(VLOOKUP(Q111,'شهر 9 تفصيلي'!$B$5:$AEC$667,1,0),"") ->  | AG111: =IFERROR(VLOOKUP(X111,'شهر 9 تفصيلي'!$B$5:$AEC$667,1,0),"") ->  | AH111: 105 | AI111: FALSE | AL111: 58 | AM111: FALSE | AN111: 58 | AO111: FALSE
D112: =N112&$H$7&COUNTIF($N$9:N112,N112) -> 444400 | E112: =U112&$H$7&COUNTIF($U$9:U112,U112) -> 444400 | F112: =AB112&$H$7&COUNTIF($AB$9:AB112,AB112) -> 444400 | H112: 104 | O112: =IFERROR(VLOOKUP(J112,BUS!$C$4:$AEB$888,4,0),"") ->  | V112: =IFERROR(VLOOKUP(Q112,BUS!$C$4:$AEB$888,4,0),"") ->  | AC112: =IFERROR(VLOOKUP(X112,BUS!$C$4:$AEB$888,4,0),"") ->  | AE112: =IFERROR(VLOOKUP(J112,'شهر 9 تفصيلي'!$B$5:$AEC$667,1,0),"") ->  | AF112: =IFERROR(VLOOKUP(Q112,'شهر 9 تفصيلي'!$B$5:$AEC$667,1,0),"") ->  | AG112: =IFERROR(VLOOKUP(X112,'شهر 9 تفصيلي'!$B$5:$AEC$667,1,0),"") ->  | AH112: 106 | AI112: FALSE | AL112: 59 | AM112: FALSE | AN112: 59 | AO112: FALSE
D113: =N113&$H$7&COUNTIF($N$9:N113,N113) -> 444400 | E113: =U113&$H$7&COUNTIF($U$9:U113,U113) -> 444400 | F113: =AB113&$H$7&COUNTIF($AB$9:AB113,AB113) -> 444400 | H113: 105 | O113: =IFERROR(VLOOKUP(J113,BUS!$C$4:$AEB$888,4,0),"") ->  | V113: =IFERROR(VLOOKUP(Q113,BUS!$C$4:$AEB$888,4,0),"") ->  | AC113: =IFERROR(VLOOKUP(X113,BUS!$C$4:$AEB$888,4,0),"") ->  | AE113: =IFERROR(VLOOKUP(J113,'شهر 9 تفصيلي'!$B$5:$AEC$667,1,0),"") ->  | AF113: =IFERROR(VLOOKUP(Q113,'شهر 9 تفصيلي'!$B$5:$AEC$667,1,0),"") ->  | AG113: =IFERROR(VLOOKUP(X113,'شهر 9 تفصيلي'!$B$5:$AEC$667,1,0),"") ->  | AH113: 107 | AI113: FALSE | AL113: 60 | AM113: FALSE | AN113: 60 | AO113: FALSE
D114: =N114&$H$7&COUNTIF($N$9:N114,N114) -> 444400 | E114: =U114&$H$7&COUNTIF($U$9:U114,U114) -> 444400 | F114: =AB114&$H$7&COUNTIF($AB$9:AB114,AB114) -> 444400 | H114: 106 | O114: =IFERROR(VLOOKUP(J114,BUS!$C$4:$AEB$888,4,0),"") ->  | V114: =IFERROR(VLOOKUP(Q114,BUS!$C$4:$AEB$888,4,0),"") ->  | AC114: =IFERROR(VLOOKUP(X114,BUS!$C$4:$AEB$888,4,0),"") ->  | AE114: =IFERROR(VLOOKUP(J114,'شهر 9 تفصيلي'!$B$5:$AEC$667,1,0),"") ->  | AF114: =IFERROR(VLOOKUP(Q114,'شهر 9 تفصيلي'!$B$5:$AEC$667,1,0),"") ->  | AG114: =IFERROR(VLOOKUP(X114,'شهر 9 تفصيلي'!$B$5:$AEC$667,1,0),"") ->  | AH114: 108 | AI114: FALSE | AL114: 61 | AM114: FALSE | AN114: 61 | AO114: FALSE
A115: =J115&K115 ->  | B115: =Q115&R115 ->  | C115: =X115&Y115 ->  | D115: =N115&$H$7&COUNTIF($N$9:N115,N115) -> 444400 | E115: =U115&$H$7&COUNTIF($U$9:U115,U115) -> 444400 | F115: =AB115&$H$7&COUNTIF($AB$9:AB115,AB115) -> 444400 | H115: 107 | O115: =IFERROR(VLOOKUP(J115,BUS!$C$4:$AEB$888,4,0),"") ->  | V115: =IFERROR(VLOOKUP(Q115,BUS!$C$4:$AEB$888,4,0),"") ->  | AC115: =IFERROR(VLOOKUP(X115,BUS!$C$4:$AEB$888,4,0),"") ->  | AE115: =IFERROR(VLOOKUP(J115,'شهر 9 تفصيلي'!$B$5:$AEC$667,1,0),"") ->  | AF115: =IFERROR(VLOOKUP(Q115,'شهر 9 تفصيلي'!$B$5:$AEC$667,1,0),"") ->  | AG115: =IFERROR(VLOOKUP(X115,'شهر 9 تفصيلي'!$B$5:$AEC$667,1,0),"") ->  | AH115: 109 | AI115: FALSE | AL115: 62 | AM115: FALSE | AN115: 62 | AO115: FALSE
D116: =N116&$H$7&COUNTIF($N$9:N116,N116) -> 444400 | E116: =U116&$H$7&COUNTIF($U$9:U116,U116) -> 444400 | F116: =AB116&$H$7&COUNTIF($AB$9:AB116,AB116) -> 444400 | H116: 108 | O116: =IFERROR(VLOOKUP(J116,BUS!$C$4:$AEB$888,4,0),"") ->  | V116: =IFERROR(VLOOKUP(Q116,BUS!$C$4:$AEB$888,4,0),"") ->  | AC116: =IFERROR(VLOOKUP(X116,BUS!$C$4:$AEB$888,4,0),"") ->  | AE116: =IFERROR(VLOOKUP(J116,'شهر 9 تفصيلي'!$B$5:$AEC$667,1,0),"") ->  | AF116: =IFERROR(VLOOKUP(Q116,'شهر 9 تفصيلي'!$B$5:$AEC$667,1,0),"") ->  | AG116: =IFERROR(VLOOKUP(X116,'شهر 9 تفصيلي'!$B$5:$AEC$667,1,0),"") ->  | AH116: 110 | AI116: FALSE | AL116: 63 | AM116: FALSE | AN116: 63 | AO116: FALSE
D117: =N117&$H$7&COUNTIF($N$9:N117,N117) -> 444400 | E117: =U117&$H$7&COUNTIF($U$9:U117,U117) -> 444400 | F117: =AB117&$H$7&COUNTIF($AB$9:AB117,AB117) -> 444400 | H117: 109 | O117: =IFERROR(VLOOKUP(J117,BUS!$C$4:$AEB$888,4,0),"") ->  | V117: =IFERROR(VLOOKUP(Q117,BUS!$C$4:$AEB$888,4,0),"") ->  | AC117: =IFERROR(VLOOKUP(X117,BUS!$C$4:$AEB$888,4,0),"") ->  | AE117: =IFERROR(VLOOKUP(J117,'شهر 9 تفصيلي'!$B$5:$AEC$667,1,0),"") ->  | AF117: =IFERROR(VLOOKUP(Q117,'شهر 9 تفصيلي'!$B$5:$AEC$667,1,0),"") ->  | AG117: =IFERROR(VLOOKUP(X117,'شهر 9 تفصيلي'!$B$5:$AEC$667,1,0),"") ->  | AH117: 111 | AI117: FALSE | AL117: 64 | AM117: FALSE | AN117: 64 | AO117: FALSE
D118: =N118&$H$7&COUNTIF($N$9:N118,N118) -> 444400 | E118: =U118&$H$7&COUNTIF($U$9:U118,U118) -> 444400 | F118: =AB118&$H$7&COUNTIF($AB$9:AB118,AB118) -> 444400 | H118: 110 | O118: =IFERROR(VLOOKUP(J118,BUS!$C$4:$AEB$888,4,0),"") ->  | V118: =IFERROR(VLOOKUP(Q118,BUS!$C$4:$AEB$888,4,0),"") ->  | AC118: =IFERROR(VLOOKUP(X118,BUS!$C$4:$AEB$888,4,0),"") ->  | AE118: =IFERROR(VLOOKUP(J118,'شهر 9 تفصيلي'!$B$5:$AEC$667,1,0),"") ->  | AF118: =IFERROR(VLOOKUP(Q118,'شهر 9 تفصيلي'!$B$5:$AEC$667,1,0),"") ->  | AG118: =IFERROR(VLOOKUP(X118,'شهر 9 تفصيلي'!$B$5:$AEC$667,1,0),"") ->  | AH118: 112 | AI118: FALSE | AL118: 65 | AM118: FALSE | AN118: 65 | AO118: FALSE
D119: =N119&$H$7&COUNTIF($N$9:N119,N119) -> 444400 | E119: =U119&$H$7&COUNTIF($U$9:U119,U119) -> 444400 | F119: =AB119&$H$7&COUNTIF($AB$9:AB119,AB119) -> 444400 | H119: 111 | O119: =IFERROR(VLOOKUP(J119,BUS!$C$4:$AEB$888,4,0),"") ->  | V119: =IFERROR(VLOOKUP(Q119,BUS!$C$4:$AEB$888,4,0),"") ->  | AC119: =IFERROR(VLOOKUP(X119,BUS!$C$4:$AEB$888,4,0),"") ->  | AE119: =IFERROR(VLOOKUP(J119,'شهر 9 تفصيلي'!$B$5:$AEC$667,1,0),"") ->  | AF119: =IFERROR(VLOOKUP(Q119,'شهر 9 تفصيلي'!$B$5:$AEC$667,1,0),"") ->  | AG119: =IFERROR(VLOOKUP(X119,'شهر 9 تفصيلي'!$B$5:$AEC$667,1,0),"") ->  | AH119: 113 | AI119: FALSE | AL119: 66 | AM119: FALSE | AN119: 66 | AO119: FALSE
D120: =N120&$H$7&COUNTIF($N$9:N120,N120) -> 444400 | E120: =U120&$H$7&COUNTIF($U$9:U120,U120) -> 444400 | F120: =AB120&$H$7&COUNTIF($AB$9:AB120,AB120) -> 444400 | H120: 112 | O120: =IFERROR(VLOOKUP(J120,BUS!$C$4:$AEB$888,4,0),"") ->  | V120: =IFERROR(VLOOKUP(Q120,BUS!$C$4:$AEB$888,4,0),"") ->  | AC120: =IFERROR(VLOOKUP(X120,BUS!$C$4:$AEB$888,4,0),"") ->  | AE120: =IFERROR(VLOOKUP(J120,'شهر 9 تفصيلي'!$B$5:$AEC$667,1,0),"") ->  | AF120: =IFERROR(VLOOKUP(Q120,'شهر 9 تفصيلي'!$B$5:$AEC$667,1,0),"") ->  | AG120: =IFERROR(VLOOKUP(X120,'شهر 9 تفصيلي'!$B$5:$AEC$667,1,0),"") ->  | AH120: 114 | AI120: FALSE | AL120: 67 | AM120: FALSE | AN120: 67 | AO120: FALSE
D121: =N121&$H$7&COUNTIF($N$9:N121,N121) -> 444400 | E121: =U121&$H$7&COUNTIF($U$9:U121,U121) -> 444400 | F121: =AB121&$H$7&COUNTIF($AB$9:AB121,AB121) -> 444400 | H121: 113 | O121: =IFERROR(VLOOKUP(J121,BUS!$C$4:$AEB$888,4,0),"") ->  | V121: =IFERROR(VLOOKUP(Q121,BUS!$C$4:$AEB$888,4,0),"") ->  | AC121: =IFERROR(VLOOKUP(X121,BUS!$C$4:$AEB$888,4,0),"") ->  | AE121: =IFERROR(VLOOKUP(J121,'شهر 9 تفصيلي'!$B$5:$AEC$667,1,0),"") ->  | AF121: =IFERROR(VLOOKUP(Q121,'شهر 9 تفصيلي'!$B$5:$AEC$667,1,0),"") ->  | AG121: =IFERROR(VLOOKUP(X121,'شهر 9 تفصيلي'!$B$5:$AEC$667,1,0),"") ->  | AH121: 115 | AI121: FALSE | AL121: 68 | AM121: FALSE | AN121: 68 | AO121: FALSE
D122: =N122&$H$7&COUNTIF($N$9:N122,N122) -> 444400 | E122: =U122&$H$7&COUNTIF($U$9:U122,U122) -> 444400 | F122: =AB122&$H$7&COUNTIF($AB$9:AB122,AB122) -> 444400 | H122: 114 | O122: =IFERROR(VLOOKUP(J122,BUS!$C$4:$AEB$888,4,0),"") ->  | V122: =IFERROR(VLOOKUP(Q122,BUS!$C$4:$AEB$888,4,0),"") ->  | AC122: =IFERROR(VLOOKUP(X122,BUS!$C$4:$AEB$888,4,0),"") ->  | AE122: =IFERROR(VLOOKUP(J122,'شهر 9 تفصيلي'!$B$5:$AEC$667,1,0),"") ->  | AF122: =IFERROR(VLOOKUP(Q122,'شهر 9 تفصيلي'!$B$5:$AEC$667,1,0),"") ->  | AG122: =IFERROR(VLOOKUP(X122,'شهر 9 تفصيلي'!$B$5:$AEC$667,1,0),"") ->  | AH122: 116 | AI122: FALSE | AL122: 69 | AM122: FALSE | AN122: 69 | AO122: FALSE
D123: =N123&$H$7&COUNTIF($N$9:N123,N123) -> 444400 | E123: =U123&$H$7&COUNTIF($U$9:U123,U123) -> 444400 | F123: =AB123&$H$7&COUNTIF($AB$9:AB123,AB123) -> 444400 | H123: 115 | O123: =IFERROR(VLOOKUP(J123,BUS!$C$4:$AEB$888,4,0),"") ->  | V123: =IFERROR(VLOOKUP(Q123,BUS!$C$4:$AEB$888,4,0),"") ->  | AC123: =IFERROR(VLOOKUP(X123,BUS!$C$4:$AEB$888,4,0),"") ->  | AE123: =IFERROR(VLOOKUP(J123,'شهر 9 تفصيلي'!$B$5:$AEC$667,1,0),"") ->  | AF123: =IFERROR(VLOOKUP(Q123,'شهر 9 تفصيلي'!$B$5:$AEC$667,1,0),"") ->  | AG123: =IFERROR(VLOOKUP(X123,'شهر 9 تفصيلي'!$B$5:$AEC$667,1,0),"") ->  | AH123: 117 | AI123: FALSE | AL123: 70 | AM123: FALSE | AN123: 70 | AO123: FALSE
D124: =N124&$H$7&COUNTIF($N$9:N124,N124) -> 444400 | E124: =U124&$H$7&COUNTIF($U$9:U124,U124) -> 444400 | F124: =AB124&$H$7&COUNTIF($AB$9:AB124,AB124) -> 444400 | H124: 116 | O124: =IFERROR(VLOOKUP(J124,BUS!$C$4:$AEB$888,4,0),"") ->  | V124: =IFERROR(VLOOKUP(Q124,BUS!$C$4:$AEB$888,4,0),"") ->  | AC124: =IFERROR(VLOOKUP(X124,BUS!$C$4:$AEB$888,4,0),"") ->  | AE124: =IFERROR(VLOOKUP(J124,'شهر 9 تفصيلي'!$B$5:$AEC$667,1,0),"") ->  | AF124: =IFERROR(VLOOKUP(Q124,'شهر 9 تفصيلي'!$B$5:$AEC$667,1,0),"") ->  | AG124: =IFERROR(VLOOKUP(X124,'شهر 9 تفصيلي'!$B$5:$AEC$667,1,0),"") ->  | AH124: 118 | AI124: FALSE | AL124: 71 | AM124: FALSE | AN124: 71 | AO124: FALSE
D125: =N125&$H$7&COUNTIF($N$9:N125,N125) -> 444400 | E125: =U125&$H$7&COUNTIF($U$9:U125,U125) -> 444400 | F125: =AB125&$H$7&COUNTIF($AB$9:AB125,AB125) -> 444400 | H125: 117 | O125: =IFERROR(VLOOKUP(J125,BUS!$C$4:$AEB$888,4,0),"") ->  | V125: =IFERROR(VLOOKUP(Q125,BUS!$C$4:$AEB$888,4,0),"") ->  | AC125: =IFERROR(VLOOKUP(X125,BUS!$C$4:$AEB$888,4,0),"") ->  | AE125: =IFERROR(VLOOKUP(J125,'شهر 9 تفصيلي'!$B$5:$AEC$667,1,0),"") ->  | AF125: =IFERROR(VLOOKUP(Q125,'شهر 9 تفصيلي'!$B$5:$AEC$667,1,0),"") ->  | AG125: =IFERROR(VLOOKUP(X125,'شهر 9 تفصيلي'!$B$5:$AEC$667,1,0),"") ->  | AH125: 119 | AI125: FALSE | AL125: 72 | AM125: FALSE | AN125: 72 | AO125: FALSE
D126: =N126&$H$7&COUNTIF($N$9:N126,N126) -> 444400 | E126: =U126&$H$7&COUNTIF($U$9:U126,U126) -> 444400 | F126: =AB126&$H$7&COUNTIF($AB$9:AB126,AB126) -> 444400 | H126: 118 | O126: =IFERROR(VLOOKUP(J126,BUS!$C$4:$AEB$888,4,0),"") ->  | V126: =IFERROR(VLOOKUP(Q126,BUS!$C$4:$AEB$888,4,0),"") ->  | AC126: =IFERROR(VLOOKUP(X126,BUS!$C$4:$AEB$888,4,0),"") ->  | AE126: =IFERROR(VLOOKUP(J126,'شهر 9 تفصيلي'!$B$5:$AEC$667,1,0),"") ->  | AF126: =IFERROR(VLOOKUP(Q126,'شهر 9 تفصيلي'!$B$5:$AEC$667,1,0),"") ->  | AG126: =IFERROR(VLOOKUP(X126,'شهر 9 تفصيلي'!$B$5:$AEC$667,1,0),"") ->  | AH126: 120 | AI126: FALSE | AL126: 73 | AM126: FALSE | AN126: 73 | AO126: FALSE
D127: =N127&$H$7&COUNTIF($N$9:N127,N127) -> 444400 | E127: =U127&$H$7&COUNTIF($U$9:U127,U127) -> 444400 | F127: =AB127&$H$7&COUNTIF($AB$9:AB127,AB127) -> 444400 | H127: 119 | O127: =IFERROR(VLOOKUP(J127,BUS!$C$4:$AEB$888,4,0),"") ->  | V127: =IFERROR(VLOOKUP(Q127,BUS!$C$4:$AEB$888,4,0),"") ->  | AC127: =IFERROR(VLOOKUP(X127,BUS!$C$4:$AEB$888,4,0),"") ->  | AE127: =IFERROR(VLOOKUP(J127,'شهر 9 تفصيلي'!$B$5:$AEC$667,1,0),"") ->  | AF127: =IFERROR(VLOOKUP(Q127,'شهر 9 تفصيلي'!$B$5:$AEC$667,1,0),"") ->  | AG127: =IFERROR(VLOOKUP(X127,'شهر 9 تفصيلي'!$B$5:$AEC$667,1,0),"") ->  | AH127: 121 | AI127: FALSE | AL127: 74 | AM127: FALSE | AN127: 74 | AO127: FALSE
D128: =N128&$H$7&COUNTIF($N$9:N128,N128) -> 444400 | E128: =U128&$H$7&COUNTIF($U$9:U128,U128) -> 444400 | F128: =AB128&$H$7&COUNTIF($AB$9:AB128,AB128) -> 444400 | H128: 120 | O128: =IFERROR(VLOOKUP(J128,BUS!$C$4:$AEB$888,4,0),"") ->  | V128: =IFERROR(VLOOKUP(Q128,BUS!$C$4:$AEB$888,4,0),"") ->  | AC128: =IFERROR(VLOOKUP(X128,BUS!$C$4:$AEB$888,4,0),"") ->  | AE128: =IFERROR(VLOOKUP(J128,'شهر 9 تفصيلي'!$B$5:$AEC$667,1,0),"") ->  | AF128: =IFERROR(VLOOKUP(Q128,'شهر 9 تفصيلي'!$B$5:$AEC$667,1,0),"") ->  | AG128: =IFERROR(VLOOKUP(X128,'شهر 9 تفصيلي'!$B$5:$AEC$667,1,0),"") ->  | AH128: 122 | AI128: FALSE | AL128: 75 | AM128: FALSE | AN128: 75 | AO128: FALSE
D129: =N129&$H$7&COUNTIF($N$9:N129,N129) -> 444400 | E129: =U129&$H$7&COUNTIF($U$9:U129,U129) -> 444400 | F129: =AB129&$H$7&COUNTIF($AB$9:AB129,AB129) -> 444400 | H129: 121 | O129: =IFERROR(VLOOKUP(J129,BUS!$C$4:$AEB$888,4,0),"") ->  | V129: =IFERROR(VLOOKUP(Q129,BUS!$C$4:$AEB$888,4,0),"") ->  | AC129: =IFERROR(VLOOKUP(X129,BUS!$C$4:$AEB$888,4,0),"") ->  | AE129: =IFERROR(VLOOKUP(J129,'شهر 9 تفصيلي'!$B$5:$AEC$667,1,0),"") ->  | AF129: =IFERROR(VLOOKUP(Q129,'شهر 9 تفصيلي'!$B$5:$AEC$667,1,0),"") ->  | AG129: =IFERROR(VLOOKUP(X129,'شهر 9 تفصيلي'!$B$5:$AEC$667,1,0),"") ->  | AH129: 123 | AI129: FALSE | AL129: 76 | AM129: FALSE | AN129: 76 | AO129: FALSE
D130: =N130&$H$7&COUNTIF($N$9:N130,N130) -> 444400 | E130: =U130&$H$7&COUNTIF($U$9:U130,U130) -> 444400 | F130: =AB130&$H$7&COUNTIF($AB$9:AB130,AB130) -> 444400 | H130: 122 | O130: =IFERROR(VLOOKUP(J130,BUS!$C$4:$AEB$888,4,0),"") ->  | V130: =IFERROR(VLOOKUP(Q130,BUS!$C$4:$AEB$888,4,0),"") ->  | AC130: =IFERROR(VLOOKUP(X130,BUS!$C$4:$AEB$888,4,0),"") ->  | AE130: =IFERROR(VLOOKUP(J130,'شهر 9 تفصيلي'!$B$5:$AEC$667,1,0),"") ->  | AF130: =IFERROR(VLOOKUP(Q130,'شهر 9 تفصيلي'!$B$5:$AEC$667,1,0),"") ->  | AG130: =IFERROR(VLOOKUP(X130,'شهر 9 تفصيلي'!$B$5:$AEC$667,1,0),"") ->  | AH130: 124 | AI130: FALSE | AL130: 77 | AM130: FALSE | AN130: 77 | AO130: FALSE
D131: =N131&$H$7&COUNTIF($N$9:N131,N131) -> 444400 | E131: =U131&$H$7&COUNTIF($U$9:U131,U131) -> 444400 | F131: =AB131&$H$7&COUNTIF($AB$9:AB131,AB131) -> 444400 | H131: 123 | O131: =IFERROR(VLOOKUP(J131,BUS!$C$4:$AEB$888,4,0),"") ->  | V131: =IFERROR(VLOOKUP(Q131,BUS!$C$4:$AEB$888,4,0),"") ->  | AC131: =IFERROR(VLOOKUP(X131,BUS!$C$4:$AEB$888,4,0),"") ->  | AE131: =IFERROR(VLOOKUP(J131,'شهر 9 تفصيلي'!$B$5:$AEC$667,1,0),"") ->  | AF131: =IFERROR(VLOOKUP(Q131,'شهر 9 تفصيلي'!$B$5:$AEC$667,1,0),"") ->  | AG131: =IFERROR(VLOOKUP(X131,'شهر 9 تفصيلي'!$B$5:$AEC$667,1,0),"") ->  | AH131: 125 | AI131: FALSE | AL131: 78 | AM131: FALSE | AN131: 78 | AO131: FALSE
D132: =N132&$H$7&COUNTIF($N$9:N132,N132) -> 444400 | E132: =U132&$H$7&COUNTIF($U$9:U132,U132) -> 444400 | F132: =AB132&$H$7&COUNTIF($AB$9:AB132,AB132) -> 444400 | H132: 124 | O132: =IFERROR(VLOOKUP(J132,BUS!$C$4:$AEB$888,4,0),"") ->  | V132: =IFERROR(VLOOKUP(Q132,BUS!$C$4:$AEB$888,4,0),"") ->  | AC132: =IFERROR(VLOOKUP(X132,BUS!$C$4:$AEB$888,4,0),"") ->  | AE132: =IFERROR(VLOOKUP(J132,'شهر 9 تفصيلي'!$B$5:$AEC$667,1,0),"") ->  | AF132: =IFERROR(VLOOKUP(Q132,'شهر 9 تفصيلي'!$B$5:$AEC$667,1,0),"") ->  | AG132: =IFERROR(VLOOKUP(X132,'شهر 9 تفصيلي'!$B$5:$AEC$667,1,0),"") ->  | AH132: 126 | AI132: FALSE | AL132: 79 | AM132: FALSE | AN132: 79 | AO132: FALSE
D133: =N133&$H$7&COUNTIF($N$9:N133,N133) -> 444400 | E133: =U133&$H$7&COUNTIF($U$9:U133,U133) -> 444400 | F133: =AB133&$H$7&COUNTIF($AB$9:AB133,AB133) -> 444400 | H133: 125 | O133: =IFERROR(VLOOKUP(J133,BUS!$C$4:$AEB$888,4,0),"") ->  | V133: =IFERROR(VLOOKUP(Q133,BUS!$C$4:$AEB$888,4,0),"") ->  | AC133: =IFERROR(VLOOKUP(X133,BUS!$C$4:$AEB$888,4,0),"") ->  | AE133: =IFERROR(VLOOKUP(J133,'شهر 9 تفصيلي'!$B$5:$AEC$667,1,0),"") ->  | AF133: =IFERROR(VLOOKUP(Q133,'شهر 9 تفصيلي'!$B$5:$AEC$667,1,0),"") ->  | AG133: =IFERROR(VLOOKUP(X133,'شهر 9 تفصيلي'!$B$5:$AEC$667,1,0),"") ->  | AH133: 127 | AI133: FALSE | AL133: 80 | AM133: FALSE | AN133: 80 | AO133: FALSE
D134: =N134&$H$7&COUNTIF($N$9:N134,N134) -> 444400 | E134: =U134&$H$7&COUNTIF($U$9:U134,U134) -> 444400 | F134: =AB134&$H$7&COUNTIF($AB$9:AB134,AB134) -> 444400 | H134: 126 | O134: =IFERROR(VLOOKUP(J134,BUS!$C$4:$AEB$888,4,0),"") ->  | V134: =IFERROR(VLOOKUP(Q134,BUS!$C$4:$AEB$888,4,0),"") ->  | AC134: =IFERROR(VLOOKUP(X134,BUS!$C$4:$AEB$888,4,0),"") ->  | AE134: =IFERROR(VLOOKUP(J134,'شهر 9 تفصيلي'!$B$5:$AEC$667,1,0),"") ->  | AF134: =IFERROR(VLOOKUP(Q134,'شهر 9 تفصيلي'!$B$5:$AEC$667,1,0),"") ->  | AG134: =IFERROR(VLOOKUP(X134,'شهر 9 تفصيلي'!$B$5:$AEC$667,1,0),"") ->  | AH134: 128 | AI134: FALSE | AL134: 81 | AM134: FALSE | AN134: 81 | AO134: FALSE
D135: =N135&$H$7&COUNTIF($N$9:N135,N135) -> 444400 | E135: =U135&$H$7&COUNTIF($U$9:U135,U135) -> 444400 | F135: =AB135&$H$7&COUNTIF($AB$9:AB135,AB135) -> 444400 | H135: 127 | O135: =IFERROR(VLOOKUP(J135,BUS!$C$4:$AEB$888,4,0),"") ->  | V135: =IFERROR(VLOOKUP(Q135,BUS!$C$4:$AEB$888,4,0),"") ->  | AC135: =IFERROR(VLOOKUP(X135,BUS!$C$4:$AEB$888,4,0),"") ->  | AE135: =IFERROR(VLOOKUP(J135,'شهر 9 تفصيلي'!$B$5:$AEC$667,1,0),"") ->  | AF135: =IFERROR(VLOOKUP(Q135,'شهر 9 تفصيلي'!$B$5:$AEC$667,1,0),"") ->  | AG135: =IFERROR(VLOOKUP(X135,'شهر 9 تفصيلي'!$B$5:$AEC$667,1,0),"") ->  | AH135: 129 | AI135: FALSE | AL135: 82 | AM135: FALSE | AN135: 82 | AO135: FALSE
D136: =N136&$H$7&COUNTIF($N$9:N136,N136) -> 444400 | E136: =U136&$H$7&COUNTIF($U$9:U136,U136) -> 444400 | F136: =AB136&$H$7&COUNTIF($AB$9:AB136,AB136) -> 444400 | H136: 128 | O136: =IFERROR(VLOOKUP(J136,BUS!$C$4:$AEB$888,4,0),"") ->  | V136: =IFERROR(VLOOKUP(Q136,BUS!$C$4:$AEB$888,4,0),"") ->  | AC136: =IFERROR(VLOOKUP(X136,BUS!$C$4:$AEB$888,4,0),"") ->  | AE136: =IFERROR(VLOOKUP(J136,'شهر 9 تفصيلي'!$B$5:$AEC$667,1,0),"") ->  | AF136: =IFERROR(VLOOKUP(Q136,'شهر 9 تفصيلي'!$B$5:$AEC$667,1,0),"") ->  | AG136: =IFERROR(VLOOKUP(X136,'شهر 9 تفصيلي'!$B$5:$AEC$667,1,0),"") ->  | AH136: 130 | AI136: FALSE | AL136: 83 | AM136: FALSE | AN136: 83 | AO136: FALSE
D137: =N137&$H$7&COUNTIF($N$9:N137,N137) -> 444400 | E137: =U137&$H$7&COUNTIF($U$9:U137,U137) -> 444400 | F137: =AB137&$H$7&COUNTIF($AB$9:AB137,AB137) -> 444400 | H137: 129 | O137: =IFERROR(VLOOKUP(J137,BUS!$C$4:$AEB$888,4,0),"") ->  | V137: =IFERROR(VLOOKUP(Q137,BUS!$C$4:$AEB$888,4,0),"") ->  | AC137: =IFERROR(VLOOKUP(X137,BUS!$C$4:$AEB$888,4,0),"") ->  | AE137: =IFERROR(VLOOKUP(J137,'شهر 9 تفصيلي'!$B$5:$AEC$667,1,0),"") ->  | AF137: =IFERROR(VLOOKUP(Q137,'شهر 9 تفصيلي'!$B$5:$AEC$667,1,0),"") ->  | AG137: =IFERROR(VLOOKUP(X137,'شهر 9 تفصيلي'!$B$5:$AEC$667,1,0),"") ->  | AH137: 131 | AI137: FALSE | AL137: 84 | AM137: FALSE | AN137: 84 | AO137: FALSE
D138: =N138&$H$7&COUNTIF($N$9:N138,N138) -> 444400 | E138: =U138&$H$7&COUNTIF($U$9:U138,U138) -> 444400 | F138: =AB138&$H$7&COUNTIF($AB$9:AB138,AB138) -> 444400 | H138: 130 | O138: =IFERROR(VLOOKUP(J138,BUS!$C$4:$AEB$888,4,0),"") ->  | V138: =IFERROR(VLOOKUP(Q138,BUS!$C$4:$AEB$888,4,0),"") ->  | AC138: =IFERROR(VLOOKUP(X138,BUS!$C$4:$AEB$888,4,0),"") ->  | AE138: =IFERROR(VLOOKUP(J138,'شهر 9 تفصيلي'!$B$5:$AEC$667,1,0),"") ->  | AF138: =IFERROR(VLOOKUP(Q138,'شهر 9 تفصيلي'!$B$5:$AEC$667,1,0),"") ->  | AG138: =IFERROR(VLOOKUP(X138,'شهر 9 تفصيلي'!$B$5:$AEC$667,1,0),"") ->  | AH138: 132 | AI138: FALSE | AL138: 85 | AM138: FALSE | AN138: 85 | AO138: FALSE
D139: =N139&$H$7&COUNTIF($N$9:N139,N139) -> 444400 | E139: =U139&$H$7&COUNTIF($U$9:U139,U139) -> 444400 | F139: =AB139&$H$7&COUNTIF($AB$9:AB139,AB139) -> 444400 | H139: 131 | O139: =IFERROR(VLOOKUP(J139,BUS!$C$4:$AEB$888,4,0),"") ->  | V139: =IFERROR(VLOOKUP(Q139,BUS!$C$4:$AEB$888,4,0),"") ->  | AC139: =IFERROR(VLOOKUP(X139,BUS!$C$4:$AEB$888,4,0),"") ->  | AE139: =IFERROR(VLOOKUP(J139,'شهر 9 تفصيلي'!$B$5:$AEC$667,1,0),"") ->  | AF139: =IFERROR(VLOOKUP(Q139,'شهر 9 تفصيلي'!$B$5:$AEC$667,1,0),"") ->  | AG139: =IFERROR(VLOOKUP(X139,'شهر 9 تفصيلي'!$B$5:$AEC$667,1,0),"") ->  | AH139: 133 | AI139: FALSE | AL139: 86 | AM139: FALSE | AN139: 86 | AO139: FALSE
D140: =N140&$H$7&COUNTIF($N$9:N140,N140) -> 444400 | E140: =U140&$H$7&COUNTIF($U$9:U140,U140) -> 444400 | F140: =AB140&$H$7&COUNTIF($AB$9:AB140,AB140) -> 444400 | H140: 132 | O140: =IFERROR(VLOOKUP(J140,BUS!$C$4:$AEB$888,4,0),"") ->  | V140: =IFERROR(VLOOKUP(Q140,BUS!$C$4:$AEB$888,4,0),"") ->  | AC140: =IFERROR(VLOOKUP(X140,BUS!$C$4:$AEB$888,4,0),"") ->  | AE140: =IFERROR(VLOOKUP(J140,'شهر 9 تفصيلي'!$B$5:$AEC$667,1,0),"") ->  | AF140: =IFERROR(VLOOKUP(Q140,'شهر 9 تفصيلي'!$B$5:$AEC$667,1,0),"") ->  | AG140: =IFERROR(VLOOKUP(X140,'شهر 9 تفصيلي'!$B$5:$AEC$667,1,0),"") ->  | AH140: 134 | AI140: FALSE | AL140: 87 | AM140: FALSE | AN140: 87 | AO140: FALSE
D141: =N141&$H$7&COUNTIF($N$9:N141,N141) -> 444400 | E141: =U141&$H$7&COUNTIF($U$9:U141,U141) -> 444400 | F141: =AB141&$H$7&COUNTIF($AB$9:AB141,AB141) -> 444400 | H141: 133 | O141: =IFERROR(VLOOKUP(J141,BUS!$C$4:$AEB$888,4,0),"") ->  | V141: =IFERROR(VLOOKUP(Q141,BUS!$C$4:$AEB$888,4,0),"") ->  | AC141: =IFERROR(VLOOKUP(X141,BUS!$C$4:$AEB$888,4,0),"") ->  | AE141: =IFERROR(VLOOKUP(J141,'شهر 9 تفصيلي'!$B$5:$AEC$667,1,0),"") ->  | AF141: =IFERROR(VLOOKUP(Q141,'شهر 9 تفصيلي'!$B$5:$AEC$667,1,0),"") ->  | AG141: =IFERROR(VLOOKUP(X141,'شهر 9 تفصيلي'!$B$5:$AEC$667,1,0),"") ->  | AH141: 135 | AI141: FALSE | AL141: 88 | AM141: FALSE | AN141: 88 | AO141: FALSE
D142: =N142&$H$7&COUNTIF($N$9:N142,N142) -> 444400 | E142: =U142&$H$7&COUNTIF($U$9:U142,U142) -> 444400 | F142: =AB142&$H$7&COUNTIF($AB$9:AB142,AB142) -> 444400 | H142: 134 | O142: =IFERROR(VLOOKUP(J142,BUS!$C$4:$AEB$888,4,0),"") ->  | V142: =IFERROR(VLOOKUP(Q142,BUS!$C$4:$AEB$888,4,0),"") ->  | AC142: =IFERROR(VLOOKUP(X142,BUS!$C$4:$AEB$888,4,0),"") ->  | AE142: =IFERROR(VLOOKUP(J142,'شهر 9 تفصيلي'!$B$5:$AEC$667,1,0),"") ->  | AF142: =IFERROR(VLOOKUP(Q142,'شهر 9 تفصيلي'!$B$5:$AEC$667,1,0),"") ->  | AG142: =IFERROR(VLOOKUP(X142,'شهر 9 تفصيلي'!$B$5:$AEC$667,1,0),"") ->  | AH142: 136 | AI142: FALSE | AL142: 89 | AM142: FALSE | AN142: 89 | AO142: FALSE
D143: =N143&$H$7&COUNTIF($N$9:N143,N143) -> 444400 | E143: =U143&$H$7&COUNTIF($U$9:U143,U143) -> 444400 | F143: =AB143&$H$7&COUNTIF($AB$9:AB143,AB143) -> 444400 | H143: 135 | O143: =IFERROR(VLOOKUP(J143,BUS!$C$4:$AEB$888,4,0),"") ->  | V143: =IFERROR(VLOOKUP(Q143,BUS!$C$4:$AEB$888,4,0),"") ->  | AC143: =IFERROR(VLOOKUP(X143,BUS!$C$4:$AEB$888,4,0),"") ->  | AE143: =IFERROR(VLOOKUP(J143,'شهر 9 تفصيلي'!$B$5:$AEC$667,1,0),"") ->  | AF143: =IFERROR(VLOOKUP(Q143,'شهر 9 تفصيلي'!$B$5:$AEC$667,1,0),"") ->  | AG143: =IFERROR(VLOOKUP(X143,'شهر 9 تفصيلي'!$B$5:$AEC$667,1,0),"") ->  | AH143: 137 | AI143: FALSE | AL143: 90 | AM143: FALSE | AN143: 90 | AO143: FALSE
D144: =N144&$H$7&COUNTIF($N$9:N144,N144) -> 444400 | E144: =U144&$H$7&COUNTIF($U$9:U144,U144) -> 444400 | F144: =AB144&$H$7&COUNTIF($AB$9:AB144,AB144) -> 444400 | H144: 136 | O144: =IFERROR(VLOOKUP(J144,BUS!$C$4:$AEB$888,4,0),"") ->  | V144: =IFERROR(VLOOKUP(Q144,BUS!$C$4:$AEB$888,4,0),"") ->  | AC144: =IFERROR(VLOOKUP(X144,BUS!$C$4:$AEB$888,4,0),"") ->  | AE144: =IFERROR(VLOOKUP(J144,'شهر 9 تفصيلي'!$B$5:$AEC$667,1,0),"") ->  | AF144: =IFERROR(VLOOKUP(Q144,'شهر 9 تفصيلي'!$B$5:$AEC$667,1,0),"") ->  | AG144: =IFERROR(VLOOKUP(X144,'شهر 9 تفصيلي'!$B$5:$AEC$667,1,0),"") -> 
D145: =N145&$H$7&COUNTIF($N$9:N145,N145) -> 444400 | E145: =U145&$H$7&COUNTIF($U$9:U145,U145) -> 444400 | F145: =AB145&$H$7&COUNTIF($AB$9:AB145,AB145) -> 444400 | H145: 137 | O145: =IFERROR(VLOOKUP(J145,BUS!$C$4:$AEB$888,4,0),"") ->  | V145: =IFERROR(VLOOKUP(Q145,BUS!$C$4:$AEB$888,4,0),"") ->  | AC145: =IFERROR(VLOOKUP(X145,BUS!$C$4:$AEB$888,4,0),"") ->  | AE145: =IFERROR(VLOOKUP(J145,'شهر 9 تفصيلي'!$B$5:$AEC$667,1,0),"") ->  | AF145: =IFERROR(VLOOKUP(Q145,'شهر 9 تفصيلي'!$B$5:$AEC$667,1,0),"") ->  | AG145: =IFERROR(VLOOKUP(X145,'شهر 9 تفصيلي'!$B$5:$AEC$667,1,0),"") -> 
H146: TOTAL | L146: =SUM(L9:L145) -> 8924 | O146: ـــــــــــــــــــــــــــــــــــ | Q146: TOTAL | S146: =SUM(S9:S145) -> 1185 | V146: ـــــــــــــــــــــــــــــــــــ | X146: TOTAL | Z146: =SUM(Z9:Z145) -> 289 | AC146: ـــــــــــــــــــــــــــــــــــ
H147: Area manager | J147: Operation manager ( Bus D.) | Q147: General manager ( Bus D) | Z147: Maher-Hassan-2018

Sheet 2
AH5: محطة خشمان ( الماسة 7 )
H6: Checking the station manager | AH6: كشف بأرقام الفواتير اليومية
H7: ='شهر 9 تفصيلي'!$A$1+1 -> 2021-09-02 | L7: التاريخ / | O7: =#REF! ->  | S7: اليـــوم / | V7: محطة خشمان ( الماسة 7 ) | AC7: 1 | AH7: =H7 -> 2021-09-02 | AL7: =O7 -> 
A8: ديزل | B8: 95 | C8: 91 | D8: ديزل | E8: 95 | F8: 91 | H8: S.NO | I8: رقم الفاتوره ديزل | J8: BUS | K8: الكيلو D | L8: D | M8: الوقت | N8: المراقب | O8: To | P8: رقم الفاتوره 95 | Q8: BUS | R8: الكيلو 95 | S8: 95 | T8: الوقت | U8: المراقب | V8: To | W8: رقم الفاتوره 91 | X8: BUS | Y8: الكيلو 91 | Z8: 91 | AA8: الوقت | AB8: المراقب | AC8: To | AI8: رقم الفاتوره ديزل | AK8: رقم الفاتوره ديزل | AM8: رقم الفاتوره 95 | AO8: رقم الفاتوره 91
A9: =J9&K9 -> 1358 | B9: =Q9&R9 -> 1513 | C9: =X9&Y9 -> 6027 | D9: =N9&$H$7&COUNTIF($N$9:N9,N9) -> 444410 | E9: =U9&$H$7&COUNTIF($U$9:U9,U9) -> 444410 | F9: =AB9&$H$7&COUNTIF($AB$9:AB9,AB9) -> 444410 | H9: 1 | I9: 20312 | J9: 1358 | L9: 120 | O9: =IFERROR(VLOOKUP(J9,BUS!$C$4:$AEB$888,4,0),"") -> MUB | P9: 1220 | Q9: 1513 | S9: 63 | V9: =IFERROR(VLOOKUP(Q9,BUS!$C$4:$AEB$888,4,0),"") -> MUB | W9: 4053 | X9: 6027 | Z9: 62 | AC9: =IFERROR(VLOOKUP(X9,BUS!$C$4:$AEB$888,4,0),"") -> MUB | AE9: =IFERROR(VLOOKUP(J9,'شهر 9 تفصيلي'!$B$5:$AEC$667,1,0),"") ->  | AF9: =IFERROR(VLOOKUP(Q9,'شهر 9 تفصيلي'!$B$5:$AEC$667,1,0),"") -> 1513 | AG9: =IFERROR(VLOOKUP(X9,'شهر 9 تفصيلي'!$B$5:$AEC$667,1,0),"") ->  | AH9: 1 | AI9: =IF(I9>0,I9) -> 20312 | AJ9: 48 | AK9: =IF(I56>0,I56) -> 20302 | AL9: 1 | AM9: =IF(P9>0,P9) -> 1220 | AN9: 1 | AO9: =IF(W9>0,W9) -> 4053
A10: =J10&K10 -> 4010 | B10: =Q10&R10 -> 1501 | C10: =X10&Y10 -> 4013 | D10: =N10&$H$7&COUNTIF($N$9:N10,N10) -> 444410 | E10: =U10&$H$7&COUNTIF($U$9:U10,U10) -> 444410 | F10: =AB10&$H$7&COUNTIF($AB$9:AB10,AB10) -> 444410 | H10: 2 | I10: 20311 | J10: 4010 | L10: 64 | O10: =IFERROR(VLOOKUP(J10,BUS!$C$4:$AEB$888,4,0),"") -> MUB | P10: 1221 | Q10: 1501 | S10: 84 | V10: =IFERROR(VLOOKUP(Q10,BUS!$C$4:$AEB$888,4,0),"") -> MUB | W10: 4051 | X10: 4013 | Z10: 25 | AC10: =IFERROR(VLOOKUP(X10,BUS!$C$4:$AEB$888,4,0),"") -> MUB | AE10: =IFERROR(VLOOKUP(J10,'شهر 9 تفصيلي'!$B$5:$AEC$667,1,0),"") -> 4010 | AF10: =IFERROR(VLOOKUP(Q10,'شهر 9 تفصيلي'!$B$5:$AEC$667,1,0),"") -> 1501 | AG10: =IFERROR(VLOOKUP(X10,'شهر 9 تفصيلي'!$B$5:$AEC$667,1,0),"") -> 4013 | AH10: 2 | AI10: =IF(I10>0,I10) -> 20311 | AJ10: 49 | AK10: =IF(I57>0,I57) -> 20304 | AL10: 2 | AM10: =IF(P10>0,P10) -> 1221 | AN10: 2 | AO10: =IF(W10>0,W10) -> 4051
A11: 1253 | B11: 1511 | C11: 6002 | D11: =N11&$H$7&COUNTIF($N$9:N11,N11) -> 444410 | E11: =U11&$H$7&COUNTIF($U$9:U11,U11) -> 444410 | F11: =AB11&$H$7&COUNTIF($AB$9:AB11,AB11) -> 444410 | H11: 3 | I11: 20310 | J11: 1253 | L11: 200 | O11: =IFERROR(VLOOKUP(J11,BUS!$C$4:$AEB$888,4,0),"") -> MUB | P11: 1222 | Q11: 1511 | S11: 72 | V11: =IFERROR(VLOOKUP(Q11,BUS!$C$4:$AEB$888,4,0),"") -> MUB | W11: 4052 | X11: 6002 | Z11: 45 | AC11: =IFERROR(VLOOKUP(X11,BUS!$C$4:$AEB$888,4,0),"") -> MUB | AE11: =IFERROR(VLOOKUP(J11,'شهر 9 تفصيلي'!$B$5:$AEC$667,1,0),"") ->  | AF11: =IFERROR(VLOOKUP(Q11,'شهر 9 تفصيلي'!$B$5:$AEC$667,1,0),"") -> 1511 | AG11: =IFERROR(VLOOKUP(X11,'شهر 9 تفصيلي'!$B$5:$AEC$667,1,0),"") ->  | AH11: 3 | AI11: 20310 | AJ11: 50 | AK11: 20305 | AL11: 3 | AM11: 1222 | AN11: 3 | AO11: 4052
A12: 1820 | B12: 1655 | C12: 4157 | D12: =N12&$H$7&COUNTIF($N$9:N12,N12) -> 444410 | E12: =U12&$H$7&COUNTIF($U$9:U12,U12) -> 444410 | F12: =AB12&$H$7&COUNTIF($AB$9:AB12,AB12) -> 444410 | H12: 4 | I12: 20313 | J12: 1820 | L12: 185 | O12: =IFERROR(VLOOKUP(J12,BUS!$C$4:$AEB$888,4,0),"") -> MUB | P12: 1223 | Q12: 1655 | S12: 65 | V12: =IFERROR(VLOOKUP(Q12,BUS!$C$4:$AEB$888,4,0),"") -> MUB | W12: 4055 | X12: 4157 | Z12: 32 | AC12: =IFERROR(VLOOKUP(X12,BUS!$C$4:$AEB$888,4,0),"") -> MUB | AE12: =IFERROR(VLOOKUP(J12,'شهر 9 تفصيلي'!$B$5:$AEC$667,1,0),"") ->  | AF12: =IFERROR(VLOOKUP(Q12,'شهر 9 تفصيلي'!$B$5:$AEC$667,1,0),"") ->  | AG12: =IFERROR(VLOOKUP(X12,'شهر 9 تفصيلي'!$B$5:$AEC$667,1,0),"") ->  | AH12: 4 | AI12: 20313 | AJ12: 51 | AK12: 20306 | AL12: 4 | AM12: 1223 | AN12: 4 | AO12: 4055
A13: 1808 | B13: 1520 | C13: 4175 | D13: =N13&$H$7&COUNTIF($N$9:N13,N13) -> 444410 | E13: =U13&$H$7&COUNTIF($U$9:U13,U13) -> 444410 | F13: =AB13&$H$7&COUNTIF($AB$9:AB13,AB13) -> 444410 | H13: 5 | I13: 20314 | J13: 1808 | L13: 130 | O13: =IFERROR(VLOOKUP(J13,BUS!$C$4:$AEB$888,4,0),"") -> MUB | P13: 1224 | Q13: 1520 | S13: 85 | V13: =IFERROR(VLOOKUP(Q13,BUS!$C$4:$AEB$888,4,0),"") -> MUB | W13: 4056 | X13: 4175 | Z13: 25 | AC13: =IFERROR(VLOOKUP(X13,BUS!$C$4:$AEB$888,4,0),"") -> MUB | AE13: =IFERROR(VLOOKUP(J13,'شهر 9 تفصيلي'!$B$5:$AEC$667,1,0),"") ->  | AF13: =IFERROR(VLOOKUP(Q13,'شهر 9 تفصيلي'!$B$5:$AEC$667,1,0),"") -> 1520 | AG13: =IFERROR(VLOOKUP(X13,'شهر 9 تفصيلي'!$B$5:$AEC$667,1,0),"") -> 4175 | AH13: 5 | AI13: 20314 | AJ13: 52 | AK13: 20307 | AL13: 5 | AM13: 1224 | AN13: 5 | AO13: 4056
A14: 1205 | B14: 1557 | C14: 4176 | D14: =N14&$H$7&COUNTIF($N$9:N14,N14) -> 444410 | E14: =U14&$H$7&COUNTIF($U$9:U14,U14) -> 444410 | F14: =AB14&$H$7&COUNTIF($AB$9:AB14,AB14) -> 444410 | H14: 6 | I14: 20315 | J14: 1205 | L14: 105 | O14: =IFERROR(VLOOKUP(J14,BUS!$C$4:$AEB$888,4,0),"") -> MUB | P14: 1227 | Q14: 1557 | S14: 60 | V14: =IFERROR(VLOOKUP(Q14,BUS!$C$4:$AEB$888,4,0),"") -> MUB | W14: 4057 | X14: 4176 | Z14: 42 | AC14: =IFERROR(VLOOKUP(X14,BUS!$C$4:$AEB$888,4,0),"") -> MUB | AE14: =IFERROR(VLOOKUP(J14,'شهر 9 تفصيلي'!$B$5:$AEC$667,1,0),"") ->  | AF14: =IFERROR(VLOOKUP(Q14,'شهر 9 تفصيلي'!$B$5:$AEC$667,1,0),"") ->  | AG14: =IFERROR(VLOOKUP(X14,'شهر 9 تفصيلي'!$B$5:$AEC$667,1,0),"") -> 4176 | AH14: 6 | AI14: 20315 | AJ14: 53 | AK14: 20308 | AL14: 6 | AM14: 1227 | AN14: 6 | AO14: 4057
A15: 1811 | B15: 1595 | C15: 4013 | D15: =N15&$H$7&COUNTIF($N$9:N15,N15) -> 444410 | E15: =U15&$H$7&COUNTIF($U$9:U15,U15) -> 444410 | F15: =AB15&$H$7&COUNTIF($AB$9:AB15,AB15) -> 444410 | H15: 7 | I15: 20285 | J15: 1811 | L15: 100 | O15: =IFERROR(VLOOKUP(J15,BUS!$C$4:$AEB$888,4,0),"") -> MUB | P15: 1233 | Q15: 1595 | S15: 67 | V15: =IFERROR(VLOOKUP(Q15,BUS!$C$4:$AEB$888,4,0),"") -> DHA | W15: 4058 | X15: 4013 | Z15: 29 | AC15: =IFERROR(VLOOKUP(X15,BUS!$C$4:$AEB$888,4,0),"") -> MUB | AE15: =IFERROR(VLOOKUP(J15,'شهر 9 تفصيلي'!$B$5:$AEC$667,1,0),"") ->  | AF15: =IFERROR(VLOOKUP(Q15,'شهر 9 تفصيلي'!$B$5:$AEC$667,1,0),"") ->  | AG15: =IFERROR(VLOOKUP(X15,'شهر 9 تفصيلي'!$B$5:$AEC$667,1,0),"") -> 4013 | AH15: 7 | AI15: 20285 | AJ15: 54 | AK15: 20309 | AL15: 7 | AM15: 1233 | AN15: 7 | AO15: 4058
A16: 1013 | B16: 1504 | D16: =N16&$H$7&COUNTIF($N$9:N16,N16) -> 444410 | E16: =U16&$H$7&COUNTIF($U$9:U16,U16) -> 444410 | F16: =AB16&$H$7&COUNTIF($AB$9:AB16,AB16) -> 444410 | H16: 8 | I16: 20270 | J16: 1013 | L16: 200 | O16: =IFERROR(VLOOKUP(J16,BUS!$C$4:$AEB$888,4,0),"") -> MUB | P16: 1228 | Q16: 1504 | S16: 72 | V16: =IFERROR(VLOOKUP(Q16,BUS!$C$4:$AEB$888,4,0),"") -> MUB | AC16: =IFERROR(VLOOKUP(X16,BUS!$C$4:$AEB$888,4,0),"") ->  | AE16: =IFERROR(VLOOKUP(J16,'شهر 9 تفصيلي'!$B$5:$AEC$667,1,0),"") -> 1013 | AF16: =IFERROR(VLOOKUP(Q16,'شهر 9 تفصيلي'!$B$5:$AEC$667,1,0),"") -> 1504 | AG16: =IFERROR(VLOOKUP(X16,'شهر 9 تفصيلي'!$B$5:$AEC$667,1,0),"") ->  | AH16: 8 | AI16: 20270 | AJ16: 55 | AK16: FALSE | AL16: 8 | AM16: 1228 | AN16: 8 | AO16: FALSE
A17: 1051 | B17: 1552 | D17: =N17&$H$7&COUNTIF($N$9:N17,N17) -> 444410 | E17: =U17&$H$7&COUNTIF($U$9:U17,U17) -> 444410 | F17: =AB17&$H$7&COUNTIF($AB$9:AB17,AB17) -> 444410 | H17: 9 | I17: 20272 | J17: 1051 | L17: 170 | O17: =IFERROR(VLOOKUP(J17,BUS!$C$4:$AEB$888,4,0),"") -> MUB | P17: 1229 | Q17: 1552 | S17: 54 | V17: =IFERROR(VLOOKUP(Q17,BUS!$C$4:$AEB$888,4,0),"") -> MUB | AC17: =IFERROR(VLOOKUP(X17,BUS!$C$4:$AEB$888,4,0),"") ->  | AE17: =IFERROR(VLOOKUP(J17,'شهر 9 تفصيلي'!$B$5:$AEC$667,1,0),"") ->  | AF17: =IFERROR(VLOOKUP(Q17,'شهر 9 تفصيلي'!$B$5:$AEC$667,1,0),"") ->  | AG17: =IFERROR(VLOOKUP(X17,'شهر 9 تفصيلي'!$B$5:$AEC$667,1,0),"") ->  | AH17: 9 | AI17: 20272 | AJ17: 56 | AK17: FALSE | AL17: 9 | AM17: 1229 | AN17: 9 | AO17: FALSE
A18: 1014 | B18: 1611 | D18: =N18&$H$7&COUNTIF($N$9:N18,N18) -> 444410 | E18: =U18&$H$7&COUNTIF($U$9:U18,U18) -> 444410 | F18: =AB18&$H$7&COUNTIF($AB$9:AB18,AB18) -> 444410 | H18: 10 | I18: 20273 | J18: 1014 | L18: 210 | O18: =IFERROR(VLOOKUP(J18,BUS!$C$4:$AEB$888,4,0),"") -> MUB | P18: 1230 | Q18: 1611 | S18: 82 | V18: =IFERROR(VLOOKUP(Q18,BUS!$C$4:$AEB$888,4,0),"") -> UDH | AC18: =IFERROR(VLOOKUP(X18,BUS!$C$4:$AEB$888,4,0),"") ->  | AE18: =IFERROR(VLOOKUP(J18,'شهر 9 تفصيلي'!$B$5:$AEC$667,1,0),"") -> 1014 | AF18: =IFERROR(VLOOKUP(Q18,'شهر 9 تفصيلي'!$B$5:$AEC$667,1,0),"") ->  | AG18: =IFERROR(VLOOKUP(X18,'شهر 9 تفصيلي'!$B$5:$AEC$667,1,0),"") ->  | AH18: 10 | AI18: 20273 | AJ18: 57 | AK18: FALSE | AL18: 10 | AM18: 1230 | AN18: 10 | AO18: FALSE
A19: 1820 | B19: 1511 | D19: =N19&$H$7&COUNTIF($N$9:N19,N19) -> 444410 | E19: =U19&$H$7&COUNTIF($U$9:U19,U19) -> 444410 | F19: =AB19&$H$7&COUNTIF($AB$9:AB19,AB19) -> 444410 | H19: 11 | I19: 20274 | J19: 1820 | L19: 140 | O19: =IFERROR(VLOOKUP(J19,BUS!$C$4:$AEB$888,4,0),"") -> MUB | P19: 1232 | Q19: 1511 | S19: 36 | V19: =IFERROR(VLOOKUP(Q19,BUS!$C$4:$AEB$888,4,0),"") -> MUB | AC19: =IFERROR(VLOOKUP(X19,BUS!$C$4:$AEB$888,4,0),"") ->  | AE19: =IFERROR(VLOOKUP(J19,'شهر 9 تفصيلي'!$B$5:$AEC$667,1,0),"") ->  | AF19: =IFERROR(VLOOKUP(Q19,'شهر 9 تفصيلي'!$B$5:$AEC$667,1,0),"") -> 1511 | AG19: =IFERROR(VLOOKUP(X19,'شهر 9 تفصيلي'!$B$5:$AEC$667,1,0),"") ->  | AH19: 11 | AI19: 20274 | AJ19: 58 | AK19: FALSE | AL19: 11 | AM19: 1232 | AN19: 11 | AO19: FALSE
A20: 1266 | B20: 1588 | D20: =N20&$H$7&COUNTIF($N$9:N20,N20) -> 444410 | E20: =U20&$H$7&COUNTIF($U$9:U20,U20) -> 444410 | F20: =AB20&$H$7&COUNTIF($AB$9:AB20,AB20) -> 444410 | H20: 12 | I20: 20275 | J20: 1266 | L20: 215 | O20: =IFERROR(VLOOKUP(J20,BUS!$C$4:$AEB$888,4,0),"") -> DHA | P20: 1234 | Q20: 1588 | S20: 65 | V20: =IFERROR(VLOOKUP(Q20,BUS!$C$4:$AEB$888,4,0),"") -> UDH | AC20: =IFERROR(VLOOKUP(X20,BUS!$C$4:$AEB$888,4,0),"") ->  | AE20: =IFERROR(VLOOKUP(J20,'شهر 9 تفصيلي'!$B$5:$AEC$667,1,0),"") ->  | AF20: =IFERROR(VLOOKUP(Q20,'شهر 9 تفصيلي'!$B$5:$AEC$667,1,0),"") ->  | AG20: =IFERROR(VLOOKUP(X20,'شهر 9 تفصيلي'!$B$5:$AEC$667,1,0),"") ->  | AH20: 12 | AI20: 20275 | AJ20: 59 | AK20: FALSE | AL20: 12 | AM20: 1234 | AN20: 12 | AO20: FALSE
A21: 1824 | B21: 1589 | D21: =N21&$H$7&COUNTIF($N$9:N21,N21) -> 444410 | E21: =U21&$H$7&COUNTIF($U$9:U21,U21) -> 444410 | F21: =AB21&$H$7&COUNTIF($AB$9:AB21,AB21) -> 444410 | H21: 13 | I21: 20276 | J21: 1824 | L21: 150 | O21: =IFERROR(VLOOKUP(J21,BUS!$C$4:$AEB$888,4,0),"") -> MUB | P21: 1235 | Q21: 1589 | S21: 89 | V21: =IFERROR(VLOOKUP(Q21,BUS!$C$4:$AEB$888,4,0),"") -> UDH | AC21: =IFERROR(VLOOKUP(X21,BUS!$C$4:$AEB$888,4,0),"") ->  | AE21: =IFERROR(VLOOKUP(J21,'شهر 9 تفصيلي'!$B$5:$AEC$667,1,0),"") ->  | AF21: =IFERROR(VLOOKUP(Q21,'شهر 9 تفصيلي'!$B$5:$AEC$667,1,0),"") ->  | AG21: =IFERROR(VLOOKUP(X21,'شهر 9 تفصيلي'!$B$5:$AEC$667,1,0),"") ->  | AH21: 13 | AI21: 20276 | AJ21: 60 | AK21: FALSE | AL21: 13 | AM21: 1235 | AN21: 13 | AO21: FALSE
A22: 1061 | B22: 1525 | D22: =N22&$H$7&COUNTIF($N$9:N22,N22) -> 444410 | E22: =U22&$H$7&COUNTIF($U$9:U22,U22) -> 444410 | F22: =AB22&$H$7&COUNTIF($AB$9:AB22,AB22) -> 444410 | H22: 14 | I22: 20277 | J22: 1061 | L22: 235 | O22: =IFERROR(VLOOKUP(J22,BUS!$C$4:$AEB$888,4,0),"") -> MUB | P22: 1236 | Q22: 1525 | S22: 87 | V22: =IFERROR(VLOOKUP(Q22,BUS!$C$4:$AEB$888,4,0),"") -> MUB | AC22: =IFERROR(VLOOKUP(X22,BUS!$C$4:$AEB$888,4,0),"") ->  | AE22: =IFERROR(VLOOKUP(J22,'شهر 9 تفصيلي'!$B$5:$AEC$667,1,0),"") ->  | AF22: =IFERROR(VLOOKUP(Q22,'شهر 9 تفصيلي'!$B$5:$AEC$667,1,0),"") -> 1525 | AG22: =IFERROR(VLOOKUP(X22,'شهر 9 تفصيلي'!$B$5:$AEC$667,1,0),"") ->  | AH22: 14 | AI22: 20277 | AJ22: 61 | AK22: FALSE | AL22: 14 | AM22: 1236 | AN22: 14 | AO22: FALSE
A23: 1290 | B23: 1611 | D23: =N23&$H$7&COUNTIF($N$9:N23,N23) -> 444410 | E23: =U23&$H$7&COUNTIF($U$9:U23,U23) -> 444410 | F23: =AB23&$H$7&COUNTIF($AB$9:AB23,AB23) -> 444410 | H23: 15 | I23: 20278 | J23: 1290 | L23: 270 | O23: =IFERROR(VLOOKUP(J23,BUS!$C$4:$AEB$888,4,0),"") -> MUB | P23: 1237 | Q23: 1611 | S23: 63 | V23: =IFERROR(VLOOKUP(Q23,BUS!$C$4:$AEB$888,4,0),"") -> UDH | AC23: =IFERROR(VLOOKUP(X23,BUS!$C$4:$AEB$888,4,0),"") ->  | AE23: =IFERROR(VLOOKUP(J23,'شهر 9 تفصيلي'!$B$5:$AEC$667,1,0),"") ->  | AF23: =IFERROR(VLOOKUP(Q23,'شهر 9 تفصيلي'!$B$5:$AEC$667,1,0),"") ->  | AG23: =IFERROR(VLOOKUP(X23,'شهر 9 تفصيلي'!$B$5:$AEC$667,1,0),"") ->  | AH23: 15 | AI23: 20278 | AJ23: 62 | AK23: FALSE | AL23: 15 | AM23: 1237 | AN23: 15 | AO23: FALSE
A24: 1333 | D24: =N24&$H$7&COUNTIF($N$9:N24,N24) -> 444410 | E24: =U24&$H$7&COUNTIF($U$9:U24,U24) -> 444410 | F24: =AB24&$H$7&COUNTIF($AB$9:AB24,AB24) -> 444410 | H24: 16 | I24: 20279 | J24: 1333 | L24: 250 | O24: =IFERROR(VLOOKUP(J24,BUS!$C$4:$AEB$888,4,0),"") -> MUB | V24: =IFERROR(VLOOKUP(Q24,BUS!$C$4:$AEB$888,4,0),"") ->  | AC24: =IFERROR(VLOOKUP(X24,BUS!$C$4:$AEB$888,4,0),"") ->  | AE24: =IFERROR(VLOOKUP(J24,'شهر 9 تفصيلي'!$B$5:$AEC$667,1,0),"") ->  | AF24: =IFERROR(VLOOKUP(Q24,'شهر 9 تفصيلي'!$B$5:$AEC$667,1,0),"") ->  | AG24: =IFERROR(VLOOKUP(X24,'شهر 9 تفصيلي'!$B$5:$AEC$667,1,0),"") ->  | AH24: 16 | AI24: 20279 | AJ24: 63 | AK24: FALSE | AL24: 16 | AM24: FALSE | AN24: 16 | AO24: FALSE
A25: 1276 | D25: =N25&$H$7&COUNTIF($N$9:N25,N25) -> 444410 | E25: =U25&$H$7&COUNTIF($U$9:U25,U25) -> 444410 | F25: =AB25&$H$7&COUNTIF($AB$9:AB25,AB25) -> 444410 | H25: 17 | I25: 20280 | J25: 1276 | L25: 180 | O25: =IFERROR(VLOOKUP(J25,BUS!$C$4:$AEB$888,4,0),"") -> MUB | V25: =IFERROR(VLOOKUP(Q25,BUS!$C$4:$AEB$888,4,0),"") ->  | AC25: =IFERROR(VLOOKUP(X25,BUS!$C$4:$AEB$888,4,0),"") ->  | AE25: =IFERROR(VLOOKUP(J25,'شهر 9 تفصيلي'!$B$5:$AEC$667,1,0),"") ->  | AF25: =IFERROR(VLOOKUP(Q25,'شهر 9 تفصيلي'!$B$5:$AEC$667,1,0),"") ->  | AG25: =IFERROR(VLOOKUP(X25,'شهر 9 تفصيلي'!$B$5:$AEC$667,1,0),"") ->  | AH25: 17 | AI25: 20280 | AJ25: 64 | AK25: FALSE | AL25: 17 | AM25: FALSE | AN25: 17 | AO25: FALSE
A26: 1208 | D26: =N26&$H$7&COUNTIF($N$9:N26,N26) -> 444410 | E26: =U26&$H$7&COUNTIF($U$9:U26,U26) -> 444410 | F26: =AB26&$H$7&COUNTIF($AB$9:AB26,AB26) -> 444410 | H26: 18 | I26: 20281 | J26: 1208 | L26: 175 | O26: =IFERROR(VLOOKUP(J26,BUS!$C$4:$AEB$888,4,0),"") -> MUB | V26: =IFERROR(VLOOKUP(Q26,BUS!$C$4:$AEB$888,4,0),"") ->  | AC26: =IFERROR(VLOOKUP(X26,BUS!$C$4:$AEB$888,4,0),"") ->  | AE26: =IFERROR(VLOOKUP(J26,'شهر 9 تفصيلي'!$B$5:$AEC$667,1,0),"") ->  | AF26: =IFERROR(VLOOKUP(Q26,'شهر 9 تفصيلي'!$B$5:$AEC$667,1,0),"") ->  | AG26: =IFERROR(VLOOKUP(X26,'شهر 9 تفصيلي'!$B$5:$AEC$667,1,0),"") ->  | AH26: 18 | AI26: 20281 | AJ26: 65 | AK26: FALSE | AL26: 18 | AM26: FALSE | AN26: 18 | AO26: FALSE
A27: 1819 | D27: =N27&$H$7&COUNTIF($N$9:N27,N27) -> 444410 | E27: =U27&$H$7&COUNTIF($U$9:U27,U27) -> 444410 | F27: =AB27&$H$7&COUNTIF($AB$9:AB27,AB27) -> 444410 | H27: 19 | I27: 20282 | J27: 1819 | L27: 70 | O27: =IFERROR(VLOOKUP(J27,BUS!$C$4:$AEB$888,4,0),"") -> MUB | V27: =IFERROR(VLOOKUP(Q27,BUS!$C$4:$AEB$888,4,0),"") ->  | AC27: =IFERROR(VLOOKUP(X27,BUS!$C$4:$AEB$888,4,0),"") ->  | AE27: =IFERROR(VLOOKUP(J27,'شهر 9 تفصيلي'!$B$5:$AEC$667,1,0),"") ->  | AF27: =IFERROR(VLOOKUP(Q27,'شهر 9 تفصيلي'!$B$5:$AEC$667,1,0),"") ->  | AG27: =IFERROR(VLOOKUP(X27,'شهر 9 تفصيلي'!$B$5:$AEC$667,1,0),"") ->  | AH27: 19 | AI27: 20282 | AJ27: 66 | AK27: FALSE | AL27: 19 | AM27: FALSE | AN27: 19 | AO27: FALSE
A28: 1815 | D28: =N28&$H$7&COUNTIF($N$9:N28,N28) -> 444410 | E28: =U28&$H$7&COUNTIF($U$9:U28,U28) -> 444410 | F28: =AB28&$H$7&COUNTIF($AB$9:AB28,AB28) -> 444410 | H28: 20 | I28: 20283 | J28: 1815 | L28: 165 | O28: =IFERROR(VLOOKUP(J28,BUS!$C$4:$AEB$888,4,0),"") -> MUB | V28: =IFERROR(VLOOKUP(Q28,BUS!$C$4:$AEB$888,4,0),"") ->  | AC28: =IFERROR(VLOOKUP(X28,BUS!$C$4:$AEB$888,4,0),"") ->  | AE28: =IFERROR(VLOOKUP(J28,'شهر 9 تفصيلي'!$B$5:$AEC$667,1,0),"") ->  | AF28: =IFERROR(VLOOKUP(Q28,'شهر 9 تفصيلي'!$B$5:$AEC$667,1,0),"") ->  | AG28: =IFERROR(VLOOKUP(X28,'شهر 9 تفصيلي'!$B$5:$AEC$667,1,0),"") ->  | AH28: 20 | AI28: 20283 | AJ28: 67 | AK28: FALSE | AL28: 20 | AM28: FALSE | AN28: 20 | AO28: FALSE
